Workbook

Sheet Lists (hidden)
T1: Lists
V4: States
V6: Alabama | W6: Alabama | X6: Alabama | Y6: Alabama | Z6: Alabama | AA6: Alabama | AB6: Alabama | AC6: Alabama | AD6: Alabama | AE6: Alabama | AG6: Lump Sum | BA6: Type of Project
V7: Alaska | W7: Alaska | X7: Alaska | Y7: Alaska | Z7: Alaska | AA7: Alaska | AB7: Alaska | AC7: Alaska | AD7: Alaska | AE7: Alaska | AG7: % | BA7: New Construction
V8: Arizona | W8: Arizona | X8: Arizona | Y8: Arizona | Z8: Arizona | AA8: Arizona | AB8: Arizona | AC8: Arizona | AD8: Arizona | AE8: Arizona | BA8: Addition
V9: Arkansas | W9: Arkansas | X9: Arkansas | Y9: Arkansas | Z9: Arkansas | AA9: Arkansas | AB9: Arkansas | AC9: Arkansas | AD9: Arkansas | AE9: Arkansas | BA9: Complete Rehab
V10: California | W10: California | X10: California | Y10: California | Z10: California | AA10: California | AB10: California | AC10: California | AD10: California | AE10: California | AG10: Yes | BA10: Exterior Remodel
V11: Colorado | W11: Colorado | X11: Colorado | Y11: Colorado | Z11: Colorado | AA11: Colorado | AB11: Colorado | AC11: Colorado | AD11: Colorado | AE11: Colorado | AG11: No | BA11: Kitchen Remodel
V12: Connecticut | W12: Connecticut | X12: Connecticut | Y12: Connecticut | Z12: Connecticut | AA12: Connecticut | AB12: Connecticut | AC12: Connecticut | AD12: Connecticut | AE12: Connecticut | BA12: Bathroom Remodel
V13: Delaware | W13: Delaware | X13: Delaware | Y13: Delaware | Z13: Delaware | AA13: Delaware | AB13: Delaware | AC13: Delaware | AD13: Delaware | AE13: Delaware | AG13: wks | BA13: Interior Finishes
V14: Florida | W14: Florida | X14: Florida | Y14: Florida | Z14: Florida | AA14: Florida | AB14: Florida | AC14: Florida | AD14: Florida | AE14: Florida | AG14: mos | BA14: Landscaping
V15: Georgia | W15: Georgia | X15: Georgia | Y15: Georgia | Z15: Georgia | AA15: Georgia | AB15: Georgia | AC15: Georgia | AD15: Georgia | AE15: Georgia | BA15: Other
V16: Hawaii | W16: Hawaii | X16: Hawaii | Y16: Hawaii | Z16: Hawaii | AA16: Hawaii | AB16: Hawaii | AC16: Hawaii | AD16: Hawaii | AE16: Hawaii | AG16: Estimate Subtotal
V17: Idaho | W17: Idaho | X17: Idaho | Y17: Idaho | Z17: Idaho | AA17: Idaho | AB17: Idaho | AC17: Idaho | AD17: Idaho | AE17: Idaho | AG17: Total Estimate | BA17: Property Types
V18: Illinois | W18: Illinois | X18: Illinois | Y18: Illinois | Z18: Illinois | AA18: Illinois | AB18: Illinois | AC18: Illinois | AD18: Illinois | AE18: Illinois | BA18: Single Family Home
V19: Indiana | W19: Indiana | X19: Indiana | Y19: Indiana | Z19: Indiana | AA19: Indiana | AB19: Indiana | AC19: Indiana | AD19: Indiana | AE19: Indiana | BA19: Duplex
V20: Iowa | W20: Iowa | X20: Iowa | Y20: Iowa | Z20: Iowa | AA20: Iowa | AB20: Iowa | AC20: Iowa | AD20: Iowa | AE20: Iowa | AG20: Internal Report | BA20: Triplex
V21: Kansas | W21: Kansas | X21: Kansas | Y21: Kansas | Z21: Kansas | AA21: Kansas | AB21: Kansas | AC21: Kansas | AD21: Kansas | AE21: Kansas | AG21: Client Proposal | BA21: Fourplex
V22: Kentucky | W22: Kentucky | X22: Kentucky | Y22: Kentucky | Z22: Kentucky | AA22: Kentucky | AB22: Kentucky | AC22: Kentucky | AD22: Kentucky | AE22: Kentucky | BA22: Multiplex
V23: Louisiana | W23: Louisiana | X23: Louisiana | Y23: Louisiana | Z23: Louisiana | AA23: Louisiana | AB23: Louisiana | AC23: Louisiana | AD23: Louisiana | AE23: Louisiana | AG23: $1 | BA23: Apartment
V24: Maine | W24: Maine | X24: Maine | Y24: Maine | Z24: Maine | AA24: Maine | AB24: Maine | AC24: Maine | AD24: Maine | AE24: Maine | AG24: $1 | BA24: Condominum
V25: Maryland | W25: Maryland | X25: Maryland | Y25: Maryland | Z25: Maryland | AA25: Maryland | AB25: Maryland | AC25: Maryland | AD25: Maryland | AE25: Maryland | AG25: $1 | BA25: Townhouse
V26: Massachusetts | W26: Massachusetts | X26: Massachusetts | Y26: Massachusetts | Z26: Massachusetts | AA26: Massachusetts | AB26: Massachusetts | AC26: Massachusetts | AD26: Massachusetts | AE26: Massachusetts | AG26: $1 | BA26: Other
V27: Michigan | W27: Michigan | X27: Michigan | Y27: Michigan | Z27: Michigan | AA27: Michigan | AB27: Michigan | AC27: Michigan | AD27: Michigan | AE27: Michigan | AG27: $1
V28: Minnesota | W28: Minnesota | X28: Minnesota | Y28: Minnesota | Z28: Minnesota | AA28: Minnesota | AB28: Minnesota | AC28: Minnesota | AD28: Minnesota | AE28: Minnesota | AG28: $1
V29: Mississippi | W29: Mississippi | X29: Mississippi | Y29: Mississippi | Z29: Mississippi | AA29: Mississippi | AB29: Mississippi | AC29: Mississippi | AD29: Mississippi | AE29: Mississippi | AG29: $1
V30: Missouri | W30: Missouri | X30: Missouri | Y30: Missouri | Z30: Missouri | AA30: Missouri | AB30: Missouri | AC30: Missouri | AD30: Missouri | AE30: Missouri | AG30: $1
V31: Montana | W31: Montana | X31: Montana | Y31: Montana | Z31: Montana | AA31: Montana | AB31: Montana | AC31: Montana | AD31: Montana | AE31: Montana | AG31: $1
V32: Nebraska | W32: Nebraska | X32: Nebraska | Y32: Nebraska | Z32: Nebraska | AA32: Nebraska | AB32: Nebraska | AC32: Nebraska | AD32: Nebraska | AE32: Nebraska | AG32: $1
V33: Nevada | W33: Nevada | X33: Nevada | Y33: Nevada | Z33: Nevada | AA33: Nevada | AB33: Nevada | AC33: Nevada | AD33: Nevada | AE33: Nevada | AG33: $1
V34: New Hampshire | W34: New Hampshire | X34: New Hampshire | Y34: New Hampshire | Z34: New Hampshire | AA34: New Hampshire | AB34: New Hampshire | AC34: New Hampshire | AD34: New Hampshire | AE34: New Hampshire | AG34: $1
V35: New Jersey | W35: New Jersey | X35: New Jersey | Y35: New Jersey | Z35: New Jersey | AA35: New Jersey | AB35: New Jersey | AC35: New Jersey | AD35: New Jersey | AE35: New Jersey | AG35: $1
V36: New Mexico | W36: New Mexico | X36: New Mexico | Y36: New Mexico | Z36: New Mexico | AA36: New Mexico | AB36: New Mexico | AC36: New Mexico | AD36: New Mexico | AE36: New Mexico | AG36: $1
V37: New York | W37: New York | X37: New York | Y37: New York | Z37: New York | AA37: New York | AB37: New York | AC37: New York | AD37: New York | AE37: New York | AG37: $1
V38: North Carolina | W38: North Carolina | X38: North Carolina | Y38: North Carolina | Z38: North Carolina | AA38: North Carolina | AB38: North Carolina | AC38: North Carolina | AD38: North Carolina | AE38: North Carolina | AG38: $1
V39: North Dakota | W39: North Dakota | X39: North Dakota | Y39: North Dakota | Z39: North Dakota | AA39: North Dakota | AB39: North Dakota | AC39: North Dakota | AD39: North Dakota | AE39: North Dakota | AG39: $1
V40: Ohio | W40: Ohio | X40: Ohio | Y40: Ohio | Z40: Ohio | AA40: Ohio | AB40: Ohio | AC40: Ohio | AD40: Ohio | AE40: Ohio | AG40: $1
V41: Oklahoma | W41: Oklahoma | X41: Oklahoma | Y41: Oklahoma | Z41: Oklahoma | AA41: Oklahoma | AB41: Oklahoma | AC41: Oklahoma | AD41: Oklahoma | AE41: Oklahoma | AG41: $1
V42: Oregon | W42: Oregon | X42: Oregon | Y42: Oregon | Z42: Oregon | AA42: Oregon | AB42: Oregon | AC42: Oregon | AD42: Oregon | AE42: Oregon | AG42: $1
V43: Pennsylvania | W43: Pennsylvania | X43: Pennsylvania | Y43: Pennsylvania | Z43: Pennsylvania | AA43: Pennsylvania | AB43: Pennsylvania | AC43: Pennsylvania | AD43: Pennsylvania | AE43: Pennsylvania | AG43: $1
V44: Rhode Island | W44: Rhode Island | X44: Rhode Island | Y44: Rhode Island | Z44: Rhode Island | AA44: Rhode Island | AB44: Rhode Island | AC44: Rhode Island | AD44: Rhode Island | AE44: Rhode Island | AG44: $1
V45: South Carolina | W45: South Carolina | X45: South Carolina | Y45: South Carolina | Z45: South Carolina | AA45: South Carolina | AB45: South Carolina | AC45: South Carolina | AD45: South Carolina | AE45: South Carolina | AG45: $1
V46: South Dakota | W46: South Dakota | X46: South Dakota | Y46: South Dakota | Z46: South Dakota | AA46: South Dakota | AB46: South Dakota | AC46: South Dakota | AD46: South Dakota | AE46: South Dakota | AG46: $1
V47: Tennessee | W47: Tennessee | X47: Tennessee | Y47: Tennessee | Z47: Tennessee | AA47: Tennessee | AB47: Tennessee | AC47: Tennessee | AD47: Tennessee | AE47: Tennessee | AG47: $1
V48: Texas | W48: Texas | X48: Texas | Y48: Texas | Z48: Texas | AA48: Texas | AB48: Texas | AC48: Texas | AD48: Texas | AE48: Texas | AG48: $1
V49: Utah | W49: Utah | X49: Utah | Y49: Utah | Z49: Utah | AA49: Utah | AB49: Utah | AC49: Utah | AD49: Utah | AE49: Utah | AG49: $1
V50: Vermont | W50: Vermont | X50: Vermont | Y50: Vermont | Z50: Vermont | AA50: Vermont | AB50: Vermont | AC50: Vermont | AD50: Vermont | AE50: Vermont | AG50: $1
V51: Virginia | W51: Virginia | X51: Virginia | Y51: Virginia | Z51: Virginia | AA51: Virginia | AB51: Virginia | AC51: Virginia | AD51: Virginia | AE51: Virginia | AG51: $1
V52: Washington | W52: Washington | X52: Washington | Y52: Washington | Z52: Washington | AA52: Washington | AB52: Washington | AC52: Washington | AD52: Washington | AE52: Washington | AG52: $1
V53: West Virginia | W53: West Virginia | X53: West Virginia | Y53: West Virginia | Z53: West Virginia | AA53: West Virginia | AB53: West Virginia | AC53: West Virginia | AD53: West Virginia | AE53: West Virginia | AG53: $1
V54: Wisconsin | W54: Wisconsin | X54: Wisconsin | Y54: Wisconsin | Z54: Wisconsin | AA54: Wisconsin | AB54: Wisconsin | AC54: Wisconsin | AD54: Wisconsin | AE54: Wisconsin | AG54: $1
V55: Wyoming | W55: Wyoming | X55: Wyoming | Y55: Wyoming | Z55: Wyoming | AA55: Wyoming | AB55: Wyoming | AC55: Wyoming | AD55: Wyoming | AE55: Wyoming | AG55: $1
AG56: $1
V57: ls | AG57: $1
V58: ea | AG58: $1
V59: lf | AG59: $1
V60: sf | AG60: $1
V61: sy | AG61: $1
V62: cy | AG62: $1
V63: sq | AG63: $1
V64: hrs | AG64: $1
V65: weeks | AG65: $1
V66: months | AG66: $1
V67: sheet | AG67: $1
V68: gallon | AG68: $1
AG69: $1
AG70: $1
AG71: $1
AG72: $1
AG73: $1
V75: Value | W75: Rank | X75: Sorted Data
V76: =UPPER('ESTIMATE SUMMARY'!B6) -> ROOFING | W76: =COUNTIF($V$76:$V$121,"<="&V76) -> 42 | X76: =INDEX($V$76:$V$121,MATCH(ROWS($W$76:W76),$W$76:$W$121,0)) -> APPLIANCES
V77: =UPPER('ESTIMATE SUMMARY'!B7) -> SIDING | W77: =COUNTIF($V$76:$V$121,"<="&V77) -> 44 | X77: =INDEX($V$76:$V$121,MATCH(ROWS($W$76:W77),$W$76:$W$121,0)) -> ARCHITECTURAL/ENGINEERING
V78: =UPPER('ESTIMATE SUMMARY'!B8) -> MASONRY | W78: 34 | X78: =INDEX($V$76:$V$121,MATCH(ROWS($W$76:W78),$W$76:$W$121,0)) -> ASPHALT
V79: =UPPER('ESTIMATE SUMMARY'!B9) -> EXTERIOR PAINTING | W79: 16 | X79: =INDEX($V$76:$V$121,MATCH(ROWS($W$76:W79),$W$76:$W$121,0)) -> BASEMENT
V80: =UPPER('ESTIMATE SUMMARY'!B10) -> DECKS/PORCHES | W80: 11 | X80: =INDEX($V$76:$V$121,MATCH(ROWS($W$76:W80),$W$76:$W$121,0)) -> BATHROOMS
V81: =UPPER('ESTIMATE SUMMARY'!B11) -> EXTERIOR DOORS | W81: 15 | X81: =INDEX($V$76:$V$121,MATCH(ROWS($W$76:W81),$W$76:$W$121,0)) -> BUILDING PERMITS
V82: =UPPER('ESTIMATE SUMMARY'!B12) -> WINDOWS | W82: 46 | X82: =INDEX($V$76:$V$121,MATCH(ROWS($W$76:W82),$W$76:$W$121,0)) -> CABINETRY
V83: =UPPER('ESTIMATE SUMMARY'!B13) -> GARAGE | W83: 23 | X83: =INDEX($V$76:$V$121,MATCH(ROWS($W$76:W83),$W$76:$W$121,0)) -> CARPET/VINYL
V84: =UPPER('ESTIMATE SUMMARY'!B14) -> CONCRETE/FLATWORK | W84: 9 | X84: =INDEX($V$76:$V$121,MATCH(ROWS($W$76:W84),$W$76:$W$121,0)) -> CONCRETE/FLATWORK
V85: =UPPER('ESTIMATE SUMMARY'!B15) -> ASPHALT | W85: 3 | X85: =INDEX($V$76:$V$121,MATCH(ROWS($W$76:W85),$W$76:$W$121,0)) -> COUNTERTOPS
V86: =UPPER('ESTIMATE SUMMARY'!B16) -> LANDSCAPING | W86: 33 | X86: =INDEX($V$76:$V$121,MATCH(ROWS($W$76:W86),$W$76:$W$121,0)) -> DECKS/PORCHES
V87: =UPPER('ESTIMATE SUMMARY'!B17) -> FENCING | W87: 19 | X87: =INDEX($V$76:$V$121,MATCH(ROWS($W$76:W87),$W$76:$W$121,0)) -> DEMOLITION
V88: =UPPER('ESTIMATE SUMMARY'!B18) -> POOLS | W88: 40 | X88: =INDEX($V$76:$V$121,MATCH(ROWS($W$76:W88),$W$76:$W$121,0)) -> DRYWALL
V89: =UPPER('ESTIMATE SUMMARY'!B19) -> MISCELLANEOUS EXTERIOR ITEMS | W89: 35 | X89: =INDEX($V$76:$V$121,MATCH(ROWS($W$76:W89),$W$76:$W$121,0)) -> ELECTRICAL
V90: =UPPER('ESTIMATE SUMMARY'!B20) -> EXTERIORS 1 | W90: 17 | X90: =INDEX($V$76:$V$121,MATCH(ROWS($W$76:W90),$W$76:$W$121,0)) -> EXTERIOR DOORS
V91: =UPPER('ESTIMATE SUMMARY'!B21) -> EXTERIORS 2 | W91: 18 | X91: =INDEX($V$76:$V$121,MATCH(ROWS($W$76:W91),$W$76:$W$121,0)) -> EXTERIOR PAINTING
V92: =UPPER('ESTIMATE SUMMARY'!B24) -> DEMOLITION | W92: 12 | X92: =INDEX($V$76:$V$121,MATCH(ROWS($W$76:W92),$W$76:$W$121,0)) -> EXTERIORS 1
V93: =UPPER('ESTIMATE SUMMARY'!B25) -> REMEDIATION/ABATEMENT | W93: 41 | X93: =INDEX($V$76:$V$121,MATCH(ROWS($W$76:W93),$W$76:$W$121,0)) -> EXTERIORS 2
V94: =UPPER('ESTIMATE SUMMARY'!B26) -> FRAMING | W94: 22 | X94: =INDEX($V$76:$V$121,MATCH(ROWS($W$76:W94),$W$76:$W$121,0)) -> FENCING
V95: =UPPER('ESTIMATE SUMMARY'!B27) -> INSULATION | W95: 27 | X95: =INDEX($V$76:$V$121,MATCH(ROWS($W$76:W95),$W$76:$W$121,0)) -> FIRE PROTECTION
V96: =UPPER('ESTIMATE SUMMARY'!B28) -> DRYWALL | W96: 13 | X96: =INDEX($V$76:$V$121,MATCH(ROWS($W$76:W96),$W$76:$W$121,0)) -> FOUNDATIONS
V97: =UPPER('ESTIMATE SUMMARY'!B29) -> KITCHENS | W97: 32 | X97: =INDEX($V$76:$V$121,MATCH(ROWS($W$76:W97),$W$76:$W$121,0)) -> FRAMING
V98: =UPPER('ESTIMATE SUMMARY'!B30) -> BATHROOMS | W98: 5 | X98: =INDEX($V$76:$V$121,MATCH(ROWS($W$76:W98),$W$76:$W$121,0)) -> GARAGE
V99: =UPPER('ESTIMATE SUMMARY'!B31) -> CABINETRY | W99: 7 | X99: =INDEX($V$76:$V$121,MATCH(ROWS($W$76:W99),$W$76:$W$121,0)) -> GENERAL REQUIREMENTS
V100: =UPPER('ESTIMATE SUMMARY'!B32) -> COUNTERTOPS | W100: 10 | X100: =INDEX($V$76:$V$121,MATCH(ROWS($W$76:W100),$W$76:$W$121,0)) -> HARDWOOD FLOORING
V101: =UPPER('ESTIMATE SUMMARY'!B33) -> INTERIOR DOORS | W101: 28 | X101: =INDEX($V$76:$V$121,MATCH(ROWS($W$76:W101),$W$76:$W$121,0)) -> HVAC
V102: =UPPER('ESTIMATE SUMMARY'!B34) -> INTERIOR WOODWORK | W102: 30 | X102: =INDEX($V$76:$V$121,MATCH(ROWS($W$76:W102),$W$76:$W$121,0)) -> INSULATION
V103: =UPPER('ESTIMATE SUMMARY'!B35) -> INTERIOR PAINTING | W103: 29 | X103: =INDEX($V$76:$V$121,MATCH(ROWS($W$76:W103),$W$76:$W$121,0)) -> INTERIOR DOORS
V104: =UPPER('ESTIMATE SUMMARY'!B36) -> CARPET/VINYL | W104: 8 | X104: =INDEX($V$76:$V$121,MATCH(ROWS($W$76:W104),$W$76:$W$121,0)) -> INTERIOR PAINTING
V105: =UPPER('ESTIMATE SUMMARY'!B37) -> TILING | W105: 45 | X105: =INDEX($V$76:$V$121,MATCH(ROWS($W$76:W105),$W$76:$W$121,0)) -> INTERIOR WOODWORK
V106: =UPPER('ESTIMATE SUMMARY'!B38) -> HARDWOOD FLOORING | W106: 25 | X106: =INDEX($V$76:$V$121,MATCH(ROWS($W$76:W106),$W$76:$W$121,0)) -> INTERIORS 1
V107: =UPPER('ESTIMATE SUMMARY'!B39) -> APPLIANCES | W107: 1 | X107: =INDEX($V$76:$V$121,MATCH(ROWS($W$76:W107),$W$76:$W$121,0)) -> KITCHENS
V108: =UPPER('ESTIMATE SUMMARY'!B40) -> BASEMENT | W108: 4 | X108: =INDEX($V$76:$V$121,MATCH(ROWS($W$76:W108),$W$76:$W$121,0)) -> LANDSCAPING
V109: =UPPER('ESTIMATE SUMMARY'!B41) -> FOUNDATIONS | W109: 21 | X109: =INDEX($V$76:$V$121,MATCH(ROWS($W$76:W109),$W$76:$W$121,0)) -> MASONRY
V110: =UPPER('ESTIMATE SUMMARY'!B42) -> MISCELLANEOUS INTERIOR ITEMS | W110: 36 | X110: =INDEX($V$76:$V$121,MATCH(ROWS($W$76:W110),$W$76:$W$121,0)) -> MISCELLANEOUS EXTERIOR ITEMS
V111: =UPPER('ESTIMATE SUMMARY'!B43) -> INTERIORS 1 | W111: 31 | X111: =INDEX($V$76:$V$121,MATCH(ROWS($W$76:W111),$W$76:$W$121,0)) -> MISCELLANEOUS INTERIOR ITEMS
V112: =UPPER('ESTIMATE SUMMARY'!B46) -> FIRE PROTECTION | W112: 20 | X112: =INDEX($V$76:$V$121,MATCH(ROWS($W$76:W112),$W$76:$W$121,0)) -> OTHER 1
V113: =UPPER('ESTIMATE SUMMARY'!B47) -> PLUMBING | W113: 39 | X113: =INDEX($V$76:$V$121,MATCH(ROWS($W$76:W113),$W$76:$W$121,0)) -> OTHER 2
V114: =UPPER('ESTIMATE SUMMARY'!B48) -> SEPTIC SYSTEM | W114: 43 | X114: =INDEX($V$76:$V$121,MATCH(ROWS($W$76:W114),$W$76:$W$121,0)) -> PLUMBING
V115: =UPPER('ESTIMATE SUMMARY'!B49) -> HVAC | W115: 26 | X115: =INDEX($V$76:$V$121,MATCH(ROWS($W$76:W115),$W$76:$W$121,0)) -> POOLS
V116: =UPPER('ESTIMATE SUMMARY'!B50) -> ELECTRICAL | W116: 14 | X116: =INDEX($V$76:$V$121,MATCH(ROWS($W$76:W116),$W$76:$W$121,0)) -> REMEDIATION/ABATEMENT
V117: =UPPER('ESTIMATE SUMMARY'!B53) -> GENERAL REQUIREMENTS | W117: 24 | X117: =INDEX($V$76:$V$121,MATCH(ROWS($W$76:W117),$W$76:$W$121,0)) -> ROOFING
V118: =UPPER('ESTIMATE SUMMARY'!B54) -> ARCHITECTURAL/ENGINEERING | W118: 2 | X118: =INDEX($V$76:$V$121,MATCH(ROWS($W$76:W118),$W$76:$W$121,0)) -> SEPTIC SYSTEM
V119: =UPPER('ESTIMATE SUMMARY'!B55) -> BUILDING PERMITS | W119: 6 | X119: =INDEX($V$76:$V$121,MATCH(ROWS($W$76:W119),$W$76:$W$121,0)) -> SIDING
V120: =UPPER('ESTIMATE SUMMARY'!B56) -> OTHER 1 | W120: 37 | X120: =INDEX($V$76:$V$121,MATCH(ROWS($W$76:W120),$W$76:$W$121,0)) -> TILING
V121: =UPPER('ESTIMATE SUMMARY'!B57) -> OTHER 2 | W121: 38 | X121: =INDEX($V$76:$V$121,MATCH(ROWS($W$76:W121),$W$76:$W$121,0)) -> WINDOWS

Sheet EULA
D4: END-USER LICENSE AGREEMENT
D8: IMPORTANT—READ CAREFULLY: This End-User License Agreement (“EULA”) is a legal agreement between you and remodelestimator.com that covers all products made by remodelestimator.com. By downloading, accessing or otherwise using any spreadsheets you agree to be bound by the terms of this EULA.
D9: Spreadsheet License
D10: Each spreadsheet is protected by copyright laws and international copyright treaties, as well as other intellectual property laws and treaties.
D11: 1. GRANT OF LICENSE. This EULA grants you the right to use this spreadsheet for personal or business use only and it may not be distributed outside of your organization. You may not sell, resell, license, rent, lease, lend, or otherwise transfer for value. You may not remove or alter any logo, trademark, copyright, hyperlinks, disclaimers, terms of use, or other proprietary notices within the spreadsheet.
D12: 2. TERMINATION. Without prejudice to any other rights, remodelestimator.com may terminate this EULA if you fail to comply with the terms and conditions of this EULA. In such event, you must destroy all copies of any spreadsheet.
D13: 3. DISCLAIMER. Real property businesses and earnings derived therefrom, have unknown risks involved, and are not suitable for everyone. Making decisions based on any information presented in our products or on our website, should be done only with the knowledge that you could experience significant losses, or make no money at all. Only risk capital should be used.
D14: All products and services of our company are for educational and informational purposes only and are provided "As-Is" without warranty of any kind. remodelestimator.com hereby disclaim all warranties and conditions with regard to the products, including all implied warranties and conditions of merchantability, fitness for a particular purpose, title and non-infringement. In no event shall remodelestimator.com be liable for any special, indirect or consequential damages or any damages whatsoever resulting from loss of use, data or profits, whether in action of the contract, negligence or other tortious action, arising out of or in connection with the products. Use caution and seek the advice of qualified professionals. Check with your accountant, lawyer or professional advisor, before acting on this or any information.
D15: Users of our products, services and website are advised to do their own due diligence when it comes to making business decisions and all information, programs, products and services that have been provided should be independently verified by your own qualified professionals. Our information, products and services should be carefully considered and evaluated before reaching a business decision, or whether to rely on them.
D16: You agree that our company is not responsible for the success or failure of your business decisions relating to any information presented by our company, or our company products and/or services.
D17: 4. MISCELLANEOUS. Some states do not allow the limitation or exclusion of liability for incidental or consequential damages, so the above limitation may not apply to you.
C18: © 2017 by remodelestimator.com. All rights reserved

Sheet HOME
N4: Welcome
B6: Sheet Settings
C8: Zoom Settings
C9: $1
C11: # of Licenses
C12: +1 License
U15: Project Setup | AF15: Estimator | AQ15: General Conditions | BD15: Adders
N20: Estimate Reports
O32: Inspection Checklist | X32: Summary Proposal | AG32: Detailed Proposal | AP32: Scope Proposal | AY32: Blank Proposal | BH32: GC & Soft Cost Proposal
K35: © 2018 by RemodelEstimator.com. All rights reserved

Sheet SETUP (hidden)
A2: Setup | B2: Estimate | F2: GCs | J2: Adders | N2: Alternates
J4: Project Information:
B6: Edit Categories | J6: Job Name: | S6: Test Project
J8: Project Type: | S8: Addition
J10: Property Type: | S10: Triplex
J12: Project Address: | S12: 1234 N. Main St
J14: City/State/Zip Code: | S14: Kansas City, MO 64116
J16: Project Size: | S16: 1,500 sf | AA16: Project Duration:
AN17: wks
J19: # of Stories: | S19: 2.0 | X19: # of Beds: | AC19: 3 | AG19: # of Baths: | AL19: 2.0
J22: Client Information:
J24: Client Name:
J26: Phone (D): | AC26: Other:
J28: Email:
J31: Company Information:
J33: Company Name: | S33: ABC Builders
J35: Company Contact: | S35: Dave
J37: Street Address: | S37: P.O Box 123456
J39: City/State/Zip: | S39: Kansas City, MO 64116
J41: Email: | S41: dave@abcbuilders.com
J43: Phone: | S43: 8161234567 | AC43: Fax:
J45: Website:
J47: © 2018 by RemodelEstimator.com. All rights reserved

Sheet ESTIMATE
A2: Setup | B2: Estimate | F2: GCs | J2: Adders | N2: Alternates | AG2: Go to Summary | AM2: Edit Categories | AT2: Print Report
A4: All | B4: All | F4: Exteriors | J4: Interiors | N4: MEP | R4: Other
B5: DESCRIPTION OF WORK | R5: QTY | U5: UNIT | W5: UNIT COST | AF5: LABOR/EQUIP | AJ5: MAT | AN5: SUB | AS5: TOTAL | AY5: =AY51+AY96+AY141+AY186+AY231+AY276+AY321+AY366+AY411+AY456+AY501+AY546+AY591+AY636+AY681+AY726+AY772+AY817+AY862+AY907+AY952+AY997+AY1042+AY1087+AY1132+AY1177+AY1222+AY1267+AY1312+AY1357+AY1402+AY1447+AY1492+AY1537+AY1582+AY1627+AY1673+AY1718+AY1763+AY1808+AY1853+AY1899+AY1944+AY1989+AY2034+AY2079 -> $37,625 | AZ5: =AZ51+AZ96+AZ141+AZ186+AZ231+AZ276+AZ321+AZ366+AZ411+AZ456+AZ501+AZ546+AZ591+AZ636+AZ681+AZ726+AZ772+AZ817+AZ862+AZ907+AZ952+AZ997+AZ1042+AZ1087+AZ1132+AZ1177+AZ1222+AZ1267+AZ1312+AZ1357+AZ1402+AZ1447+AZ1492+AZ1537+AZ1582+AZ1627+AZ1673+AZ1718+AZ1763+AZ1808+AZ1853+AZ1899+AZ1944+AZ1989+AZ2034+AZ2079 -> $39,938 | BA5: $6,000 | BB5: $83,563 | BC5: $0 | BD5: $10,159 | BE5: $47,784 | BF5: $0 | BG5: $10,783 | BH5: $50,721 | BI5: $0 | BJ5: $1,620 | BK5: $7,620 | BL5: $106,124 | BN5: % of Costs | BP5: NOTES
W6: LABOR/EQUIP | Z6: MAT | AC6: SUB | AF6: ='ESTIMATE SUMMARY'!P60 -> $37,625 | AJ6: ='ESTIMATE SUMMARY'!T60 -> $39,938 | AN6: ='ESTIMATE SUMMARY'!X60 -> $6,000 | AS6: ='ESTIMATE SUMMARY'!AB60 -> $83,563 | AY6: LABOR | AZ6: MAT | BA6: SUB | BB6: TOTAL | BC6: LAB % | BD6: LAB ADDR | BE6: LABOR | BF6: MAT % | BG6: MAT ADDR | BH6: MAT | BI6: SUB % | BJ6: SUB ADDR | BK6: SUB | BL6: TOTAL w/ ADDERS | BN6: =IFERROR(AS6/Total_Detailed_Estimate,0) -> 100.0%
B8: EXTERIORS
A9: Hidden | B9: =UPPER(Exterior1_Category) -> ROOFING | AF9: =IF(Exterior1_Labor=0,"",Exterior1_Labor) -> $5,000 | AJ9: =IF(Exterior1_Material=0,"",Exterior1_Material) -> $2,000 | AN9: =IF(Exterior1_Sub=0,"",Exterior1_Sub) ->  | AS9: =IF(Exterior1_Total=0,"",Exterior1_Total) -> $7,000
B10: Roofing bid/allowance | U10: ls | V10: ls | AF10: =R10*W10 -> $0 | AJ10: =R10*Z10 -> $0 | AN10: =R10*AC10 -> $0 | AS10: =SUM(AF10:AP10) -> $0 | AY10: =AF10 -> $0.00 | AZ10: =AJ10 -> $0.00 | BA10: =AN10 -> $0.00 | BB10: =SUM(AY10:BA10) -> $0.00 | BC10: =IFERROR(AY10/$BB$5,0) -> $0 | BD10: =BC10*Allocated_Adders -> $0.00 | BE10: =AY10+BD10 -> $0.00 | BF10: =IFERROR(AZ10/$BB$5,0) -> $0 | BG10: =BF10*Allocated_Adders -> $0.00 | BH10: =AZ10+BG10 -> $0.00 | BI10: =IFERROR(BA10/$BB$5,0) -> $0 | BJ10: =BI10*Allocated_Adders -> $0.00 | BK10: =BA10+BJ10 -> $0.00 | BL10: =BE10+BH10+BK10 -> $0.00 | BN10: =IFERROR(AS10/Total_Detailed_Estimate,0) -> 0.0%
B11: Asphalt shingle roof | AF11: =R11*W11 -> $0 | AJ11: $0 | AN11: $0 | AS11: =SUM(AF11:AQ11) -> $0 | AY11: $0.00 | AZ11: $0.00 | BA11: $0.00 | BB11: $0.00 | BC11: =IFERROR(AY11/$BB$5,0) -> $0 | BD11: $0.00 | BE11: =AY11+BD11 -> $0.00 | BF11: =IFERROR(AZ11/$BB$5,0) -> $0 | BG11: $0.00 | BH11: =AZ11+BG11 -> $0.00 | BI11: =IFERROR(BA11/$BB$5,0) -> $0 | BJ11: $0.00 | BK11: =BA11+BJ11 -> $0.00 | BL11: =BE11+BH11+BK11 -> $0.00 | BN11: 0.0%
B12: Roof repair/patch, asphalt | R12: 20 | U12: ea | V12: ea | W12: 250.00 | Z12: 100.00 | AB12: 100.00 | AF12: $5,000 | AJ12: $2,000 | AN12: $0 | AS12: $7,000 | AY12: $5,000.00 | AZ12: $2,000.00 | BA12: $0.00 | BB12: $7,000.00 | BC12: $0 | BD12: $1,350.00 | BE12: $6,350.00 | BF12: $0 | BG12: $540.00 | BH12: $2,540.00 | BI12: $0 | BJ12: $0.00 | BK12: $0.00 | BL12: $8,890.00 | BN12: 8.4%
B13: Roof replacement-demo & replace, 3-tab | U13: sq | W13: 80.00 | Z13: 85.00 | AF13: $0 | AJ13: $0 | AN13: $0 | AS13: $0 | AY13: $0.00 | AZ13: $0.00 | BA13: $0.00 | BB13: $0.00 | BC13: $0 | BD13: $0.00 | BE13: $0.00 | BF13: $0 | BG13: $0.00 | BH13: $0.00 | BI13: $0 | BJ13: $0.00 | BK13: $0.00 | BL13: $0.00 | BN13: 0.0%
B14: Roof replacement-demo & replace, architectural | U14: sq | W14: 110.00 | Z14: 125.00 | AB14: 100.00 | AF14: $0 | AJ14: $0 | AN14: $0 | AS14: $0 | AY14: $0.00 | AZ14: $0.00 | BA14: $0.00 | BB14: $0.00 | BC14: $0 | BD14: $0.00 | BE14: $0.00 | BF14: $0 | BG14: $0.00 | BH14: $0.00 | BI14: $0 | BJ14: $0.00 | BK14: $0.00 | BL14: $0.00 | BN14: 0.0%
B15: Premium for 3 layer tear off | U15: sq | V15: sq | W15: 35.00 | AF15: $0 | AJ15: $0 | AN15: $0 | AS15: $0 | AY15: $0.00 | AZ15: $0.00 | BA15: $0.00 | BB15: $0.00 | BC15: $0 | BD15: $0.00 | BE15: $0.00 | BF15: $0 | BG15: $0.00 | BH15: $0.00 | BI15: $0 | BJ15: $0.00 | BK15: $0.00 | BL15: $0.00 | BN15: 0.0%
B16: Premium for steep pitch roof | U16: sq | V16: sq | W16: 25.00 | AF16: $0 | AJ16: $0 | AN16: $0 | AS16: $0 | AY16: $0.00 | AZ16: $0.00 | BA16: $0.00 | BB16: $0.00 | BC16: $0 | BD16: $0.00 | BE16: $0.00 | BF16: $0 | BG16: $0.00 | BH16: $0.00 | BI16: $0 | BJ16: $0.00 | BK16: $0.00 | BL16: $0.00 | BN16: 0.0%
AF17: $0 | AJ17: $0 | AN17: $0 | AS17: $0 | AY17: $0.00 | AZ17: $0.00 | BA17: $0.00 | BB17: $0.00 | BC17: $0 | BD17: $0.00 | BE17: $0.00 | BF17: $0 | BG17: $0.00 | BH17: $0.00 | BI17: $0 | BJ17: $0.00 | BK17: $0.00 | BL17: $0.00 | BN17: 0.0%
B18: Wood Shingle Roof | AF18: $0 | AJ18: $0 | AN18: $0 | AS18: $0 | AY18: $0.00 | AZ18: $0.00 | BA18: $0.00 | BB18: $0.00 | BC18: $0 | BD18: $0.00 | BE18: $0.00 | BF18: $0 | BG18: $0.00 | BH18: $0.00 | BI18: $0 | BJ18: $0.00 | BK18: $0.00 | BL18: $0.00 | BN18: 0.0%
B19: Roof repair/patch, wood | U19: ea | V19: ea | W19: 250.00 | Z19: 100.00 | AB19: 100.00 | AF19: $0 | AJ19: $0 | AN19: $0 | AS19: $0 | AY19: $0.00 | AZ19: $0.00 | BA19: $0.00 | BB19: $0.00 | BC19: $0 | BD19: $0.00 | BE19: $0.00 | BF19: $0 | BG19: $0.00 | BH19: $0.00 | BI19: $0 | BJ19: $0.00 | BK19: $0.00 | BL19: $0.00 | BN19: 0.0%
B20: Roof replacement-demo & replace, 3-tab | U20: sq | W20: 75.00 | Z20: 50.00 | AF20: $0 | AJ20: $0 | AN20: $0 | AS20: $0 | AY20: $0.00 | AZ20: $0.00 | BA20: $0.00 | BB20: $0.00 | BC20: $0 | BD20: $0.00 | BE20: $0.00 | BF20: $0 | BG20: $0.00 | BH20: $0.00 | BI20: $0 | BJ20: $0.00 | BK20: $0.00 | BL20: $0.00 | BN20: 0.0%
B21: Wood shingle, low end | U21: sq | W21: 250.00 | Z21: 175.00 | AF21: $0 | AJ21: $0 | AN21: $0 | AS21: $0 | AY21: $0.00 | AZ21: $0.00 | BA21: $0.00 | BB21: $0.00 | BC21: $0 | BD21: $0.00 | BE21: $0.00 | BF21: $0 | BG21: $0.00 | BH21: $0.00 | BI21: $0 | BJ21: $0.00 | BK21: $0.00 | BL21: $0.00 | BN21: 0.0%
B22: Wood shingle, high end | U22: sq | W22: 250.00 | Z22: 350.00 | AF22: $0 | AJ22: $0 | AN22: $0 | AS22: $0 | AY22: $0.00 | AZ22: $0.00 | BA22: $0.00 | BB22: $0.00 | BC22: $0 | BD22: $0.00 | BE22: $0.00 | BF22: $0 | BG22: $0.00 | BH22: $0.00 | BI22: $0 | BJ22: $0.00 | BK22: $0.00 | BL22: $0.00 | BN22: 0.0%
B23: Roof sheathing, plywood 1/2", remove & install | U23: sheet | V23: sheet | W23: 15.00 | Z23: 25.00 | AB23: 25.00 | AF23: $0 | AJ23: $0 | AN23: $0 | AS23: $0 | AY23: $0.00 | AZ23: $0.00 | BA23: $0.00 | BB23: $0.00 | BC23: $0 | BD23: $0.00 | BE23: $0.00 | BF23: $0 | BG23: $0.00 | BH23: $0.00 | BI23: $0 | BJ23: $0.00 | BK23: $0.00 | BL23: $0.00 | BN23: 0.0%
AF24: $0 | AJ24: $0 | AN24: $0 | AS24: $0 | AY24: $0.00 | AZ24: $0.00 | BA24: $0.00 | BB24: $0.00 | BC24: $0 | BD24: $0.00 | BE24: $0.00 | BF24: $0 | BG24: $0.00 | BH24: $0.00 | BI24: $0 | BJ24: $0.00 | BK24: $0.00 | BL24: $0.00 | BN24: 0.0%
B25: Slate/Clay Tile | AF25: $0 | AJ25: $0 | AN25: $0 | AS25: $0 | AY25: $0.00 | AZ25: $0.00 | BA25: $0.00 | BB25: $0.00 | BC25: $0 | BD25: $0.00 | BE25: $0.00 | BF25: $0 | BG25: $0.00 | BH25: $0.00 | BI25: $0 | BJ25: $0.00 | BK25: $0.00 | BL25: $0.00 | BN25: 0.0%
B26: Roof replacement-demo & replace, slate | U26: sq | W26: 300.00 | Z26: 500.00 | AF26: $0 | AJ26: $0 | AN26: $0 | AS26: $0 | AY26: $0.00 | AZ26: $0.00 | BA26: $0.00 | BB26: $0.00 | BC26: $0 | BD26: $0.00 | BE26: $0.00 | BF26: $0 | BG26: $0.00 | BH26: $0.00 | BI26: $0 | BJ26: $0.00 | BK26: $0.00 | BL26: $0.00 | BN26: 0.0%
AF27: $0 | AJ27: $0 | AN27: $0 | AS27: $0 | AY27: $0.00 | AZ27: $0.00 | BA27: $0.00 | BB27: $0.00 | BC27: $0 | BD27: $0.00 | BE27: $0.00 | BF27: $0 | BG27: $0.00 | BH27: $0.00 | BI27: $0 | BJ27: $0.00 | BK27: $0.00 | BL27: $0.00 | BN27: 0.0%
AF28: $0 | AJ28: $0 | AN28: $0 | AS28: $0 | AY28: $0.00 | AZ28: $0.00 | BA28: $0.00 | BB28: $0.00 | BC28: $0 | BD28: $0.00 | BE28: $0.00 | BF28: $0 | BG28: $0.00 | BH28: $0.00 | BI28: $0 | BJ28: $0.00 | BK28: $0.00 | BL28: $0.00 | BN28: 0.0%
B29: Miscellaneous Roofing | C29: Slate/clay roofing, L+M | D29: Slate/clay roofing, L+M | E29: Slate/clay roofing, L+M | F29: Slate/clay roofing, L+M | G29: Slate/clay roofing, L+M | H29: Slate/clay roofing, L+M | I29: Slate/clay roofing, L+M | J29: Slate/clay roofing, L+M | K29: Slate/clay roofing, L+M | L29: Slate/clay roofing, L+M | M29: Slate/clay roofing, L+M | N29: Slate/clay roofing, L+M | O29: Slate/clay roofing, L+M | P29: Slate/clay roofing, L+M | Q29: Slate/clay roofing, L+M | AF29: $0 | AJ29: $0 | AN29: $0 | AS29: $0 | AY29: $0.00 | AZ29: $0.00 | BA29: $0.00 | BB29: $0.00 | BC29: $0 | BD29: $0.00 | BE29: $0.00 | BF29: $0 | BG29: $0.00 | BH29: $0.00 | BI29: $0 | BJ29: $0.00 | BK29: $0.00 | BL29: $0.00 | BN29: 0.0%
B30: Roofing maintenance, L+M | C30: Roofing maintenance, L+M | D30: Roofing maintenance, L+M | E30: Roofing maintenance, L+M | F30: Roofing maintenance, L+M | G30: Roofing maintenance, L+M | H30: Roofing maintenance, L+M | I30: Roofing maintenance, L+M | J30: Roofing maintenance, L+M | K30: Roofing maintenance, L+M | L30: Roofing maintenance, L+M | M30: Roofing maintenance, L+M | N30: Roofing maintenance, L+M | O30: Roofing maintenance, L+M | P30: Roofing maintenance, L+M | Q30: Roofing maintenance, L+M | U30: ea | W30: 250.00 | AF30: $0 | AJ30: $0 | AN30: $0 | AS30: $0 | AY30: $0.00 | AZ30: $0.00 | BA30: $0.00 | BB30: $0.00 | BC30: $0 | BD30: $0.00 | BE30: $0.00 | BF30: $0 | BG30: $0.00 | BH30: $0.00 | BI30: $0 | BJ30: $0.00 | BK30: $0.00 | BL30: $0.00 | BN30: 0.0%
B31: Roofing, patch section, L+M | C31: Roofing, patch section, L+M | D31: Roofing, patch section, L+M | E31: Roofing, patch section, L+M | F31: Roofing, patch section, L+M | G31: Roofing, patch section, L+M | H31: Roofing, patch section, L+M | I31: Roofing, patch section, L+M | J31: Roofing, patch section, L+M | K31: Roofing, patch section, L+M | L31: Roofing, patch section, L+M | M31: Roofing, patch section, L+M | N31: Roofing, patch section, L+M | O31: Roofing, patch section, L+M | P31: Roofing, patch section, L+M | Q31: Roofing, patch section, L+M | U31: ea | W31: 500.00 | AF31: $0 | AJ31: $0 | AN31: $0 | AS31: $0 | AY31: $0.00 | AZ31: $0.00 | BA31: $0.00 | BB31: $0.00 | BC31: $0 | BD31: $0.00 | BE31: $0.00 | BF31: $0 | BG31: $0.00 | BH31: $0.00 | BI31: $0 | BJ31: $0.00 | BK31: $0.00 | BL31: $0.00 | BN31: 0.0%
B32: Plywood roof sheathing, L+M | C32: Plywood roof sheathing, L+M | D32: Plywood roof sheathing, L+M | E32: Plywood roof sheathing, L+M | F32: Plywood roof sheathing, L+M | G32: Plywood roof sheathing, L+M | H32: Plywood roof sheathing, L+M | I32: Plywood roof sheathing, L+M | J32: Plywood roof sheathing, L+M | K32: Plywood roof sheathing, L+M | L32: Plywood roof sheathing, L+M | M32: Plywood roof sheathing, L+M | N32: Plywood roof sheathing, L+M | O32: Plywood roof sheathing, L+M | P32: Plywood roof sheathing, L+M | Q32: Plywood roof sheathing, L+M | U32: sheet | W32: 45.00 | AF32: $0 | AJ32: $0 | AN32: $0 | AS32: $0 | AY32: $0.00 | AZ32: $0.00 | BA32: $0.00 | BB32: $0.00 | BC32: $0 | BD32: $0.00 | BE32: $0.00 | BF32: $0 | BG32: $0.00 | BH32: $0.00 | BI32: $0 | BJ32: $0.00 | BK32: $0.00 | BL32: $0.00 | BN32: 0.0%
B33: Gutter replacement, L+M | C33: Gutter replacement, L+M | D33: Gutter replacement, L+M | E33: Gutter replacement, L+M | F33: Gutter replacement, L+M | G33: Gutter replacement, L+M | H33: Gutter replacement, L+M | I33: Gutter replacement, L+M | J33: Gutter replacement, L+M | K33: Gutter replacement, L+M | L33: Gutter replacement, L+M | M33: Gutter replacement, L+M | N33: Gutter replacement, L+M | O33: Gutter replacement, L+M | P33: Gutter replacement, L+M | Q33: Gutter replacement, L+M | U33: lf | W33: 7.50 | AF33: $0 | AJ33: $0 | AN33: $0 | AS33: $0 | AY33: $0.00 | AZ33: $0.00 | BA33: $0.00 | BB33: $0.00 | BC33: $0 | BD33: $0.00 | BE33: $0.00 | BF33: $0 | BG33: $0.00 | BH33: $0.00 | BI33: $0 | BJ33: $0.00 | BK33: $0.00 | BL33: $0.00 | BN33: 0.0%
B34: Premium for 2 layer tear off, L+M | C34: Premium for 2 layer tear off, L+M | D34: Premium for 2 layer tear off, L+M | E34: Premium for 2 layer tear off, L+M | F34: Premium for 2 layer tear off, L+M | G34: Premium for 2 layer tear off, L+M | H34: Premium for 2 layer tear off, L+M | I34: Premium for 2 layer tear off, L+M | J34: Premium for 2 layer tear off, L+M | K34: Premium for 2 layer tear off, L+M | L34: Premium for 2 layer tear off, L+M | M34: Premium for 2 layer tear off, L+M | N34: Premium for 2 layer tear off, L+M | O34: Premium for 2 layer tear off, L+M | P34: Premium for 2 layer tear off, L+M | Q34: Premium for 2 layer tear off, L+M | U34: sq | W34: 200.00 | AF34: $0 | AJ34: $0 | AN34: $0 | AS34: $0 | AY34: $0.00 | AZ34: $0.00 | BA34: $0.00 | BB34: $0.00 | BC34: $0 | BD34: $0.00 | BE34: $0.00 | BF34: $0 | BG34: $0.00 | BH34: $0.00 | BI34: $0 | BJ34: $0.00 | BK34: $0.00 | BL34: $0.00 | BN34: 0.0%
B35: Premium for steep pitched roof, L+M | C35: Premium for steep pitched roof, L+M | D35: Premium for steep pitched roof, L+M | E35: Premium for steep pitched roof, L+M | F35: Premium for steep pitched roof, L+M | G35: Premium for steep pitched roof, L+M | H35: Premium for steep pitched roof, L+M | I35: Premium for steep pitched roof, L+M | J35: Premium for steep pitched roof, L+M | K35: Premium for steep pitched roof, L+M | L35: Premium for steep pitched roof, L+M | M35: Premium for steep pitched roof, L+M | N35: Premium for steep pitched roof, L+M | O35: Premium for steep pitched roof, L+M | P35: Premium for steep pitched roof, L+M | Q35: Premium for steep pitched roof, L+M | U35: sq | W35: 250.00 | AF35: $0 | AJ35: $0 | AN35: $0 | AS35: $0 | AY35: $0.00 | AZ35: $0.00 | BA35: $0.00 | BB35: $0.00 | BC35: $0 | BD35: $0.00 | BE35: $0.00 | BF35: $0 | BG35: $0.00 | BH35: $0.00 | BI35: $0 | BJ35: $0.00 | BK35: $0.00 | BL35: $0.00 | BN35: 0.0%
B36: Fascia board, L+M | C36: Fascia board, L+M | D36: Fascia board, L+M | E36: Fascia board, L+M | F36: Fascia board, L+M | G36: Fascia board, L+M | H36: Fascia board, L+M | I36: Fascia board, L+M | J36: Fascia board, L+M | K36: Fascia board, L+M | L36: Fascia board, L+M | M36: Fascia board, L+M | N36: Fascia board, L+M | O36: Fascia board, L+M | P36: Fascia board, L+M | Q36: Fascia board, L+M | U36: lf | W36: 5.00 | AF36: $0 | AJ36: $0 | AN36: $0 | AS36: $0 | AY36: $0.00 | AZ36: $0.00 | BA36: $0.00 | BB36: $0.00 | BC36: $0 | BD36: $0.00 | BE36: $0.00 | BF36: $0 | BG36: $0.00 | BH36: $0.00 | BI36: $0 | BJ36: $0.00 | BK36: $0.00 | BL36: $0.00 | BN36: 0.0%
B37: 12" Soffit board, L+M | C37: 12" Soffit board, L+M | D37: 12" Soffit board, L+M | E37: 12" Soffit board, L+M | F37: 12" Soffit board, L+M | G37: 12" Soffit board, L+M | H37: 12" Soffit board, L+M | I37: 12" Soffit board, L+M | J37: 12" Soffit board, L+M | K37: 12" Soffit board, L+M | L37: 12" Soffit board, L+M | M37: 12" Soffit board, L+M | N37: 12" Soffit board, L+M | O37: 12" Soffit board, L+M | P37: 12" Soffit board, L+M | Q37: 12" Soffit board, L+M | U37: lf | W37: 5.00 | AF37: $0 | AJ37: $0 | AN37: $0 | AS37: $0 | AY37: $0.00 | AZ37: $0.00 | BA37: $0.00 | BB37: $0.00 | BC37: $0 | BD37: $0.00 | BE37: $0.00 | BF37: $0 | BG37: $0.00 | BH37: $0.00 | BI37: $0 | BJ37: $0.00 | BK37: $0.00 | BL37: $0.00 | BN37: 0.0%
AF38: $0 | AJ38: $0 | AN38: $0 | AS38: $0 | AY38: $0.00 | AZ38: $0.00 | BA38: $0.00 | BB38: $0.00 | BC38: $0 | BD38: $0.00 | BE38: $0.00 | BF38: $0 | BG38: $0.00 | BH38: $0.00 | BI38: $0 | BJ38: $0.00 | BK38: $0.00 | BL38: $0.00 | BN38: 0.0%
AF39: $0 | AJ39: =R39*Z39 -> $0 | AN39: =R39*AC39 -> $0 | AS39: $0 | AY39: $0.00 | AZ39: $0.00 | BA39: $0.00 | BB39: $0.00 | BC39: $0 | BD39: $0.00 | BE39: $0.00 | BF39: $0 | BG39: $0.00 | BH39: $0.00 | BI39: $0 | BJ39: $0.00 | BK39: $0.00 | BL39: $0.00 | BN39: 0.0%
AF40: $0 | AJ40: =R40*Z40 -> $0 | AN40: =R40*AC40 -> $0 | AS40: $0 | AY40: $0.00 | AZ40: $0.00 | BA40: $0.00 | BB40: $0.00 | BC40: $0 | BD40: $0.00 | BE40: $0.00 | BF40: $0 | BG40: $0.00 | BH40: $0.00 | BI40: $0 | BJ40: $0.00 | BK40: $0.00 | BL40: $0.00 | BN40: 0.0%
AF41: $0 | AJ41: =R41*Z41 -> $0 | AN41: =R41*AC41 -> $0 | AS41: $0 | AY41: $0.00 | AZ41: $0.00 | BA41: $0.00 | BB41: $0.00 | BC41: $0 | BD41: $0.00 | BE41: $0.00 | BF41: $0 | BG41: $0.00 | BH41: $0.00 | BI41: $0 | BJ41: $0.00 | BK41: $0.00 | BL41: $0.00 | BN41: 0.0%
AF42: $0 | AJ42: $0 | AN42: $0 | AS42: $0 | AY42: $0.00 | AZ42: $0.00 | BA42: $0.00 | BB42: $0.00 | BC42: $0 | BD42: $0.00 | BE42: $0.00 | BF42: $0 | BG42: $0.00 | BH42: $0.00 | BI42: $0 | BJ42: $0.00 | BK42: $0.00 | BL42: $0.00 | BN42: 0.0%
AF43: $0 | AJ43: $0 | AN43: $0 | AS43: $0 | AY43: $0.00 | AZ43: $0.00 | BA43: $0.00 | BB43: $0.00 | BC43: $0 | BD43: $0.00 | BE43: $0.00 | BF43: $0 | BG43: $0.00 | BH43: $0.00 | BI43: $0 | BJ43: $0.00 | BK43: $0.00 | BL43: $0.00 | BN43: 0.0%
AF44: $0 | AJ44: $0 | AN44: $0 | AS44: $0 | AY44: $0.00 | AZ44: $0.00 | BA44: $0.00 | BB44: $0.00 | BC44: $0 | BD44: $0.00 | BE44: $0.00 | BF44: $0 | BG44: $0.00 | BH44: $0.00 | BI44: $0 | BJ44: $0.00 | BK44: $0.00 | BL44: $0.00 | BN44: 0.0%
AF45: $0 | AJ45: =R45*Z45 -> $0 | AN45: =R45*AC45 -> $0 | AS45: $0 | AY45: $0.00 | AZ45: $0.00 | BA45: $0.00 | BB45: $0.00 | BC45: $0 | BD45: $0.00 | BE45: $0.00 | BF45: $0 | BG45: $0.00 | BH45: $0.00 | BI45: $0 | BJ45: $0.00 | BK45: $0.00 | BL45: $0.00 | BN45: 0.0%
AF46: $0 | AJ46: =R46*Z46 -> $0 | AN46: =R46*AC46 -> $0 | AS46: $0 | AY46: $0.00 | AZ46: $0.00 | BA46: $0.00 | BB46: $0.00 | BC46: $0 | BD46: $0.00 | BE46: $0.00 | BF46: $0 | BG46: $0.00 | BH46: $0.00 | BI46: $0 | BJ46: $0.00 | BK46: $0.00 | BL46: $0.00 | BN46: 0.0%
AF47: $0 | AJ47: =R47*Z47 -> $0 | AN47: =R47*AC47 -> $0 | AS47: $0 | AY47: $0.00 | AZ47: $0.00 | BA47: $0.00 | BB47: $0.00 | BC47: $0 | BD47: $0.00 | BE47: $0.00 | BF47: $0 | BG47: $0.00 | BH47: $0.00 | BI47: $0 | BJ47: $0.00 | BK47: $0.00 | BL47: $0.00 | BN47: 0.0%
AF48: $0 | AJ48: =R48*Z48 -> $0 | AN48: =R48*AC48 -> $0 | AS48: $0 | AY48: $0.00 | AZ48: $0.00 | BA48: $0.00 | BB48: $0.00 | BC48: $0 | BD48: $0.00 | BE48: $0.00 | BF48: $0 | BG48: $0.00 | BH48: $0.00 | BI48: $0 | BJ48: $0.00 | BK48: $0.00 | BL48: $0.00 | BN48: 0.0%
AF49: $0 | AJ49: =R49*Z49 -> $0 | AN49: =R49*AC49 -> $0 | AS49: $0 | AY49: $0.00 | AZ49: $0.00 | BA49: $0.00 | BB49: $0.00 | BC49: $0 | BD49: $0.00 | BE49: $0.00 | BF49: $0 | BG49: $0.00 | BH49: $0.00 | BI49: $0 | BJ49: $0.00 | BK49: $0.00 | BL49: $0.00 | BN49: 0.0%
AY50: =AY9 -> $0 | AZ50: =AZ9 -> $0 | BA50: =BA9 -> $0 | BB50: =BB9 -> $0 | BE50: =BE9 -> $0 | BG50: $0.00 | BH50: =BH9 -> $0 | BJ50: $0.00 | BK50: =BK9 -> $0 | BL50: =BL9 -> $0
AE51: =CONCATENATE(B9," ","TOTAL") -> ROOFING TOTAL | AF51: =SUBTOTAL(9,AF10:AF50) -> $5,000 | AJ51: =SUBTOTAL(9,AJ10:AJ50) -> $2,000 | AN51: =SUBTOTAL(9,AN10:AN50) -> $0 | AS51: =SUBTOTAL(9,AS10:AS50) -> $7,000 | AW51: =SUM(AW5:AW42) -> $0 | AY51: =SUM(AY10:AY50) -> $5,000.00 | AZ51: $2,000.00 | BA51: $0.00 | BB51: $7,000.00 | BC51: $0 | BD51: $1,350.00 | BE51: $6,350.00 | BF51: $0 | BG51: $540.00 | BH51: $2,540.00 | BI51: $0 | BJ51: $0.00 | BK51: $0.00 | BL51: $8,890.00 | BN51: =IFERROR(AS51/Total_Detailed_Estimate,0) -> 8.4%
AY52: =AY9 -> $0 | AZ52: =AZ9 -> $0 | BA52: =BA9 -> $0 | BB52: =BB9 -> $0 | BE52: =BE9 -> $0 | BG52: $0.00 | BH52: =BH9 -> $0 | BJ52: $0.00 | BK52: =BK9 -> $0 | BL52: =BL9 -> $0
AY53: =AY51 -> 5000 | AZ53: =AZ51 -> 2000 | BA53: =BA51 -> 0 | BB53: =BB51 -> 7000 | BE53: =BE51 -> 6350 | BG53: $0.00 | BH53: =BH51 -> 2540 | BJ53: $0.00 | BK53: =BK51 -> 0 | BL53: =BL51 -> 8890
A54: Hidden | B54: =UPPER(Exterior2_Category) -> SIDING | AF54: =IF(Exterior2_Labor=0,"",Exterior2_Labor) ->  | AJ54: =IF(Exterior2_Material=0,"",Exterior2_Material) ->  | AN54: =IF(Exterior2_Sub=0,"",Exterior2_Sub) ->  | AS54: =IF(Exterior2_Total=0,"",Exterior2_Total) -> 
B55: Siding | AF55: =R55*W55 -> $0 | AJ55: =R55*Z55 -> $0 | AN55: =R55*AC55 -> $0 | AS55: =SUM(AF55:AQ55) -> $0 | AW55: =SUM(AF55:AQ55) -> $0 | AY55: =AF55 -> $0.00 | AZ55: =AJ55 -> $0.00 | BA55: =AN55 -> $0.00 | BB55: =SUM(AY55:BA55) -> $0.00 | BC55: =IFERROR(AY55/$BB$5,0) -> $0 | BD55: =BC55*Allocated_Adders -> $0.00 | BE55: =AY55+BD55 -> $0.00 | BF55: =IFERROR(AZ55/$BB$5,0) -> $0 | BG55: =BF55*Allocated_Adders -> $0.00 | BH55: =AZ55+BG55 -> $0.00 | BI55: =IFERROR(BA55/$BB$5,0) -> $0 | BJ55: =BI55*Allocated_Adders -> $0.00 | BK55: =BA55+BJ55 -> $0.00 | BL55: =BE55+BH55+BK55 -> $0.00 | BN55: =IFERROR(AS55/Total_Detailed_Estimate,0) -> 0.0%
B56: Siding bid/allowance | U56: ls | V56: ls | AF56: =R56*W56 -> $0 | AJ56: $0 | AN56: $0 | AS56: $0 | AW56: $0 | AY56: $0.00 | AZ56: $0.00 | BA56: $0.00 | BB56: $0.00 | BC56: =IFERROR(AY56/$BB$5,0) -> $0 | BD56: $0.00 | BE56: =AY56+BD56 -> $0.00 | BF56: =IFERROR(AZ56/$BB$5,0) -> $0 | BG56: $0.00 | BH56: =AZ56+BG56 -> $0.00 | BI56: =IFERROR(BA56/$BB$5,0) -> $0 | BJ56: $0.00 | BK56: =BA56+BJ56 -> $0.00 | BL56: =BE56+BH56+BK56 -> $0.00 | BN56: 0.0%
B57: Demo existing siding | U57: sf | V57: sf | W57: 0.75 | AF57: $0 | AJ57: $0 | AN57: $0 | AS57: $0 | AW57: $0 | AY57: $0.00 | AZ57: $0.00 | BA57: $0.00 | BB57: $0.00 | BC57: $0 | BD57: $0.00 | BE57: $0.00 | BF57: $0 | BG57: $0.00 | BH57: $0.00 | BI57: $0 | BJ57: $0.00 | BK57: $0.00 | BL57: $0.00 | BN57: 0.0%
B58: Plywood panel, douglas fir | U58: sf | V58: sf | W58: 1.15 | Z58: 1.25 | AB58: 1.25 | AF58: $0 | AJ58: $0 | AN58: $0 | AS58: $0 | AW58: $0 | AY58: $0.00 | AZ58: $0.00 | BA58: $0.00 | BB58: $0.00 | BC58: $0 | BD58: $0.00 | BE58: $0.00 | BF58: $0 | BG58: $0.00 | BH58: $0.00 | BI58: $0 | BJ58: $0.00 | BK58: $0.00 | BL58: $0.00 | BN58: 0.0%
B59: Plywood panel, cedar | U59: sf | V59: sf | W59: 1.20 | Z59: 2.75 | AB59: 1.00 | AF59: $0 | AJ59: $0 | AN59: $0 | AS59: $0 | AW59: $0 | AY59: $0.00 | AZ59: $0.00 | BA59: $0.00 | BB59: $0.00 | BC59: $0 | BD59: $0.00 | BE59: $0.00 | BF59: $0 | BG59: $0.00 | BH59: $0.00 | BI59: $0 | BJ59: $0.00 | BK59: $0.00 | BL59: $0.00 | BN59: 0.0%
B60: Tongue and groove, douglas fir | U60: sf | V60: sf | W60: 1.25 | Z60: 2.50 | AB60: 1.50 | AF60: $0 | AJ60: $0 | AN60: $0 | AS60: $0 | AW60: $0 | AY60: $0.00 | AZ60: $0.00 | BA60: $0.00 | BB60: $0.00 | BC60: $0 | BD60: $0.00 | BE60: $0.00 | BF60: $0 | BG60: $0.00 | BH60: $0.00 | BI60: $0 | BJ60: $0.00 | BK60: $0.00 | BL60: $0.00 | BN60: 0.0%
B61: Tongue and groove, cedar | U61: sf | V61: sf | W61: 1.75 | Z61: 4.00 | AB61: 1.00 | AF61: $0 | AJ61: $0 | AN61: $0 | AS61: $0 | AW61: $0 | AY61: $0.00 | AZ61: $0.00 | BA61: $0.00 | BB61: $0.00 | BC61: $0 | BD61: $0.00 | BE61: $0.00 | BF61: $0 | BG61: $0.00 | BH61: $0.00 | BI61: $0 | BJ61: $0.00 | BK61: $0.00 | BL61: $0.00 | BN61: 0.0%
B62: Board and batten, douglas fir | U62: sf | V62: sf | W62: 2.25 | Z62: 1.00 | AB62: 1.50 | AF62: $0 | AJ62: $0 | AN62: $0 | AS62: $0 | AW62: $0 | AY62: $0.00 | AZ62: $0.00 | BA62: $0.00 | BB62: $0.00 | BC62: $0 | BD62: $0.00 | BE62: $0.00 | BF62: $0 | BG62: $0.00 | BH62: $0.00 | BI62: $0 | BJ62: $0.00 | BK62: $0.00 | BL62: $0.00 | BN62: 0.0%
B63: Board and batten, cedar | U63: sf | W63: 2.50 | Z63: 1.00 | AF63: $0 | AJ63: $0 | AN63: $0 | AS63: $0 | AW63: $0 | AY63: $0.00 | AZ63: $0.00 | BA63: $0.00 | BB63: $0.00 | BC63: $0 | BD63: $0.00 | BE63: $0.00 | BF63: $0 | BG63: $0.00 | BH63: $0.00 | BI63: $0 | BJ63: $0.00 | BK63: $0.00 | BL63: $0.00 | BN63: 0.0%
B64: Wood shingle/shake | U64: sf | W64: 2.75 | Z64: 1.75 | AF64: $0 | AJ64: $0 | AN64: $0 | AS64: $0 | AW64: $0 | AY64: $0.00 | AZ64: $0.00 | BA64: $0.00 | BB64: $0.00 | BC64: $0 | BD64: $0.00 | BE64: $0.00 | BF64: $0 | BG64: $0.00 | BH64: $0.00 | BI64: $0 | BJ64: $0.00 | BK64: $0.00 | BL64: $0.00 | BN64: 0.0%
B65: Fiber cement siding, 4x8 panels | U65: sf | W65: 0.85 | Z65: 1.00 | AF65: $0 | AJ65: $0 | AN65: $0 | AS65: $0 | AW65: $0 | AY65: $0.00 | AZ65: $0.00 | BA65: $0.00 | BB65: $0.00 | BC65: $0 | BD65: $0.00 | BE65: $0.00 | BF65: $0 | BG65: $0.00 | BH65: $0.00 | BI65: $0 | BJ65: $0.00 | BK65: $0.00 | BL65: $0.00 | BN65: 0.0%
B66: Fiber cement siding, lap | U66: sf | W66: 1.50 | Z66: 1.20 | AF66: $0 | AJ66: $0 | AN66: $0 | AS66: $0 | AW66: $0 | AY66: $0.00 | AZ66: $0.00 | BA66: $0.00 | BB66: $0.00 | BC66: $0 | BD66: $0.00 | BE66: $0.00 | BF66: $0 | BG66: $0.00 | BH66: $0.00 | BI66: $0 | BJ66: $0.00 | BK66: $0.00 | BL66: $0.00 | BN66: 0.0%
B67: Vinyl siding, non-insulated | U67: sf | W67: 1.50 | Z67: 1.30 | AF67: $0 | AJ67: $0 | AN67: $0 | AS67: $0 | AW67: $0 | AY67: $0.00 | AZ67: $0.00 | BA67: $0.00 | BB67: $0.00 | BC67: $0 | BD67: $0.00 | BE67: $0.00 | BF67: $0 | BG67: $0.00 | BH67: $0.00 | BI67: $0 | BJ67: $0.00 | BK67: $0.00 | BL67: $0.00 | BN67: 0.0%
B68: Vinyl siding, insulated | U68: sf | W68: 3.00 | Z68: 1.75 | AF68: $0 | AJ68: $0 | AN68: $0 | AS68: $0 | AW68: $0 | AY68: $0.00 | AZ68: $0.00 | BA68: $0.00 | BB68: $0.00 | BC68: $0 | BD68: $0.00 | BE68: $0.00 | BF68: $0 | BG68: $0.00 | BH68: $0.00 | BI68: $0 | BJ68: $0.00 | BK68: $0.00 | BL68: $0.00 | BN68: 0.0%
B69: Trim, 1"x3", pine | U69: lf | W69: 1.25 | Z69: 0.40 | AF69: $0 | AJ69: $0 | AN69: $0 | AS69: $0 | AW69: $0 | AY69: $0.00 | AZ69: $0.00 | BA69: $0.00 | BB69: $0.00 | BC69: $0 | BD69: $0.00 | BE69: $0.00 | BF69: $0 | BG69: $0.00 | BH69: $0.00 | BI69: $0 | BJ69: $0.00 | BK69: $0.00 | BL69: $0.00 | BN69: 0.0%
B70: Trim, 1"x4", pine | U70: lf | W70: 1.50 | Z70: 0.90 | AF70: $0 | AJ70: $0 | AN70: $0 | AS70: $0 | AW70: $0 | AY70: $0.00 | AZ70: $0.00 | BA70: $0.00 | BB70: $0.00 | BC70: $0 | BD70: $0.00 | BE70: $0.00 | BF70: $0 | BG70: $0.00 | BH70: $0.00 | BI70: $0 | BJ70: $0.00 | BK70: $0.00 | BL70: $0.00 | BN70: 0.0%
B71: Trim, 1"x6", pine | U71: lf | W71: 1.50 | Z71: 1.30 | AF71: $0 | AJ71: $0 | AN71: $0 | AS71: $0 | AW71: $0 | AY71: $0.00 | AZ71: $0.00 | BA71: $0.00 | BB71: $0.00 | BC71: $0 | BD71: $0.00 | BE71: $0.00 | BF71: $0 | BG71: $0.00 | BH71: $0.00 | BI71: $0 | BJ71: $0.00 | BK71: $0.00 | BL71: $0.00 | BN71: 0.0%
B72: Siding patch, window/door, siding, insulation | U72: ea | W72: 125.00 | Z72: 75.00 | AF72: $0 | AJ72: $0 | AN72: $0 | AS72: $0 | AW72: $0 | AY72: $0.00 | AZ72: $0.00 | BA72: $0.00 | BB72: $0.00 | BC72: $0 | BD72: $0.00 | BE72: $0.00 | BF72: $0 | BG72: $0.00 | BH72: $0.00 | BI72: $0 | BJ72: $0.00 | BK72: $0.00 | BL72: $0.00 | BN72: 0.0%
B73: Stucco | U73: sf | W73: 7.25 | Z73: 3.00 | AF73: $0 | AJ73: $0 | AN73: $0 | AS73: $0 | AW73: $0 | AY73: $0.00 | AZ73: $0.00 | BA73: $0.00 | BB73: $0.00 | BC73: $0 | BD73: $0.00 | BE73: $0.00 | BF73: $0 | BG73: $0.00 | BH73: $0.00 | BI73: $0 | BJ73: $0.00 | BK73: $0.00 | BL73: $0.00 | BN73: 0.0%
AF74: $0 | AJ74: $0 | AN74: $0 | AS74: $0 | AW74: $0 | AY74: $0.00 | AZ74: $0.00 | BA74: $0.00 | BB74: $0.00 | BC74: $0 | BD74: $0.00 | BE74: $0.00 | BF74: $0 | BG74: $0.00 | BH74: $0.00 | BI74: $0 | BJ74: $0.00 | BK74: $0.00 | BL74: $0.00 | BN74: 0.0%
AF75: $0 | AJ75: $0 | AN75: $0 | AS75: $0 | AW75: $0 | AY75: $0.00 | AZ75: $0.00 | BA75: $0.00 | BB75: $0.00 | BC75: $0 | BD75: $0.00 | BE75: $0.00 | BF75: $0 | BG75: $0.00 | BH75: $0.00 | BI75: $0 | BJ75: $0.00 | BK75: $0.00 | BL75: $0.00 | BN75: 0.0%
B76: Miscellaneous Siding | AF76: $0 | AJ76: $0 | AN76: $0 | AS76: $0 | AW76: $0 | AY76: $0.00 | AZ76: $0.00 | BA76: $0.00 | BB76: $0.00 | BC76: $0 | BD76: $0.00 | BE76: $0.00 | BF76: $0 | BG76: $0.00 | BH76: $0.00 | BI76: $0 | BJ76: $0.00 | BK76: $0.00 | BL76: $0.00 | BN76: 0.0%
B77: Powerwash existing siding, whole house | U77: ea | W77: 250.00 | AF77: $0 | AJ77: $0 | AN77: $0 | AS77: $0 | AW77: $0 | AY77: $0.00 | AZ77: $0.00 | BA77: $0.00 | BB77: $0.00 | BC77: $0 | BD77: $0.00 | BE77: $0.00 | BF77: $0 | BG77: $0.00 | BH77: $0.00 | BI77: $0 | BJ77: $0.00 | BK77: $0.00 | BL77: $0.00 | BN77: 0.0%
B78: Siding, maintenance | U78: ea | W78: 250.00 | AF78: $0 | AJ78: $0 | AN78: $0 | AS78: $0 | AW78: $0 | AY78: $0.00 | AZ78: $0.00 | BA78: $0.00 | BB78: $0.00 | BC78: $0 | BD78: $0.00 | BE78: $0.00 | BF78: $0 | BG78: $0.00 | BH78: $0.00 | BI78: $0 | BJ78: $0.00 | BK78: $0.00 | BL78: $0.00 | BN78: 0.0%
B79: Siding, patch section | U79: ea | W79: 10.00 | AF79: $0 | AJ79: $0 | AN79: $0 | AS79: $0 | AW79: $0 | AY79: $0.00 | AZ79: $0.00 | BA79: $0.00 | BB79: $0.00 | BC79: $0 | BD79: $0.00 | BE79: $0.00 | BF79: $0 | BG79: $0.00 | BH79: $0.00 | BI79: $0 | BJ79: $0.00 | BK79: $0.00 | BL79: $0.00 | BN79: 0.0%
B80: Replace plywood sheathing | U80: sheet | W80: 45.00 | AF80: $0 | AJ80: $0 | AN80: $0 | AS80: $0 | AW80: $0 | AY80: $0.00 | AZ80: $0.00 | BA80: $0.00 | BB80: $0.00 | BC80: $0 | BD80: $0.00 | BE80: $0.00 | BF80: $0 | BG80: $0.00 | BH80: $0.00 | BI80: $0 | BJ80: $0.00 | BK80: $0.00 | BL80: $0.00 | BN80: 0.0%
B81: Replace house wrap | U81: sf | W81: 500.00 | AF81: $0 | AJ81: $0 | AN81: $0 | AS81: $0 | AW81: $0 | AY81: $0.00 | AZ81: $0.00 | BA81: $0.00 | BB81: $0.00 | BC81: $0 | BD81: $0.00 | BE81: $0.00 | BF81: $0 | BG81: $0.00 | BH81: $0.00 | BI81: $0 | BJ81: $0.00 | BK81: $0.00 | BL81: $0.00 | BN81: 0.0%
B82: Soffit/Fascia board | U82: lf | W82: 10.00 | AF82: $0 | AJ82: $0 | AN82: $0 | AS82: $0 | AW82: $0 | AY82: $0.00 | AZ82: $0.00 | BA82: $0.00 | BB82: $0.00 | BC82: $0 | BD82: $0.00 | BE82: $0.00 | BF82: $0 | BG82: $0.00 | BH82: $0.00 | BI82: $0 | BJ82: $0.00 | BK82: $0.00 | BL82: $0.00 | BN82: 0.0%
B83: Door trim | U83: ea | W83: 100.00 | AF83: $0 | AJ83: $0 | AN83: $0 | AS83: $0 | AW83: $0 | AY83: $0.00 | AZ83: $0.00 | BA83: $0.00 | BB83: $0.00 | BC83: $0 | BD83: $0.00 | BE83: $0.00 | BF83: $0 | BG83: $0.00 | BH83: $0.00 | BI83: $0 | BJ83: $0.00 | BK83: $0.00 | BL83: $0.00 | BN83: 0.0%
B84: Window trim | U84: ea | W84: 100.00 | AF84: $0 | AJ84: $0 | AN84: $0 | AS84: $0 | AW84: $0 | AY84: $0.00 | AZ84: $0.00 | BA84: $0.00 | BB84: $0.00 | BC84: $0 | BD84: $0.00 | BE84: $0.00 | BF84: $0 | BG84: $0.00 | BH84: $0.00 | BI84: $0 | BJ84: $0.00 | BK84: $0.00 | BL84: $0.00 | BN84: 0.0%
AF85: $0 | AJ85: =R85*Z85 -> $0 | AN85: =R85*AC85 -> $0 | AS85: $0 | AW85: $0 | AY85: $0.00 | AZ85: $0.00 | BA85: $0.00 | BB85: $0.00 | BC85: $0 | BD85: $0.00 | BE85: $0.00 | BF85: $0 | BG85: $0.00 | BH85: $0.00 | BI85: $0 | BJ85: $0.00 | BK85: $0.00 | BL85: $0.00 | BN85: 0.0%
AF86: $0 | AJ86: =R86*Z86 -> $0 | AN86: =R86*AC86 -> $0 | AS86: $0 | AW86: $0 | AY86: $0.00 | AZ86: $0.00 | BA86: $0.00 | BB86: $0.00 | BC86: $0 | BD86: $0.00 | BE86: $0.00 | BF86: $0 | BG86: $0.00 | BH86: $0.00 | BI86: $0 | BJ86: $0.00 | BK86: $0.00 | BL86: $0.00 | BN86: 0.0%
AF87: $0 | AJ87: $0 | AN87: $0 | AS87: $0 | AW87: $0 | AY87: $0.00 | AZ87: $0.00 | BA87: $0.00 | BB87: $0.00 | BC87: $0 | BD87: $0.00 | BE87: $0.00 | BF87: $0 | BG87: $0.00 | BH87: $0.00 | BI87: $0 | BJ87: $0.00 | BK87: $0.00 | BL87: $0.00 | BN87: 0.0%
AF88: $0 | AJ88: $0 | AN88: $0 | AS88: $0 | AW88: $0 | AY88: $0.00 | AZ88: $0.00 | BA88: $0.00 | BB88: $0.00 | BC88: $0 | BD88: $0.00 | BE88: $0.00 | BF88: $0 | BG88: $0.00 | BH88: $0.00 | BI88: $0 | BJ88: $0.00 | BK88: $0.00 | BL88: $0.00 | BN88: 0.0%
AF89: $0 | AJ89: $0 | AN89: $0 | AS89: $0 | AW89: $0 | AY89: $0.00 | AZ89: $0.00 | BA89: $0.00 | BB89: $0.00 | BC89: $0 | BD89: $0.00 | BE89: $0.00 | BF89: $0 | BG89: $0.00 | BH89: $0.00 | BI89: $0 | BJ89: $0.00 | BK89: $0.00 | BL89: $0.00 | BN89: 0.0%
AF90: $0 | AJ90: $0 | AN90: $0 | AS90: $0 | AW90: $0 | AY90: $0.00 | AZ90: $0.00 | BA90: $0.00 | BB90: $0.00 | BC90: $0 | BD90: $0.00 | BE90: $0.00 | BF90: $0 | BG90: $0.00 | BH90: $0.00 | BI90: $0 | BJ90: $0.00 | BK90: $0.00 | BL90: $0.00 | BN90: 0.0%
AF91: $0 | AJ91: =R91*Z91 -> $0 | AN91: =R91*AC91 -> $0 | AS91: $0 | AW91: $0 | AY91: $0.00 | AZ91: $0.00 | BA91: $0.00 | BB91: $0.00 | BC91: $0 | BD91: $0.00 | BE91: $0.00 | BF91: $0 | BG91: $0.00 | BH91: $0.00 | BI91: $0 | BJ91: $0.00 | BK91: $0.00 | BL91: $0.00 | BN91: 0.0%
AF92: $0 | AJ92: =R92*Z92 -> $0 | AN92: =R92*AC92 -> $0 | AS92: $0 | AW92: $0 | AY92: $0.00 | AZ92: $0.00 | BA92: $0.00 | BB92: $0.00 | BC92: $0 | BD92: $0.00 | BE92: $0.00 | BF92: $0 | BG92: $0.00 | BH92: $0.00 | BI92: $0 | BJ92: $0.00 | BK92: $0.00 | BL92: $0.00 | BN92: 0.0%
AF93: $0 | AJ93: $0 | AN93: $0 | AS93: $0 | AW93: $0 | AY93: $0.00 | AZ93: $0.00 | BA93: $0.00 | BB93: $0.00 | BC93: $0 | BD93: $0.00 | BE93: $0.00 | BF93: $0 | BG93: $0.00 | BH93: $0.00 | BI93: $0 | BJ93: $0.00 | BK93: $0.00 | BL93: $0.00 | BN93: 0.0%
AF94: $0 | AJ94: $0 | AN94: $0 | AS94: $0 | AW94: $0 | AY94: $0.00 | AZ94: $0.00 | BA94: $0.00 | BB94: $0.00 | BC94: $0 | BD94: $0.00 | BE94: $0.00 | BF94: $0 | BG94: $0.00 | BH94: $0.00 | BI94: $0 | BJ94: $0.00 | BK94: $0.00 | BL94: $0.00 | BN94: 0.0%
AY95: =AY54 -> $0 | AZ95: =AZ54 -> $0 | BA95: =BA54 -> $0 | BB95: =BB54 -> $0 | BE95: =BE54 -> $0 | BG95: =BG54 -> $0 | BH95: =BH54 -> $0 | BJ95: =BJ54 -> $0 | BK95: =BK54 -> $0 | BL95: =BL54 -> $0
AE96: =CONCATENATE(B54," ","TOTAL") -> SIDING TOTAL | AF96: =SUBTOTAL(9,AF55:AF95) -> $0 | AJ96: =SUBTOTAL(9,AJ55:AJ95) -> $0 | AN96: =SUBTOTAL(9,AN55:AN95) -> $0 | AS96: =SUBTOTAL(9,AS55:AS95) -> $0 | AW96: =SUM(AW17:AW64) -> $0 | AY96: =SUM(AY55:AY95) -> $0.00 | AZ96: $0.00 | BA96: $0.00 | BB96: $0.00 | BC96: $0 | BD96: $0.00 | BE96: $0.00 | BF96: $0 | BG96: $0.00 | BH96: $0.00 | BI96: $0 | BJ96: $0.00 | BK96: $0.00 | BL96: $0.00 | BN96: =IFERROR(AS96/Total_Detailed_Estimate,0) -> 0.0%
AY97: =AY54 -> $0 | AZ97: =AZ54 -> $0 | BA97: =BA54 -> $0 | BB97: =BB54 -> $0 | BE97: =BE54 -> $0 | BG97: =BG54 -> $0 | BH97: =BH54 -> $0 | BJ97: =BJ54 -> $0 | BK97: =BK54 -> $0 | BL97: =BL54 -> $0
AY98: =AY96 -> 0 | AZ98: =AZ96 -> 0 | BA98: =BA96 -> 0 | BB98: =BB96 -> 0 | BE98: =BE96 -> 0 | BG98: =BG96 -> 0 | BH98: =BH96 -> 0 | BJ98: =BJ96 -> 0 | BK98: =BK96 -> 0 | BL98: =BL96 -> 0
A99: Hidden | B99: =UPPER(Exterior3_Category) -> MASONRY | AF99: =IF(Exterior3_Labor=0,"",Exterior3_Labor) -> $938 | AJ99: =IF(Exterior3_Material=0,"",Exterior3_Material) -> $500 | AN99: =IF(Exterior3_Sub=0,"",Exterior3_Sub) ->  | AS99: =IF(Exterior3_Total=0,"",Exterior3_Total) -> $1,438
B100: Masonry | AF100: =R100*W100 -> $0 | AJ100: =R100*Z100 -> $0 | AN100: =R100*AC100 -> $0 | AS100: =SUM(AF100:AQ100) -> $0 | AW100: =SUM(AF100:AQ100) -> $0 | AY100: =AF100 -> $0.00 | AZ100: =AJ100 -> $0.00 | BA100: =AN100 -> $0.00 | BB100: =SUM(AY100:BA100) -> $0.00 | BC100: =IFERROR(AY100/$BB$5,0) -> $0 | BD100: =BC100*Allocated_Adders -> $0.00 | BE100: =AY100+BD100 -> $0.00 | BF100: =IFERROR(AZ100/$BB$5,0) -> $0 | BG100: =BF100*Allocated_Adders -> $0.00 | BH100: =AZ100+BG100 -> $0.00 | BI100: =IFERROR(BA100/$BB$5,0) -> $0 | BJ100: =BI100*Allocated_Adders -> $0.00 | BK100: =BA100+BJ100 -> $0.00 | BL100: =BE100+BH100+BK100 -> $0.00 | BN100: =IFERROR(AS100/Total_Detailed_Estimate,0) -> 0.0%
B101: Masonry bid/allowance | U101: ls | V101: ls | AF101: =R101*W101 -> $0 | AJ101: $0 | AN101: $0 | AS101: $0 | AW101: $0 | AY101: $0.00 | AZ101: $0.00 | BA101: $0.00 | BB101: $0.00 | BC101: =IFERROR(AY101/$BB$5,0) -> $0 | BD101: $0.00 | BE101: =AY101+BD101 -> $0.00 | BF101: =IFERROR(AZ101/$BB$5,0) -> $0 | BG101: $0.00 | BH101: =AZ101+BG101 -> $0.00 | BI101: =IFERROR(BA101/$BB$5,0) -> $0 | BJ101: $0.00 | BK101: =BA101+BJ101 -> $0.00 | BL101: =BE101+BH101+BK101 -> $0.00 | BN101: 0.0%
B102: CMU, 4x8 | R102: 250 | U102: sf | V102: sf | W102: 3.75 | Z102: 2.00 | AB102: 2.00 | AF102: $938 | AJ102: $500 | AN102: $0 | AS102: $1,438 | AW102: $1,438 | AY102: $937.50 | AZ102: $500.00 | BA102: $0.00 | BB102: $1,437.50 | BC102: $0 | BD102: $253.13 | BE102: $1,190.63 | BF102: $0 | BG102: $135.00 | BH102: $635.00 | BI102: $0 | BJ102: $0.00 | BK102: $0.00 | BL102: $1,825.63 | BN102: 1.7%
B103: CMU, 8x8 | U103: sf | V103: sf | W103: 4.50 | Z103: 2.50 | AB103: 4.00 | AF103: $0 | AJ103: $0 | AN103: $0 | AS103: $0 | AW103: $0 | AY103: $0.00 | AZ103: $0.00 | BA103: $0.00 | BB103: $0.00 | BC103: $0 | BD103: $0.00 | BE103: $0.00 | BF103: $0 | BG103: $0.00 | BH103: $0.00 | BI103: $0 | BJ103: $0.00 | BK103: $0.00 | BL103: $0.00 | BN103: 0.0%
B104: Brick veneer | U104: sf | V104: sf | W104: 8.00 | Z104: 6.00 | AB104: 8.00 | AF104: $0 | AJ104: $0 | AN104: $0 | AS104: $0 | AW104: $0 | AY104: $0.00 | AZ104: $0.00 | BA104: $0.00 | BB104: $0.00 | BC104: $0 | BD104: $0.00 | BE104: $0.00 | BF104: $0 | BG104: $0.00 | BH104: $0.00 | BI104: $0 | BJ104: $0.00 | BK104: $0.00 | BL104: $0.00 | BN104: 0.0%
B105: Natural stone | U105: sf | V105: ls | W105: 17.00 | Z105: 13.00 | AB105: 2000.00 | AF105: $0 | AJ105: $0 | AN105: $0 | AS105: $0 | AW105: $0 | AY105: $0.00 | AZ105: $0.00 | BA105: $0.00 | BB105: $0.00 | BC105: $0 | BD105: $0.00 | BE105: $0.00 | BF105: $0 | BG105: $0.00 | BH105: $0.00 | BI105: $0 | BJ105: $0.00 | BK105: $0.00 | BL105: $0.00 | BN105: 0.0%
B106: Masonry waterproofing | U106: sf | V106: sf | W106: 0.80 | Z106: 0.50 | AB106: 0.50 | AF106: $0 | AJ106: $0 | AN106: $0 | AS106: $0 | AW106: $0 | AY106: $0.00 | AZ106: $0.00 | BA106: $0.00 | BB106: $0.00 | BC106: $0 | BD106: $0.00 | BE106: $0.00 | BF106: $0 | BG106: $0.00 | BH106: $0.00 | BI106: $0 | BJ106: $0.00 | BK106: $0.00 | BL106: $0.00 | BN106: 0.0%
B107: Chimney, brick | U107: vlf | W107: 50.00 | Z107: 35.00 | AF107: $0 | AJ107: $0 | AN107: $0 | AS107: $0 | AW107: $0 | AY107: $0.00 | AZ107: $0.00 | BA107: $0.00 | BB107: $0.00 | BC107: $0 | BD107: $0.00 | BE107: $0.00 | BF107: $0 | BG107: $0.00 | BH107: $0.00 | BI107: $0 | BJ107: $0.00 | BK107: $0.00 | BL107: $0.00 | BN107: 0.0%
B108: Chimney, stone | U108: vlf | W108: 70.00 | Z108: 75.00 | AF108: $0 | AJ108: $0 | AN108: $0 | AS108: $0 | AW108: $0 | AY108: $0.00 | AZ108: $0.00 | BA108: $0.00 | BB108: $0.00 | BC108: $0 | BD108: $0.00 | BE108: $0.00 | BF108: $0 | BG108: $0.00 | BH108: $0.00 | BI108: $0 | BJ108: $0.00 | BK108: $0.00 | BL108: $0.00 | BN108: 0.0%
B109: Fireplace complete, brick, 3ft-4ft wide w/ chimney | U109: ea | W109: 3500.00 | Z109: 2000.00 | AF109: $0 | AJ109: $0 | AN109: $0 | AS109: $0 | AW109: $0 | AY109: $0.00 | AZ109: $0.00 | BA109: $0.00 | BB109: $0.00 | BC109: $0 | BD109: $0.00 | BE109: $0.00 | BF109: $0 | BG109: $0.00 | BH109: $0.00 | BI109: $0 | BJ109: $0.00 | BK109: $0.00 | BL109: $0.00 | BN109: 0.0%
AF110: $0 | AJ110: $0 | AN110: $0 | AS110: $0 | AW110: $0 | AY110: $0.00 | AZ110: $0.00 | BA110: $0.00 | BB110: $0.00 | BC110: $0 | BD110: $0.00 | BE110: $0.00 | BF110: $0 | BG110: $0.00 | BH110: $0.00 | BI110: $0 | BJ110: $0.00 | BK110: $0.00 | BL110: $0.00 | BN110: 0.0%
AF111: $0 | AJ111: $0 | AN111: $0 | AS111: $0 | AW111: $0 | AY111: $0.00 | AZ111: $0.00 | BA111: $0.00 | BB111: $0.00 | BC111: $0 | BD111: $0.00 | BE111: $0.00 | BF111: $0 | BG111: $0.00 | BH111: $0.00 | BI111: $0 | BJ111: $0.00 | BK111: $0.00 | BL111: $0.00 | BN111: 0.0%
B112: Miscellaneous Masonry | AF112: $0 | AJ112: $0 | AN112: $0 | AS112: $0 | AW112: $0 | AY112: $0.00 | AZ112: $0.00 | BA112: $0.00 | BB112: $0.00 | BC112: $0 | BD112: $0.00 | BE112: $0.00 | BF112: $0 | BG112: $0.00 | BH112: $0.00 | BI112: $0 | BJ112: $0.00 | BK112: $0.00 | BL112: $0.00 | BN112: 0.0%
B113: Masonry, patch section, L+M | U113: ea | W113: 500.00 | AF113: $0 | AJ113: $0 | AN113: $0 | AS113: $0 | AW113: $0 | AY113: $0.00 | AZ113: $0.00 | BA113: $0.00 | BB113: $0.00 | BC113: $0 | BD113: $0.00 | BE113: $0.00 | BF113: $0 | BG113: $0.00 | BH113: $0.00 | BI113: $0 | BJ113: $0.00 | BK113: $0.00 | BL113: $0.00 | BN113: 0.0%
B114: Powerwash existing masonry, L+M | U114: sf | W114: 0.25 | AF114: $0 | AJ114: $0 | AN114: $0 | AS114: $0 | AW114: $0 | AY114: $0.00 | AZ114: $0.00 | BA114: $0.00 | BB114: $0.00 | BC114: $0 | BD114: $0.00 | BE114: $0.00 | BF114: $0 | BG114: $0.00 | BH114: $0.00 | BI114: $0 | BJ114: $0.00 | BK114: $0.00 | BL114: $0.00 | BN114: 0.0%
B115: Tuckpoint existing masonry, L+M | U115: sf | W115: 5.50 | AF115: $0 | AJ115: $0 | AN115: $0 | AS115: $0 | AW115: $0 | AY115: $0.00 | AZ115: $0.00 | BA115: $0.00 | BB115: $0.00 | BC115: $0 | BD115: $0.00 | BE115: $0.00 | BF115: $0 | BG115: $0.00 | BH115: $0.00 | BI115: $0 | BJ115: $0.00 | BK115: $0.00 | BL115: $0.00 | BN115: 0.0%
B116: Install chimney cap, L+M | U116: ea | W116: 150.00 | AF116: $0 | AJ116: $0 | AN116: $0 | AS116: $0 | AW116: $0 | AY116: $0.00 | AZ116: $0.00 | BA116: $0.00 | BB116: $0.00 | BC116: $0 | BD116: $0.00 | BE116: $0.00 | BF116: $0 | BG116: $0.00 | BH116: $0.00 | BI116: $0 | BJ116: $0.00 | BK116: $0.00 | BL116: $0.00 | BN116: 0.0%
B117: Chimney sweep service, L+M | U117: ea | W117: 200.00 | AF117: $0 | AJ117: $0 | AN117: $0 | AS117: $0 | AW117: $0 | AY117: $0.00 | AZ117: $0.00 | BA117: $0.00 | BB117: $0.00 | BC117: $0 | BD117: $0.00 | BE117: $0.00 | BF117: $0 | BG117: $0.00 | BH117: $0.00 | BI117: $0 | BJ117: $0.00 | BK117: $0.00 | BL117: $0.00 | BN117: 0.0%
AF118: $0 | AJ118: $0 | AN118: $0 | AS118: $0 | AW118: $0 | AY118: $0.00 | AZ118: $0.00 | BA118: $0.00 | BB118: $0.00 | BC118: $0 | BD118: $0.00 | BE118: $0.00 | BF118: $0 | BG118: $0.00 | BH118: $0.00 | BI118: $0 | BJ118: $0.00 | BK118: $0.00 | BL118: $0.00 | BN118: 0.0%
AF119: $0 | AJ119: $0 | AN119: $0 | AS119: $0 | AW119: $0 | AY119: $0.00 | AZ119: $0.00 | BA119: $0.00 | BB119: $0.00 | BC119: $0 | BD119: $0.00 | BE119: $0.00 | BF119: $0 | BG119: $0.00 | BH119: $0.00 | BI119: $0 | BJ119: $0.00 | BK119: $0.00 | BL119: $0.00 | BN119: 0.0%
AF120: $0 | AJ120: $0 | AN120: $0 | AS120: $0 | AW120: $0 | AY120: $0.00 | AZ120: $0.00 | BA120: $0.00 | BB120: $0.00 | BC120: $0 | BD120: $0.00 | BE120: $0.00 | BF120: $0 | BG120: $0.00 | BH120: $0.00 | BI120: $0 | BJ120: $0.00 | BK120: $0.00 | BL120: $0.00 | BN120: 0.0%
AF121: $0 | AJ121: $0 | AN121: $0 | AS121: $0 | AW121: $0 | AY121: $0.00 | AZ121: $0.00 | BA121: $0.00 | BB121: $0.00 | BC121: $0 | BD121: $0.00 | BE121: $0.00 | BF121: $0 | BG121: $0.00 | BH121: $0.00 | BI121: $0 | BJ121: $0.00 | BK121: $0.00 | BL121: $0.00 | BN121: 0.0%
AF122: $0 | AJ122: $0 | AN122: $0 | AS122: $0 | AW122: $0 | AY122: $0.00 | AZ122: $0.00 | BA122: $0.00 | BB122: $0.00 | BC122: $0 | BD122: $0.00 | BE122: $0.00 | BF122: $0 | BG122: $0.00 | BH122: $0.00 | BI122: $0 | BJ122: $0.00 | BK122: $0.00 | BL122: $0.00 | BN122: 0.0%
AF123: $0 | AJ123: $0 | AN123: $0 | AS123: $0 | AW123: $0 | AY123: $0.00 | AZ123: $0.00 | BA123: $0.00 | BB123: $0.00 | BC123: $0 | BD123: $0.00 | BE123: $0.00 | BF123: $0 | BG123: $0.00 | BH123: $0.00 | BI123: $0 | BJ123: $0.00 | BK123: $0.00 | BL123: $0.00 | BN123: 0.0%
AF124: $0 | AJ124: $0 | AN124: $0 | AS124: $0 | AW124: $0 | AY124: $0.00 | AZ124: $0.00 | BA124: $0.00 | BB124: $0.00 | BC124: $0 | BD124: $0.00 | BE124: $0.00 | BF124: $0 | BG124: $0.00 | BH124: $0.00 | BI124: $0 | BJ124: $0.00 | BK124: $0.00 | BL124: $0.00 | BN124: 0.0%
AF125: $0 | AJ125: $0 | AN125: $0 | AS125: $0 | AW125: $0 | AY125: $0.00 | AZ125: $0.00 | BA125: $0.00 | BB125: $0.00 | BC125: $0 | BD125: $0.00 | BE125: $0.00 | BF125: $0 | BG125: $0.00 | BH125: $0.00 | BI125: $0 | BJ125: $0.00 | BK125: $0.00 | BL125: $0.00 | BN125: 0.0%
AF126: $0 | AJ126: $0 | AN126: $0 | AS126: $0 | AW126: $0 | AY126: $0.00 | AZ126: $0.00 | BA126: $0.00 | BB126: $0.00 | BC126: $0 | BD126: $0.00 | BE126: $0.00 | BF126: $0 | BG126: $0.00 | BH126: $0.00 | BI126: $0 | BJ126: $0.00 | BK126: $0.00 | BL126: $0.00 | BN126: 0.0%
AF127: $0 | AJ127: $0 | AN127: $0 | AS127: $0 | AW127: $0 | AY127: $0.00 | AZ127: $0.00 | BA127: $0.00 | BB127: $0.00 | BC127: $0 | BD127: $0.00 | BE127: $0.00 | BF127: $0 | BG127: $0.00 | BH127: $0.00 | BI127: $0 | BJ127: $0.00 | BK127: $0.00 | BL127: $0.00 | BN127: 0.0%
AF128: $0 | AJ128: $0 | AN128: $0 | AS128: $0 | AW128: $0 | AY128: $0.00 | AZ128: $0.00 | BA128: $0.00 | BB128: $0.00 | BC128: $0 | BD128: $0.00 | BE128: $0.00 | BF128: $0 | BG128: $0.00 | BH128: $0.00 | BI128: $0 | BJ128: $0.00 | BK128: $0.00 | BL128: $0.00 | BN128: 0.0%
AF129: $0 | AJ129: $0 | AN129: $0 | AS129: $0 | AW129: $0 | AY129: $0.00 | AZ129: $0.00 | BA129: $0.00 | BB129: $0.00 | BC129: $0 | BD129: $0.00 | BE129: $0.00 | BF129: $0 | BG129: $0.00 | BH129: $0.00 | BI129: $0 | BJ129: $0.00 | BK129: $0.00 | BL129: $0.00 | BN129: 0.0%
AF130: $0 | AJ130: $0 | AN130: $0 | AS130: $0 | AW130: $0 | AY130: $0.00 | AZ130: $0.00 | BA130: $0.00 | BB130: $0.00 | BC130: $0 | BD130: $0.00 | BE130: $0.00 | BF130: $0 | BG130: $0.00 | BH130: $0.00 | BI130: $0 | BJ130: $0.00 | BK130: $0.00 | BL130: $0.00 | BN130: 0.0%
AF131: $0 | AJ131: $0 | AN131: $0 | AS131: $0 | AW131: $0 | AY131: $0.00 | AZ131: $0.00 | BA131: $0.00 | BB131: $0.00 | BC131: $0 | BD131: $0.00 | BE131: $0.00 | BF131: $0 | BG131: $0.00 | BH131: $0.00 | BI131: $0 | BJ131: $0.00 | BK131: $0.00 | BL131: $0.00 | BN131: 0.0%
AF132: $0 | AJ132: =R132*Z132 -> $0 | AN132: =R132*AC132 -> $0 | AS132: $0 | AW132: $0 | AY132: $0.00 | AZ132: $0.00 | BA132: $0.00 | BB132: $0.00 | BC132: $0 | BD132: $0.00 | BE132: $0.00 | BF132: $0 | BG132: $0.00 | BH132: $0.00 | BI132: $0 | BJ132: $0.00 | BK132: $0.00 | BL132: $0.00 | BN132: 0.0%
AF133: $0 | AJ133: =R133*Z133 -> $0 | AN133: =R133*AC133 -> $0 | AS133: $0 | AW133: $0 | AY133: $0.00 | AZ133: $0.00 | BA133: $0.00 | BB133: $0.00 | BC133: $0 | BD133: $0.00 | BE133: $0.00 | BF133: $0 | BG133: $0.00 | BH133: $0.00 | BI133: $0 | BJ133: $0.00 | BK133: $0.00 | BL133: $0.00 | BN133: 0.0%
AF134: $0 | AJ134: =R134*Z134 -> $0 | AN134: =R134*AC134 -> $0 | AS134: $0 | AW134: $0 | AY134: $0.00 | AZ134: $0.00 | BA134: $0.00 | BB134: $0.00 | BC134: $0 | BD134: $0.00 | BE134: $0.00 | BF134: $0 | BG134: $0.00 | BH134: $0.00 | BI134: $0 | BJ134: $0.00 | BK134: $0.00 | BL134: $0.00 | BN134: 0.0%
AF135: $0 | AJ135: =R135*Z135 -> $0 | AN135: =R135*AC135 -> $0 | AS135: $0 | AW135: $0 | AY135: $0.00 | AZ135: $0.00 | BA135: $0.00 | BB135: $0.00 | BC135: $0 | BD135: $0.00 | BE135: $0.00 | BF135: $0 | BG135: $0.00 | BH135: $0.00 | BI135: $0 | BJ135: $0.00 | BK135: $0.00 | BL135: $0.00 | BN135: 0.0%
AF136: $0 | AJ136: $0 | AN136: $0 | AS136: $0 | AW136: $0 | AY136: $0.00 | AZ136: $0.00 | BA136: $0.00 | BB136: $0.00 | BC136: $0 | BD136: $0.00 | BE136: $0.00 | BF136: $0 | BG136: $0.00 | BH136: $0.00 | BI136: $0 | BJ136: $0.00 | BK136: $0.00 | BL136: $0.00 | BN136: 0.0%
AF137: $0 | AJ137: $0 | AN137: $0 | AS137: $0 | AW137: $0 | AY137: $0.00 | AZ137: $0.00 | BA137: $0.00 | BB137: $0.00 | BC137: $0 | BD137: $0.00 | BE137: $0.00 | BF137: $0 | BG137: $0.00 | BH137: $0.00 | BI137: $0 | BJ137: $0.00 | BK137: $0.00 | BL137: $0.00 | BN137: 0.0%
AF138: $0 | AJ138: =R138*Z138 -> $0 | AN138: =R138*AC138 -> $0 | AS138: $0 | AW138: $0 | AY138: $0.00 | AZ138: $0.00 | BA138: $0.00 | BB138: $0.00 | BC138: $0 | BD138: $0.00 | BE138: $0.00 | BF138: $0 | BG138: $0.00 | BH138: $0.00 | BI138: $0 | BJ138: $0.00 | BK138: $0.00 | BL138: $0.00 | BN138: 0.0%
AF139: $0 | AJ139: =R139*Z139 -> $0 | AN139: =R139*AC139 -> $0 | AS139: $0 | AW139: $0 | AY139: $0.00 | AZ139: $0.00 | BA139: $0.00 | BB139: $0.00 | BC139: $0 | BD139: $0.00 | BE139: $0.00 | BF139: $0 | BG139: $0.00 | BH139: $0.00 | BI139: $0 | BJ139: $0.00 | BK139: $0.00 | BL139: $0.00 | BN139: 0.0%
AY140: =AY99 -> $0 | AZ140: =AZ99 -> $0 | BA140: =BA99 -> $0 | BB140: =BB99 -> $0 | BE140: =BE99 -> $0 | BG140: =BG99 -> $0 | BH140: =BH99 -> $0 | BJ140: =BJ99 -> $0 | BK140: =BK99 -> $0 | BL140: =BL99 -> $0
AE141: =CONCATENATE(B99," ","TOTAL") -> MASONRY TOTAL | AF141: =SUBTOTAL(9,AF100:AF140) -> $938 | AJ141: =SUBTOTAL(9,AJ100:AJ140) -> $500 | AN141: =SUBTOTAL(9,AN100:AN140) -> $0 | AS141: =SUBTOTAL(9,AS100:AS140) -> $1,438 | AW141: =SUM(AW99:AW119) -> $1,438 | AY141: =SUM(AY100:AY140) -> $937.50 | AZ141: $500.00 | BA141: $0.00 | BB141: $1,437.50 | BC141: $0 | BD141: $253.13 | BE141: $1,190.63 | BF141: $0 | BG141: $135.00 | BH141: $635.00 | BI141: $0 | BJ141: $0.00 | BK141: $0.00 | BL141: $1,825.63 | BN141: =IFERROR(AS141/Total_Detailed_Estimate,0) -> 1.7%
AY142: =AY99 -> $0 | AZ142: =AZ99 -> $0 | BA142: =BA99 -> $0 | BB142: =BB99 -> $0 | BE142: =BE99 -> $0 | BG142: =BG99 -> $0 | BH142: =BH99 -> $0 | BJ142: =BJ99 -> $0 | BK142: =BK99 -> $0 | BL142: =BL99 -> $0
AY143: =AY141 -> 937.5 | AZ143: =AZ141 -> 500 | BA143: =BA141 -> 0 | BB143: =BB141 -> 1437.5 | BE143: =BE141 -> 1190.625 | BG143: =BG141 -> 135 | BH143: =BH141 -> 635 | BJ143: =BJ141 -> 0 | BK143: =BK141 -> 0 | BL143: =BL141 -> 1825.625
A144: Hidden | B144: =UPPER(Exterior4_Category) -> EXTERIOR PAINTING | AF144: =IF(Exterior4_Labor=0,"",Exterior4_Labor) -> $2,813 | AJ144: =IF(Exterior4_Material=0,"",Exterior4_Material) -> $563 | AN144: =IF(Exterior4_Sub=0,"",Exterior4_Sub) ->  | AS144: =IF(Exterior4_Total=0,"",Exterior4_Total) -> $3,375
B145: Exterior Painting | AF145: =R145*W145 -> $0 | AJ145: =R145*Z145 -> $0 | AN145: =R145*AC145 -> $0 | AS145: =SUM(AF145:AQ145) -> $0 | AY145: =AF145 -> $0.00 | AZ145: =AJ145 -> $0.00 | BA145: =AN145 -> $0.00 | BB145: =SUM(AY145:BA145) -> $0.00 | BC145: =IFERROR(AY145/$BB$5,0) -> $0 | BD145: =BC145*Allocated_Adders -> $0.00 | BE145: =AY145+BD145 -> $0.00 | BF145: =IFERROR(AZ145/$BB$5,0) -> $0 | BG145: =BF145*Allocated_Adders -> $0.00 | BH145: =AZ145+BG145 -> $0.00 | BI145: =IFERROR(BA145/$BB$5,0) -> $0 | BJ145: =BI145*Allocated_Adders -> $0.00 | BK145: =BA145+BJ145 -> $0.00 | BL145: =BE145+BH145+BK145 -> $0.00 | BN145: =IFERROR(AS145/Total_Detailed_Estimate,0) -> 0.0%
B146: Exterior painting, bid/allowance | U146: ls | V146: ls | W146: 2000.00 | AF146: =R146*W146 -> $0 | AJ146: $0 | AN146: $0 | AS146: $0 | AY146: $0.00 | AZ146: $0.00 | BA146: $0.00 | BB146: $0.00 | BC146: =IFERROR(AY146/$BB$5,0) -> $0 | BD146: $0.00 | BE146: =AY146+BD146 -> $0.00 | BF146: =IFERROR(AZ146/$BB$5,0) -> $0 | BG146: $0.00 | BH146: =AZ146+BG146 -> $0.00 | BI146: =IFERROR(BA146/$BB$5,0) -> $0 | BJ146: $0.00 | BK146: =BA146+BJ146 -> $0.00 | BL146: =BE146+BH146+BK146 -> $0.00 | BN146: 0.0%
B147: Exterior painting materials allowance | U147: gal | V147: gall | Z147: 35.00 | AB147: 35.00 | AF147: $0 | AJ147: $0 | AN147: $0 | AS147: $0 | AY147: $0.00 | AZ147: $0.00 | BA147: $0.00 | BB147: $0.00 | BC147: $0 | BD147: $0.00 | BE147: $0.00 | BF147: $0 | BG147: $0.00 | BH147: $0.00 | BI147: $0 | BJ147: $0.00 | BK147: $0.00 | BL147: $0.00 | BN147: 0.0%
AF148: $0 | AJ148: $0 | AN148: $0 | AS148: $0 | AY148: $0.00 | AZ148: $0.00 | BA148: $0.00 | BB148: $0.00 | BC148: $0 | BD148: $0.00 | BE148: $0.00 | BF148: $0 | BG148: $0.00 | BH148: $0.00 | BI148: $0 | BJ148: $0.00 | BK148: $0.00 | BL148: $0.00 | BN148: 0.0%
B149: Exterior Painting by Property SF, L+M | U149: sf | W149: 1.00 | Z149: 0.25 | AF149: $0 | AJ149: $0 | AN149: $0 | AS149: $0 | AY149: $0.00 | AZ149: $0.00 | BA149: $0.00 | BB149: $0.00 | BC149: $0 | BD149: $0.00 | BE149: $0.00 | BF149: $0 | BG149: $0.00 | BH149: $0.00 | BI149: $0 | BJ149: $0.00 | BK149: $0.00 | BL149: $0.00 | BN149: 0.0%
B150: Exterior Painting by Siding SF, L+M | R150: 2250 | U150: sf | W150: 0.75 | Z150: 0.25 | AF150: $1,688 | AJ150: $563 | AN150: $0 | AS150: $2,250 | AY150: $1,687.50 | AZ150: $562.50 | BA150: $0.00 | BB150: $2,250.00 | BC150: $0 | BD150: $455.63 | BE150: $2,143.13 | BF150: $0 | BG150: $151.88 | BH150: $714.38 | BI150: $0 | BJ150: $0.00 | BK150: $0.00 | BL150: $2,857.50 | BN150: 2.7%
B151: Powerwash, scrape, clean & prep, L+M | R151: 2250 | U151: sf | W151: 0.50 | AF151: $1,125 | AJ151: $0 | AN151: $0 | AS151: $1,125 | AY151: $1,125.00 | AZ151: $0.00 | BA151: $0.00 | BB151: $1,125.00 | BC151: $0 | BD151: $303.75 | BE151: $1,428.75 | BF151: $0 | BG151: $0.00 | BH151: $0.00 | BI151: $0 | BJ151: $0.00 | BK151: $0.00 | BL151: $1,428.75 | BN151: 1.3%
AF152: $0 | AJ152: $0 | AN152: $0 | AS152: $0 | AY152: $0.00 | AZ152: $0.00 | BA152: $0.00 | BB152: $0.00 | BC152: $0 | BD152: $0.00 | BE152: $0.00 | BF152: $0 | BG152: $0.00 | BH152: $0.00 | BI152: $0 | BJ152: $0.00 | BK152: $0.00 | BL152: $0.00 | BN152: 0.0%
B153: Miscellaneous Exterior Painting | AF153: $0 | AJ153: $0 | AN153: $0 | AS153: $0 | AY153: $0.00 | AZ153: $0.00 | BA153: $0.00 | BB153: $0.00 | BC153: $0 | BD153: $0.00 | BE153: $0.00 | BF153: $0 | BG153: $0.00 | BH153: $0.00 | BI153: $0 | BJ153: $0.00 | BK153: $0.00 | BL153: $0.00 | BN153: 0.0%
B154: Prep/clean siding | U154: sf | V154: sf | W154: 0.20 | AF154: $0 | AJ154: $0 | AN154: $0 | AS154: $0 | AY154: $0.00 | AZ154: $0.00 | BA154: $0.00 | BB154: $0.00 | BC154: $0 | BD154: $0.00 | BE154: $0.00 | BF154: $0 | BG154: $0.00 | BH154: $0.00 | BI154: $0 | BJ154: $0.00 | BK154: $0.00 | BL154: $0.00 | BN154: 0.0%
B155: Paint siding | U155: sf | V155: sf | W155: 0.75 | Z155: 0.25 | AB155: 0.25 | AF155: $0 | AJ155: $0 | AN155: $0 | AS155: $0 | AY155: $0.00 | AZ155: $0.00 | BA155: $0.00 | BB155: $0.00 | BC155: $0 | BD155: $0.00 | BE155: $0.00 | BF155: $0 | BG155: $0.00 | BH155: $0.00 | BI155: $0 | BJ155: $0.00 | BK155: $0.00 | BL155: $0.00 | BN155: 0.0%
B156: Paint exterior door | U156: ea | V156: ea | W156: 75.00 | Z156: 10.00 | AB156: 10.00 | AF156: $0 | AJ156: $0 | AN156: $0 | AS156: $0 | AY156: $0.00 | AZ156: $0.00 | BA156: $0.00 | BB156: $0.00 | BC156: $0 | BD156: $0.00 | BE156: $0.00 | BF156: $0 | BG156: $0.00 | BH156: $0.00 | BI156: $0 | BJ156: $0.00 | BK156: $0.00 | BL156: $0.00 | BN156: 0.0%
B157: Paint trim only | U157: lf | V157: lf | W157: 1.50 | Z157: 0.15 | AB157: 0.15 | AF157: $0 | AJ157: $0 | AN157: $0 | AS157: $0 | AY157: $0.00 | AZ157: $0.00 | BA157: $0.00 | BB157: $0.00 | BC157: $0 | BD157: $0.00 | BE157: $0.00 | BF157: $0 | BG157: $0.00 | BH157: $0.00 | BI157: $0 | BJ157: $0.00 | BK157: $0.00 | BL157: $0.00 | BN157: 0.0%
B158: Sand & refinish decking | U158: sf | V158: sf | W158: 1.50 | Z158: 0.25 | AB158: 0.25 | AF158: $0 | AJ158: $0 | AN158: $0 | AS158: $0 | AY158: $0.00 | AZ158: $0.00 | BA158: $0.00 | BB158: $0.00 | BC158: $0 | BD158: $0.00 | BE158: $0.00 | BF158: $0 | BG158: $0.00 | BH158: $0.00 | BI158: $0 | BJ158: $0.00 | BK158: $0.00 | BL158: $0.00 | BN158: 0.0%
AF159: $0 | AJ159: $0 | AN159: $0 | AS159: $0 | AY159: $0.00 | AZ159: $0.00 | BA159: $0.00 | BB159: $0.00 | BC159: $0 | BD159: $0.00 | BE159: $0.00 | BF159: $0 | BG159: $0.00 | BH159: $0.00 | BI159: $0 | BJ159: $0.00 | BK159: $0.00 | BL159: $0.00 | BN159: 0.0%
AF160: $0 | AJ160: $0 | AN160: $0 | AS160: $0 | AY160: $0.00 | AZ160: $0.00 | BA160: $0.00 | BB160: $0.00 | BC160: $0 | BD160: $0.00 | BE160: $0.00 | BF160: $0 | BG160: $0.00 | BH160: $0.00 | BI160: $0 | BJ160: $0.00 | BK160: $0.00 | BL160: $0.00 | BN160: 0.0%
AF161: $0 | AJ161: $0 | AN161: $0 | AS161: $0 | AY161: $0.00 | AZ161: $0.00 | BA161: $0.00 | BB161: $0.00 | BC161: $0 | BD161: $0.00 | BE161: $0.00 | BF161: $0 | BG161: $0.00 | BH161: $0.00 | BI161: $0 | BJ161: $0.00 | BK161: $0.00 | BL161: $0.00 | BN161: 0.0%
AF162: $0 | AJ162: $0 | AN162: $0 | AS162: $0 | AY162: $0.00 | AZ162: $0.00 | BA162: $0.00 | BB162: $0.00 | BC162: $0 | BD162: $0.00 | BE162: $0.00 | BF162: $0 | BG162: $0.00 | BH162: $0.00 | BI162: $0 | BJ162: $0.00 | BK162: $0.00 | BL162: $0.00 | BN162: 0.0%
AF163: $0 | AJ163: $0 | AN163: $0 | AS163: $0 | AY163: $0.00 | AZ163: $0.00 | BA163: $0.00 | BB163: $0.00 | BC163: $0 | BD163: $0.00 | BE163: $0.00 | BF163: $0 | BG163: $0.00 | BH163: $0.00 | BI163: $0 | BJ163: $0.00 | BK163: $0.00 | BL163: $0.00 | BN163: 0.0%
AF164: $0 | AJ164: $0 | AN164: $0 | AS164: $0 | AY164: $0.00 | AZ164: $0.00 | BA164: $0.00 | BB164: $0.00 | BC164: $0 | BD164: $0.00 | BE164: $0.00 | BF164: $0 | BG164: $0.00 | BH164: $0.00 | BI164: $0 | BJ164: $0.00 | BK164: $0.00 | BL164: $0.00 | BN164: 0.0%
AF165: $0 | AJ165: $0 | AN165: $0 | AS165: $0 | AY165: $0.00 | AZ165: $0.00 | BA165: $0.00 | BB165: $0.00 | BC165: $0 | BD165: $0.00 | BE165: $0.00 | BF165: $0 | BG165: $0.00 | BH165: $0.00 | BI165: $0 | BJ165: $0.00 | BK165: $0.00 | BL165: $0.00 | BN165: 0.0%
AF166: $0 | AJ166: $0 | AN166: $0 | AS166: $0 | AY166: $0.00 | AZ166: $0.00 | BA166: $0.00 | BB166: $0.00 | BC166: $0 | BD166: $0.00 | BE166: $0.00 | BF166: $0 | BG166: $0.00 | BH166: $0.00 | BI166: $0 | BJ166: $0.00 | BK166: $0.00 | BL166: $0.00 | BN166: 0.0%
AF167: $0 | AJ167: $0 | AN167: $0 | AS167: $0 | AY167: $0.00 | AZ167: $0.00 | BA167: $0.00 | BB167: $0.00 | BC167: $0 | BD167: $0.00 | BE167: $0.00 | BF167: $0 | BG167: $0.00 | BH167: $0.00 | BI167: $0 | BJ167: $0.00 | BK167: $0.00 | BL167: $0.00 | BN167: 0.0%
AF168: $0 | AJ168: $0 | AN168: $0 | AS168: $0 | AY168: $0.00 | AZ168: $0.00 | BA168: $0.00 | BB168: $0.00 | BC168: $0 | BD168: $0.00 | BE168: $0.00 | BF168: $0 | BG168: $0.00 | BH168: $0.00 | BI168: $0 | BJ168: $0.00 | BK168: $0.00 | BL168: $0.00 | BN168: 0.0%
AF169: $0 | AJ169: $0 | AN169: $0 | AS169: $0 | AY169: $0.00 | AZ169: $0.00 | BA169: $0.00 | BB169: $0.00 | BC169: $0 | BD169: $0.00 | BE169: $0.00 | BF169: $0 | BG169: $0.00 | BH169: $0.00 | BI169: $0 | BJ169: $0.00 | BK169: $0.00 | BL169: $0.00 | BN169: 0.0%
AF170: $0 | AJ170: $0 | AN170: $0 | AS170: $0 | AY170: $0.00 | AZ170: $0.00 | BA170: $0.00 | BB170: $0.00 | BC170: $0 | BD170: $0.00 | BE170: $0.00 | BF170: $0 | BG170: $0.00 | BH170: $0.00 | BI170: $0 | BJ170: $0.00 | BK170: $0.00 | BL170: $0.00 | BN170: 0.0%
AF171: $0 | AJ171: $0 | AN171: $0 | AS171: $0 | AY171: $0.00 | AZ171: $0.00 | BA171: $0.00 | BB171: $0.00 | BC171: $0 | BD171: $0.00 | BE171: $0.00 | BF171: $0 | BG171: $0.00 | BH171: $0.00 | BI171: $0 | BJ171: $0.00 | BK171: $0.00 | BL171: $0.00 | BN171: 0.0%
AF172: $0 | AJ172: $0 | AN172: $0 | AS172: $0 | AY172: $0.00 | AZ172: $0.00 | BA172: $0.00 | BB172: $0.00 | BC172: $0 | BD172: $0.00 | BE172: $0.00 | BF172: $0 | BG172: $0.00 | BH172: $0.00 | BI172: $0 | BJ172: $0.00 | BK172: $0.00 | BL172: $0.00 | BN172: 0.0%
AF173: $0 | AJ173: $0 | AN173: $0 | AS173: $0 | AY173: $0.00 | AZ173: $0.00 | BA173: $0.00 | BB173: $0.00 | BC173: $0 | BD173: $0.00 | BE173: $0.00 | BF173: $0 | BG173: $0.00 | BH173: $0.00 | BI173: $0 | BJ173: $0.00 | BK173: $0.00 | BL173: $0.00 | BN173: 0.0%
AF174: $0 | AJ174: $0 | AN174: $0 | AS174: $0 | AY174: $0.00 | AZ174: $0.00 | BA174: $0.00 | BB174: $0.00 | BC174: $0 | BD174: $0.00 | BE174: $0.00 | BF174: $0 | BG174: $0.00 | BH174: $0.00 | BI174: $0 | BJ174: $0.00 | BK174: $0.00 | BL174: $0.00 | BN174: 0.0%
AF175: $0 | AJ175: $0 | AN175: $0 | AS175: $0 | AY175: $0.00 | AZ175: $0.00 | BA175: $0.00 | BB175: $0.00 | BC175: $0 | BD175: $0.00 | BE175: $0.00 | BF175: $0 | BG175: $0.00 | BH175: $0.00 | BI175: $0 | BJ175: $0.00 | BK175: $0.00 | BL175: $0.00 | BN175: 0.0%
AF176: $0 | AJ176: $0 | AN176: $0 | AS176: $0 | AY176: $0.00 | AZ176: $0.00 | BA176: $0.00 | BB176: $0.00 | BC176: $0 | BD176: $0.00 | BE176: $0.00 | BF176: $0 | BG176: $0.00 | BH176: $0.00 | BI176: $0 | BJ176: $0.00 | BK176: $0.00 | BL176: $0.00 | BN176: 0.0%
AF177: $0 | AJ177: $0 | AN177: $0 | AS177: $0 | AY177: $0.00 | AZ177: $0.00 | BA177: $0.00 | BB177: $0.00 | BC177: $0 | BD177: $0.00 | BE177: $0.00 | BF177: $0 | BG177: $0.00 | BH177: $0.00 | BI177: $0 | BJ177: $0.00 | BK177: $0.00 | BL177: $0.00 | BN177: 0.0%
AF178: $0 | AJ178: $0 | AN178: $0 | AS178: $0 | AY178: $0.00 | AZ178: $0.00 | BA178: $0.00 | BB178: $0.00 | BC178: $0 | BD178: $0.00 | BE178: $0.00 | BF178: $0 | BG178: $0.00 | BH178: $0.00 | BI178: $0 | BJ178: $0.00 | BK178: $0.00 | BL178: $0.00 | BN178: 0.0%
AF179: $0 | AJ179: $0 | AN179: $0 | AS179: $0 | AY179: $0.00 | AZ179: $0.00 | BA179: $0.00 | BB179: $0.00 | BC179: $0 | BD179: $0.00 | BE179: $0.00 | BF179: $0 | BG179: $0.00 | BH179: $0.00 | BI179: $0 | BJ179: $0.00 | BK179: $0.00 | BL179: $0.00 | BN179: 0.0%
AF180: $0 | AJ180: $0 | AN180: $0 | AS180: $0 | AY180: $0.00 | AZ180: $0.00 | BA180: $0.00 | BB180: $0.00 | BC180: $0 | BD180: $0.00 | BE180: $0.00 | BF180: $0 | BG180: $0.00 | BH180: $0.00 | BI180: $0 | BJ180: $0.00 | BK180: $0.00 | BL180: $0.00 | BN180: 0.0%
AF181: $0 | AJ181: =R181*Z181 -> $0 | AN181: =R181*AC181 -> $0 | AS181: $0 | AY181: $0.00 | AZ181: $0.00 | BA181: $0.00 | BB181: $0.00 | BC181: $0 | BD181: $0.00 | BE181: $0.00 | BF181: $0 | BG181: $0.00 | BH181: $0.00 | BI181: $0 | BJ181: $0.00 | BK181: $0.00 | BL181: $0.00 | BN181: 0.0%
AF182: $0 | AJ182: =R182*Z182 -> $0 | AN182: =R182*AC182 -> $0 | AS182: $0 | AY182: $0.00 | AZ182: $0.00 | BA182: $0.00 | BB182: $0.00 | BC182: $0 | BD182: $0.00 | BE182: $0.00 | BF182: $0 | BG182: $0.00 | BH182: $0.00 | BI182: $0 | BJ182: $0.00 | BK182: $0.00 | BL182: $0.00 | BN182: 0.0%
AF183: $0 | AJ183: =R183*Z183 -> $0 | AN183: =R183*AC183 -> $0 | AS183: $0 | AY183: $0.00 | AZ183: $0.00 | BA183: $0.00 | BB183: $0.00 | BC183: $0 | BD183: $0.00 | BE183: $0.00 | BF183: $0 | BG183: $0.00 | BH183: $0.00 | BI183: $0 | BJ183: $0.00 | BK183: $0.00 | BL183: $0.00 | BN183: 0.0%
AF184: $0 | AJ184: =R184*Z184 -> $0 | AN184: =R184*AC184 -> $0 | AS184: $0 | AY184: $0.00 | AZ184: $0.00 | BA184: $0.00 | BB184: $0.00 | BC184: $0 | BD184: $0.00 | BE184: $0.00 | BF184: $0 | BG184: $0.00 | BH184: $0.00 | BI184: $0 | BJ184: $0.00 | BK184: $0.00 | BL184: $0.00 | BN184: 0.0%
AY185: =AY144 -> $0 | AZ185: =AZ144 -> $0 | BA185: =BA144 -> $0 | BB185: =BB144 -> $0 | BE185: =BE144 -> $0 | BG185: =BG144 -> $0 | BH185: =BH144 -> $0 | BJ185: =BJ144 -> $0 | BK185: =BK144 -> $0 | BL185: =BL144 -> $0
AE186: =CONCATENATE(B144," ","TOTAL") -> EXTERIOR PAINTING TOTAL | AF186: =SUBTOTAL(9,AF145:AF185) -> $2,813 | AJ186: =SUBTOTAL(9,AJ145:AJ185) -> $563 | AN186: =SUBTOTAL(9,AN145:AN185) -> $0 | AS186: =SUBTOTAL(9,AS145:AS185) -> $3,375 | AW186: =SUM(AW147:AW167) -> $0 | AY186: =SUM(AY145:AY185) -> $2,812.50 | AZ186: $562.50 | BA186: $0.00 | BB186: $3,375.00 | BC186: $0 | BD186: $759.38 | BE186: $3,571.88 | BF186: $0 | BG186: $151.88 | BH186: $714.38 | BI186: $0 | BJ186: $0.00 | BK186: $0.00 | BL186: $4,286.25 | BN186: =IFERROR(AS186/Total_Detailed_Estimate,0) -> 4.0%
AY187: =AY144 -> $0 | AZ187: =AZ144 -> $0 | BA187: =BA144 -> $0 | BB187: =BB144 -> $0 | BE187: =BE144 -> $0 | BG187: =BG144 -> $0 | BH187: =BH144 -> $0 | BJ187: =BJ144 -> $0 | BK187: =BK144 -> $0 | BL187: =BL144 -> $0
AY188: =AY186 -> 2812.5 | AZ188: =AZ186 -> 562.5 | BA188: =BA186 -> 0 | BB188: =BB186 -> 3375 | BE188: =BE186 -> 3571.875 | BG188: =BG186 -> 151.875 | BH188: =BH186 -> 714.375 | BJ188: =BJ186 -> 0 | BK188: =BK186 -> 0 | BL188: =BL186 -> 4286.25
A189: Hidden | B189: =UPPER(Exterior5_Category) -> DECKS/PORCHES | AF189: =IF(Exterior5_Labor=0,"",Exterior5_Labor) -> $1,000 | AJ189: =IF(Exterior5_Material=0,"",Exterior5_Material) -> $900 | AN189: =IF(Exterior5_Sub=0,"",Exterior5_Sub) ->  | AS189: =IF(Exterior5_Total=0,"",Exterior5_Total) -> $1,900
B190: Decking | AF190: =R190*W190 -> $0 | AJ190: =R190*Z190 -> $0 | AN190: =R190*AC190 -> $0 | AS190: =SUM(AF190:AQ190) -> $0 | AW190: =SUM(AF190:AQ190) -> $0 | AY190: =AF190 -> $0.00 | AZ190: =AJ190 -> $0.00 | BA190: =AN190 -> $0.00 | BB190: =SUM(AY190:BA190) -> $0.00 | BC190: =IFERROR(AY190/$BB$5,0) -> $0 | BD190: =BC190*Allocated_Adders -> $0.00 | BE190: =AY190+BD190 -> $0.00 | BF190: =IFERROR(AZ190/$BB$5,0) -> $0 | BG190: =BF190*Allocated_Adders -> $0.00 | BH190: =AZ190+BG190 -> $0.00 | BI190: =IFERROR(BA190/$BB$5,0) -> $0 | BJ190: =BI190*Allocated_Adders -> $0.00 | BK190: =BA190+BJ190 -> $0.00 | BL190: =BE190+BH190+BK190 -> $0.00 | BN190: =IFERROR(AS190/Total_Detailed_Estimate,0) -> 0.0%
B191: Deck bid/allowance | U191: ls | V191: ls | AF191: =R191*W191 -> $0 | AJ191: $0 | AN191: $0 | AS191: $0 | AW191: $0 | AY191: $0.00 | AZ191: $0.00 | BA191: $0.00 | BB191: $0.00 | BC191: =IFERROR(AY191/$BB$5,0) -> $0 | BD191: $0.00 | BE191: =AY191+BD191 -> $0.00 | BF191: =IFERROR(AZ191/$BB$5,0) -> $0 | BG191: $0.00 | BH191: =AZ191+BG191 -> $0.00 | BI191: =IFERROR(BA191/$BB$5,0) -> $0 | BJ191: $0.00 | BK191: =BA191+BJ191 -> $0.00 | BL191: =BE191+BH191+BK191 -> $0.00 | BN191: 0.0%
B192: New deck, columns, joists, railing-treated lumber | U192: sf | V192: sf | W192: 10.00 | Z192: 5.00 | AB192: 5.00 | AF192: $0 | AJ192: $0 | AN192: $0 | AS192: $0 | AW192: $0 | AY192: $0.00 | AZ192: $0.00 | BA192: $0.00 | BB192: $0.00 | BC192: $0 | BD192: $0.00 | BE192: $0.00 | BF192: $0 | BG192: $0.00 | BH192: $0.00 | BI192: $0 | BJ192: $0.00 | BK192: $0.00 | BL192: $0.00 | BN192: 0.0%
B193: New deck, columns, joists, railing-cedar | R193: 100 | U193: sf | V193: sf | W193: 10.00 | Z193: 9.00 | AB193: 8.50 | AF193: $1,000 | AJ193: $900 | AN193: $0 | AS193: $1,900 | AW193: $1,900 | AY193: $1,000.00 | AZ193: $900.00 | BA193: $0.00 | BB193: $1,900.00 | BC193: $0 | BD193: $270.00 | BE193: $1,270.00 | BF193: $0 | BG193: $243.00 | BH193: $1,143.00 | BI193: $0 | BJ193: $0.00 | BK193: $0.00 | BL193: $2,413.00 | BN193: 2.3%
B194: Existing deck, replace decking | U194: sf | V194: sf | W194: 5.00 | Z194: 2.00 | AB194: 2.00 | AF194: $0 | AJ194: $0 | AN194: $0 | AS194: $0 | AW194: $0 | AY194: $0.00 | AZ194: $0.00 | BA194: $0.00 | BB194: $0.00 | BC194: $0 | BD194: $0.00 | BE194: $0.00 | BF194: $0 | BG194: $0.00 | BH194: $0.00 | BI194: $0 | BJ194: $0.00 | BK194: $0.00 | BL194: $0.00 | BN194: 0.0%
B195: Install railing w/ wood balusters only | U195: lf | V195: lf | W195: 15.00 | Z195: 15.00 | AB195: 7.50 | AF195: $0 | AJ195: $0 | AN195: $0 | AS195: $0 | AW195: $0 | AY195: $0.00 | AZ195: $0.00 | BA195: $0.00 | BB195: $0.00 | BC195: $0 | BD195: $0.00 | BE195: $0.00 | BF195: $0 | BG195: $0.00 | BH195: $0.00 | BI195: $0 | BJ195: $0.00 | BK195: $0.00 | BL195: $0.00 | BN195: 0.0%
B196: Install railing w/ metal balusters only | U196: lf | V196: lf | W196: 15.00 | Z196: 25.00 | AB196: 25.00 | AF196: $0 | AJ196: $0 | AN196: $0 | AS196: $0 | AW196: $0 | AY196: $0.00 | AZ196: $0.00 | BA196: $0.00 | BB196: $0.00 | BC196: $0 | BD196: $0.00 | BE196: $0.00 | BF196: $0 | BG196: $0.00 | BH196: $0.00 | BI196: $0 | BJ196: $0.00 | BK196: $0.00 | BL196: $0.00 | BN196: 0.0%
B197: Stairs, 5 to 7 risers | U197: ea | W197: 700.00 | Z197: 175.00 | AF197: $0 | AJ197: $0 | AN197: $0 | AS197: $0 | AW197: $0 | AY197: $0.00 | AZ197: $0.00 | BA197: $0.00 | BB197: $0.00 | BC197: $0 | BD197: $0.00 | BE197: $0.00 | BF197: $0 | BG197: $0.00 | BH197: $0.00 | BI197: $0 | BJ197: $0.00 | BK197: $0.00 | BL197: $0.00 | BN197: 0.0%
AF198: $0 | AJ198: $0 | AN198: $0 | AS198: $0 | AW198: $0 | AY198: $0.00 | AZ198: $0.00 | BA198: $0.00 | BB198: $0.00 | BC198: $0 | BD198: $0.00 | BE198: $0.00 | BF198: $0 | BG198: $0.00 | BH198: $0.00 | BI198: $0 | BJ198: $0.00 | BK198: $0.00 | BL198: $0.00 | BN198: 0.0%
AF199: $0 | AJ199: $0 | AN199: $0 | AS199: $0 | AW199: $0 | AY199: $0.00 | AZ199: $0.00 | BA199: $0.00 | BB199: $0.00 | BC199: $0 | BD199: $0.00 | BE199: $0.00 | BF199: $0 | BG199: $0.00 | BH199: $0.00 | BI199: $0 | BJ199: $0.00 | BK199: $0.00 | BL199: $0.00 | BN199: 0.0%
B200: Miscellaneous Deck | AF200: $0 | AJ200: $0 | AN200: $0 | AS200: $0 | AW200: $0 | AY200: $0.00 | AZ200: $0.00 | BA200: $0.00 | BB200: $0.00 | BC200: $0 | BD200: $0.00 | BE200: $0.00 | BF200: $0 | BG200: $0.00 | BH200: $0.00 | BI200: $0 | BJ200: $0.00 | BK200: $0.00 | BL200: $0.00 | BN200: 0.0%
B201: Deck permit costs | U201: ea | W201: 250.00 | AF201: $0 | AJ201: $0 | AN201: $0 | AS201: $0 | AW201: $0 | AY201: $0.00 | AZ201: $0.00 | BA201: $0.00 | BB201: $0.00 | BC201: $0 | BD201: $0.00 | BE201: $0.00 | BF201: $0 | BG201: $0.00 | BH201: $0.00 | BI201: $0 | BJ201: $0.00 | BK201: $0.00 | BL201: $0.00 | BN201: 0.0%
B202: Powerwash deck, stain and seal, L+M | U202: sf | W202: 1.50 | AF202: $0 | AJ202: $0 | AN202: $0 | AS202: $0 | AW202: $0 | AY202: $0.00 | AZ202: $0.00 | BA202: $0.00 | BB202: $0.00 | BC202: $0 | BD202: $0.00 | BE202: $0.00 | BF202: $0 | BG202: $0.00 | BH202: $0.00 | BI202: $0 | BJ202: $0.00 | BK202: $0.00 | BL202: $0.00 | BN202: 0.0%
B203: Heavy sand deck, stain and seal, L+M | U203: sf | W203: 2.50 | AF203: $0 | AJ203: $0 | AN203: $0 | AS203: $0 | AW203: $0 | AY203: $0.00 | AZ203: $0.00 | BA203: $0.00 | BB203: $0.00 | BC203: $0 | BD203: $0.00 | BE203: $0.00 | BF203: $0 | BG203: $0.00 | BH203: $0.00 | BI203: $0 | BJ203: $0.00 | BK203: $0.00 | BL203: $0.00 | BN203: 0.0%
... 1877 more rows

Sheet ESTIMATE SUMMARY (hidden)
A2: Setup | B2: Estimate | F2: GCs | J2: Adders | N2: Alternates | AG2: Back to Detail | AL2: Print Report
B4: Category | P4: Labor | T4: Mat'l | X4: Sub | AB4: Subtotal | AF4: Allocated Adders | AJ4: Total | AN4: $/SF | AR4: % of Total | AW4: Allocation %
B5: EXTERIORS
B6: ROOFING | P6: =Exterior1_Labor -> $5,000 | T6: =Exterior1_Material -> $2,000 | X6: =Exterior1_Sub -> $0 | AB6: =SUM(P6:AA6) -> $7,000 | AF6: =AW6*Allocated_Adders -> $1,890 | AJ6: =AB6+AF6 -> $8,890 | AN6: =IFERROR(AB6/PROJECT_SIZE,0) -> $4.67 /sf | AR6: =AJ6/Project_Total -> $0 | AW6: =AB6/Project_Subtotal -> $0
B7: SIDING | P7: =Exterior2_Labor -> $0 | T7: =Exterior2_Material -> $0 | X7: =Exterior2_Sub -> $0 | AB7: =SUM(P7:AA7) -> $0 | AF7: $0 | AJ7: =AB7+AF7 -> $0 | AN7: $0.00 /sf | AR7: $0 | AW7: $0
B8: MASONRY | P8: =Exterior3_Labor -> $938 | T8: =Exterior3_Material -> $500 | X8: =Exterior3_Sub -> $0 | AB8: $1,438 | AF8: $388 | AJ8: $1,826 | AN8: $0.96 /sf | AR8: $0 | AW8: $0
B9: EXTERIOR PAINTING | P9: =Exterior4_Labor -> $2,813 | T9: =Exterior4_Material -> $563 | X9: =Exterior4_Sub -> $0 | AB9: $3,375 | AF9: $911 | AJ9: $4,286 | AN9: $2.25 /sf | AR9: $0 | AW9: $0
B10: DECKS/PORCHES | P10: =Exterior5_Labor -> $1,000 | T10: =Exterior5_Material -> $900 | X10: =Exterior5_Sub -> $0 | AB10: $1,900 | AF10: $513 | AJ10: $2,413 | AN10: $1.27 /sf | AR10: $0 | AW10: $0
B11: EXTERIOR DOORS | P11: =Exterior6_Labor -> $775 | T11: =Exterior6_Material -> $975 | X11: =Exterior6_Sub -> $0 | AB11: $1,750 | AF11: $473 | AJ11: $2,223 | AN11: $1.17 /sf | AR11: $0 | AW11: $0
B12: WINDOWS | P12: =Exterior7_Labor -> $750 | T12: =Exterior7_Material -> $1,750 | X12: =Exterior7_Sub -> $0 | AB12: $2,500 | AF12: $675 | AJ12: $3,175 | AN12: $1.67 /sf | AR12: $0 | AW12: $0
B13: GARAGE | P13: =Exterior8_Labor -> $400 | T13: =Exterior8_Material -> $900 | X13: =Exterior8_Sub -> $0 | AB13: $1,300 | AF13: $351 | AJ13: $1,651 | AN13: $0.87 /sf | AR13: $0 | AW13: $0
B14: CONCRETE/FLATWORK | P14: =Exterior9_Labor -> $4,500 | T14: =Exterior9_Material -> $3,000 | X14: =Exterior9_Sub -> $0 | AB14: $7,500 | AF14: $2,025 | AJ14: $9,525 | AN14: $5.00 /sf | AR14: $0 | AW14: $0
B15: ASPHALT | P15: =Exterior10_Labor -> $0 | T15: =Exterior10_Material -> $0 | X15: =Exterior10_Sub -> $0 | AB15: $0 | AF15: $0 | AJ15: $0 | AN15: $0.00 /sf | AR15: $0 | AW15: $0
B16: LANDSCAPING | P16: =Exterior11_Labor -> $250 | T16: =Exterior11_Material -> $500 | X16: =Exterior11_Sub -> $0 | AB16: $750 | AF16: $203 | AJ16: $953 | AN16: $0.50 /sf | AR16: $0 | AW16: $0
B17: FENCING | P17: =Exterior12_Labor -> $0 | T17: =Exterior12_Material -> $0 | X17: =Exterior12_Sub -> $0 | AB17: $0 | AF17: $0 | AJ17: $0 | AN17: $0.00 /sf | AR17: $0 | AW17: $0
B18: POOLS | P18: =Exterior13_Labor -> $0 | T18: =Exterior13_Material -> $0 | X18: =Exterior13_Sub -> $0 | AB18: $0 | AF18: $0 | AJ18: $0 | AN18: $0.00 /sf | AR18: $0 | AW18: $0
B19: MISCELLANEOUS EXTERIOR ITEMS | P19: =Exterior14_Labor -> $400 | T19: =Exterior14_Material -> $550 | X19: =Exterior14_Sub -> $0 | AB19: $950 | AF19: $257 | AJ19: $1,207 | AN19: $0.63 /sf | AR19: $0 | AW19: $0
B20: EXTERIORS 1 | P20: =Exterior15_Labor -> $0 | T20: =Exterior15_Material -> $0 | X20: =Exterior15_Sub -> $0 | AB20: $0 | AF20: $0 | AJ20: $0 | AN20: $0.00 /sf | AR20: $0 | AW20: $0
B21: EXTERIORS 2 | P21: =Exterior16_Labor -> $0 | T21: =Exterior16_Material -> $0 | X21: =Exterior16_Sub -> $0 | AB21: $0 | AF21: $0 | AJ21: $0 | AN21: $0.00 /sf | AR21: $0 | AW21: $0
B22: EXTERIOR TOTALS | P22: =SUM(P6:S21) -> $16,825 | T22: =SUM(T6:W21) -> $11,638 | X22: =SUM(X6:AA21) -> $0 | AB22: =SUM(AB6:AE21) -> $28,463 | AF22: =SUM(AF6:AI21) -> $7,685 | AJ22: =SUM(AJ6:AM21) -> $36,147 | AN22: =SUM(AN6:AQ21) -> $18.98 /sf | AR22: =SUM(AR6:AU21) -> $0 | AW22: =SUM(AW6:AW21) -> $0
B23: INTERIORS
B24: DEMOLITION | P24: =Interior1_Labor -> $1,600 | T24: =Interior1_Material -> $0 | X24: =Interior1_Sub -> $0 | AB24: =SUM(P24:AA24) -> $1,600 | AF24: =AW24*Allocated_Adders -> $432 | AJ24: =AB24+AF24 -> $2,032 | AN24: =IFERROR(AB24/PROJECT_SIZE,0) -> $1.07 /sf | AR24: =AJ24/Project_Total -> $0 | AW24: =AB24/Project_Subtotal -> $0
B25: REMEDIATION/ABATEMENT | P25: =Interior2_Labor -> $0 | T25: =Interior2_Material -> $0 | X25: =Interior2_Sub -> $0 | AB25: $0 | AF25: $0 | AJ25: $0 | AN25: $0.00 /sf | AR25: $0 | AW25: $0
B26: FRAMING | P26: =Interior3_Labor -> $0 | T26: =Interior3_Material -> $0 | X26: =Interior3_Sub -> $0 | AB26: $0 | AF26: $0 | AJ26: $0 | AN26: $0.00 /sf | AR26: $0 | AW26: $0
B27: INSULATION | P27: =Interior4_Labor -> $0 | T27: =Interior4_Material -> $0 | X27: =Interior4_Sub -> $0 | AB27: $0 | AF27: $0 | AJ27: $0 | AN27: $0.00 /sf | AR27: $0 | AW27: $0
B28: DRYWALL | P28: =Interior5_Labor -> $0 | T28: =Interior5_Material -> $0 | X28: =Interior5_Sub -> $0 | AB28: $0 | AF28: $0 | AJ28: $0 | AN28: $0.00 /sf | AR28: $0 | AW28: $0
B29: KITCHENS | P29: =Interior6_Labor -> $2,000 | T29: =Interior6_Material -> $6,500 | X29: =Interior6_Sub -> $0 | AB29: $8,500 | AF29: $2,295 | AJ29: $10,795 | AN29: $5.67 /sf | AR29: $0 | AW29: $0
B30: BATHROOMS | P30: =Interior7_Labor -> $5,000 | T30: =Interior7_Material -> $7,250 | X30: =Interior7_Sub -> $0 | AB30: $12,250 | AF30: $3,308 | AJ30: $15,558 | AN30: $8.17 /sf | AR30: $0 | AW30: $0
B31: CABINETRY | P31: =Interior8_Labor -> $0 | T31: =Interior8_Material -> $0 | X31: =Interior8_Sub -> $0 | AB31: $0 | AF31: $0 | AJ31: $0 | AN31: $0.00 /sf | AR31: $0 | AW31: $0
B32: COUNTERTOPS | P32: =Interior9_Labor -> $0 | T32: =Interior9_Material -> $0 | X32: =Interior9_Sub -> $0 | AB32: $0 | AF32: $0 | AJ32: $0 | AN32: $0.00 /sf | AR32: $0 | AW32: $0
B33: INTERIOR DOORS | P33: =Interior10_Labor -> $1,600 | T33: =Interior10_Material -> $2,350 | X33: =Interior10_Sub -> $0 | AB33: $3,950 | AF33: $1,067 | AJ33: $5,017 | AN33: $2.63 /sf | AR33: $0 | AW33: $0
B34: INTERIOR WOODWORK | P34: =Interior11_Labor -> $350 | T34: =Interior11_Material -> $200 | X34: =Interior11_Sub -> $0 | AB34: $550 | AF34: $149 | AJ34: $699 | AN34: $0.37 /sf | AR34: $0 | AW34: $0
B35: INTERIOR PAINTING | P35: =Interior12_Labor -> $3,500 | T35: =Interior12_Material -> $1,500 | X35: =Interior12_Sub -> $0 | AB35: $5,000 | AF35: $1,350 | AJ35: $6,350 | AN35: $3.33 /sf | AR35: $0 | AW35: $0
B36: CARPET/VINYL | P36: =Interior13_Labor -> $750 | T36: =Interior13_Material -> $2,000 | X36: =Interior13_Sub -> $0 | AB36: $2,750 | AF36: $743 | AJ36: $3,493 | AN36: $1.83 /sf | AR36: $0 | AW36: $0
B37: TILING | P37: =Interior14_Labor -> $3,000 | T37: =Interior14_Material -> $1,500 | X37: =Interior14_Sub -> $0 | AB37: $4,500 | AF37: $1,215 | AJ37: $5,715 | AN37: $3.00 /sf | AR37: $0 | AW37: $0
B38: HARDWOOD FLOORING | P38: =Interior15_Labor -> $3,000 | T38: =Interior15_Material -> $4,000 | X38: =Interior15_Sub -> $0 | AB38: $7,000 | AF38: $1,890 | AJ38: $8,890 | AN38: $4.67 /sf | AR38: $0 | AW38: $0
B39: APPLIANCES | P39: =Interior16_Labor -> $0 | T39: =Interior16_Material -> $3,000 | X39: =Interior16_Sub -> $0 | AB39: $3,000 | AF39: $810 | AJ39: $3,810 | AN39: $2.00 /sf | AR39: $0 | AW39: $0
B40: BASEMENT | P40: =Interior17_Labor -> $0 | T40: =Interior17_Material -> $0 | X40: =Interior17_Sub -> $0 | AB40: $0 | AF40: $0 | AJ40: $0 | AN40: $0.00 /sf | AR40: $0 | AW40: $0
B41: FOUNDATIONS | P41: =Interior18_Labor -> $0 | T41: =Interior18_Material -> $0 | X41: =Interior18_Sub -> $0 | AB41: $0 | AF41: $0 | AJ41: $0 | AN41: $0.00 /sf | AR41: $0 | AW41: $0
B42: MISCELLANEOUS INTERIOR ITEMS | P42: =Interior19_Labor -> $0 | T42: =Interior19_Material -> $0 | X42: =Interior19_Sub -> $0 | AB42: $0 | AF42: $0 | AJ42: $0 | AN42: $0.00 /sf | AR42: $0 | AW42: $0
B43: INTERIORS 1 | P43: =Interior20_Labor -> $0 | T43: =Interior20_Material -> $0 | X43: =Interior20_Sub -> $0 | AB43: $0 | AF43: $0 | AJ43: $0 | AN43: $0.00 /sf | AR43: $0 | AW43: $0
B44: INTERIOR TOTALS | P44: =SUM(P24:S43) -> $20,800 | T44: =SUM(T24:W43) -> $28,300 | X44: =SUM(X24:AA43) -> $0 | AB44: =SUM(AB24:AE43) -> $49,100 | AF44: =SUM(AF24:AI43) -> $13,257 | AJ44: =SUM(AJ24:AM43) -> $62,357 | AN44: =SUM(AN24:AQ43) -> $32.73 /sf | AR44: =SUM(AR24:AU43) -> $1 | AW44: =SUM(AW24:AW43) -> $1
B45: MEP SYSTEMS
B46: FIRE PROTECTION | P46: =MEP1_Labor -> $0 | T46: =MEP1_Material -> $0 | X46: =MEP1_Sub -> $0 | AB46: =SUM(P46:AA46) -> $0 | AF46: =AW46*Allocated_Adders -> $0 | AJ46: =AB46+AF46 -> $0 | AN46: =IFERROR(AB46/PROJECT_SIZE,0) -> $0.00 /sf | AR46: =AJ46/Project_Total -> $0 | AW46: =AB46/Project_Subtotal -> $0
B47: PLUMBING | P47: =MEP2_Labor -> $0 | T47: =MEP2_Material -> $0 | X47: =MEP2_Sub -> $0 | AB47: =SUM(P47:AA47) -> $0 | AF47: =AW47*Allocated_Adders -> $0 | AJ47: =AB47+AF47 -> $0 | AN47: =IFERROR(AB47/PROJECT_SIZE,0) -> $0.00 /sf | AR47: =AJ47/Project_Total -> $0 | AW47: =AB47/Project_Subtotal -> $0
B48: SEPTIC SYSTEM | P48: =MEP3_Labor -> $0 | T48: =MEP3_Material -> $0 | X48: =MEP3_Sub -> $0 | AB48: =SUM(P48:AA48) -> $0 | AF48: =AW48*Allocated_Adders -> $0 | AJ48: =AB48+AF48 -> $0 | AN48: =IFERROR(AB48/PROJECT_SIZE,0) -> $0.00 /sf | AR48: =AJ48/Project_Total -> $0 | AW48: =AB48/Project_Subtotal -> $0
B49: HVAC | P49: =MEP4_Labor -> $0 | T49: =MEP4_Material -> $0 | X49: =MEP4_Sub -> $0 | AB49: =SUM(P49:AA49) -> $0 | AF49: =AW49*Allocated_Adders -> $0 | AJ49: =AB49+AF49 -> $0 | AN49: =IFERROR(AB49/PROJECT_SIZE,0) -> $0.00 /sf | AR49: =AJ49/Project_Total -> $0 | AW49: =AB49/Project_Subtotal -> $0
B50: ELECTRICAL | P50: =MEP5_Labor -> $0 | T50: =MEP5_Material -> $0 | X50: =MEP5_Sub -> $6,000 | AB50: =SUM(P50:AA50) -> $6,000 | AF50: =AW50*Allocated_Adders -> $1,620 | AJ50: =AB50+AF50 -> $7,620 | AN50: =IFERROR(AB50/PROJECT_SIZE,0) -> $4.00 /sf | AR50: =AJ50/Project_Total -> $0 | AW50: =AB50/Project_Subtotal -> $0
B51: MEP SYSTEMS TOTALS | P51: =SUM(P46:S50) -> $0 | T51: =SUM(T46:W50) -> $0 | X51: =SUM(X46:AA50) -> $6,000 | AB51: =SUM(AB46:AE50) -> $6,000 | AF51: =SUM(AF46:AI50) -> $1,620 | AJ51: =SUM(AJ46:AM50) -> $7,620 | AN51: =SUM(AN46:AQ50) -> $4.00 /sf | AR51: =SUM(AR46:AU50) -> $0 | AW51: =SUM(AW46:AW50) -> $0
B52: OTHER
B53: GENERAL REQUIREMENTS | P53: =Other1_Labor -> $0 | T53: =Other1_Material -> $0 | X53: =Other1_Sub -> $0 | AB53: =SUM(P53:AA53) -> $0 | AF53: =AW53*Allocated_Adders -> $0 | AJ53: =AB53+AF53 -> $0 | AN53: =IFERROR(AB53/PROJECT_SIZE,0) -> $0.00 /sf | AR53: =AJ53/Project_Total -> $0 | AW53: =AB53/Project_Subtotal -> $0
B54: ARCHITECTURAL/ENGINEERING | P54: =Other2_Labor -> $0 | T54: =Other2_Material -> $0 | X54: =Other2_Sub -> $0 | AB54: =SUM(P54:AA54) -> $0 | AF54: =AW54*Allocated_Adders -> $0 | AJ54: =AB54+AF54 -> $0 | AN54: =IFERROR(AB54/PROJECT_SIZE,0) -> $0.00 /sf | AR54: =AJ54/Project_Total -> $0 | AW54: =AB54/Project_Subtotal -> $0
B55: BUILDING PERMITS | P55: =Other3_Labor -> $0 | T55: =Other3_Material -> $0 | X55: =Other3_Sub -> $0 | AB55: =SUM(P55:AA55) -> $0 | AF55: =AW55*Allocated_Adders -> $0 | AJ55: =AB55+AF55 -> $0 | AN55: =IFERROR(AB55/PROJECT_SIZE,0) -> $0.00 /sf | AR55: =AJ55/Project_Total -> $0 | AW55: =AB55/Project_Subtotal -> $0
B56: OTHER 1 | P56: =Other4_Labor -> $0 | T56: =Other4_Material -> $0 | X56: =Other4_Sub -> $0 | AB56: =SUM(P56:AA56) -> $0 | AF56: =AW56*Allocated_Adders -> $0 | AJ56: =AB56+AF56 -> $0 | AN56: =IFERROR(AB56/PROJECT_SIZE,0) -> $0.00 /sf | AR56: =AJ56/Project_Total -> $0 | AW56: =AB56/Project_Subtotal -> $0
B57: OTHER 2 | P57: =Other5_Labor -> $0 | T57: =Other5_Material -> $0 | X57: =Other5_Sub -> $0 | AB57: =SUM(P57:AA57) -> $0 | AF57: =AW57*Allocated_Adders -> $0 | AJ57: =AB57+AF57 -> $0 | AN57: =IFERROR(AB57/PROJECT_SIZE,0) -> $0.00 /sf | AR57: =AJ57/Project_Total -> $0 | AW57: =AB57/Project_Subtotal -> $0
B58: OTHER TOTALS | P58: =SUM(P53:S57) -> $0 | T58: =SUM(T53:W57) -> $0 | X58: =SUM(X53:AA57) -> $0 | AB58: =SUM(AB53:AE57) -> $0 | AF58: =SUM(AF53:AI57) -> $0 | AJ58: =SUM(AJ53:AM57) -> $0 | AN58: =SUM(AN53:AQ57) -> $0.00 /sf | AR58: =SUM(AR53:AU57) -> $0 | AW58: =SUM(AW53:AW57) -> $0
B60: PROJECT SUBTOTALS | P60: =P22+P44+P51+P58 -> $37,625 | T60: =T22+T44+T51+T58 -> $39,938 | X60: =X22+X44+X51+X58 -> $6,000 | AB60: =AB22+AB44+AB51+AB58 -> $83,563 | AF60: =AF22+AF44+AF51+AF58 -> $22,562 | AJ60: =AJ22+AJ44+AJ51+AJ58 -> $106,124 | AN60: =AN22+AN44+AN51+AN58 -> $55.71 /sf | AR60: =AR22+AR44+AR51+AR58 -> $1 | AW60: =AW22+AW44+AW51+AW58 -> $1
B62: SHOWN ADDERS | AJ62: =Shown_Adders -> $4,960 | AN62: =AJ62/PROJECT_SIZE -> $3.31 /sf | AR62: =IFERROR(AJ62/Project_Total,0) -> $0
B64: PROJECT GRAND TOTAL | AJ64: =AJ60+AJ62 -> $111,084 | AN64: =AN26+AN48+AN55+AN62 -> $3.31 /sf | AR64: =AR26+AR48+AR55+AR62 -> $0 | AW64: =AW26+AW48+AW55+AW62 -> $0

Sheet GCS (hidden)
A2: Setup | B2: Estimate | F2: GCs | J2: Adders | N2: Alternates | AI2: Back to Estimate | AO2: Print Report
B4: DESCRIPTION OF WORK | Q4: QTY | T4: UNIT | V4: UNIT COST | AE4: LABOR/EQUIP | AJ4: MAT | AO4: SUB | AU4: GC TOTALS | BA4: % of Cost | BC4: NOTES | BE4: WORK BREAKDOWN BY SCOPE OF WORK | BG4: CUSTOM SORT 1 | BH4: CUSTOM SORT 2 | BI4: CUSTOM SORT 3 | BJ4: CUSTOM SORT 4 | BK4: LABOR, MATERIAL, SUB SORTER
V5: LABOR/EQUIP | Y5: MAT | AB5: SUB | AE5: =AE24+AE43+AE62+AE81+AE100+AE119+AE138 -> $4,960 | AJ5: =AJ24+AJ43+AJ62+AJ81+AJ100+AJ119+AJ138 -> $0 | AO5: =AO24+AO43+AO62+AO81+AO100+AO119+AO138 -> $0 | AU5: =AU24+AU43+AU62+AU81+AU100+AU119+AU138 -> $4,960 | BA5: =BA24+BA43+BA62+BA81+BA100+BA119+BA138 -> 5.9% | BK5: =BK24+BK43+BK62+BK81+BK100+BK119+BK138+#REF!+#REF!+#REF!+#REF!+#REF!+#REF!+#REF!+#REF!+#REF!+#REF!+#REF!+#REF!+#REF!+#REF!+#REF!+#REF!+#REF! ->  | BL5: =BL24+BL43+BL62+BL81+BL100+BL119+BL138+#REF!+#REF!+#REF!+#REF!+#REF!+#REF!+#REF!+#REF!+#REF!+#REF!+#REF!+#REF!+#REF!+#REF!+#REF!+#REF!+#REF! ->  | BM5: =BM24+BM43+BM62+BM81+BM100+BM119+BM138+#REF!+#REF!+#REF!+#REF!+#REF!+#REF!+#REF!+#REF!+#REF!+#REF!+#REF!+#REF!+#REF!+#REF!+#REF!+#REF!+#REF! ->  | BN5: =BN24+BN43+BN62+BN81+BN100+BN119+BN138+#REF!+#REF!+#REF!+#REF!+#REF!+#REF!+#REF!+#REF!+#REF!+#REF!+#REF!+#REF!+#REF!+#REF!+#REF!+#REF!+#REF! ->  | BO5: =BO24+BO43+BO62+BO81+BO100+BO119+BO138+#REF!+#REF!+#REF!+#REF!+#REF!+#REF!+#REF!+#REF!+#REF!+#REF!+#REF!+#REF!+#REF!+#REF!+#REF!+#REF!+#REF! ->  | BP5: =BP24+BP43+BP62+BP81+BP100+BP119+BP138+#REF!+#REF!+#REF!+#REF!+#REF!+#REF!+#REF!+#REF!+#REF!+#REF!+#REF!+#REF!+#REF!+#REF!+#REF!+#REF!+#REF! ->  | BQ5: =BQ24+BQ43+BQ62+BQ81+BQ100+BQ119+BQ138+#REF!+#REF!+#REF!+#REF!+#REF!+#REF!+#REF!+#REF!+#REF!+#REF!+#REF!+#REF!+#REF!+#REF!+#REF!+#REF!+#REF! ->  | BR5: =BR24+BR43+BR62+BR81+BR100+BR119+BR138+#REF!+#REF!+#REF!+#REF!+#REF!+#REF!+#REF!+#REF!+#REF!+#REF!+#REF!+#REF!+#REF!+#REF!+#REF!+#REF!+#REF! ->  | BS5: =BS24+BS43+BS62+BS81+BS100+BS119+BS138+#REF!+#REF!+#REF!+#REF!+#REF!+#REF!+#REF!+#REF!+#REF!+#REF!+#REF!+#REF!+#REF!+#REF!+#REF!+#REF!+#REF! ->  | BT5: =BT24+BT43+BT62+BT81+BT100+BT119+BT138+#REF!+#REF!+#REF!+#REF!+#REF!+#REF!+#REF!+#REF!+#REF!+#REF!+#REF!+#REF!+#REF!+#REF!+#REF!+#REF! ->  | BU5: =BU24+BU43+BU62+BU81+BU100+BU119+BU138+#REF!+#REF!+#REF!+#REF!+#REF!+#REF!+#REF!+#REF!+#REF!+#REF!+#REF!+#REF!+#REF!+#REF!+#REF!+#REF!+#REF! ->  | BV5: =BV24+BV43+BV62+BV81+BV100+BV119+BV138+#REF!+#REF!+#REF!+#REF!+#REF!+#REF!+#REF!+#REF!+#REF!+#REF!+#REF!+#REF!+#REF!+#REF!+#REF!+#REF!+#REF! ->  | BW5: =BW24+BW43+BW62+BW81+BW100+BW119+BW138+#REF!+#REF!+#REF!+#REF!+#REF!+#REF!+#REF!+#REF!+#REF!+#REF!+#REF!+#REF!+#REF!+#REF!+#REF!+#REF! ->  | BX5: =BX24+BX43+BX62+BX81+BX100+BX119+BX138+#REF!+#REF!+#REF!+#REF!+#REF!+#REF!+#REF!+#REF!+#REF!+#REF!+#REF!+#REF!+#REF!+#REF!+#REF!+#REF!+#REF! ->  | BY5: =BY24+BY43+BY62+BY81+BY100+BY119+BY138+#REF!+#REF!+#REF!+#REF!+#REF!+#REF!+#REF!+#REF!+#REF!+#REF!+#REF!+#REF!+#REF!+#REF!+#REF!+#REF!+#REF! ->  | BZ5: =BZ24+BZ43+BZ62+BZ81+BZ100+BZ119+BZ138+#REF!+#REF!+#REF!+#REF!+#REF!+#REF!+#REF!+#REF!+#REF!+#REF!+#REF!+#REF!+#REF!+#REF!+#REF!+#REF! ->  | CA5: =CA24+CA43+CA62+CA81+CA100+CA119+CA138+#REF!+#REF!+#REF!+#REF!+#REF!+#REF!+#REF!+#REF!+#REF!+#REF!+#REF!+#REF!+#REF!+#REF!+#REF!+#REF!+#REF! ->  | CB5: =CB24+CB43+CB62+CB81+CB100+CB119+CB138+#REF!+#REF!+#REF!+#REF!+#REF!+#REF!+#REF!+#REF!+#REF!+#REF!+#REF!+#REF!+#REF!+#REF!+#REF!+#REF!+#REF! -> 
A7: Hidden | B7: OFFICE PERSONNEL | BE7: =$B$7 -> OFFICE PERSONNEL | BK7: =SUM(BK8:BK22) -> $4,160 | BL7: $0 | BN7: $0 | CC7: =CONCATENATE(T7,"/", "MH") -> /MH | CD7: =CONCATENATE("MH","/",T7) -> MH/
B8: Project Manager 1 | T8: hrs | U8: hrs | AE8: =V8*Q8 -> $0 | AJ8: =Q8*Y8 -> $0 | AO8: =Q8*AB8 -> $0 | AU8: =AE8+AJ8+AO8 -> $0 | AZ8: =SUM(#REF!) ->  | BA8: =IFERROR(AU8/Total_Detailed_Estimate,0) -> 0.0% | BE8: OFFICE PERSONNEL | BK8: =AE8 -> $0 | BL8: =AJ8 -> $0 | BM8: =#REF! ->  | BN8: =AO8 -> $0 | BO8: =SUM(BK8:BN8) ->  | BP8: =AU8/#REF! ->  | BQ8: =AE8/#REF! ->  | BR8: =BQ8*#REF! ->  | BS8: =BR8+AE8 ->  | BT8: =AJ8/#REF! ->  | BU8: =BT8*#REF! ->  | BV8: =BU8+AJ8 ->  | BW8: =#REF!/#REF! ->  | BX8: =BW8*#REF! ->  | BY8: =BX8+#REF! ->  | BZ8: =AO8/#REF! ->  | CA8: =BZ8*#REF! ->  | CB8: =CA8+AO8 ->  | CC8: hrs/MH | CD8: MH/hrs | CF8: =T(#REF!) ->  | CG8: =#REF! ->  | CH8: =AE8 -> $0.00
B9: Project Manager 2 | Q9: 80 | T9: hrs | U9: ls | V9: $50.00 | AE9: =V9*Q9 -> $4,000 | AJ9: =Q9*Y9 -> $0 | AO9: =Q9*AB9 -> $0 | AU9: =AE9+AJ9+AO9 -> $4,000 | AZ9: =SUM(#REF!) ->  | BA9: 4.8% | BE9: OFFICE PERSONNEL | BK9: $4,000 | BL9: $0 | BM9: =#REF! ->  | BN9: $0 | BP9: =AU9/#REF! ->  | BQ9: =AE9/#REF! ->  | BR9: =BQ9*#REF! ->  | BT9: =AJ9/#REF! ->  | BU9: =BT9*#REF! ->  | BW9: =#REF!/#REF! ->  | BX9: =BW9*#REF! ->  | BY9: =BX9+#REF! ->  | BZ9: =AO9/#REF! ->  | CA9: =BZ9*#REF! ->  | CC9: hrs/MH | CD9: MH/hrs | CF9: =T(#REF!) ->  | CG9: =#REF! ->  | CH9: $4,000.00
B10: Project Manager 3 | T10: hrs | AE10: $0 | AJ10: $0 | AO10: $0 | AU10: $0 | AZ10: =SUM(#REF!) ->  | BA10: 0.0% | BE10: OFFICE PERSONNEL | BK10: $0 | BL10: $0 | BM10: =#REF! ->  | BN10: $0 | BP10: =AU10/#REF! ->  | BQ10: =AE10/#REF! ->  | BR10: =BQ10*#REF! ->  | BT10: =AJ10/#REF! ->  | BU10: =BT10*#REF! ->  | BW10: =#REF!/#REF! ->  | BX10: =BW10*#REF! ->  | BY10: =BX10+#REF! ->  | BZ10: =AO10/#REF! ->  | CA10: =BZ10*#REF! ->  | CC10: hrs/MH | CD10: MH/hrs | CF10: =T(#REF!) ->  | CG10: =#REF! ->  | CH10: $0.00
B11: Project Engineer | T11: hrs | AE11: $0 | AJ11: $0 | AO11: $0 | AU11: $0 | AZ11: =SUM(#REF!) ->  | BA11: 0.0% | BE11: OFFICE PERSONNEL | BK11: $0 | BL11: $0 | BM11: =#REF! ->  | BN11: $0 | BP11: =AU11/#REF! ->  | BQ11: =AE11/#REF! ->  | BR11: =BQ11*#REF! ->  | BT11: =AJ11/#REF! ->  | BU11: =BT11*#REF! ->  | BW11: =#REF!/#REF! ->  | BX11: =BW11*#REF! ->  | BY11: =BX11+#REF! ->  | BZ11: =AO11/#REF! ->  | CA11: =BZ11*#REF! ->  | CC11: hrs/MH | CD11: MH/hrs | CF11: =T(#REF!) ->  | CG11: =#REF! ->  | CH11: $0.00
B12: Project Designer | T12: hrs | AE12: $0 | AJ12: $0 | AO12: $0 | AU12: $0 | AZ12: =SUM(#REF!) ->  | BA12: 0.0% | BE12: OFFICE PERSONNEL | BK12: $0 | BL12: $0 | BM12: =#REF! ->  | BN12: $0 | BP12: =AU12/#REF! ->  | BQ12: =AE12/#REF! ->  | BR12: =BQ12*#REF! ->  | BT12: =AJ12/#REF! ->  | BU12: =BT12*#REF! ->  | BW12: =#REF!/#REF! ->  | BX12: =BW12*#REF! ->  | BY12: =BX12+#REF! ->  | BZ12: =AO12/#REF! ->  | CA12: =BZ12*#REF! ->  | CC12: hrs/MH | CD12: MH/hrs | CF12: =T(#REF!) ->  | CG12: =#REF! ->  | CH12: $0.00
B13: Project Estimator | Q13: 4 | T13: hrs | V13: $40.00 | AE13: $160 | AJ13: $0 | AO13: $0 | AU13: $160 | AZ13: =SUM(#REF!) ->  | BA13: 0.2% | BE13: OFFICE PERSONNEL | BK13: $160 | BL13: $0 | BM13: =#REF! ->  | BN13: $0 | BP13: =AU13/#REF! ->  | BQ13: =AE13/#REF! ->  | BR13: =BQ13*#REF! ->  | BT13: =AJ13/#REF! ->  | BU13: =BT13*#REF! ->  | BW13: =#REF!/#REF! ->  | BX13: =BW13*#REF! ->  | BY13: =BX13+#REF! ->  | BZ13: =AO13/#REF! ->  | CA13: =BZ13*#REF! ->  | CC13: hrs/MH | CD13: MH/hrs | CF13: =T(#REF!) ->  | CG13: =#REF! ->  | CH13: $160.00
B14: Project Administrator | T14: hrs | AE14: $0 | AJ14: $0 | AO14: $0 | AU14: $0 | AZ14: =SUM(#REF!) ->  | BA14: 0.0% | BE14: OFFICE PERSONNEL | BK14: $0 | BL14: $0 | BM14: =#REF! ->  | BN14: $0 | BP14: =AU14/#REF! ->  | BQ14: =AE14/#REF! ->  | BR14: =BQ14*#REF! ->  | BT14: =AJ14/#REF! ->  | BU14: =BT14*#REF! ->  | BW14: =#REF!/#REF! ->  | BX14: =BW14*#REF! ->  | BY14: =BX14+#REF! ->  | BZ14: =AO14/#REF! ->  | CA14: =BZ14*#REF! ->  | CC14: hrs/MH | CD14: MH/hrs | CF14: =T(#REF!) ->  | CG14: =#REF! ->  | CH14: $0.00
B15: Other Office Personnel 1 | T15: hrs | AE15: $0 | AJ15: $0 | AO15: $0 | AU15: $0 | AZ15: =SUM(#REF!) ->  | BA15: 0.0% | BE15: OFFICE PERSONNEL | BK15: $0 | BL15: $0 | BM15: =#REF! ->  | BN15: $0 | BP15: =AU15/#REF! ->  | BQ15: =AE15/#REF! ->  | BR15: =BQ15*#REF! ->  | BT15: =AJ15/#REF! ->  | BU15: =BT15*#REF! ->  | BW15: =#REF!/#REF! ->  | BX15: =BW15*#REF! ->  | BY15: =BX15+#REF! ->  | BZ15: =AO15/#REF! ->  | CA15: =BZ15*#REF! ->  | CC15: hrs/MH | CD15: MH/hrs | CF15: =T(#REF!) ->  | CG15: =#REF! ->  | CH15: $0.00
B16: Other Office Personnel 2 | T16: hrs | AE16: $0 | AJ16: $0 | AO16: $0 | AU16: $0 | AZ16: =SUM(#REF!) ->  | BA16: 0.0% | BE16: OFFICE PERSONNEL | BK16: $0 | BL16: $0 | BM16: =#REF! ->  | BN16: $0 | BP16: =AU16/#REF! ->  | BQ16: =AE16/#REF! ->  | BR16: =BQ16*#REF! ->  | BT16: =AJ16/#REF! ->  | BU16: =BT16*#REF! ->  | BW16: =#REF!/#REF! ->  | BX16: =BW16*#REF! ->  | BY16: =BX16+#REF! ->  | BZ16: =AO16/#REF! ->  | CA16: =BZ16*#REF! ->  | CC16: hrs/MH | CD16: MH/hrs | CF16: =T(#REF!) ->  | CG16: =#REF! ->  | CH16: $0.00
B17: Other Office Personnel 2 | T17: hrs | AE17: $0 | AJ17: $0 | AO17: $0 | AU17: $0 | AZ17: =SUM(#REF!) ->  | BA17: 0.0% | BE17: OFFICE PERSONNEL | BK17: $0 | BL17: $0 | BM17: =#REF! ->  | BN17: $0 | BP17: =AU17/#REF! ->  | BQ17: =AE17/#REF! ->  | BR17: =BQ17*#REF! ->  | BT17: =AJ17/#REF! ->  | BU17: =BT17*#REF! ->  | BW17: =#REF!/#REF! ->  | BX17: =BW17*#REF! ->  | BY17: =BX17+#REF! ->  | BZ17: =AO17/#REF! ->  | CA17: =BZ17*#REF! ->  | CC17: hrs/MH | CD17: MH/hrs | CF17: =T(#REF!) ->  | CG17: =#REF! ->  | CH17: $0.00
AE18: $0 | AJ18: $0 | AO18: $0 | AU18: $0 | AZ18: =SUM(#REF!) ->  | BA18: 0.0% | BE18: OFFICE PERSONNEL | BK18: $0 | BL18: $0 | BM18: =#REF! ->  | BN18: $0 | BP18: =AU18/#REF! ->  | BQ18: =AE18/#REF! ->  | BR18: =BQ18*#REF! ->  | BT18: =AJ18/#REF! ->  | BU18: =BT18*#REF! ->  | BW18: =#REF!/#REF! ->  | BX18: =BW18*#REF! ->  | BY18: =BX18+#REF! ->  | BZ18: =AO18/#REF! ->  | CA18: =BZ18*#REF! ->  | CC18: /MH | CD18: MH/ | CF18: =T(#REF!) ->  | CG18: =#REF! ->  | CH18: $0.00
AE19: $0 | AJ19: $0 | AO19: $0 | AU19: $0 | AZ19: =SUM(#REF!) ->  | BA19: 0.0% | BE19: OFFICE PERSONNEL | BK19: $0 | BL19: $0 | BM19: =#REF! ->  | BN19: $0 | BP19: =AU19/#REF! ->  | BQ19: =AE19/#REF! ->  | BR19: =BQ19*#REF! ->  | BT19: =AJ19/#REF! ->  | BU19: =BT19*#REF! ->  | BW19: =#REF!/#REF! ->  | BX19: =BW19*#REF! ->  | BY19: =BX19+#REF! ->  | BZ19: =AO19/#REF! ->  | CA19: =BZ19*#REF! ->  | CC19: /MH | CD19: MH/ | CF19: =T(#REF!) ->  | CG19: =#REF! ->  | CH19: $0.00
AE20: $0 | AJ20: $0 | AO20: $0 | AU20: $0 | AZ20: =SUM(#REF!) ->  | BA20: 0.0% | BE20: OFFICE PERSONNEL | BK20: $0 | BL20: $0 | BM20: =#REF! ->  | BN20: $0 | BP20: =AU20/#REF! ->  | BQ20: =AE20/#REF! ->  | BR20: =BQ20*#REF! ->  | BT20: =AJ20/#REF! ->  | BU20: =BT20*#REF! ->  | BW20: =#REF!/#REF! ->  | BX20: =BW20*#REF! ->  | BY20: =BX20+#REF! ->  | BZ20: =AO20/#REF! ->  | CA20: =BZ20*#REF! ->  | CC20: /MH | CD20: MH/ | CF20: =T(#REF!) ->  | CG20: =#REF! ->  | CH20: $0.00
AE21: $0 | AJ21: $0 | AO21: $0 | AU21: $0 | AZ21: =SUM(#REF!) ->  | BA21: 0.0% | BE21: OFFICE PERSONNEL | BK21: $0 | BL21: $0 | BM21: =#REF! ->  | BN21: $0 | BP21: =AU21/#REF! ->  | BQ21: =AE21/#REF! ->  | BR21: =BQ21*#REF! ->  | BT21: =AJ21/#REF! ->  | BU21: =BT21*#REF! ->  | BW21: =#REF!/#REF! ->  | BX21: =BW21*#REF! ->  | BY21: =BX21+#REF! ->  | BZ21: =AO21/#REF! ->  | CA21: =BZ21*#REF! ->  | CC21: /MH | CD21: MH/ | CF21: =T(#REF!) ->  | CG21: =#REF! ->  | CH21: $0.00
AE22: $0 | AJ22: $0 | AO22: $0 | AU22: $0 | AZ22: =SUM(#REF!) ->  | BA22: 0.0% | BE22: OFFICE PERSONNEL | BK22: $0 | BL22: $0 | BM22: =#REF! ->  | BN22: $0 | BP22: =AU22/#REF! ->  | BQ22: =AE22/#REF! ->  | BR22: =BQ22*#REF! ->  | BT22: =AJ22/#REF! ->  | BU22: =BT22*#REF! ->  | BW22: =#REF!/#REF! ->  | BX22: =BW22*#REF! ->  | BY22: =BX22+#REF! ->  | BZ22: =AO22/#REF! ->  | CA22: =BZ22*#REF! ->  | CC22: /MH | CD22: MH/ | CF22: =T(#REF!) ->  | CG22: =#REF! ->  | CH22: $0.00
BE23: OFFICE PERSONNEL | BK23: =BK7 -> $4,160 | BL23: =BL7 -> 0 | BM23: =BM7 ->  | BN23: =BN7 -> 0 | BO23: =BO7 ->  | BP23: =AU23/TOTAL_REMODEL_ESTIMATE ->  | BQ23: =#REF!/TOTAL_REMODEL_ESTIMATE ->  | BR23: =#REF!/TOTAL_REMODEL_ESTIMATE ->  | BS23: =#REF!/TOTAL_REMODEL_ESTIMATE ->  | BT23: =#REF!/TOTAL_REMODEL_ESTIMATE ->  | BU23: =#REF!/TOTAL_REMODEL_ESTIMATE ->  | BV23: =#REF!/TOTAL_REMODEL_ESTIMATE ->  | BW23: =#REF!/TOTAL_REMODEL_ESTIMATE ->  | BX23: =#REF!/TOTAL_REMODEL_ESTIMATE ->  | BY23: =#REF!/TOTAL_REMODEL_ESTIMATE ->  | BZ23: =#REF!/TOTAL_REMODEL_ESTIMATE ->  | CA23: =#REF!/TOTAL_REMODEL_ESTIMATE ->  | CB23: =#REF!/TOTAL_REMODEL_ESTIMATE ->  | CC23: =#REF!/TOTAL_REMODEL_ESTIMATE ->  | CD23: =#REF!/TOTAL_REMODEL_ESTIMATE -> 
B24: =T(CONCATENATE(B7," ","TOTAL")) -> OFFICE PERSONNEL TOTAL | AE24: =SUBTOTAL(9,AE7:AI23) -> $4,160 | AJ24: =SUBTOTAL(9,AJ7:AN23) -> $0 | AO24: =SUBTOTAL(9,AO7:AS22) -> $0 | AU24: =SUBTOTAL(9,AU7:AY23) -> $4,160 | BA24: =SUBTOTAL(9,BA7:BA23) -> 5.0% | BE24: OFFICE PERSONNEL | BK24: =BK7 -> $4,160 | BL24: 0 | BN24: 0
BE25: OFFICE PERSONNEL | BK25: =BK7 -> $4,160 | BL25: =BL7 -> $0 | BM25: =BM7 ->  | BN25: =BN7 -> $0 | BO25: =BO7 ->  | BP25: =AU25/TOTAL_REMODEL_ESTIMATE ->  | BQ25: =#REF!/TOTAL_REMODEL_ESTIMATE ->  | BR25: =#REF!/TOTAL_REMODEL_ESTIMATE ->  | BS25: =#REF!/TOTAL_REMODEL_ESTIMATE ->  | BT25: =#REF!/TOTAL_REMODEL_ESTIMATE ->  | BU25: =#REF!/TOTAL_REMODEL_ESTIMATE ->  | BV25: =#REF!/TOTAL_REMODEL_ESTIMATE ->  | BW25: =#REF!/TOTAL_REMODEL_ESTIMATE ->  | BX25: =#REF!/TOTAL_REMODEL_ESTIMATE ->  | BY25: =#REF!/TOTAL_REMODEL_ESTIMATE ->  | BZ25: =#REF!/TOTAL_REMODEL_ESTIMATE ->  | CA25: =#REF!/TOTAL_REMODEL_ESTIMATE ->  | CB25: =#REF!/TOTAL_REMODEL_ESTIMATE ->  | CC25: =#REF!/TOTAL_REMODEL_ESTIMATE ->  | CD25: =#REF!/TOTAL_REMODEL_ESTIMATE -> 
A26: Hidden | B26: FIELD PERSONNEL | BE26: =$B$26 -> FIELD PERSONNEL | BK26: =SUM(BK27:BK41) -> $800 | BL26: $0 | BN26: $0 | CC26: =CONCATENATE(T26,"/", "MH") -> /MH | CD26: =CONCATENATE("MH","/",T26) -> MH/
B27: Superintendent 1 | T27: hrs | AE27: =V27*Q27 -> $0 | AJ27: =Q27*Y27 -> $0 | AO27: =Q27*AB27 -> $0 | AU27: =AE27+AJ27+AO27 -> $0 | AZ27: =SUM(#REF!) ->  | BA27: =IFERROR(AU27/Total_Detailed_Estimate,0) -> 0.0% | BE27: FIELD PERSONNEL | BK27: =AE27 -> $0 | BL27: =AJ27 -> $0 | BM27: =#REF! ->  | BN27: =AO27 -> $0 | BO27: =SUM(BK27:BN27) ->  | BP27: =AU27/#REF! ->  | BQ27: =AE27/#REF! ->  | BR27: =BQ27*#REF! ->  | BS27: =BR27+AE27 ->  | BT27: =AJ27/#REF! ->  | BU27: =BT27*#REF! ->  | BV27: =BU27+AJ27 ->  | BW27: =#REF!/#REF! ->  | BX27: =BW27*#REF! ->  | BY27: =BX27+#REF! ->  | BZ27: =AO27/#REF! ->  | CA27: =BZ27*#REF! ->  | CB27: =CA27+AO27 ->  | CC27: hrs/MH | CD27: MH/hrs | CF27: =T(#REF!) ->  | CG27: =#REF! ->  | CH27: =AE27 -> $0.00
B28: Superintendent 2 | Q28: 16 | T28: hrs | V28: $50.00 | AE28: $800 | AJ28: $0 | AO28: =Q28*AB28 -> $0 | AU28: $800 | AZ28: =SUM(#REF!) ->  | BA28: 1.0% | BE28: FIELD PERSONNEL | BK28: $800 | BL28: $0 | BM28: =#REF! ->  | BN28: $0 | BP28: =AU28/#REF! ->  | BQ28: =AE28/#REF! ->  | BR28: =BQ28*#REF! ->  | BT28: =AJ28/#REF! ->  | BU28: =BT28*#REF! ->  | BW28: =#REF!/#REF! ->  | BX28: =BW28*#REF! ->  | BY28: =BX28+#REF! ->  | BZ28: =AO28/#REF! ->  | CA28: =BZ28*#REF! ->  | CC28: hrs/MH | CD28: MH/hrs | CF28: =T(#REF!) ->  | CG28: =#REF! ->  | CH28: $800.00
B29: Superintendent 3 | T29: hrs | AE29: $0 | AJ29: $0 | AO29: $0 | AU29: $0 | AZ29: =SUM(#REF!) ->  | BA29: 0.0% | BE29: FIELD PERSONNEL | BK29: $0 | BL29: $0 | BM29: =#REF! ->  | BN29: $0 | BP29: =AU29/#REF! ->  | BQ29: =AE29/#REF! ->  | BR29: =BQ29*#REF! ->  | BT29: =AJ29/#REF! ->  | BU29: =BT29*#REF! ->  | BW29: =#REF!/#REF! ->  | BX29: =BW29*#REF! ->  | BY29: =BX29+#REF! ->  | BZ29: =AO29/#REF! ->  | CA29: =BZ29*#REF! ->  | CC29: hrs/MH | CD29: MH/hrs | CF29: =T(#REF!) ->  | CG29: =#REF! ->  | CH29: $0.00
B30: Field Project Engineer | T30: hrs | AE30: $0 | AJ30: $0 | AO30: $0 | AU30: $0 | AZ30: =SUM(#REF!) ->  | BA30: 0.0% | BE30: FIELD PERSONNEL | BK30: $0 | BL30: $0 | BM30: =#REF! ->  | BN30: $0 | BP30: =AU30/#REF! ->  | BQ30: =AE30/#REF! ->  | BR30: =BQ30*#REF! ->  | BT30: =AJ30/#REF! ->  | BU30: =BT30*#REF! ->  | BW30: =#REF!/#REF! ->  | BX30: =BW30*#REF! ->  | BY30: =BX30+#REF! ->  | BZ30: =AO30/#REF! ->  | CA30: =BZ30*#REF! ->  | CC30: hrs/MH | CD30: MH/hrs | CF30: =T(#REF!) ->  | CG30: =#REF! ->  | CH30: $0.00
B31: Foreman | T31: hrs | AE31: $0 | AJ31: $0 | AO31: $0 | AU31: $0 | AZ31: =SUM(#REF!) ->  | BA31: 0.0% | BE31: FIELD PERSONNEL | BK31: $0 | BL31: $0 | BM31: =#REF! ->  | BN31: $0 | BP31: =AU31/#REF! ->  | BQ31: =AE31/#REF! ->  | BR31: =BQ31*#REF! ->  | BT31: =AJ31/#REF! ->  | BU31: =BT31*#REF! ->  | BW31: =#REF!/#REF! ->  | BX31: =BW31*#REF! ->  | BY31: =BX31+#REF! ->  | BZ31: =AO31/#REF! ->  | CA31: =BZ31*#REF! ->  | CC31: hrs/MH | CD31: MH/hrs | CF31: =T(#REF!) ->  | CG31: =#REF! ->  | CH31: $0.00
B32: Apprentice | T32: hrs | AE32: $0 | AJ32: $0 | AO32: $0 | AU32: $0 | AZ32: =SUM(#REF!) ->  | BA32: 0.0% | BE32: FIELD PERSONNEL | BK32: $0 | BL32: $0 | BM32: =#REF! ->  | BN32: $0 | BP32: =AU32/#REF! ->  | BQ32: =AE32/#REF! ->  | BR32: =BQ32*#REF! ->  | BT32: =AJ32/#REF! ->  | BU32: =BT32*#REF! ->  | BW32: =#REF!/#REF! ->  | BX32: =BW32*#REF! ->  | BY32: =BX32+#REF! ->  | BZ32: =AO32/#REF! ->  | CA32: =BZ32*#REF! ->  | CC32: hrs/MH | CD32: MH/hrs | CF32: =T(#REF!) ->  | CG32: =#REF! ->  | CH32: $0.00
B33: Other Field Personnel 1 | T33: hrs | AE33: $0 | AJ33: $0 | AO33: $0 | AU33: $0 | AZ33: =SUM(#REF!) ->  | BA33: 0.0% | BE33: FIELD PERSONNEL | BK33: $0 | BL33: $0 | BM33: =#REF! ->  | BN33: $0 | BP33: =AU33/#REF! ->  | BQ33: =AE33/#REF! ->  | BR33: =BQ33*#REF! ->  | BT33: =AJ33/#REF! ->  | BU33: =BT33*#REF! ->  | BW33: =#REF!/#REF! ->  | BX33: =BW33*#REF! ->  | BY33: =BX33+#REF! ->  | BZ33: =AO33/#REF! ->  | CA33: =BZ33*#REF! ->  | CC33: hrs/MH | CD33: MH/hrs | CF33: =T(#REF!) ->  | CG33: =#REF! ->  | CH33: $0.00
B34: Other Field Personnel 2 | T34: hrs | AE34: $0 | AJ34: $0 | AO34: $0 | AU34: $0 | AZ34: =SUM(#REF!) ->  | BA34: 0.0% | BE34: FIELD PERSONNEL | BK34: $0 | BL34: $0 | BM34: =#REF! ->  | BN34: $0 | BP34: =AU34/#REF! ->  | BQ34: =AE34/#REF! ->  | BR34: =BQ34*#REF! ->  | BT34: =AJ34/#REF! ->  | BU34: =BT34*#REF! ->  | BW34: =#REF!/#REF! ->  | BX34: =BW34*#REF! ->  | BY34: =BX34+#REF! ->  | BZ34: =AO34/#REF! ->  | CA34: =BZ34*#REF! ->  | CC34: hrs/MH | CD34: MH/hrs | CF34: =T(#REF!) ->  | CG34: =#REF! ->  | CH34: $0.00
B35: Other Field Personnel 3 | T35: hrs | AE35: $0 | AJ35: $0 | AO35: $0 | AU35: $0 | AZ35: =SUM(#REF!) ->  | BA35: 0.0% | BE35: FIELD PERSONNEL | BK35: $0 | BL35: $0 | BM35: =#REF! ->  | BN35: $0 | BP35: =AU35/#REF! ->  | BQ35: =AE35/#REF! ->  | BR35: =BQ35*#REF! ->  | BT35: =AJ35/#REF! ->  | BU35: =BT35*#REF! ->  | BW35: =#REF!/#REF! ->  | BX35: =BW35*#REF! ->  | BY35: =BX35+#REF! ->  | BZ35: =AO35/#REF! ->  | CA35: =BZ35*#REF! ->  | CC35: hrs/MH | CD35: MH/hrs | CF35: =T(#REF!) ->  | CG35: =#REF! ->  | CH35: $0.00
AE36: $0 | AJ36: $0 | AO36: $0 | AU36: $0 | AZ36: =SUM(#REF!) ->  | BA36: 0.0% | BE36: FIELD PERSONNEL | BK36: $0 | BL36: $0 | BM36: =#REF! ->  | BN36: $0 | BP36: =AU36/#REF! ->  | BQ36: =AE36/#REF! ->  | BR36: =BQ36*#REF! ->  | BT36: =AJ36/#REF! ->  | BU36: =BT36*#REF! ->  | BW36: =#REF!/#REF! ->  | BX36: =BW36*#REF! ->  | BY36: =BX36+#REF! ->  | BZ36: =AO36/#REF! ->  | CA36: =BZ36*#REF! ->  | CC36: /MH | CD36: MH/ | CF36: =T(#REF!) ->  | CG36: =#REF! ->  | CH36: $0.00
AE37: $0 | AJ37: $0 | AO37: $0 | AU37: $0 | AZ37: =SUM(#REF!) ->  | BA37: 0.0% | BE37: FIELD PERSONNEL | BK37: $0 | BL37: $0 | BM37: =#REF! ->  | BN37: $0 | BP37: =AU37/#REF! ->  | BQ37: =AE37/#REF! ->  | BR37: =BQ37*#REF! ->  | BT37: =AJ37/#REF! ->  | BU37: =BT37*#REF! ->  | BW37: =#REF!/#REF! ->  | BX37: =BW37*#REF! ->  | BY37: =BX37+#REF! ->  | BZ37: =AO37/#REF! ->  | CA37: =BZ37*#REF! ->  | CC37: /MH | CD37: MH/ | CF37: =T(#REF!) ->  | CG37: =#REF! ->  | CH37: $0.00
AE38: $0 | AJ38: $0 | AO38: $0 | AU38: $0 | AZ38: =SUM(#REF!) ->  | BA38: 0.0% | BE38: FIELD PERSONNEL | BK38: $0 | BL38: $0 | BM38: =#REF! ->  | BN38: $0 | BP38: =AU38/#REF! ->  | BQ38: =AE38/#REF! ->  | BR38: =BQ38*#REF! ->  | BT38: =AJ38/#REF! ->  | BU38: =BT38*#REF! ->  | BW38: =#REF!/#REF! ->  | BX38: =BW38*#REF! ->  | BY38: =BX38+#REF! ->  | BZ38: =AO38/#REF! ->  | CA38: =BZ38*#REF! ->  | CC38: /MH | CD38: MH/ | CF38: =T(#REF!) ->  | CG38: =#REF! ->  | CH38: $0.00
AE39: $0 | AJ39: $0 | AO39: $0 | AU39: $0 | AZ39: =SUM(#REF!) ->  | BA39: 0.0% | BE39: FIELD PERSONNEL | BK39: $0 | BL39: $0 | BM39: =#REF! ->  | BN39: $0 | BP39: =AU39/#REF! ->  | BQ39: =AE39/#REF! ->  | BR39: =BQ39*#REF! ->  | BT39: =AJ39/#REF! ->  | BU39: =BT39*#REF! ->  | BW39: =#REF!/#REF! ->  | BX39: =BW39*#REF! ->  | BY39: =BX39+#REF! ->  | BZ39: =AO39/#REF! ->  | CA39: =BZ39*#REF! ->  | CC39: /MH | CD39: MH/ | CF39: =T(#REF!) ->  | CG39: =#REF! ->  | CH39: $0.00
AE40: $0 | AJ40: $0 | AO40: $0 | AU40: $0 | AZ40: =SUM(#REF!) ->  | BA40: 0.0% | BE40: FIELD PERSONNEL | BK40: $0 | BL40: $0 | BM40: =#REF! ->  | BN40: $0 | BP40: =AU40/#REF! ->  | BQ40: =AE40/#REF! ->  | BR40: =BQ40*#REF! ->  | BT40: =AJ40/#REF! ->  | BU40: =BT40*#REF! ->  | BW40: =#REF!/#REF! ->  | BX40: =BW40*#REF! ->  | BY40: =BX40+#REF! ->  | BZ40: =AO40/#REF! ->  | CA40: =BZ40*#REF! ->  | CC40: /MH | CD40: MH/ | CF40: =T(#REF!) ->  | CG40: =#REF! ->  | CH40: $0.00
AE41: $0 | AJ41: $0 | AO41: $0 | AU41: $0 | AZ41: =SUM(#REF!) ->  | BA41: 0.0% | BE41: FIELD PERSONNEL | BK41: $0 | BL41: $0 | BM41: =#REF! ->  | BN41: $0 | BP41: =AU41/#REF! ->  | BQ41: =AE41/#REF! ->  | BR41: =BQ41*#REF! ->  | BT41: =AJ41/#REF! ->  | BU41: =BT41*#REF! ->  | BW41: =#REF!/#REF! ->  | BX41: =BW41*#REF! ->  | BY41: =BX41+#REF! ->  | BZ41: =AO41/#REF! ->  | CA41: =BZ41*#REF! ->  | CC41: /MH | CD41: MH/ | CF41: =T(#REF!) ->  | CG41: =#REF! ->  | CH41: $0.00
BE42: FIELD PERSONNEL | BK42: =BK26 -> $800 | BL42: =BL26 -> 0 | BM42: =BM26 ->  | BN42: =BN26 -> 0 | BO42: =BO26 ->  | BP42: =AU42/TOTAL_REMODEL_ESTIMATE ->  | BQ42: =#REF!/TOTAL_REMODEL_ESTIMATE ->  | BR42: =#REF!/TOTAL_REMODEL_ESTIMATE ->  | BS42: =#REF!/TOTAL_REMODEL_ESTIMATE ->  | BT42: =#REF!/TOTAL_REMODEL_ESTIMATE ->  | BU42: =#REF!/TOTAL_REMODEL_ESTIMATE ->  | BV42: =#REF!/TOTAL_REMODEL_ESTIMATE ->  | BW42: =#REF!/TOTAL_REMODEL_ESTIMATE ->  | BX42: =#REF!/TOTAL_REMODEL_ESTIMATE ->  | BY42: =#REF!/TOTAL_REMODEL_ESTIMATE ->  | BZ42: =#REF!/TOTAL_REMODEL_ESTIMATE ->  | CA42: =#REF!/TOTAL_REMODEL_ESTIMATE ->  | CB42: =#REF!/TOTAL_REMODEL_ESTIMATE ->  | CC42: =#REF!/TOTAL_REMODEL_ESTIMATE ->  | CD42: =#REF!/TOTAL_REMODEL_ESTIMATE -> 
B43: =T(CONCATENATE(B26," ","TOTAL")) -> FIELD PERSONNEL TOTAL | AE43: =SUBTOTAL(9,AE27:AE42) -> $800 | AJ43: =SUBTOTAL(9,AJ26:AN42) -> $0 | AO43: =SUBTOTAL(9,AO26:AS41) -> $0 | AU43: =SUBTOTAL(9,AU26:AY42) -> $800 | BA43: =SUBTOTAL(9,BA26:BA42) -> 1.0% | BE43: FIELD PERSONNEL | BK43: =BK26 -> $800 | BL43: 0 | BN43: 0
BE44: FIELD PERSONNEL | BK44: =BK26 -> $800 | BL44: =BL26 -> $0 | BM44: =BM26 ->  | BN44: =BN26 -> $0 | BO44: =BO26 ->  | BP44: =AU44/TOTAL_REMODEL_ESTIMATE ->  | BQ44: =#REF!/TOTAL_REMODEL_ESTIMATE ->  | BR44: =#REF!/TOTAL_REMODEL_ESTIMATE ->  | BS44: =#REF!/TOTAL_REMODEL_ESTIMATE ->  | BT44: =#REF!/TOTAL_REMODEL_ESTIMATE ->  | BU44: =#REF!/TOTAL_REMODEL_ESTIMATE ->  | BV44: =#REF!/TOTAL_REMODEL_ESTIMATE ->  | BW44: =#REF!/TOTAL_REMODEL_ESTIMATE ->  | BX44: =#REF!/TOTAL_REMODEL_ESTIMATE ->  | BY44: =#REF!/TOTAL_REMODEL_ESTIMATE ->  | BZ44: =#REF!/TOTAL_REMODEL_ESTIMATE ->  | CA44: =#REF!/TOTAL_REMODEL_ESTIMATE ->  | CB44: =#REF!/TOTAL_REMODEL_ESTIMATE ->  | CC44: =#REF!/TOTAL_REMODEL_ESTIMATE ->  | CD44: =#REF!/TOTAL_REMODEL_ESTIMATE -> 
A45: Hidden | B45: TEMPORARY UTILITIES | BE45: =$B$45 -> TEMPORARY UTILITIES | BK45: =SUM(BK46:BK60) -> $0 | BL45: $0 | BN45: $0 | CC45: =CONCATENATE(T45,"/", "MH") -> /MH | CD45: =CONCATENATE("MH","/",T45) -> MH/
B46: Temporary Electrical Usage | T46: months | U46: ls | AE46: =V46*Q46 -> $0 | AJ46: =Q46*Y46 -> $0 | AO46: =Q46*AB46 -> $0 | AU46: =AE46+AJ46+AO46 -> $0 | AZ46: =SUM(#REF!) ->  | BA46: =IFERROR(AU46/Total_Detailed_Estimate,0) -> 0.0% | BC46: Average cost for electricity for one month | BE46: TEMPORARY UTILITIES | BK46: =AE46 -> $0 | BL46: =AJ46 -> $0 | BM46: =#REF! ->  | BN46: =AO46 -> $0 | BO46: =SUM(BK46:BN46) ->  | BP46: =AU46/#REF! ->  | BQ46: =AE46/#REF! ->  | BR46: =BQ46*#REF! ->  | BS46: =BR46+AE46 ->  | BT46: =AJ46/#REF! ->  | BU46: =BT46*#REF! ->  | BV46: =BU46+AJ46 ->  | BW46: =#REF!/#REF! ->  | BX46: =BW46*#REF! ->  | BY46: =BX46+#REF! ->  | BZ46: =AO46/#REF! ->  | CA46: =BZ46*#REF! ->  | CB46: =CA46+AO46 ->  | CC46: months/MH | CD46: MH/months | CF46: =T(#REF!) ->  | CG46: =#REF! ->  | CH46: =AE46 -> $0.00
B47: Temporary Gas | T47: months | U47: ls | AE47: $0 | AJ47: $0 | AO47: =Q47*AB47 -> $0 | AU47: $0 | AZ47: =SUM(#REF!) ->  | BA47: 0.0% | BC47: Average cost for gas for one month | BE47: TEMPORARY UTILITIES | BK47: $0 | BL47: $0 | BM47: =#REF! ->  | BN47: $0 | BP47: =AU47/#REF! ->  | BQ47: =AE47/#REF! ->  | BR47: =BQ47*#REF! ->  | BT47: =AJ47/#REF! ->  | BU47: =BT47*#REF! ->  | BW47: =#REF!/#REF! ->  | BX47: =BW47*#REF! ->  | BY47: =BX47+#REF! ->  | BZ47: =AO47/#REF! ->  | CA47: =BZ47*#REF! ->  | CC47: months/MH | CD47: MH/months | CF47: =T(#REF!) ->  | CG47: =#REF! ->  | CH47: $0.00
B48: Temporary Water | T48: months | U48: ls | AE48: $0 | AJ48: $0 | AO48: $0 | AU48: $0 | AZ48: =SUM(#REF!) ->  | BA48: 0.0% | BC48: Average cost for water for one month | BE48: TEMPORARY UTILITIES | BK48: $0 | BL48: $0 | BM48: =#REF! ->  | BN48: $0 | BP48: =AU48/#REF! ->  | BQ48: =AE48/#REF! ->  | BR48: =BQ48*#REF! ->  | BT48: =AJ48/#REF! ->  | BU48: =BT48*#REF! ->  | BW48: =#REF!/#REF! ->  | BX48: =BW48*#REF! ->  | BY48: =BX48+#REF! ->  | BZ48: =AO48/#REF! ->  | CA48: =BZ48*#REF! ->  | CC48: months/MH | CD48: MH/months | CF48: =T(#REF!) ->  | CG48: =#REF! ->  | CH48: $0.00
B49: Temporary Toilets | T49: months | U49: ls | AE49: $0 | AJ49: $0 | AO49: $0 | AU49: $0 | AZ49: =SUM(#REF!) ->  | BA49: 0.0% | BC49: Monthly rental cost for portable toilet | BE49: TEMPORARY UTILITIES | BK49: $0 | BL49: $0 | BM49: =#REF! ->  | BN49: $0 | BP49: =AU49/#REF! ->  | BQ49: =AE49/#REF! ->  | BR49: =BQ49*#REF! ->  | BT49: =AJ49/#REF! ->  | BU49: =BT49*#REF! ->  | BW49: =#REF!/#REF! ->  | BX49: =BW49*#REF! ->  | BY49: =BX49+#REF! ->  | BZ49: =AO49/#REF! ->  | CA49: =BZ49*#REF! ->  | CC49: months/MH | CD49: MH/months | CF49: =T(#REF!) ->  | CG49: =#REF! ->  | CH49: $0.00
B50: Temporary Lighting | T50: months | U50: ls | AE50: $0 | AJ50: $0 | AO50: $0 | AU50: $0 | AZ50: =SUM(#REF!) ->  | BA50: 0.0% | BC50: Average cost for temporary job site lighting rental | BE50: TEMPORARY UTILITIES | BK50: $0 | BL50: $0 | BM50: =#REF! ->  | BN50: $0 | BP50: =AU50/#REF! ->  | BQ50: =AE50/#REF! ->  | BR50: =BQ50*#REF! ->  | BT50: =AJ50/#REF! ->  | BU50: =BT50*#REF! ->  | BW50: =#REF!/#REF! ->  | BX50: =BW50*#REF! ->  | BY50: =BX50+#REF! ->  | BZ50: =AO50/#REF! ->  | CA50: =BZ50*#REF! ->  | CC50: months/MH | CD50: MH/months | CF50: =T(#REF!) ->  | CG50: =#REF! ->  | CH50: $0.00
B51: Temporary Heat | T51: months | U51: ls | AE51: $0 | AJ51: $0 | AO51: $0 | AU51: $0 | AZ51: =SUM(#REF!) ->  | BA51: 0.0% | BC51: Average cost for temporary heater rentals | BE51: TEMPORARY UTILITIES | BK51: $0 | BL51: $0 | BM51: =#REF! ->  | BN51: $0 | BP51: =AU51/#REF! ->  | BQ51: =AE51/#REF! ->  | BR51: =BQ51*#REF! ->  | BT51: =AJ51/#REF! ->  | BU51: =BT51*#REF! ->  | BW51: =#REF!/#REF! ->  | BX51: =BW51*#REF! ->  | BY51: =BX51+#REF! ->  | BZ51: =AO51/#REF! ->  | CA51: =BZ51*#REF! ->  | CC51: months/MH | CD51: MH/months | CF51: =T(#REF!) ->  | CG51: =#REF! ->  | CH51: $0.00
AE52: $0 | AJ52: $0 | AO52: $0 | AU52: $0 | AZ52: =SUM(#REF!) ->  | BA52: 0.0% | BE52: TEMPORARY UTILITIES | BK52: $0 | BL52: $0 | BM52: =#REF! ->  | BN52: $0 | BP52: =AU52/#REF! ->  | BQ52: =AE52/#REF! ->  | BR52: =BQ52*#REF! ->  | BT52: =AJ52/#REF! ->  | BU52: =BT52*#REF! ->  | BW52: =#REF!/#REF! ->  | BX52: =BW52*#REF! ->  | BY52: =BX52+#REF! ->  | BZ52: =AO52/#REF! ->  | CA52: =BZ52*#REF! ->  | CC52: /MH | CD52: MH/ | CF52: =T(#REF!) ->  | CG52: =#REF! ->  | CH52: $0.00
AE53: $0 | AJ53: $0 | AO53: $0 | AU53: $0 | AZ53: =SUM(#REF!) ->  | BA53: 0.0% | BE53: TEMPORARY UTILITIES | BK53: $0 | BL53: $0 | BM53: =#REF! ->  | BN53: $0 | BP53: =AU53/#REF! ->  | BQ53: =AE53/#REF! ->  | BR53: =BQ53*#REF! ->  | BT53: =AJ53/#REF! ->  | BU53: =BT53*#REF! ->  | BW53: =#REF!/#REF! ->  | BX53: =BW53*#REF! ->  | BY53: =BX53+#REF! ->  | BZ53: =AO53/#REF! ->  | CA53: =BZ53*#REF! ->  | CC53: /MH | CD53: MH/ | CF53: =T(#REF!) ->  | CG53: =#REF! ->  | CH53: $0.00
AE54: $0 | AJ54: $0 | AO54: $0 | AU54: $0 | AZ54: =SUM(#REF!) ->  | BA54: 0.0% | BE54: TEMPORARY UTILITIES | BK54: $0 | BL54: $0 | BM54: =#REF! ->  | BN54: $0 | BP54: =AU54/#REF! ->  | BQ54: =AE54/#REF! ->  | BR54: =BQ54*#REF! ->  | BT54: =AJ54/#REF! ->  | BU54: =BT54*#REF! ->  | BW54: =#REF!/#REF! ->  | BX54: =BW54*#REF! ->  | BY54: =BX54+#REF! ->  | BZ54: =AO54/#REF! ->  | CA54: =BZ54*#REF! ->  | CC54: /MH | CD54: MH/ | CF54: =T(#REF!) ->  | CG54: =#REF! ->  | CH54: $0.00
AE55: $0 | AJ55: $0 | AO55: $0 | AU55: $0 | AZ55: =SUM(#REF!) ->  | BA55: 0.0% | BE55: TEMPORARY UTILITIES | BK55: $0 | BL55: $0 | BM55: =#REF! ->  | BN55: $0 | BP55: =AU55/#REF! ->  | BQ55: =AE55/#REF! ->  | BR55: =BQ55*#REF! ->  | BT55: =AJ55/#REF! ->  | BU55: =BT55*#REF! ->  | BW55: =#REF!/#REF! ->  | BX55: =BW55*#REF! ->  | BY55: =BX55+#REF! ->  | BZ55: =AO55/#REF! ->  | CA55: =BZ55*#REF! ->  | CC55: /MH | CD55: MH/ | CF55: =T(#REF!) ->  | CG55: =#REF! ->  | CH55: $0.00
AE56: $0 | AJ56: $0 | AO56: $0 | AU56: $0 | AZ56: =SUM(#REF!) ->  | BA56: 0.0% | BE56: TEMPORARY UTILITIES | BK56: $0 | BL56: $0 | BM56: =#REF! ->  | BN56: $0 | BP56: =AU56/#REF! ->  | BQ56: =AE56/#REF! ->  | BR56: =BQ56*#REF! ->  | BT56: =AJ56/#REF! ->  | BU56: =BT56*#REF! ->  | BW56: =#REF!/#REF! ->  | BX56: =BW56*#REF! ->  | BY56: =BX56+#REF! ->  | BZ56: =AO56/#REF! ->  | CA56: =BZ56*#REF! ->  | CC56: /MH | CD56: MH/ | CF56: =T(#REF!) ->  | CG56: =#REF! ->  | CH56: $0.00
AE57: $0 | AJ57: $0 | AO57: $0 | AU57: $0 | AZ57: =SUM(#REF!) ->  | BA57: 0.0% | BE57: TEMPORARY UTILITIES | BK57: $0 | BL57: $0 | BM57: =#REF! ->  | BN57: $0 | BP57: =AU57/#REF! ->  | BQ57: =AE57/#REF! ->  | BR57: =BQ57*#REF! ->  | BT57: =AJ57/#REF! ->  | BU57: =BT57*#REF! ->  | BW57: =#REF!/#REF! ->  | BX57: =BW57*#REF! ->  | BY57: =BX57+#REF! ->  | BZ57: =AO57/#REF! ->  | CA57: =BZ57*#REF! ->  | CC57: /MH | CD57: MH/ | CF57: =T(#REF!) ->  | CG57: =#REF! ->  | CH57: $0.00
AE58: $0 | AJ58: $0 | AO58: $0 | AU58: $0 | AZ58: =SUM(#REF!) ->  | BA58: 0.0% | BE58: TEMPORARY UTILITIES | BK58: $0 | BL58: $0 | BM58: =#REF! ->  | BN58: $0 | BP58: =AU58/#REF! ->  | BQ58: =AE58/#REF! ->  | BR58: =BQ58*#REF! ->  | BT58: =AJ58/#REF! ->  | BU58: =BT58*#REF! ->  | BW58: =#REF!/#REF! ->  | BX58: =BW58*#REF! ->  | BY58: =BX58+#REF! ->  | BZ58: =AO58/#REF! ->  | CA58: =BZ58*#REF! ->  | CC58: /MH | CD58: MH/ | CF58: =T(#REF!) ->  | CG58: =#REF! ->  | CH58: $0.00
AE59: $0 | AJ59: $0 | AO59: $0 | AU59: $0 | AZ59: =SUM(#REF!) ->  | BA59: 0.0% | BE59: TEMPORARY UTILITIES | BK59: $0 | BL59: $0 | BM59: =#REF! ->  | BN59: $0 | BP59: =AU59/#REF! ->  | BQ59: =AE59/#REF! ->  | BR59: =BQ59*#REF! ->  | BT59: =AJ59/#REF! ->  | BU59: =BT59*#REF! ->  | BW59: =#REF!/#REF! ->  | BX59: =BW59*#REF! ->  | BY59: =BX59+#REF! ->  | BZ59: =AO59/#REF! ->  | CA59: =BZ59*#REF! ->  | CC59: /MH | CD59: MH/ | CF59: =T(#REF!) ->  | CG59: =#REF! ->  | CH59: $0.00
AE60: $0 | AJ60: $0 | AO60: $0 | AU60: $0 | AZ60: =SUM(#REF!) ->  | BA60: 0.0% | BE60: TEMPORARY UTILITIES | BK60: $0 | BL60: $0 | BM60: =#REF! ->  | BN60: $0 | BP60: =AU60/#REF! ->  | BQ60: =AE60/#REF! ->  | BR60: =BQ60*#REF! ->  | BT60: =AJ60/#REF! ->  | BU60: =BT60*#REF! ->  | BW60: =#REF!/#REF! ->  | BX60: =BW60*#REF! ->  | BY60: =BX60+#REF! ->  | BZ60: =AO60/#REF! ->  | CA60: =BZ60*#REF! ->  | CC60: /MH | CD60: MH/ | CF60: =T(#REF!) ->  | CG60: =#REF! ->  | CH60: $0.00
BE61: TEMPORARY UTILITIES | BK61: =BK45 -> 0 | BL61: =BL45 -> 0 | BM61: =BM45 ->  | BN61: =BN45 -> 0 | BO61: =BO45 ->  | BP61: =AU61/TOTAL_REMODEL_ESTIMATE ->  | BQ61: =#REF!/TOTAL_REMODEL_ESTIMATE ->  | BR61: =#REF!/TOTAL_REMODEL_ESTIMATE ->  | BS61: =#REF!/TOTAL_REMODEL_ESTIMATE ->  | BT61: =#REF!/TOTAL_REMODEL_ESTIMATE ->  | BU61: =#REF!/TOTAL_REMODEL_ESTIMATE ->  | BV61: =#REF!/TOTAL_REMODEL_ESTIMATE ->  | BW61: =#REF!/TOTAL_REMODEL_ESTIMATE ->  | BX61: =#REF!/TOTAL_REMODEL_ESTIMATE ->  | BY61: =#REF!/TOTAL_REMODEL_ESTIMATE ->  | BZ61: =#REF!/TOTAL_REMODEL_ESTIMATE ->  | CA61: =#REF!/TOTAL_REMODEL_ESTIMATE ->  | CB61: =#REF!/TOTAL_REMODEL_ESTIMATE ->  | CC61: =#REF!/TOTAL_REMODEL_ESTIMATE ->  | CD61: =#REF!/TOTAL_REMODEL_ESTIMATE -> 
B62: =T(CONCATENATE(B45," ","TOTAL")) -> TEMPORARY UTILITIES TOTAL | AE62: =SUBTOTAL(9,AE46:AE61) -> $0 | AJ62: =SUBTOTAL(9,AJ45:AN61) -> $0 | AO62: =SUBTOTAL(9,AO45:AS60) -> $0 | AU62: =SUBTOTAL(9,AU45:AY61) -> $0 | BA62: =SUBTOTAL(9,BA45:BA61) -> 0.0% | BE62: TEMPORARY UTILITIES | BK62: =BK45 -> 0 | BL62: 0 | BN62: 0
BE63: TEMPORARY UTILITIES | BK63: =BK45 -> $0 | BL63: =BL45 -> $0 | BM63: =BM45 ->  | BN63: =BN45 -> $0 | BO63: =BO45 ->  | BP63: =AU63/TOTAL_REMODEL_ESTIMATE ->  | BQ63: =#REF!/TOTAL_REMODEL_ESTIMATE ->  | BR63: =#REF!/TOTAL_REMODEL_ESTIMATE ->  | BS63: =#REF!/TOTAL_REMODEL_ESTIMATE ->  | BT63: =#REF!/TOTAL_REMODEL_ESTIMATE ->  | BU63: =#REF!/TOTAL_REMODEL_ESTIMATE ->  | BV63: =#REF!/TOTAL_REMODEL_ESTIMATE ->  | BW63: =#REF!/TOTAL_REMODEL_ESTIMATE ->  | BX63: =#REF!/TOTAL_REMODEL_ESTIMATE ->  | BY63: =#REF!/TOTAL_REMODEL_ESTIMATE ->  | BZ63: =#REF!/TOTAL_REMODEL_ESTIMATE ->  | CA63: =#REF!/TOTAL_REMODEL_ESTIMATE ->  | CB63: =#REF!/TOTAL_REMODEL_ESTIMATE ->  | CC63: =#REF!/TOTAL_REMODEL_ESTIMATE ->  | CD63: =#REF!/TOTAL_REMODEL_ESTIMATE -> 
A64: Hidden | B64: TEMPORARY PROJECT REQUIREMENTS | BE64: =$B$64 -> TEMPORARY PROJECT REQUIREMENTS | BK64: =SUM(BK65:BK79) -> $0 | BL64: $0 | BN64: $0 | CC64: =CONCATENATE(T64,"/", "MH") -> /MH | CD64: =CONCATENATE("MH","/",T64) -> MH/
B65: Office trailer, place & remove | C65: Office trailer, place & remove | D65: Office trailer, place & remove | E65: Office trailer, place & remove | F65: Office trailer, place & remove | G65: Office trailer, place & remove | H65: Office trailer, place & remove | J65: Office trailer, place & remove | K65: Office trailer, place & remove | L65: Office trailer, place & remove | M65: Office trailer, place & remove | N65: Office trailer, place & remove | O65: Office trailer, place & remove | P65: Office trailer, place & remove | T65: ea | U65: ls | AE65: =V65*Q65 -> $0 | AJ65: =Q65*Y65 -> $0 | AO65: =Q65*AB65 -> $0 | AU65: =AE65+AJ65+AO65 -> $0 | AZ65: =SUM(#REF!) ->  | BA65: =IFERROR(AU65/Total_Detailed_Estimate,0) -> 0.0% | BC65: Cost to deliver, place and remove office trailer | BE65: TEMPORARY PROJECT REQUIREMENTS | BK65: =AE65 -> $0 | BL65: =AJ65 -> $0 | BM65: =#REF! ->  | BN65: =AO65 -> $0 | BO65: =SUM(BK65:BN65) ->  | BP65: =AU65/#REF! ->  | BQ65: =AE65/#REF! ->  | BR65: =BQ65*#REF! ->  | BS65: =BR65+AE65 ->  | BT65: =AJ65/#REF! ->  | BU65: =BT65*#REF! ->  | BV65: =BU65+AJ65 ->  | BW65: =#REF!/#REF! ->  | BX65: =BW65*#REF! ->  | BY65: =BX65+#REF! ->  | BZ65: =AO65/#REF! ->  | CA65: =BZ65*#REF! ->  | CB65: =CA65+AO65 ->  | CC65: ea/MH | CD65: MH/ea | CF65: =T(#REF!) ->  | CG65: =#REF! ->  | CH65: =AE65 -> $0.00
B66: Office trailer rental | C66: Office trailer rental | D66: Office trailer rental | E66: Office trailer rental | F66: Office trailer rental | G66: Office trailer rental | H66: Office trailer rental | J66: Office trailer rental | K66: Office trailer rental | L66: Office trailer rental | M66: Office trailer rental | N66: Office trailer rental | O66: Office trailer rental | P66: Office trailer rental | T66: months | AE66: $0 | AJ66: $0 | AO66: =Q66*AB66 -> $0 | AU66: $0 | AZ66: =SUM(#REF!) ->  | BA66: 0.0% | BE66: TEMPORARY PROJECT REQUIREMENTS | BK66: $0 | BL66: $0 | BM66: =#REF! ->  | BN66: $0 | BP66: =AU66/#REF! ->  | BQ66: =AE66/#REF! ->  | BR66: =BQ66*#REF! ->  | BT66: =AJ66/#REF! ->  | BU66: =BT66*#REF! ->  | BW66: =#REF!/#REF! ->  | BX66: =BW66*#REF! ->  | BY66: =BX66+#REF! ->  | BZ66: =AO66/#REF! ->  | CA66: =BZ66*#REF! ->  | CC66: months/MH | CD66: MH/months | CF66: =T(#REF!) ->  | CG66: =#REF! ->  | CH66: $0.00
B67: Storage container, place & remove | C67: Storage container, place & remove | D67: Storage container, place & remove | E67: Storage container, place & remove | F67: Storage container, place & remove | G67: Storage container, place & remove | H67: Storage container, place & remove | J67: Storage container, place & remove | K67: Storage container, place & remove | L67: Storage container, place & remove | M67: Storage container, place & remove | N67: Storage container, place & remove | O67: Storage container, place & remove | P67: Storage container, place & remove | T67: ea | AE67: $0 | AJ67: $0 | AO67: $0 | AU67: $0 | AZ67: =SUM(#REF!) ->  | BA67: 0.0% | BC67: Cost to deliver, place and remove storage unit | BE67: TEMPORARY PROJECT REQUIREMENTS | BK67: $0 | BL67: $0 | BM67: =#REF! ->  | BN67: $0 | BP67: =AU67/#REF! ->  | BQ67: =AE67/#REF! ->  | BR67: =BQ67*#REF! ->  | BT67: =AJ67/#REF! ->  | BU67: =BT67*#REF! ->  | BW67: =#REF!/#REF! ->  | BX67: =BW67*#REF! ->  | BY67: =BX67+#REF! ->  | BZ67: =AO67/#REF! ->  | CA67: =BZ67*#REF! ->  | CC67: ea/MH | CD67: MH/ea | CF67: =T(#REF!) ->  | CG67: =#REF! ->  | CH67: $0.00
B68: Storage container rental | C68: Storage container rental | D68: Storage container rental | E68: Storage container rental | F68: Storage container rental | G68: Storage container rental | H68: Storage container rental | J68: Storage container rental | K68: Storage container rental | L68: Storage container rental | M68: Storage container rental | N68: Storage container rental | O68: Storage container rental | P68: Storage container rental | T68: months | AE68: $0 | AJ68: $0 | AO68: $0 | AU68: $0 | AZ68: =SUM(#REF!) ->  | BA68: 0.0% | BE68: TEMPORARY PROJECT REQUIREMENTS | BK68: $0 | BL68: $0 | BM68: =#REF! ->  | BN68: $0 | BP68: =AU68/#REF! ->  | BQ68: =AE68/#REF! ->  | BR68: =BQ68*#REF! ->  | BT68: =AJ68/#REF! ->  | BU68: =BT68*#REF! ->  | BW68: =#REF!/#REF! ->  | BX68: =BW68*#REF! ->  | BY68: =BX68+#REF! ->  | BZ68: =AO68/#REF! ->  | CA68: =BZ68*#REF! ->  | CC68: months/MH | CD68: MH/months | CF68: =T(#REF!) ->  | CG68: =#REF! ->  | CH68: $0.00
B69: Scaffolding, place & remove | C69: Scaffolding, place & remove | D69: Scaffolding, place & remove | E69: Scaffolding, place & remove | F69: Scaffolding, place & remove | G69: Scaffolding, place & remove | H69: Scaffolding, place & remove | J69: Scaffolding, place & remove | K69: Scaffolding, place & remove | L69: Scaffolding, place & remove | M69: Scaffolding, place & remove | N69: Scaffolding, place & remove | O69: Scaffolding, place & remove | P69: Scaffolding, place & remove | T69: months | AE69: $0 | AJ69: $0 | AO69: $0 | AU69: $0 | AZ69: =SUM(#REF!) ->  | BA69: 0.0% | BE69: TEMPORARY PROJECT REQUIREMENTS | BK69: $0 | BL69: $0 | BM69: =#REF! ->  | BN69: $0 | BP69: =AU69/#REF! ->  | BQ69: =AE69/#REF! ->  | BR69: =BQ69*#REF! ->  | BT69: =AJ69/#REF! ->  | BU69: =BT69*#REF! ->  | BW69: =#REF!/#REF! ->  | BX69: =BW69*#REF! ->  | BY69: =BX69+#REF! ->  | BZ69: =AO69/#REF! ->  | CA69: =BZ69*#REF! ->  | CC69: months/MH | CD69: MH/months | CF69: =T(#REF!) ->  | CG69: =#REF! ->  | CH69: $0.00
B70: Scaffolding rental | C70: Scaffolding rental | D70: Scaffolding rental | E70: Scaffolding rental | F70: Scaffolding rental | G70: Scaffolding rental | H70: Scaffolding rental | J70: Scaffolding rental | K70: Scaffolding rental | L70: Scaffolding rental | M70: Scaffolding rental | N70: Scaffolding rental | O70: Scaffolding rental | P70: Scaffolding rental | T70: months | AE70: $0 | AJ70: $0 | AO70: $0 | AU70: $0 | AZ70: =SUM(#REF!) ->  | BA70: 0.0% | BE70: TEMPORARY PROJECT REQUIREMENTS | BK70: $0 | BL70: $0 | BM70: =#REF! ->  | BN70: $0 | BP70: =AU70/#REF! ->  | BQ70: =AE70/#REF! ->  | BR70: =BQ70*#REF! ->  | BT70: =AJ70/#REF! ->  | BU70: =BT70*#REF! ->  | BW70: =#REF!/#REF! ->  | BX70: =BW70*#REF! ->  | BY70: =BX70+#REF! ->  | BZ70: =AO70/#REF! ->  | CA70: =BZ70*#REF! ->  | CC70: months/MH | CD70: MH/months | CF70: =T(#REF!) ->  | CG70: =#REF! ->  | CH70: $0.00
B71: Temporary Fencing | C71: Temporary Fencing | D71: Temporary Fencing | E71: Temporary Fencing | F71: Temporary Fencing | G71: Temporary Fencing | H71: Temporary Fencing | J71: Temporary Fencing | K71: Temporary Fencing | L71: Temporary Fencing | M71: Temporary Fencing | N71: Temporary Fencing | O71: Temporary Fencing | P71: Temporary Fencing | T71: lf | AE71: $0 | AJ71: $0 | AO71: $0 | AU71: $0 | AZ71: =SUM(#REF!) ->  | BA71: 0.0% | BC71: Cost to install temporary job site fencing | BE71: TEMPORARY PROJECT REQUIREMENTS | BK71: $0 | BL71: $0 | BM71: =#REF! ->  | BN71: $0 | BP71: =AU71/#REF! ->  | BQ71: =AE71/#REF! ->  | BR71: =BQ71*#REF! ->  | BT71: =AJ71/#REF! ->  | BU71: =BT71*#REF! ->  | BW71: =#REF!/#REF! ->  | BX71: =BW71*#REF! ->  | BY71: =BX71+#REF! ->  | BZ71: =AO71/#REF! ->  | CA71: =BZ71*#REF! ->  | CC71: lf/MH | CD71: MH/lf | CF71: =T(#REF!) ->  | CG71: =#REF! ->  | CH71: $0.00
B72: Zip-wall, plastic partitions | C72: Zip-wall, plastic partitions | D72: Zip-wall, plastic partitions | E72: Zip-wall, plastic partitions | F72: Zip-wall, plastic partitions | G72: Zip-wall, plastic partitions | H72: Zip-wall, plastic partitions | J72: Zip-wall, plastic partitions | K72: Zip-wall, plastic partitions | L72: Zip-wall, plastic partitions | M72: Zip-wall, plastic partitions | N72: Zip-wall, plastic partitions | O72: Zip-wall, plastic partitions | P72: Zip-wall, plastic partitions | T72: lf | AE72: $0 | AJ72: $0 | AO72: $0 | AU72: $0 | AZ72: =SUM(#REF!) ->  | BA72: 0.0% | BC72: Cost to install plastic zip-wall partitions/coverings | BE72: TEMPORARY PROJECT REQUIREMENTS | BK72: $0 | BL72: $0 | BM72: =#REF! ->  | BN72: $0 | BP72: =AU72/#REF! ->  | BQ72: =AE72/#REF! ->  | BR72: =BQ72*#REF! ->  | BT72: =AJ72/#REF! ->  | BU72: =BT72*#REF! ->  | BW72: =#REF!/#REF! ->  | BX72: =BW72*#REF! ->  | BY72: =BX72+#REF! ->  | BZ72: =AO72/#REF! ->  | CA72: =BZ72*#REF! ->  | CC72: lf/MH | CD72: MH/lf | CF72: =T(#REF!) ->  | CG72: =#REF! ->  | CH72: $0.00
B73: Temporary drywall partitions | C73: Temporary drywall partitions | D73: Temporary drywall partitions | E73: Temporary drywall partitions | F73: Temporary drywall partitions | G73: Temporary drywall partitions | H73: Temporary drywall partitions | J73: Temporary drywall partitions | K73: Temporary drywall partitions | L73: Temporary drywall partitions | M73: Temporary drywall partitions | N73: Temporary drywall partitions | O73: Temporary drywall partitions | P73: Temporary drywall partitions | T73: lf | AE73: $0 | AJ73: $0 | AO73: $0 | AU73: $0 | AZ73: =SUM(#REF!) ->  | BA73: 0.0% | BC73: Cost to install temp drywall partitions, install & remove | BE73: TEMPORARY PROJECT REQUIREMENTS | BK73: $0 | BL73: $0 | BM73: =#REF! ->  | BN73: $0 | BP73: =AU73/#REF! ->  | BQ73: =AE73/#REF! ->  | BR73: =BQ73*#REF! ->  | BT73: =AJ73/#REF! ->  | BU73: =BT73*#REF! ->  | BW73: =#REF!/#REF! ->  | BX73: =BW73*#REF! ->  | BY73: =BX73+#REF! ->  | BZ73: =AO73/#REF! ->  | CA73: =BZ73*#REF! ->  | CC73: lf/MH | CD73: MH/lf | CF73: =T(#REF!) ->  | CG73: =#REF! ->  | CH73: $0.00
B74: Temporary floor protection, RAM board | C74: Temporary floor protection, RAM board | D74: Temporary floor protection, RAM board | E74: Temporary floor protection, RAM board | F74: Temporary floor protection, RAM board | G74: Temporary floor protection, RAM board | H74: Temporary floor protection, RAM board | J74: Temporary floor protection, RAM board | K74: Temporary floor protection, RAM board | L74: Temporary floor protection, RAM board | M74: Temporary floor protection, RAM board | N74: Temporary floor protection, RAM board | O74: Temporary floor protection, RAM board | P74: Temporary floor protection, RAM board | T74: sf | AE74: $0 | AJ74: $0 | AO74: $0 | AU74: $0 | AZ74: =SUM(#REF!) ->  | BA74: 0.0% | BC74: Cost to install RAM board, floor protection, install & remove | BE74: TEMPORARY PROJECT REQUIREMENTS | BK74: $0 | BL74: $0 | BM74: =#REF! ->  | BN74: $0 | BP74: =AU74/#REF! ->  | BQ74: =AE74/#REF! ->  | BR74: =BQ74*#REF! ->  | BT74: =AJ74/#REF! ->  | BU74: =BT74*#REF! ->  | BW74: =#REF!/#REF! ->  | BX74: =BW74*#REF! ->  | BY74: =BX74+#REF! ->  | BZ74: =AO74/#REF! ->  | CA74: =BZ74*#REF! ->  | CC74: sf/MH | CD74: MH/sf | CF74: =T(#REF!) ->  | CG74: =#REF! ->  | CH74: $0.00
B75: Miscellaneous coverings/protections | C75: Miscellaneous coverings/protections | D75: Miscellaneous coverings/protections | E75: Miscellaneous coverings/protections | F75: Miscellaneous coverings/protections | G75: Miscellaneous coverings/protections | H75: Miscellaneous coverings/protections | J75: Miscellaneous coverings/protections | K75: Miscellaneous coverings/protections | L75: Miscellaneous coverings/protections | M75: Miscellaneous coverings/protections | N75: Miscellaneous coverings/protections | O75: Miscellaneous coverings/protections | P75: Miscellaneous coverings/protections | T75: sf | AE75: $0 | AJ75: $0 | AO75: $0 | AU75: $0 | AZ75: =SUM(#REF!) ->  | BA75: 0.0% | BE75: TEMPORARY PROJECT REQUIREMENTS | BK75: $0 | BL75: $0 | BM75: =#REF! ->  | BN75: $0 | BP75: =AU75/#REF! ->  | BQ75: =AE75/#REF! ->  | BR75: =BQ75*#REF! ->  | BT75: =AJ75/#REF! ->  | BU75: =BT75*#REF! ->  | BW75: =#REF!/#REF! ->  | BX75: =BW75*#REF! ->  | BY75: =BX75+#REF! ->  | BZ75: =AO75/#REF! ->  | CA75: =BZ75*#REF! ->  | CC75: sf/MH | CD75: MH/sf | CF75: =T(#REF!) ->  | CG75: =#REF! ->  | CH75: $0.00
AE76: $0 | AJ76: $0 | AO76: $0 | AU76: $0 | AZ76: =SUM(#REF!) ->  | BA76: 0.0% | BE76: TEMPORARY PROJECT REQUIREMENTS | BK76: $0 | BL76: $0 | BM76: =#REF! ->  | BN76: $0 | BP76: =AU76/#REF! ->  | BQ76: =AE76/#REF! ->  | BR76: =BQ76*#REF! ->  | BT76: =AJ76/#REF! ->  | BU76: =BT76*#REF! ->  | BW76: =#REF!/#REF! ->  | BX76: =BW76*#REF! ->  | BY76: =BX76+#REF! ->  | BZ76: =AO76/#REF! ->  | CA76: =BZ76*#REF! ->  | CC76: /MH | CD76: MH/ | CF76: =T(#REF!) ->  | CG76: =#REF! ->  | CH76: $0.00
AE77: $0 | AJ77: $0 | AO77: $0 | AU77: $0 | AZ77: =SUM(#REF!) ->  | BA77: 0.0% | BE77: TEMPORARY PROJECT REQUIREMENTS | BK77: $0 | BL77: $0 | BM77: =#REF! ->  | BN77: $0 | BP77: =AU77/#REF! ->  | BQ77: =AE77/#REF! ->  | BR77: =BQ77*#REF! ->  | BT77: =AJ77/#REF! ->  | BU77: =BT77*#REF! ->  | BW77: =#REF!/#REF! ->  | BX77: =BW77*#REF! ->  | BY77: =BX77+#REF! ->  | BZ77: =AO77/#REF! ->  | CA77: =BZ77*#REF! ->  | CC77: /MH | CD77: MH/ | CF77: =T(#REF!) ->  | CG77: =#REF! ->  | CH77: $0.00
AE78: $0 | AJ78: $0 | AO78: $0 | AU78: $0 | AZ78: =SUM(#REF!) ->  | BA78: 0.0% | BE78: TEMPORARY PROJECT REQUIREMENTS | BK78: $0 | BL78: $0 | BM78: =#REF! ->  | BN78: $0 | BP78: =AU78/#REF! ->  | BQ78: =AE78/#REF! ->  | BR78: =BQ78*#REF! ->  | BT78: =AJ78/#REF! ->  | BU78: =BT78*#REF! ->  | BW78: =#REF!/#REF! ->  | BX78: =BW78*#REF! ->  | BY78: =BX78+#REF! ->  | BZ78: =AO78/#REF! ->  | CA78: =BZ78*#REF! ->  | CC78: /MH | CD78: MH/ | CF78: =T(#REF!) ->  | CG78: =#REF! ->  | CH78: $0.00
AE79: $0 | AJ79: $0 | AO79: $0 | AU79: $0 | AZ79: =SUM(#REF!) ->  | BA79: 0.0% | BE79: TEMPORARY PROJECT REQUIREMENTS | BK79: $0 | BL79: $0 | BM79: =#REF! ->  | BN79: $0 | BP79: =AU79/#REF! ->  | BQ79: =AE79/#REF! ->  | BR79: =BQ79*#REF! ->  | BT79: =AJ79/#REF! ->  | BU79: =BT79*#REF! ->  | BW79: =#REF!/#REF! ->  | BX79: =BW79*#REF! ->  | BY79: =BX79+#REF! ->  | BZ79: =AO79/#REF! ->  | CA79: =BZ79*#REF! ->  | CC79: /MH | CD79: MH/ | CF79: =T(#REF!) ->  | CG79: =#REF! ->  | CH79: $0.00
BE80: TEMPORARY PROJECT REQUIREMENTS | BK80: =BK64 -> 0 | BL80: =BL64 -> 0 | BM80: =BM64 ->  | BN80: =BN64 -> 0 | BO80: =BO64 ->  | BP80: =AU80/TOTAL_REMODEL_ESTIMATE ->  | BQ80: =#REF!/TOTAL_REMODEL_ESTIMATE ->  | BR80: =#REF!/TOTAL_REMODEL_ESTIMATE ->  | BS80: =#REF!/TOTAL_REMODEL_ESTIMATE ->  | BT80: =#REF!/TOTAL_REMODEL_ESTIMATE ->  | BU80: =#REF!/TOTAL_REMODEL_ESTIMATE ->  | BV80: =#REF!/TOTAL_REMODEL_ESTIMATE ->  | BW80: =#REF!/TOTAL_REMODEL_ESTIMATE ->  | BX80: =#REF!/TOTAL_REMODEL_ESTIMATE ->  | BY80: =#REF!/TOTAL_REMODEL_ESTIMATE ->  | BZ80: =#REF!/TOTAL_REMODEL_ESTIMATE ->  | CA80: =#REF!/TOTAL_REMODEL_ESTIMATE ->  | CB80: =#REF!/TOTAL_REMODEL_ESTIMATE ->  | CC80: =#REF!/TOTAL_REMODEL_ESTIMATE ->  | CD80: =#REF!/TOTAL_REMODEL_ESTIMATE -> 
B81: =T(CONCATENATE(B64," ","TOTAL")) -> TEMPORARY PROJECT REQUIREMENTS TOTAL | AE81: =SUBTOTAL(9,AE65:AE80) -> $0 | AJ81: =SUBTOTAL(9,AJ64:AN80) -> $0 | AO81: =SUBTOTAL(9,AO64:AS79) -> $0 | AU81: =SUBTOTAL(9,AU64:AY80) -> $0 | BA81: =SUBTOTAL(9,BA64:BA80) -> 0.0% | BE81: TEMPORARY PROJECT REQUIREMENTS | BK81: =BK64 -> 0 | BL81: 0 | BN81: 0
BE82: TEMPORARY PROJECT REQUIREMENTS | BK82: =BK64 -> $0 | BL82: =BL64 -> $0 | BM82: =BM64 ->  | BN82: =BN64 -> $0 | BO82: =BO64 ->  | BP82: =AU82/TOTAL_REMODEL_ESTIMATE ->  | BQ82: =#REF!/TOTAL_REMODEL_ESTIMATE ->  | BR82: =#REF!/TOTAL_REMODEL_ESTIMATE ->  | BS82: =#REF!/TOTAL_REMODEL_ESTIMATE ->  | BT82: =#REF!/TOTAL_REMODEL_ESTIMATE ->  | BU82: =#REF!/TOTAL_REMODEL_ESTIMATE ->  | BV82: =#REF!/TOTAL_REMODEL_ESTIMATE ->  | BW82: =#REF!/TOTAL_REMODEL_ESTIMATE ->  | BX82: =#REF!/TOTAL_REMODEL_ESTIMATE ->  | BY82: =#REF!/TOTAL_REMODEL_ESTIMATE ->  | BZ82: =#REF!/TOTAL_REMODEL_ESTIMATE ->  | CA82: =#REF!/TOTAL_REMODEL_ESTIMATE ->  | CB82: =#REF!/TOTAL_REMODEL_ESTIMATE ->  | CC82: =#REF!/TOTAL_REMODEL_ESTIMATE ->  | CD82: =#REF!/TOTAL_REMODEL_ESTIMATE -> 
A83: Hidden | B83: EQUIPMENT | BE83: =$B$83 -> EQUIPMENT | BK83: =SUM(BK84:BK98) -> $0 | BL83: $0 | BN83: $0 | CC83: =CONCATENATE(T83,"/", "MH") -> /MH | CD83: =CONCATENATE("MH","/",T83) -> MH/
B84: Flatbed truck | C84: Flatbed truck | D84: Flatbed truck | E84: Flatbed truck | F84: Flatbed truck | G84: Flatbed truck | H84: Flatbed truck | J84: Flatbed truck | K84: Flatbed truck | L84: Flatbed truck | M84: Flatbed truck | N84: Flatbed truck | O84: Flatbed truck | P84: Flatbed truck | T84: hrs | AE84: =V84*Q84 -> $0 | AJ84: =Q84*Y84 -> $0 | AO84: =Q84*AB84 -> $0 | AU84: =AE84+AJ84+AO84 -> $0 | AZ84: =SUM(#REF!) ->  | BA84: =IFERROR(AU84/Total_Detailed_Estimate,0) -> 0.0% | BE84: EQUIPMENT | BK84: =AE84 -> $0 | BL84: =AJ84 -> $0 | BM84: =#REF! ->  | BN84: =AO84 -> $0 | BO84: =SUM(BK84:BN84) ->  | BP84: =AU84/#REF! ->  | BQ84: =AE84/#REF! ->  | BR84: =BQ84*#REF! ->  | BS84: =BR84+AE84 ->  | BT84: =AJ84/#REF! ->  | BU84: =BT84*#REF! ->  | BV84: =BU84+AJ84 ->  | BW84: =#REF!/#REF! ->  | BX84: =BW84*#REF! ->  | BY84: =BX84+#REF! ->  | BZ84: =AO84/#REF! ->  | CA84: =BZ84*#REF! ->  | CB84: =CA84+AO84 ->  | CC84: hrs/MH | CD84: MH/hrs | CF84: =T(#REF!) ->  | CG84: =#REF! ->  | CH84: =AE84 -> $0.00
B85: Skid steer loader, Bobcat | C85: Skid steer loader, Bobcat | D85: Skid steer loader, Bobcat | E85: Skid steer loader, Bobcat | F85: Skid steer loader, Bobcat | G85: Skid steer loader, Bobcat | H85: Skid steer loader, Bobcat | J85: Skid steer loader, Bobcat | K85: Skid steer loader, Bobcat | L85: Skid steer loader, Bobcat | M85: Skid steer loader, Bobcat | N85: Skid steer loader, Bobcat | O85: Skid steer loader, Bobcat | P85: Skid steer loader, Bobcat | T85: hrs | AE85: $0 | AJ85: $0 | AO85: =Q85*AB85 -> $0 | AU85: $0 | AZ85: =SUM(#REF!) ->  | BA85: 0.0% | BE85: EQUIPMENT | BK85: $0 | BL85: $0 | BM85: =#REF! ->  | BN85: $0 | BP85: =AU85/#REF! ->  | BQ85: =AE85/#REF! ->  | BR85: =BQ85*#REF! ->  | BT85: =AJ85/#REF! ->  | BU85: =BT85*#REF! ->  | BW85: =#REF!/#REF! ->  | BX85: =BW85*#REF! ->  | BY85: =BX85+#REF! ->  | BZ85: =AO85/#REF! ->  | CA85: =BZ85*#REF! ->  | CC85: hrs/MH | CD85: MH/hrs | CF85: =T(#REF!) ->  | CG85: =#REF! ->  | CH85: $0.00
B86: Generators | C86: Generators | D86: Generators | E86: Generators | F86: Generators | G86: Generators | H86: Generators | J86: Generators | K86: Generators | L86: Generators | M86: Generators | N86: Generators | O86: Generators | P86: Generators | T86: hrs | AE86: $0 | AJ86: $0 | AO86: $0 | AU86: $0 | AZ86: =SUM(#REF!) ->  | BA86: 0.0% | BE86: EQUIPMENT | BK86: $0 | BL86: $0 | BM86: =#REF! ->  | BN86: $0 | BP86: =AU86/#REF! ->  | BQ86: =AE86/#REF! ->  | BR86: =BQ86*#REF! ->  | BT86: =AJ86/#REF! ->  | BU86: =BT86*#REF! ->  | BW86: =#REF!/#REF! ->  | BX86: =BW86*#REF! ->  | BY86: =BX86+#REF! ->  | BZ86: =AO86/#REF! ->  | CA86: =BZ86*#REF! ->  | CC86: hrs/MH | CD86: MH/hrs | CF86: =T(#REF!) ->  | CG86: =#REF! ->  | CH86: $0.00
B87: Space heater | C87: Space heater | D87: Space heater | E87: Space heater | F87: Space heater | G87: Space heater | H87: Space heater | J87: Space heater | K87: Space heater | L87: Space heater | M87: Space heater | N87: Space heater | O87: Space heater | P87: Space heater | T87: hrs | AE87: $0 | AJ87: $0 | AO87: $0 | AU87: $0 | AZ87: =SUM(#REF!) ->  | BA87: 0.0% | BE87: EQUIPMENT | BK87: $0 | BL87: $0 | BM87: =#REF! ->  | BN87: $0 | BP87: =AU87/#REF! ->  | BQ87: =AE87/#REF! ->  | BR87: =BQ87*#REF! ->  | BT87: =AJ87/#REF! ->  | BU87: =BT87*#REF! ->  | BW87: =#REF!/#REF! ->  | BX87: =BW87*#REF! ->  | BY87: =BX87+#REF! ->  | BZ87: =AO87/#REF! ->  | CA87: =BZ87*#REF! ->  | CC87: hrs/MH | CD87: MH/hrs | CF87: =T(#REF!) ->  | CG87: =#REF! ->  | CH87: $0.00
B88: Air Compressors | C88: Air Compressors | D88: Air Compressors | E88: Air Compressors | F88: Air Compressors | G88: Air Compressors | H88: Air Compressors | J88: Air Compressors | K88: Air Compressors | L88: Air Compressors | M88: Air Compressors | N88: Air Compressors | O88: Air Compressors | P88: Air Compressors | T88: hrs | AE88: $0 | AJ88: $0 | AO88: $0 | AU88: $0 | AZ88: =SUM(#REF!) ->  | BA88: 0.0% | BE88: EQUIPMENT | BK88: $0 | BL88: $0 | BM88: =#REF! ->  | BN88: $0 | BP88: =AU88/#REF! ->  | BQ88: =AE88/#REF! ->  | BR88: =BQ88*#REF! ->  | BT88: =AJ88/#REF! ->  | BU88: =BT88*#REF! ->  | BW88: =#REF!/#REF! ->  | BX88: =BW88*#REF! ->  | BY88: =BX88+#REF! ->  | BZ88: =AO88/#REF! ->  | CA88: =BZ88*#REF! ->  | CC88: hrs/MH | CD88: MH/hrs | CF88: =T(#REF!) ->  | CG88: =#REF! ->  | CH88: $0.00
AE89: $0 | AJ89: $0 | AO89: $0 | AU89: $0 | AZ89: =SUM(#REF!) ->  | BA89: 0.0% | BE89: EQUIPMENT | BK89: $0 | BL89: $0 | BM89: =#REF! ->  | BN89: $0 | BP89: =AU89/#REF! ->  | BQ89: =AE89/#REF! ->  | BR89: =BQ89*#REF! ->  | BT89: =AJ89/#REF! ->  | BU89: =BT89*#REF! ->  | BW89: =#REF!/#REF! ->  | BX89: =BW89*#REF! ->  | BY89: =BX89+#REF! ->  | BZ89: =AO89/#REF! ->  | CA89: =BZ89*#REF! ->  | CC89: /MH | CD89: MH/ | CF89: =T(#REF!) ->  | CG89: =#REF! ->  | CH89: $0.00
AE90: $0 | AJ90: $0 | AO90: $0 | AU90: $0 | AZ90: =SUM(#REF!) ->  | BA90: 0.0% | BE90: EQUIPMENT | BK90: $0 | BL90: $0 | BM90: =#REF! ->  | BN90: $0 | BP90: =AU90/#REF! ->  | BQ90: =AE90/#REF! ->  | BR90: =BQ90*#REF! ->  | BT90: =AJ90/#REF! ->  | BU90: =BT90*#REF! ->  | BW90: =#REF!/#REF! ->  | BX90: =BW90*#REF! ->  | BY90: =BX90+#REF! ->  | BZ90: =AO90/#REF! ->  | CA90: =BZ90*#REF! ->  | CC90: /MH | CD90: MH/ | CF90: =T(#REF!) ->  | CG90: =#REF! ->  | CH90: $0.00
AE91: $0 | AJ91: $0 | AO91: $0 | AU91: $0 | AZ91: =SUM(#REF!) ->  | BA91: 0.0% | BE91: EQUIPMENT | BK91: $0 | BL91: $0 | BM91: =#REF! ->  | BN91: $0 | BP91: =AU91/#REF! ->  | BQ91: =AE91/#REF! ->  | BR91: =BQ91*#REF! ->  | BT91: =AJ91/#REF! ->  | BU91: =BT91*#REF! ->  | BW91: =#REF!/#REF! ->  | BX91: =BW91*#REF! ->  | BY91: =BX91+#REF! ->  | BZ91: =AO91/#REF! ->  | CA91: =BZ91*#REF! ->  | CC91: /MH | CD91: MH/ | CF91: =T(#REF!) ->  | CG91: =#REF! ->  | CH91: $0.00
AE92: $0 | AJ92: $0 | AO92: $0 | AU92: $0 | AZ92: =SUM(#REF!) ->  | BA92: 0.0% | BE92: EQUIPMENT | BK92: $0 | BL92: $0 | BM92: =#REF! ->  | BN92: $0 | BP92: =AU92/#REF! ->  | BQ92: =AE92/#REF! ->  | BR92: =BQ92*#REF! ->  | BT92: =AJ92/#REF! ->  | BU92: =BT92*#REF! ->  | BW92: =#REF!/#REF! ->  | BX92: =BW92*#REF! ->  | BY92: =BX92+#REF! ->  | BZ92: =AO92/#REF! ->  | CA92: =BZ92*#REF! ->  | CC92: /MH | CD92: MH/ | CF92: =T(#REF!) ->  | CG92: =#REF! ->  | CH92: $0.00
AE93: $0 | AJ93: $0 | AO93: $0 | AU93: $0 | AZ93: =SUM(#REF!) ->  | BA93: 0.0% | BE93: EQUIPMENT | BK93: $0 | BL93: $0 | BM93: =#REF! ->  | BN93: $0 | BP93: =AU93/#REF! ->  | BQ93: =AE93/#REF! ->  | BR93: =BQ93*#REF! ->  | BT93: =AJ93/#REF! ->  | BU93: =BT93*#REF! ->  | BW93: =#REF!/#REF! ->  | BX93: =BW93*#REF! ->  | BY93: =BX93+#REF! ->  | BZ93: =AO93/#REF! ->  | CA93: =BZ93*#REF! ->  | CC93: /MH | CD93: MH/ | CF93: =T(#REF!) ->  | CG93: =#REF! ->  | CH93: $0.00
AE94: $0 | AJ94: $0 | AO94: $0 | AU94: $0 | AZ94: =SUM(#REF!) ->  | BA94: 0.0% | BE94: EQUIPMENT | BK94: $0 | BL94: $0 | BM94: =#REF! ->  | BN94: $0 | BP94: =AU94/#REF! ->  | BQ94: =AE94/#REF! ->  | BR94: =BQ94*#REF! ->  | BT94: =AJ94/#REF! ->  | BU94: =BT94*#REF! ->  | BW94: =#REF!/#REF! ->  | BX94: =BW94*#REF! ->  | BY94: =BX94+#REF! ->  | BZ94: =AO94/#REF! ->  | CA94: =BZ94*#REF! ->  | CC94: /MH | CD94: MH/ | CF94: =T(#REF!) ->  | CG94: =#REF! ->  | CH94: $0.00
AE95: $0 | AJ95: $0 | AO95: $0 | AU95: $0 | AZ95: =SUM(#REF!) ->  | BA95: 0.0% | BE95: EQUIPMENT | BK95: $0 | BL95: $0 | BM95: =#REF! ->  | BN95: $0 | BP95: =AU95/#REF! ->  | BQ95: =AE95/#REF! ->  | BR95: =BQ95*#REF! ->  | BT95: =AJ95/#REF! ->  | BU95: =BT95*#REF! ->  | BW95: =#REF!/#REF! ->  | BX95: =BW95*#REF! ->  | BY95: =BX95+#REF! ->  | BZ95: =AO95/#REF! ->  | CA95: =BZ95*#REF! ->  | CC95: /MH | CD95: MH/ | CF95: =T(#REF!) ->  | CG95: =#REF! ->  | CH95: $0.00
AE96: $0 | AJ96: $0 | AO96: $0 | AU96: $0 | AZ96: =SUM(#REF!) ->  | BA96: 0.0% | BE96: EQUIPMENT | BK96: $0 | BL96: $0 | BM96: =#REF! ->  | BN96: $0 | BP96: =AU96/#REF! ->  | BQ96: =AE96/#REF! ->  | BR96: =BQ96*#REF! ->  | BT96: =AJ96/#REF! ->  | BU96: =BT96*#REF! ->  | BW96: =#REF!/#REF! ->  | BX96: =BW96*#REF! ->  | BY96: =BX96+#REF! ->  | BZ96: =AO96/#REF! ->  | CA96: =BZ96*#REF! ->  | CC96: /MH | CD96: MH/ | CF96: =T(#REF!) ->  | CG96: =#REF! ->  | CH96: $0.00
AE97: $0 | AJ97: $0 | AO97: $0 | AU97: $0 | AZ97: =SUM(#REF!) ->  | BA97: 0.0% | BE97: EQUIPMENT | BK97: $0 | BL97: $0 | BM97: =#REF! ->  | BN97: $0 | BP97: =AU97/#REF! ->  | BQ97: =AE97/#REF! ->  | BR97: =BQ97*#REF! ->  | BT97: =AJ97/#REF! ->  | BU97: =BT97*#REF! ->  | BW97: =#REF!/#REF! ->  | BX97: =BW97*#REF! ->  | BY97: =BX97+#REF! ->  | BZ97: =AO97/#REF! ->  | CA97: =BZ97*#REF! ->  | CC97: /MH | CD97: MH/ | CF97: =T(#REF!) ->  | CG97: =#REF! ->  | CH97: $0.00
AE98: $0 | AJ98: $0 | AO98: $0 | AU98: $0 | AZ98: =SUM(#REF!) ->  | BA98: 0.0% | BE98: EQUIPMENT | BK98: $0 | BL98: $0 | BM98: =#REF! ->  | BN98: $0 | BP98: =AU98/#REF! ->  | BQ98: =AE98/#REF! ->  | BR98: =BQ98*#REF! ->  | BT98: =AJ98/#REF! ->  | BU98: =BT98*#REF! ->  | BW98: =#REF!/#REF! ->  | BX98: =BW98*#REF! ->  | BY98: =BX98+#REF! ->  | BZ98: =AO98/#REF! ->  | CA98: =BZ98*#REF! ->  | CC98: /MH | CD98: MH/ | CF98: =T(#REF!) ->  | CG98: =#REF! ->  | CH98: $0.00
BE99: EQUIPMENT | BK99: =BK83 -> 0 | BL99: =BL83 -> 0 | BM99: =BM83 ->  | BN99: =BN83 -> 0 | BO99: =BO83 ->  | BP99: =AU99/TOTAL_REMODEL_ESTIMATE ->  | BQ99: =#REF!/TOTAL_REMODEL_ESTIMATE ->  | BR99: =#REF!/TOTAL_REMODEL_ESTIMATE ->  | BS99: =#REF!/TOTAL_REMODEL_ESTIMATE ->  | BT99: =#REF!/TOTAL_REMODEL_ESTIMATE ->  | BU99: =#REF!/TOTAL_REMODEL_ESTIMATE ->  | BV99: =#REF!/TOTAL_REMODEL_ESTIMATE ->  | BW99: =#REF!/TOTAL_REMODEL_ESTIMATE ->  | BX99: =#REF!/TOTAL_REMODEL_ESTIMATE ->  | BY99: =#REF!/TOTAL_REMODEL_ESTIMATE ->  | BZ99: =#REF!/TOTAL_REMODEL_ESTIMATE ->  | CA99: =#REF!/TOTAL_REMODEL_ESTIMATE ->  | CB99: =#REF!/TOTAL_REMODEL_ESTIMATE ->  | CC99: =#REF!/TOTAL_REMODEL_ESTIMATE ->  | CD99: =#REF!/TOTAL_REMODEL_ESTIMATE -> 
B100: =T(CONCATENATE(B83," ","TOTAL")) -> EQUIPMENT TOTAL | AE100: =SUBTOTAL(9,AE84:AE99) -> $0 | AJ100: =SUBTOTAL(9,AJ83:AN99) -> $0 | AO100: =SUBTOTAL(9,AO83:AS98) -> $0 | AU100: =SUBTOTAL(9,AU83:AY99) -> $0 | BA100: =SUBTOTAL(9,BA83:BA99) -> 0.0% | BE100: EQUIPMENT | BK100: =BK83 -> 0 | BL100: 0 | BN100: 0
BE101: EQUIPMENT | BK101: =BK83 -> $0 | BL101: =BL83 -> $0 | BM101: =BM83 ->  | BN101: =BN83 -> $0 | BO101: =BO83 ->  | BP101: =AU101/TOTAL_REMODEL_ESTIMATE ->  | BQ101: =#REF!/TOTAL_REMODEL_ESTIMATE ->  | BR101: =#REF!/TOTAL_REMODEL_ESTIMATE ->  | BS101: =#REF!/TOTAL_REMODEL_ESTIMATE ->  | BT101: =#REF!/TOTAL_REMODEL_ESTIMATE ->  | BU101: =#REF!/TOTAL_REMODEL_ESTIMATE ->  | BV101: =#REF!/TOTAL_REMODEL_ESTIMATE ->  | BW101: =#REF!/TOTAL_REMODEL_ESTIMATE ->  | BX101: =#REF!/TOTAL_REMODEL_ESTIMATE ->  | BY101: =#REF!/TOTAL_REMODEL_ESTIMATE ->  | BZ101: =#REF!/TOTAL_REMODEL_ESTIMATE ->  | CA101: =#REF!/TOTAL_REMODEL_ESTIMATE ->  | CB101: =#REF!/TOTAL_REMODEL_ESTIMATE ->  | CC101: =#REF!/TOTAL_REMODEL_ESTIMATE ->  | CD101: =#REF!/TOTAL_REMODEL_ESTIMATE -> 
A102: Hidden | B102: CLEAN-UP | BE102: =$B$102 -> CLEAN-UP | BK102: =SUM(BK103:BK117) -> $0 | BL102: $0 | BN102: $0 | CC102: =CONCATENATE(T102,"/", "MH") -> /MH | CD102: =CONCATENATE("MH","/",T102) -> MH/
B103: General Clean-Up | C103: General Clean-Up | D103: General Clean-Up | E103: General Clean-Up | F103: General Clean-Up | G103: General Clean-Up | H103: General Clean-Up | J103: General Clean-Up | K103: General Clean-Up | L103: General Clean-Up | M103: General Clean-Up | N103: General Clean-Up | O103: General Clean-Up | P103: General Clean-Up | T103: weeks | AE103: =V103*Q103 -> $0 | AJ103: =Q103*Y103 -> $0 | AO103: =Q103*AB103 -> $0 | AU103: =AE103+AJ103+AO103 -> $0 | AZ103: =SUM(#REF!) ->  | BA103: =IFERROR(AU103/Total_Detailed_Estimate,0) -> 0.0% | BE103: CLEAN-UP | BK103: =AE103 -> $0 | BL103: =AJ103 -> $0 | BM103: =#REF! ->  | BN103: =AO103 -> $0 | BO103: =SUM(BK103:BN103) ->  | BP103: =AU103/#REF! ->  | BQ103: =AE103/#REF! ->  | BR103: =BQ103*#REF! ->  | BS103: =BR103+AE103 ->  | BT103: =AJ103/#REF! ->  | BU103: =BT103*#REF! ->  | BV103: =BU103+AJ103 ->  | BW103: =#REF!/#REF! ->  | BX103: =BW103*#REF! ->  | BY103: =BX103+#REF! ->  | BZ103: =AO103/#REF! ->  | CA103: =BZ103*#REF! ->  | CB103: =CA103+AO103 ->  | CC103: weeks/MH | CD103: MH/weeks | CF103: =T(#REF!) ->  | CG103: =#REF! ->  | CH103: =AE103 -> $0.00
B104: Final Clean-Up | C104: Final Clean-Up | D104: Final Clean-Up | E104: Final Clean-Up | F104: Final Clean-Up | G104: Final Clean-Up | H104: Final Clean-Up | J104: Final Clean-Up | K104: Final Clean-Up | L104: Final Clean-Up | M104: Final Clean-Up | N104: Final Clean-Up | O104: Final Clean-Up | P104: Final Clean-Up | T104: hrs | AE104: $0 | AJ104: $0 | AO104: =Q104*AB104 -> $0 | AU104: $0 | AZ104: =SUM(#REF!) ->  | BA104: 0.0% | BE104: CLEAN-UP | BK104: $0 | BL104: $0 | BM104: =#REF! ->  | BN104: $0 | BP104: =AU104/#REF! ->  | BQ104: =AE104/#REF! ->  | BR104: =BQ104*#REF! ->  | BT104: =AJ104/#REF! ->  | BU104: =BT104*#REF! ->  | BW104: =#REF!/#REF! ->  | BX104: =BW104*#REF! ->  | BY104: =BX104+#REF! ->  | BZ104: =AO104/#REF! ->  | CA104: =BZ104*#REF! ->  | CC104: hrs/MH | CD104: MH/hrs | CF104: =T(#REF!) ->  | CG104: =#REF! ->  | CH104: $0.00
B105: Dumpsters | C105: Dumpsters | D105: Dumpsters | E105: Dumpsters | F105: Dumpsters | G105: Dumpsters | H105: Dumpsters | J105: Dumpsters | K105: Dumpsters | L105: Dumpsters | M105: Dumpsters | N105: Dumpsters | O105: Dumpsters | P105: Dumpsters | T105: ea | AE105: $0 | AJ105: $0 | AO105: $0 | AU105: $0 | AZ105: =SUM(#REF!) ->  | BA105: 0.0% | BE105: CLEAN-UP | BK105: $0 | BL105: $0 | BM105: =#REF! ->  | BN105: $0 | BP105: =AU105/#REF! ->  | BQ105: =AE105/#REF! ->  | BR105: =BQ105*#REF! ->  | BT105: =AJ105/#REF! ->  | BU105: =BT105*#REF! ->  | BW105: =#REF!/#REF! ->  | BX105: =BW105*#REF! ->  | BY105: =BX105+#REF! ->  | BZ105: =AO105/#REF! ->  | CA105: =BZ105*#REF! ->  | CC105: ea/MH | CD105: MH/ea | CF105: =T(#REF!) ->  | CG105: =#REF! ->  | CH105: $0.00
AE106: $0 | AJ106: $0 | AO106: $0 | AU106: $0 | AZ106: =SUM(#REF!) ->  | BA106: 0.0% | BE106: CLEAN-UP | BK106: $0 | BL106: $0 | BM106: =#REF! ->  | BN106: $0 | BP106: =AU106/#REF! ->  | BQ106: =AE106/#REF! ->  | BR106: =BQ106*#REF! ->  | BT106: =AJ106/#REF! ->  | BU106: =BT106*#REF! ->  | BW106: =#REF!/#REF! ->  | BX106: =BW106*#REF! ->  | BY106: =BX106+#REF! ->  | BZ106: =AO106/#REF! ->  | CA106: =BZ106*#REF! ->  | CC106: /MH | CD106: MH/ | CF106: =T(#REF!) ->  | CG106: =#REF! ->  | CH106: $0.00
AE107: $0 | AJ107: $0 | AO107: $0 | AU107: $0 | AZ107: =SUM(#REF!) ->  | BA107: 0.0% | BE107: CLEAN-UP | BK107: $0 | BL107: $0 | BM107: =#REF! ->  | BN107: $0 | BP107: =AU107/#REF! ->  | BQ107: =AE107/#REF! ->  | BR107: =BQ107*#REF! ->  | BT107: =AJ107/#REF! ->  | BU107: =BT107*#REF! ->  | BW107: =#REF!/#REF! ->  | BX107: =BW107*#REF! ->  | BY107: =BX107+#REF! ->  | BZ107: =AO107/#REF! ->  | CA107: =BZ107*#REF! ->  | CC107: /MH | CD107: MH/ | CF107: =T(#REF!) ->  | CG107: =#REF! ->  | CH107: $0.00
AE108: $0 | AJ108: $0 | AO108: $0 | AU108: $0 | AZ108: =SUM(#REF!) ->  | BA108: 0.0% | BE108: CLEAN-UP | BK108: $0 | BL108: $0 | BM108: =#REF! ->  | BN108: $0 | BP108: =AU108/#REF! ->  | BQ108: =AE108/#REF! ->  | BR108: =BQ108*#REF! ->  | BT108: =AJ108/#REF! ->  | BU108: =BT108*#REF! ->  | BW108: =#REF!/#REF! ->  | BX108: =BW108*#REF! ->  | BY108: =BX108+#REF! ->  | BZ108: =AO108/#REF! ->  | CA108: =BZ108*#REF! ->  | CC108: /MH | CD108: MH/ | CF108: =T(#REF!) ->  | CG108: =#REF! ->  | CH108: $0.00
AE109: $0 | AJ109: $0 | AO109: $0 | AU109: $0 | AZ109: =SUM(#REF!) ->  | BA109: 0.0% | BE109: CLEAN-UP | BK109: $0 | BL109: $0 | BM109: =#REF! ->  | BN109: $0 | BP109: =AU109/#REF! ->  | BQ109: =AE109/#REF! ->  | BR109: =BQ109*#REF! ->  | BT109: =AJ109/#REF! ->  | BU109: =BT109*#REF! ->  | BW109: =#REF!/#REF! ->  | BX109: =BW109*#REF! ->  | BY109: =BX109+#REF! ->  | BZ109: =AO109/#REF! ->  | CA109: =BZ109*#REF! ->  | CC109: /MH | CD109: MH/ | CF109: =T(#REF!) ->  | CG109: =#REF! ->  | CH109: $0.00
AE110: $0 | AJ110: $0 | AO110: $0 | AU110: $0 | AZ110: =SUM(#REF!) ->  | BA110: 0.0% | BE110: CLEAN-UP | BK110: $0 | BL110: $0 | BM110: =#REF! ->  | BN110: $0 | BP110: =AU110/#REF! ->  | BQ110: =AE110/#REF! ->  | BR110: =BQ110*#REF! ->  | BT110: =AJ110/#REF! ->  | BU110: =BT110*#REF! ->  | BW110: =#REF!/#REF! ->  | BX110: =BW110*#REF! ->  | BY110: =BX110+#REF! ->  | BZ110: =AO110/#REF! ->  | CA110: =BZ110*#REF! ->  | CC110: /MH | CD110: MH/ | CF110: =T(#REF!) ->  | CG110: =#REF! ->  | CH110: $0.00
AE111: $0 | AJ111: $0 | AO111: $0 | AU111: $0 | AZ111: =SUM(#REF!) ->  | BA111: 0.0% | BE111: CLEAN-UP | BK111: $0 | BL111: $0 | BM111: =#REF! ->  | BN111: $0 | BP111: =AU111/#REF! ->  | BQ111: =AE111/#REF! ->  | BR111: =BQ111*#REF! ->  | BT111: =AJ111/#REF! ->  | BU111: =BT111*#REF! ->  | BW111: =#REF!/#REF! ->  | BX111: =BW111*#REF! ->  | BY111: =BX111+#REF! ->  | BZ111: =AO111/#REF! ->  | CA111: =BZ111*#REF! ->  | CC111: /MH | CD111: MH/ | CF111: =T(#REF!) ->  | CG111: =#REF! ->  | CH111: $0.00
AE112: $0 | AJ112: $0 | AO112: $0 | AU112: $0 | AZ112: =SUM(#REF!) ->  | BA112: 0.0% | BE112: CLEAN-UP | BK112: $0 | BL112: $0 | BM112: =#REF! ->  | BN112: $0 | BP112: =AU112/#REF! ->  | BQ112: =AE112/#REF! ->  | BR112: =BQ112*#REF! ->  | BT112: =AJ112/#REF! ->  | BU112: =BT112*#REF! ->  | BW112: =#REF!/#REF! ->  | BX112: =BW112*#REF! ->  | BY112: =BX112+#REF! ->  | BZ112: =AO112/#REF! ->  | CA112: =BZ112*#REF! ->  | CC112: /MH | CD112: MH/ | CF112: =T(#REF!) ->  | CG112: =#REF! ->  | CH112: $0.00
AE113: $0 | AJ113: $0 | AO113: $0 | AU113: $0 | AZ113: =SUM(#REF!) ->  | BA113: 0.0% | BE113: CLEAN-UP | BK113: $0 | BL113: $0 | BM113: =#REF! ->  | BN113: $0 | BP113: =AU113/#REF! ->  | BQ113: =AE113/#REF! ->  | BR113: =BQ113*#REF! ->  | BT113: =AJ113/#REF! ->  | BU113: =BT113*#REF! ->  | BW113: =#REF!/#REF! ->  | BX113: =BW113*#REF! ->  | BY113: =BX113+#REF! ->  | BZ113: =AO113/#REF! ->  | CA113: =BZ113*#REF! ->  | CC113: /MH | CD113: MH/ | CF113: =T(#REF!) ->  | CG113: =#REF! ->  | CH113: $0.00
AE114: $0 | AJ114: $0 | AO114: $0 | AU114: $0 | AZ114: =SUM(#REF!) ->  | BA114: 0.0% | BE114: CLEAN-UP | BK114: $0 | BL114: $0 | BM114: =#REF! ->  | BN114: $0 | BP114: =AU114/#REF! ->  | BQ114: =AE114/#REF! ->  | BR114: =BQ114*#REF! ->  | BT114: =AJ114/#REF! ->  | BU114: =BT114*#REF! ->  | BW114: =#REF!/#REF! ->  | BX114: =BW114*#REF! ->  | BY114: =BX114+#REF! ->  | BZ114: =AO114/#REF! ->  | CA114: =BZ114*#REF! ->  | CC114: /MH | CD114: MH/ | CF114: =T(#REF!) ->  | CG114: =#REF! ->  | CH114: $0.00
AE115: $0 | AJ115: $0 | AO115: $0 | AU115: $0 | AZ115: =SUM(#REF!) ->  | BA115: 0.0% | BE115: CLEAN-UP | BK115: $0 | BL115: $0 | BM115: =#REF! ->  | BN115: $0 | BP115: =AU115/#REF! ->  | BQ115: =AE115/#REF! ->  | BR115: =BQ115*#REF! ->  | BT115: =AJ115/#REF! ->  | BU115: =BT115*#REF! ->  | BW115: =#REF!/#REF! ->  | BX115: =BW115*#REF! ->  | BY115: =BX115+#REF! ->  | BZ115: =AO115/#REF! ->  | CA115: =BZ115*#REF! ->  | CC115: /MH | CD115: MH/ | CF115: =T(#REF!) ->  | CG115: =#REF! ->  | CH115: $0.00
AE116: $0 | AJ116: $0 | AO116: $0 | AU116: $0 | AZ116: =SUM(#REF!) ->  | BA116: 0.0% | BE116: CLEAN-UP | BK116: $0 | BL116: $0 | BM116: =#REF! ->  | BN116: $0 | BP116: =AU116/#REF! ->  | BQ116: =AE116/#REF! ->  | BR116: =BQ116*#REF! ->  | BT116: =AJ116/#REF! ->  | BU116: =BT116*#REF! ->  | BW116: =#REF!/#REF! ->  | BX116: =BW116*#REF! ->  | BY116: =BX116+#REF! ->  | BZ116: =AO116/#REF! ->  | CA116: =BZ116*#REF! ->  | CC116: /MH | CD116: MH/ | CF116: =T(#REF!) ->  | CG116: =#REF! ->  | CH116: $0.00
AE117: $0 | AJ117: $0 | AO117: $0 | AU117: $0 | AZ117: =SUM(#REF!) ->  | BA117: 0.0% | BE117: CLEAN-UP | BK117: $0 | BL117: $0 | BM117: =#REF! ->  | BN117: $0 | BP117: =AU117/#REF! ->  | BQ117: =AE117/#REF! ->  | BR117: =BQ117*#REF! ->  | BT117: =AJ117/#REF! ->  | BU117: =BT117*#REF! ->  | BW117: =#REF!/#REF! ->  | BX117: =BW117*#REF! ->  | BY117: =BX117+#REF! ->  | BZ117: =AO117/#REF! ->  | CA117: =BZ117*#REF! ->  | CC117: /MH | CD117: MH/ | CF117: =T(#REF!) ->  | CG117: =#REF! ->  | CH117: $0.00
BE118: =$B$102 -> CLEAN-UP | BK118: =BK102 -> 0 | BL118: =BL102 -> 0 | BM118: =BM102 ->  | BN118: =BN102 -> 0 | BO118: =BO102 ->  | BP118: =AU118/TOTAL_REMODEL_ESTIMATE ->  | BQ118: =#REF!/TOTAL_REMODEL_ESTIMATE ->  | BR118: =#REF!/TOTAL_REMODEL_ESTIMATE ->  | BS118: =#REF!/TOTAL_REMODEL_ESTIMATE ->  | BT118: =#REF!/TOTAL_REMODEL_ESTIMATE ->  | BU118: =#REF!/TOTAL_REMODEL_ESTIMATE ->  | BV118: =#REF!/TOTAL_REMODEL_ESTIMATE ->  | BW118: =#REF!/TOTAL_REMODEL_ESTIMATE ->  | BX118: =#REF!/TOTAL_REMODEL_ESTIMATE ->  | BY118: =#REF!/TOTAL_REMODEL_ESTIMATE ->  | BZ118: =#REF!/TOTAL_REMODEL_ESTIMATE ->  | CA118: =#REF!/TOTAL_REMODEL_ESTIMATE ->  | CB118: =#REF!/TOTAL_REMODEL_ESTIMATE ->  | CC118: =#REF!/TOTAL_REMODEL_ESTIMATE ->  | CD118: =#REF!/TOTAL_REMODEL_ESTIMATE -> 
B119: =T(CONCATENATE(B102," ","TOTAL")) -> CLEAN-UP TOTAL | AE119: =SUBTOTAL(9,AE103:AE118) -> $0 | AJ119: =SUBTOTAL(9,AJ102:AN118) -> $0 | AO119: =SUBTOTAL(9,AO102:AS117) -> $0 | AU119: =SUBTOTAL(9,AU102:AY118) -> $0 | BA119: =SUBTOTAL(9,BA102:BA118) -> 0.0% | BE119: =$B$102 -> CLEAN-UP | BK119: =BK102 -> 0 | BL119: 0 | BN119: 0
BE120: =$B$102 -> CLEAN-UP | BK120: =BK102 -> $0 | BL120: =BL102 -> $0 | BM120: =BM102 ->  | BN120: =BN102 -> $0 | BO120: =BO102 ->  | BP120: =AU120/TOTAL_REMODEL_ESTIMATE ->  | BQ120: =#REF!/TOTAL_REMODEL_ESTIMATE ->  | BR120: =#REF!/TOTAL_REMODEL_ESTIMATE ->  | BS120: =#REF!/TOTAL_REMODEL_ESTIMATE ->  | BT120: =#REF!/TOTAL_REMODEL_ESTIMATE ->  | BU120: =#REF!/TOTAL_REMODEL_ESTIMATE ->  | BV120: =#REF!/TOTAL_REMODEL_ESTIMATE ->  | BW120: =#REF!/TOTAL_REMODEL_ESTIMATE ->  | BX120: =#REF!/TOTAL_REMODEL_ESTIMATE ->  | BY120: =#REF!/TOTAL_REMODEL_ESTIMATE ->  | BZ120: =#REF!/TOTAL_REMODEL_ESTIMATE ->  | CA120: =#REF!/TOTAL_REMODEL_ESTIMATE ->  | CB120: =#REF!/TOTAL_REMODEL_ESTIMATE ->  | CC120: =#REF!/TOTAL_REMODEL_ESTIMATE ->  | CD120: =#REF!/TOTAL_REMODEL_ESTIMATE -> 
A121: Hidden | B121: OTHER 1 | BE121: =$B$121 -> OTHER 1 | BK121: =SUM(BK122:BK136) -> $0 | BL121: $0 | BN121: $0 | CC121: =CONCATENATE(T121,"/", "MH") -> /MH | CD121: =CONCATENATE("MH","/",T121) -> MH/
AE122: =V122*Q122 -> $0 | AJ122: =Q122*Y122 -> $0 | AO122: =Q122*AB122 -> $0 | AU122: =AE122+AJ122+AO122 -> $0 | AZ122: =SUM(#REF!) ->  | BA122: =IFERROR(AU122/Total_Detailed_Estimate,0) -> 0.0% | BE122: OTHER 1 | BK122: =AE122 -> $0 | BL122: =AJ122 -> $0 | BM122: =#REF! ->  | BN122: =AO122 -> $0 | BO122: =SUM(BK122:BN122) ->  | BP122: =AU122/#REF! ->  | BQ122: =AE122/#REF! ->  | BR122: =BQ122*#REF! ->  | BS122: =BR122+AE122 ->  | BT122: =AJ122/#REF! ->  | BU122: =BT122*#REF! ->  | BV122: =BU122+AJ122 ->  | BW122: =#REF!/#REF! ->  | BX122: =BW122*#REF! ->  | BY122: =BX122+#REF! ->  | BZ122: =AO122/#REF! ->  | CA122: =BZ122*#REF! ->  | CB122: =CA122+AO122 ->  | CC122: /MH | CD122: MH/ | CF122: =T(#REF!) ->  | CG122: =#REF! ->  | CH122: =AE122 -> $0.00
AE123: $0 | AJ123: $0 | AO123: =Q123*AB123 -> $0 | AU123: $0 | AZ123: =SUM(#REF!) ->  | BA123: 0.0% | BE123: OTHER 1 | BK123: $0 | BL123: $0 | BM123: =#REF! ->  | BN123: $0 | BP123: =AU123/#REF! ->  | BQ123: =AE123/#REF! ->  | BR123: =BQ123*#REF! ->  | BT123: =AJ123/#REF! ->  | BU123: =BT123*#REF! ->  | BW123: =#REF!/#REF! ->  | BX123: =BW123*#REF! ->  | BY123: =BX123+#REF! ->  | BZ123: =AO123/#REF! ->  | CA123: =BZ123*#REF! ->  | CC123: /MH | CD123: MH/ | CF123: =T(#REF!) ->  | CG123: =#REF! ->  | CH123: $0.00
AE124: $0 | AJ124: $0 | AO124: $0 | AU124: $0 | AZ124: =SUM(#REF!) ->  | BA124: 0.0% | BE124: OTHER 1 | BK124: $0 | BL124: $0 | BM124: =#REF! ->  | BN124: $0 | BP124: =AU124/#REF! ->  | BQ124: =AE124/#REF! ->  | BR124: =BQ124*#REF! ->  | BT124: =AJ124/#REF! ->  | BU124: =BT124*#REF! ->  | BW124: =#REF!/#REF! ->  | BX124: =BW124*#REF! ->  | BY124: =BX124+#REF! ->  | BZ124: =AO124/#REF! ->  | CA124: =BZ124*#REF! ->  | CC124: /MH | CD124: MH/ | CF124: =T(#REF!) ->  | CG124: =#REF! ->  | CH124: $0.00
AE125: $0 | AJ125: $0 | AO125: $0 | AU125: $0 | AZ125: =SUM(#REF!) ->  | BA125: 0.0% | BE125: OTHER 1 | BK125: $0 | BL125: $0 | BM125: =#REF! ->  | BN125: $0 | BP125: =AU125/#REF! ->  | BQ125: =AE125/#REF! ->  | BR125: =BQ125*#REF! ->  | BT125: =AJ125/#REF! ->  | BU125: =BT125*#REF! ->  | BW125: =#REF!/#REF! ->  | BX125: =BW125*#REF! ->  | BY125: =BX125+#REF! ->  | BZ125: =AO125/#REF! ->  | CA125: =BZ125*#REF! ->  | CC125: /MH | CD125: MH/ | CF125: =T(#REF!) ->  | CG125: =#REF! ->  | CH125: $0.00
AE126: $0 | AJ126: $0 | AO126: $0 | AU126: $0 | AZ126: =SUM(#REF!) ->  | BA126: 0.0% | BE126: OTHER 1 | BK126: $0 | BL126: $0 | BM126: =#REF! ->  | BN126: $0 | BP126: =AU126/#REF! ->  | BQ126: =AE126/#REF! ->  | BR126: =BQ126*#REF! ->  | BT126: =AJ126/#REF! ->  | BU126: =BT126*#REF! ->  | BW126: =#REF!/#REF! ->  | BX126: =BW126*#REF! ->  | BY126: =BX126+#REF! ->  | BZ126: =AO126/#REF! ->  | CA126: =BZ126*#REF! ->  | CC126: /MH | CD126: MH/ | CF126: =T(#REF!) ->  | CG126: =#REF! ->  | CH126: $0.00
AE127: $0 | AJ127: $0 | AO127: $0 | AU127: $0 | AZ127: =SUM(#REF!) ->  | BA127: 0.0% | BE127: OTHER 1 | BK127: $0 | BL127: $0 | BM127: =#REF! ->  | BN127: $0 | BP127: =AU127/#REF! ->  | BQ127: =AE127/#REF! ->  | BR127: =BQ127*#REF! ->  | BT127: =AJ127/#REF! ->  | BU127: =BT127*#REF! ->  | BW127: =#REF!/#REF! ->  | BX127: =BW127*#REF! ->  | BY127: =BX127+#REF! ->  | BZ127: =AO127/#REF! ->  | CA127: =BZ127*#REF! ->  | CC127: /MH | CD127: MH/ | CF127: =T(#REF!) ->  | CG127: =#REF! ->  | CH127: $0.00
AE128: $0 | AJ128: $0 | AO128: $0 | AU128: $0 | AZ128: =SUM(#REF!) ->  | BA128: 0.0% | BE128: OTHER 1 | BK128: $0 | BL128: $0 | BM128: =#REF! ->  | BN128: $0 | BP128: =AU128/#REF! ->  | BQ128: =AE128/#REF! ->  | BR128: =BQ128*#REF! ->  | BT128: =AJ128/#REF! ->  | BU128: =BT128*#REF! ->  | BW128: =#REF!/#REF! ->  | BX128: =BW128*#REF! ->  | BY128: =BX128+#REF! ->  | BZ128: =AO128/#REF! ->  | CA128: =BZ128*#REF! ->  | CC128: /MH | CD128: MH/ | CF128: =T(#REF!) ->  | CG128: =#REF! ->  | CH128: $0.00
AE129: $0 | AJ129: $0 | AO129: $0 | AU129: $0 | AZ129: =SUM(#REF!) ->  | BA129: 0.0% | BE129: OTHER 1 | BK129: $0 | BL129: $0 | BM129: =#REF! ->  | BN129: $0 | BP129: =AU129/#REF! ->  | BQ129: =AE129/#REF! ->  | BR129: =BQ129*#REF! ->  | BT129: =AJ129/#REF! ->  | BU129: =BT129*#REF! ->  | BW129: =#REF!/#REF! ->  | BX129: =BW129*#REF! ->  | BY129: =BX129+#REF! ->  | BZ129: =AO129/#REF! ->  | CA129: =BZ129*#REF! ->  | CC129: /MH | CD129: MH/ | CF129: =T(#REF!) ->  | CG129: =#REF! ->  | CH129: $0.00
AE130: $0 | AJ130: $0 | AO130: $0 | AU130: $0 | AZ130: =SUM(#REF!) ->  | BA130: 0.0% | BE130: OTHER 1 | BK130: $0 | BL130: $0 | BM130: =#REF! ->  | BN130: $0 | BP130: =AU130/#REF! ->  | BQ130: =AE130/#REF! ->  | BR130: =BQ130*#REF! ->  | BT130: =AJ130/#REF! ->  | BU130: =BT130*#REF! ->  | BW130: =#REF!/#REF! ->  | BX130: =BW130*#REF! ->  | BY130: =BX130+#REF! ->  | BZ130: =AO130/#REF! ->  | CA130: =BZ130*#REF! ->  | CC130: /MH | CD130: MH/ | CF130: =T(#REF!) ->  | CG130: =#REF! ->  | CH130: $0.00
AE131: $0 | AJ131: $0 | AO131: $0 | AU131: $0 | AZ131: =SUM(#REF!) ->  | BA131: 0.0% | BE131: OTHER 1 | BK131: $0 | BL131: $0 | BM131: =#REF! ->  | BN131: $0 | BP131: =AU131/#REF! ->  | BQ131: =AE131/#REF! ->  | BR131: =BQ131*#REF! ->  | BT131: =AJ131/#REF! ->  | BU131: =BT131*#REF! ->  | BW131: =#REF!/#REF! ->  | BX131: =BW131*#REF! ->  | BY131: =BX131+#REF! ->  | BZ131: =AO131/#REF! ->  | CA131: =BZ131*#REF! ->  | CC131: /MH | CD131: MH/ | CF131: =T(#REF!) ->  | CG131: =#REF! ->  | CH131: $0.00
AE132: $0 | AJ132: $0 | AO132: $0 | AU132: $0 | AZ132: =SUM(#REF!) ->  | BA132: 0.0% | BE132: OTHER 1 | BK132: $0 | BL132: $0 | BM132: =#REF! ->  | BN132: $0 | BP132: =AU132/#REF! ->  | BQ132: =AE132/#REF! ->  | BR132: =BQ132*#REF! ->  | BT132: =AJ132/#REF! ->  | BU132: =BT132*#REF! ->  | BW132: =#REF!/#REF! ->  | BX132: =BW132*#REF! ->  | BY132: =BX132+#REF! ->  | BZ132: =AO132/#REF! ->  | CA132: =BZ132*#REF! ->  | CC132: /MH | CD132: MH/ | CF132: =T(#REF!) ->  | CG132: =#REF! ->  | CH132: $0.00
AE133: $0 | AJ133: $0 | AO133: $0 | AU133: $0 | AZ133: =SUM(#REF!) ->  | BA133: 0.0% | BE133: OTHER 1 | BK133: $0 | BL133: $0 | BM133: =#REF! ->  | BN133: $0 | BP133: =AU133/#REF! ->  | BQ133: =AE133/#REF! ->  | BR133: =BQ133*#REF! ->  | BT133: =AJ133/#REF! ->  | BU133: =BT133*#REF! ->  | BW133: =#REF!/#REF! ->  | BX133: =BW133*#REF! ->  | BY133: =BX133+#REF! ->  | BZ133: =AO133/#REF! ->  | CA133: =BZ133*#REF! ->  | CC133: /MH | CD133: MH/ | CF133: =T(#REF!) ->  | CG133: =#REF! ->  | CH133: $0.00
AE134: $0 | AJ134: $0 | AO134: $0 | AU134: $0 | AZ134: =SUM(#REF!) ->  | BA134: 0.0% | BE134: OTHER 1 | BK134: $0 | BL134: $0 | BM134: =#REF! ->  | BN134: $0 | BP134: =AU134/#REF! ->  | BQ134: =AE134/#REF! ->  | BR134: =BQ134*#REF! ->  | BT134: =AJ134/#REF! ->  | BU134: =BT134*#REF! ->  | BW134: =#REF!/#REF! ->  | BX134: =BW134*#REF! ->  | BY134: =BX134+#REF! ->  | BZ134: =AO134/#REF! ->  | CA134: =BZ134*#REF! ->  | CC134: /MH | CD134: MH/ | CF134: =T(#REF!) ->  | CG134: =#REF! ->  | CH134: $0.00
AE135: $0 | AJ135: $0 | AO135: $0 | AU135: $0 | AZ135: =SUM(#REF!) ->  | BA135: 0.0% | BE135: OTHER 1 | BK135: $0 | BL135: $0 | BM135: =#REF! ->  | BN135: $0 | BP135: =AU135/#REF! ->  | BQ135: =AE135/#REF! ->  | BR135: =BQ135*#REF! ->  | BT135: =AJ135/#REF! ->  | BU135: =BT135*#REF! ->  | BW135: =#REF!/#REF! ->  | BX135: =BW135*#REF! ->  | BY135: =BX135+#REF! ->  | BZ135: =AO135/#REF! ->  | CA135: =BZ135*#REF! ->  | CC135: /MH | CD135: MH/ | CF135: =T(#REF!) ->  | CG135: =#REF! ->  | CH135: $0.00
AE136: $0 | AJ136: $0 | AO136: $0 | AU136: $0 | AZ136: =SUM(#REF!) ->  | BA136: 0.0% | BE136: OTHER 1 | BK136: $0 | BL136: $0 | BM136: =#REF! ->  | BN136: $0 | BP136: =AU136/#REF! ->  | BQ136: =AE136/#REF! ->  | BR136: =BQ136*#REF! ->  | BT136: =AJ136/#REF! ->  | BU136: =BT136*#REF! ->  | BW136: =#REF!/#REF! ->  | BX136: =BW136*#REF! ->  | BY136: =BX136+#REF! ->  | BZ136: =AO136/#REF! ->  | CA136: =BZ136*#REF! ->  | CC136: /MH | CD136: MH/ | CF136: =T(#REF!) ->  | CG136: =#REF! ->  | CH136: $0.00
BE137: =$B$121 -> OTHER 1 | BK137: =BK121 -> 0 | BL137: =BL121 -> 0 | BM137: =BM121 ->  | BN137: =BN121 -> 0 | BO137: =BO121 ->  | BP137: =AU137/TOTAL_REMODEL_ESTIMATE ->  | BQ137: =#REF!/TOTAL_REMODEL_ESTIMATE ->  | BR137: =#REF!/TOTAL_REMODEL_ESTIMATE ->  | BS137: =#REF!/TOTAL_REMODEL_ESTIMATE ->  | BT137: =#REF!/TOTAL_REMODEL_ESTIMATE ->  | BU137: =#REF!/TOTAL_REMODEL_ESTIMATE ->  | BV137: =#REF!/TOTAL_REMODEL_ESTIMATE ->  | BW137: =#REF!/TOTAL_REMODEL_ESTIMATE ->  | BX137: =#REF!/TOTAL_REMODEL_ESTIMATE ->  | BY137: =#REF!/TOTAL_REMODEL_ESTIMATE ->  | BZ137: =#REF!/TOTAL_REMODEL_ESTIMATE ->  | CA137: =#REF!/TOTAL_REMODEL_ESTIMATE ->  | CB137: =#REF!/TOTAL_REMODEL_ESTIMATE ->  | CC137: =#REF!/TOTAL_REMODEL_ESTIMATE ->  | CD137: =#REF!/TOTAL_REMODEL_ESTIMATE -> 
B138: =T(CONCATENATE(B121," ","TOTAL")) -> OTHER 1 TOTAL | AE138: =SUBTOTAL(9,AE122:AE137) -> $0 | AJ138: =SUBTOTAL(9,AJ121:AN137) -> $0 | AO138: =SUBTOTAL(9,AO121:AS136) -> $0 | AU138: =SUBTOTAL(9,AU121:AY137) -> $0 | BA138: =SUBTOTAL(9,BA121:BA137) -> 0.0% | BE138: =$B$121 -> OTHER 1 | BK138: =BK121 -> 0 | BL138: 0 | BN138: 0
BE139: =$B$121 -> OTHER 1 | BK139: =BK121 -> $0 | BL139: =BL121 -> $0 | BM139: =BM121 ->  | BN139: =BN121 -> $0 | BO139: =BO121 ->  | BP139: =AU139/TOTAL_REMODEL_ESTIMATE ->  | BQ139: =#REF!/TOTAL_REMODEL_ESTIMATE ->  | BR139: =#REF!/TOTAL_REMODEL_ESTIMATE ->  | BS139: =#REF!/TOTAL_REMODEL_ESTIMATE ->  | BT139: =#REF!/TOTAL_REMODEL_ESTIMATE ->  | BU139: =#REF!/TOTAL_REMODEL_ESTIMATE ->  | BV139: =#REF!/TOTAL_REMODEL_ESTIMATE ->  | BW139: =#REF!/TOTAL_REMODEL_ESTIMATE ->  | BX139: =#REF!/TOTAL_REMODEL_ESTIMATE ->  | BY139: =#REF!/TOTAL_REMODEL_ESTIMATE ->  | BZ139: =#REF!/TOTAL_REMODEL_ESTIMATE ->  | CA139: =#REF!/TOTAL_REMODEL_ESTIMATE ->  | CB139: =#REF!/TOTAL_REMODEL_ESTIMATE ->  | CC139: =#REF!/TOTAL_REMODEL_ESTIMATE ->  | CD139: =#REF!/TOTAL_REMODEL_ESTIMATE -> 
A140: Hidden | B140: OTHER 2 | BE140: =$B$121 -> OTHER 1 | BK140: =SUM(BK141:BK155) -> $0 | BL140: $0 | BN140: $0 | CC140: =CONCATENATE(T140,"/", "MH") -> /MH | CD140: =CONCATENATE("MH","/",T140) -> MH/
AE141: =V141*Q141 -> $0 | AJ141: =Q141*Y141 -> $0 | AO141: =Q141*AB141 -> $0 | AU141: =AE141+AJ141+AO141 -> $0 | AZ141: =SUM(#REF!) ->  | BA141: =IFERROR(AU141/Total_Detailed_Estimate,0) -> 0.0% | BE141: OTHER 1 | BK141: =AE141 -> $0 | BL141: =AJ141 -> $0 | BM141: =#REF! ->  | BN141: =AO141 -> $0 | BO141: =SUM(BK141:BN141) ->  | BP141: =AU141/#REF! ->  | BQ141: =AE141/#REF! ->  | BR141: =BQ141*#REF! ->  | BS141: =BR141+AE141 ->  | BT141: =AJ141/#REF! ->  | BU141: =BT141*#REF! ->  | BV141: =BU141+AJ141 ->  | BW141: =#REF!/#REF! ->  | BX141: =BW141*#REF! ->  | BY141: =BX141+#REF! ->  | BZ141: =AO141/#REF! ->  | CA141: =BZ141*#REF! ->  | CB141: =CA141+AO141 ->  | CC141: /MH | CD141: MH/ | CF141: =T(#REF!) ->  | CG141: =#REF! ->  | CH141: =AE141 -> $0.00
AE142: $0 | AJ142: $0 | AO142: =Q142*AB142 -> $0 | AU142: $0 | AZ142: =SUM(#REF!) ->  | BA142: 0.0% | BE142: OTHER 1 | BK142: $0 | BL142: $0 | BM142: =#REF! ->  | BN142: $0 | BP142: =AU142/#REF! ->  | BQ142: =AE142/#REF! ->  | BR142: =BQ142*#REF! ->  | BT142: =AJ142/#REF! ->  | BU142: =BT142*#REF! ->  | BW142: =#REF!/#REF! ->  | BX142: =BW142*#REF! ->  | BY142: =BX142+#REF! ->  | BZ142: =AO142/#REF! ->  | CA142: =BZ142*#REF! ->  | CC142: /MH | CD142: MH/ | CF142: =T(#REF!) ->  | CG142: =#REF! ->  | CH142: $0.00
AE143: $0 | AJ143: $0 | AO143: $0 | AU143: $0 | AZ143: =SUM(#REF!) ->  | BA143: 0.0% | BE143: OTHER 1 | BK143: $0 | BL143: $0 | BM143: =#REF! ->  | BN143: $0 | BP143: =AU143/#REF! ->  | BQ143: =AE143/#REF! ->  | BR143: =BQ143*#REF! ->  | BT143: =AJ143/#REF! ->  | BU143: =BT143*#REF! ->  | BW143: =#REF!/#REF! ->  | BX143: =BW143*#REF! ->  | BY143: =BX143+#REF! ->  | BZ143: =AO143/#REF! ->  | CA143: =BZ143*#REF! ->  | CC143: /MH | CD143: MH/ | CF143: =T(#REF!) ->  | CG143: =#REF! ->  | CH143: $0.00
AE144: $0 | AJ144: $0 | AO144: $0 | AU144: $0 | AZ144: =SUM(#REF!) ->  | BA144: 0.0% | BE144: OTHER 1 | BK144: $0 | BL144: $0 | BM144: =#REF! ->  | BN144: $0 | BP144: =AU144/#REF! ->  | BQ144: =AE144/#REF! ->  | BR144: =BQ144*#REF! ->  | BT144: =AJ144/#REF! ->  | BU144: =BT144*#REF! ->  | BW144: =#REF!/#REF! ->  | BX144: =BW144*#REF! ->  | BY144: =BX144+#REF! ->  | BZ144: =AO144/#REF! ->  | CA144: =BZ144*#REF! ->  | CC144: /MH | CD144: MH/ | CF144: =T(#REF!) ->  | CG144: =#REF! ->  | CH144: $0.00
AE145: $0 | AJ145: $0 | AO145: $0 | AU145: $0 | AZ145: =SUM(#REF!) ->  | BA145: 0.0% | BE145: OTHER 1 | BK145: $0 | BL145: $0 | BM145: =#REF! ->  | BN145: $0 | BP145: =AU145/#REF! ->  | BQ145: =AE145/#REF! ->  | BR145: =BQ145*#REF! ->  | BT145: =AJ145/#REF! ->  | BU145: =BT145*#REF! ->  | BW145: =#REF!/#REF! ->  | BX145: =BW145*#REF! ->  | BY145: =BX145+#REF! ->  | BZ145: =AO145/#REF! ->  | CA145: =BZ145*#REF! ->  | CC145: /MH | CD145: MH/ | CF145: =T(#REF!) ->  | CG145: =#REF! ->  | CH145: $0.00
AE146: $0 | AJ146: $0 | AO146: $0 | AU146: $0 | AZ146: =SUM(#REF!) ->  | BA146: 0.0% | BE146: OTHER 1 | BK146: $0 | BL146: $0 | BM146: =#REF! ->  | BN146: $0 | BP146: =AU146/#REF! ->  | BQ146: =AE146/#REF! ->  | BR146: =BQ146*#REF! ->  | BT146: =AJ146/#REF! ->  | BU146: =BT146*#REF! ->  | BW146: =#REF!/#REF! ->  | BX146: =BW146*#REF! ->  | BY146: =BX146+#REF! ->  | BZ146: =AO146/#REF! ->  | CA146: =BZ146*#REF! ->  | CC146: /MH | CD146: MH/ | CF146: =T(#REF!) ->  | CG146: =#REF! ->  | CH146: $0.00
AE147: $0 | AJ147: $0 | AO147: $0 | AU147: $0 | AZ147: =SUM(#REF!) ->  | BA147: 0.0% | BE147: OTHER 1 | BK147: $0 | BL147: $0 | BM147: =#REF! ->  | BN147: $0 | BP147: =AU147/#REF! ->  | BQ147: =AE147/#REF! ->  | BR147: =BQ147*#REF! ->  | BT147: =AJ147/#REF! ->  | BU147: =BT147*#REF! ->  | BW147: =#REF!/#REF! ->  | BX147: =BW147*#REF! ->  | BY147: =BX147+#REF! ->  | BZ147: =AO147/#REF! ->  | CA147: =BZ147*#REF! ->  | CC147: /MH | CD147: MH/ | CF147: =T(#REF!) ->  | CG147: =#REF! ->  | CH147: $0.00
AE148: $0 | AJ148: $0 | AO148: $0 | AU148: $0 | AZ148: =SUM(#REF!) ->  | BA148: 0.0% | BE148: OTHER 1 | BK148: $0 | BL148: $0 | BM148: =#REF! ->  | BN148: $0 | BP148: =AU148/#REF! ->  | BQ148: =AE148/#REF! ->  | BR148: =BQ148*#REF! ->  | BT148: =AJ148/#REF! ->  | BU148: =BT148*#REF! ->  | BW148: =#REF!/#REF! ->  | BX148: =BW148*#REF! ->  | BY148: =BX148+#REF! ->  | BZ148: =AO148/#REF! ->  | CA148: =BZ148*#REF! ->  | CC148: /MH | CD148: MH/ | CF148: =T(#REF!) ->  | CG148: =#REF! ->  | CH148: $0.00
AE149: $0 | AJ149: $0 | AO149: $0 | AU149: $0 | AZ149: =SUM(#REF!) ->  | BA149: 0.0% | BE149: OTHER 1 | BK149: $0 | BL149: $0 | BM149: =#REF! ->  | BN149: $0 | BP149: =AU149/#REF! ->  | BQ149: =AE149/#REF! ->  | BR149: =BQ149*#REF! ->  | BT149: =AJ149/#REF! ->  | BU149: =BT149*#REF! ->  | BW149: =#REF!/#REF! ->  | BX149: =BW149*#REF! ->  | BY149: =BX149+#REF! ->  | BZ149: =AO149/#REF! ->  | CA149: =BZ149*#REF! ->  | CC149: /MH | CD149: MH/ | CF149: =T(#REF!) ->  | CG149: =#REF! ->  | CH149: $0.00
AE150: $0 | AJ150: $0 | AO150: $0 | AU150: $0 | AZ150: =SUM(#REF!) ->  | BA150: 0.0% | BE150: OTHER 1 | BK150: $0 | BL150: $0 | BM150: =#REF! ->  | BN150: $0 | BP150: =AU150/#REF! ->  | BQ150: =AE150/#REF! ->  | BR150: =BQ150*#REF! ->  | BT150: =AJ150/#REF! ->  | BU150: =BT150*#REF! ->  | BW150: =#REF!/#REF! ->  | BX150: =BW150*#REF! ->  | BY150: =BX150+#REF! ->  | BZ150: =AO150/#REF! ->  | CA150: =BZ150*#REF! ->  | CC150: /MH | CD150: MH/ | CF150: =T(#REF!) ->  | CG150: =#REF! ->  | CH150: $0.00
AE151: $0 | AJ151: $0 | AO151: $0 | AU151: $0 | AZ151: =SUM(#REF!) ->  | BA151: 0.0% | BE151: OTHER 1 | BK151: $0 | BL151: $0 | BM151: =#REF! ->  | BN151: $0 | BP151: =AU151/#REF! ->  | BQ151: =AE151/#REF! ->  | BR151: =BQ151*#REF! ->  | BT151: =AJ151/#REF! ->  | BU151: =BT151*#REF! ->  | BW151: =#REF!/#REF! ->  | BX151: =BW151*#REF! ->  | BY151: =BX151+#REF! ->  | BZ151: =AO151/#REF! ->  | CA151: =BZ151*#REF! ->  | CC151: /MH | CD151: MH/ | CF151: =T(#REF!) ->  | CG151: =#REF! ->  | CH151: $0.00
AE152: $0 | AJ152: $0 | AO152: $0 | AU152: $0 | AZ152: =SUM(#REF!) ->  | BA152: 0.0% | BE152: OTHER 1 | BK152: $0 | BL152: $0 | BM152: =#REF! ->  | BN152: $0 | BP152: =AU152/#REF! ->  | BQ152: =AE152/#REF! ->  | BR152: =BQ152*#REF! ->  | BT152: =AJ152/#REF! ->  | BU152: =BT152*#REF! ->  | BW152: =#REF!/#REF! ->  | BX152: =BW152*#REF! ->  | BY152: =BX152+#REF! ->  | BZ152: =AO152/#REF! ->  | CA152: =BZ152*#REF! ->  | CC152: /MH | CD152: MH/ | CF152: =T(#REF!) ->  | CG152: =#REF! ->  | CH152: $0.00
AE153: $0 | AJ153: $0 | AO153: $0 | AU153: $0 | AZ153: =SUM(#REF!) ->  | BA153: 0.0% | BE153: OTHER 1 | BK153: $0 | BL153: $0 | BM153: =#REF! ->  | BN153: $0 | BP153: =AU153/#REF! ->  | BQ153: =AE153/#REF! ->  | BR153: =BQ153*#REF! ->  | BT153: =AJ153/#REF! ->  | BU153: =BT153*#REF! ->  | BW153: =#REF!/#REF! ->  | BX153: =BW153*#REF! ->  | BY153: =BX153+#REF! ->  | BZ153: =AO153/#REF! ->  | CA153: =BZ153*#REF! ->  | CC153: /MH | CD153: MH/ | CF153: =T(#REF!) ->  | CG153: =#REF! ->  | CH153: $0.00
AE154: $0 | AJ154: $0 | AO154: $0 | AU154: $0 | AZ154: =SUM(#REF!) ->  | BA154: 0.0% | BE154: OTHER 1 | BK154: $0 | BL154: $0 | BM154: =#REF! ->  | BN154: $0 | BP154: =AU154/#REF! ->  | BQ154: =AE154/#REF! ->  | BR154: =BQ154*#REF! ->  | BT154: =AJ154/#REF! ->  | BU154: =BT154*#REF! ->  | BW154: =#REF!/#REF! ->  | BX154: =BW154*#REF! ->  | BY154: =BX154+#REF! ->  | BZ154: =AO154/#REF! ->  | CA154: =BZ154*#REF! ->  | CC154: /MH | CD154: MH/ | CF154: =T(#REF!) ->  | CG154: =#REF! ->  | CH154: $0.00
AE155: $0 | AJ155: $0 | AO155: $0 | AU155: $0 | AZ155: =SUM(#REF!) ->  | BA155: 0.0% | BE155: OTHER 1 | BK155: $0 | BL155: $0 | BM155: =#REF! ->  | BN155: $0 | BP155: =AU155/#REF! ->  | BQ155: =AE155/#REF! ->  | BR155: =BQ155*#REF! ->  | BT155: =AJ155/#REF! ->  | BU155: =BT155*#REF! ->  | BW155: =#REF!/#REF! ->  | BX155: =BW155*#REF! ->  | BY155: =BX155+#REF! ->  | BZ155: =AO155/#REF! ->  | CA155: =BZ155*#REF! ->  | CC155: /MH | CD155: MH/ | CF155: =T(#REF!) ->  | CG155: =#REF! ->  | CH155: $0.00
BE156: =$B$121 -> OTHER 1 | BK156: =BK140 -> 0 | BL156: =BL140 -> 0 | BM156: =BM140 ->  | BN156: =BN140 -> 0 | BO156: =BO140 ->  | BP156: =AU156/TOTAL_REMODEL_ESTIMATE ->  | BQ156: =#REF!/TOTAL_REMODEL_ESTIMATE ->  | BR156: =#REF!/TOTAL_REMODEL_ESTIMATE ->  | BS156: =#REF!/TOTAL_REMODEL_ESTIMATE ->  | BT156: =#REF!/TOTAL_REMODEL_ESTIMATE ->  | BU156: =#REF!/TOTAL_REMODEL_ESTIMATE ->  | BV156: =#REF!/TOTAL_REMODEL_ESTIMATE ->  | BW156: =#REF!/TOTAL_REMODEL_ESTIMATE ->  | BX156: =#REF!/TOTAL_REMODEL_ESTIMATE ->  | BY156: =#REF!/TOTAL_REMODEL_ESTIMATE ->  | BZ156: =#REF!/TOTAL_REMODEL_ESTIMATE ->  | CA156: =#REF!/TOTAL_REMODEL_ESTIMATE ->  | CB156: =#REF!/TOTAL_REMODEL_ESTIMATE ->  | CC156: =#REF!/TOTAL_REMODEL_ESTIMATE ->  | CD156: =#REF!/TOTAL_REMODEL_ESTIMATE -> 
B157: =T(CONCATENATE(B140," ","TOTAL")) -> OTHER 2 TOTAL | AE157: =SUBTOTAL(9,AE141:AE156) -> $0 | AJ157: =SUBTOTAL(9,AJ140:AN156) -> $0 | AO157: =SUBTOTAL(9,AO140:AS155) -> $0 | AU157: =SUBTOTAL(9,AU140:AY156) -> $0 | BA157: =SUBTOTAL(9,BA140:BA156) -> 0.0% | BE157: =$B$121 -> OTHER 1 | BK157: =BK140 -> 0 | BL157: 0 | BN157: 0
BE158: =$B$121 -> OTHER 1 | BK158: =BK140 -> $0 | BL158: =BL140 -> $0 | BM158: =BM140 ->  | BN158: =BN140 -> $0 | BO158: =BO140 ->  | BP158: =AU158/TOTAL_REMODEL_ESTIMATE ->  | BQ158: =#REF!/TOTAL_REMODEL_ESTIMATE ->  | BR158: =#REF!/TOTAL_REMODEL_ESTIMATE ->  | BS158: =#REF!/TOTAL_REMODEL_ESTIMATE ->  | BT158: =#REF!/TOTAL_REMODEL_ESTIMATE ->  | BU158: =#REF!/TOTAL_REMODEL_ESTIMATE ->  | BV158: =#REF!/TOTAL_REMODEL_ESTIMATE ->  | BW158: =#REF!/TOTAL_REMODEL_ESTIMATE ->  | BX158: =#REF!/TOTAL_REMODEL_ESTIMATE ->  | BY158: =#REF!/TOTAL_REMODEL_ESTIMATE ->  | BZ158: =#REF!/TOTAL_REMODEL_ESTIMATE ->  | CA158: =#REF!/TOTAL_REMODEL_ESTIMATE ->  | CB158: =#REF!/TOTAL_REMODEL_ESTIMATE ->  | CC158: =#REF!/TOTAL_REMODEL_ESTIMATE ->  | CD158: =#REF!/TOTAL_REMODEL_ESTIMATE -> 
BC159: =BC160 -> $0 | BE159: =BE160 -> $0 | BG159: =BG160 -> $0 | BH159: =BH160 -> $0 | BI159: =BI160 -> $0 | BJ159: =BJ160 -> $0
BC162: Lists | BE162: Lists | BG162: Lists | BH162: Lists | BI162: Lists | BJ162: Lists
BC163: Units | BE163: Units | BG163: Units | BH163: Units | BI163: Units | BJ163: Units
BC164: ls | BE164: ls | BG164: ls | BH164: ls | BI164: ls | BJ164: ls
BC165: ea | BE165: ea | BG165: ea | BH165: ea | BI165: ea | BJ165: ea
BC166: lf | BE166: lf | BG166: lf | BH166: lf | BI166: lf | BJ166: lf
BC167: sf | BE167: sf | BG167: sf | BH167: sf | BI167: sf | BJ167: sf
BC168: sy | BE168: sy | BG168: sy | BH168: sy | BI168: sy | BJ168: sy
BC169: sq | BE169: sq | BG169: sq | BH169: sq | BI169: sq | BJ169: sq
BC170: hrs | BE170: hrs | BG170: hrs | BH170: hrs | BI170: hrs | BJ170: hrs
BC171: wk | BE171: wk | BG171: wk | BH171: wk | BI171: wk | BJ171: wk
BC172: mo | BE172: mo | BG172: mo | BH172: mo | BI172: mo | BJ172: mo
BC173: sheet | BE173: sheet | BG173: sheet | BH173: sheet | BI173: sheet | BJ173: sheet
BC174: gall | BE174: gall | BG174: gall | BH174: gall | BI174: gall | BJ174: gall
B176: Crew Calcs | E176: MHs | H176: Crew Pay | L176: Pay per HR
B177: =T(#REF!) ->  | E177: =SUMIF($CF7:$CF$139,B177,$CG$7:$CG$139) ->  | H177: =SUMIF($CF$7:$CF$139,B177,$CH$7:$CH$139) -> $4,960.00 | L177: =IFERROR(H177/E177,0) -> 0
B178: =T(#REF!) ->  | E178: =SUMIF($CF8:$CF$139,B178,$CG$7:$CG$139) ->  | H178: $4,960.00 | L178: =IFERROR(H178/E178,0) -> 0
B179: =T(#REF!) ->  | E179: =SUMIF($CF9:$CF$139,B179,$CG$7:$CG$139) ->  | H179: $4,960.00 | L179: 0
B180: =T(#REF!) ->  | E180: =SUMIF($CF10:$CF$139,B180,$CG$7:$CG$139) ->  | H180: $4,960.00 | L180: 0
B181: =T(#REF!) ->  | E181: =SUMIF($CF11:$CF$139,B181,$CG$7:$CG$139) ->  | H181: $4,960.00 | L181: 0
B182: =T(#REF!) ->  | E182: =SUMIF($CF12:$CF$139,B182,$CG$7:$CG$139) ->  | H182: $4,960.00 | L182: 0
B183: =T(#REF!) ->  | E183: =SUMIF($CF13:$CF$139,B183,$CG$7:$CG$139) ->  | H183: $4,960.00 | L183: 0
B184: =#REF! ->  | E184: =SUMIF($CF14:$CF$139,B184,$CG$7:$CG$139) ->  | H184: $4,960.00 | L184: 0
B185: =#REF! ->  | E185: =SUMIF($CF15:$CF$139,B185,$CG$7:$CG$139) ->  | H185: $4,960.00 | L185: 0
B186: =#REF! ->  | E186: =SUMIF($CF16:$CF$139,B186,$CG$7:$CG$139) ->  | H186: $4,960.00 | L186: 0
B187: =#REF! ->  | E187: =SUMIF($CF17:$CF$139,B187,$CG$7:$CG$139) ->  | H187: $4,960.00 | L187: 0
B188: =#REF! ->  | E188: =SUMIF($CF18:$CF$139,B188,$CG$7:$CG$139) ->  | H188: $4,960.00 | L188: 0
B189: =#REF! ->  | E189: =SUMIF($CF19:$CF$139,B189,$CG$7:$CG$139) ->  | H189: $4,960.00 | L189: 0
B190: =#REF! ->  | E190: =SUMIF($CF20:$CF$139,B190,$CG$7:$CG$139) ->  | H190: $4,960.00 | L190: 0
B191: =#REF! ->  | E191: =SUMIF($CF21:$CF$139,B191,$CG$7:$CG$139) ->  | H191: $4,960.00 | L191: 0
B192: =#REF! ->  | E192: =SUMIF($CF22:$CF$139,B192,$CG$7:$CG$139) ->  | H192: $4,960.00 | L192: 0
B193: =#REF! ->  | E193: =SUMIF($CF23:$CF$139,B193,$CG$7:$CG$139) ->  | H193: $4,960.00 | L193: 0
B194: =#REF! ->  | E194: =SUMIF($CF23:$CF$139,B194,$CG$7:$CG$139) ->  | H194: $4,960.00 | L194: 0
B195: =#REF! ->  | E195: =SUMIF($CF23:$CF$139,B195,$CG$7:$CG$139) ->  | H195: $4,960.00 | L195: 0
B196: =#REF! ->  | E196: =SUMIF($CF23:$CF$139,B196,$CG$7:$CG$139) ->  | H196: $4,960.00 | L196: 0
B197: =#REF! ->  | E197: =SUMIF($CF23:$CF$139,B197,$CG$7:$CG$139) ->  | H197: $4,960.00 | L197: 0
B198: =#REF! ->  | E198: =SUMIF($CF23:$CF$139,B198,$CG$7:$CG$139) ->  | H198: $4,960.00 | L198: 0
B199: =#REF! ->  | E199: =SUMIF($CF23:$CF$139,B199,$CG$7:$CG$139) ->  | H199: $4,960.00 | L199: 0
B200: =#REF! ->  | E200: =SUMIF($CF23:$CF$139,B200,$CG$7:$CG$139) ->  | H200: $4,960.00 | L200: 0
B201: =#REF! ->  | E201: =SUMIF($CF23:$CF$139,B201,$CG$7:$CG$139) ->  | H201: $4,960.00 | L201: 0
B202: =#REF! ->  | E202: =SUMIF($CF23:$CF$139,B202,$CG$7:$CG$139) ->  | H202: $4,960.00 | L202: 0
B203: =#REF! ->  | E203: =SUMIF($CF23:$CF$139,B203,$CG$7:$CG$139) ->  | H203: $4,960.00 | L203: 0
B204: =#REF! ->  | E204: =SUMIF($CF24:$CF$139,B204,$CG$7:$CG$139) ->  | H204: $4,960.00 | L204: 0
B205: =#REF! ->  | E205: =SUMIF($CF25:$CF$139,B205,$CG$7:$CG$139) ->  | H205: $4,960.00 | L205: 0
B206: TOTAL | E206: =SUM(E177:G205) ->  | H206: =SUM(H177:K205) -> $143,840.00 | L206: =SUM(L177:N205) -> $0.00
... 32 more rows

Sheet ALTERNATES (hidden)
A2: Setup | B2: Estimate | F2: GCs | J2: Adders | N2: Alternates | AG2: Go to Summary | AM2: Edit Categories | AS2: Print Report
B4: STATUS | E4: Description of Work | Q4: QTY | T4: UNIT | V4: UNIT COST | AE4: LABOR/EQUIP | AJ4: MAT | AO4: SUB | AU4: TOTALS | BB4: NOTES | BD4: WORK BREAKDOWN BY SCOPE OF WORK | BF4: CUSTOM SORT 1 | BG4: CUSTOM SORT 2 | BH4: CUSTOM SORT 3 | BI4: CUSTOM SORT 4 | BJ4: LABOR, MATERIAL, SUB SORTER | CP4: SCOPE MAPPING
V5: LABOR/EQUIP | Y5: MAT | AB5: SUB | AE5: =AE39+AE95+AE151+AE207+AE263+AE319+AE375 -> $43,900 | AJ5: =AJ39+AJ95+AJ151+AJ207+AJ263+AJ319+AJ375 -> $0 | AO5: =AO39+AO95+AO151+AO207+AO263+AO319+AO375 -> $0 | AU5: =AU39+AU95+AU151+AU207+AU263+AU319+AU375 -> $43,900 | BJ5: =BJ39+BJ95+BJ151+BJ207+BJ263+BJ319+BJ375+#REF!+#REF!+#REF!+#REF!+#REF!+#REF!+#REF!+#REF!+#REF!+#REF!+#REF!+#REF!+#REF!+#REF!+#REF!+#REF!+#REF! ->  | BK5: =BK39+BK95+BK151+BK207+BK263+BK319+BK375+#REF!+#REF!+#REF!+#REF!+#REF!+#REF!+#REF!+#REF!+#REF!+#REF!+#REF!+#REF!+#REF!+#REF!+#REF!+#REF!+#REF! ->  | BL5: =BL39+BL95+BL151+BL207+BL263+BL319+BL375+#REF!+#REF!+#REF!+#REF!+#REF!+#REF!+#REF!+#REF!+#REF!+#REF!+#REF!+#REF!+#REF!+#REF!+#REF!+#REF!+#REF! ->  | BM5: =BM39+BM95+BM151+BM207+BM263+BM319+BM375+#REF!+#REF!+#REF!+#REF!+#REF!+#REF!+#REF!+#REF!+#REF!+#REF!+#REF!+#REF!+#REF!+#REF!+#REF!+#REF!+#REF! ->  | BN5: =BN39+BN95+BN151+BN207+BN263+BN319+BN375+#REF!+#REF!+#REF!+#REF!+#REF!+#REF!+#REF!+#REF!+#REF!+#REF!+#REF!+#REF!+#REF!+#REF!+#REF!+#REF!+#REF! ->  | BO5: =BO39+BO95+BO151+BO207+BO263+BO319+BO375+#REF!+#REF!+#REF!+#REF!+#REF!+#REF!+#REF!+#REF!+#REF!+#REF!+#REF!+#REF!+#REF!+#REF!+#REF!+#REF!+#REF! ->  | BP5: =BP39+BP95+BP151+BP207+BP263+BP319+BP375+#REF!+#REF!+#REF!+#REF!+#REF!+#REF!+#REF!+#REF!+#REF!+#REF!+#REF!+#REF!+#REF!+#REF!+#REF!+#REF!+#REF! ->  | BQ5: =BQ39+BQ95+BQ151+BQ207+BQ263+BQ319+BQ375+#REF!+#REF!+#REF!+#REF!+#REF!+#REF!+#REF!+#REF!+#REF!+#REF!+#REF!+#REF!+#REF!+#REF!+#REF!+#REF!+#REF! ->  | BR5: =BR39+BR95+BR151+BR207+BR263+BR319+BR375+#REF!+#REF!+#REF!+#REF!+#REF!+#REF!+#REF!+#REF!+#REF!+#REF!+#REF!+#REF!+#REF!+#REF!+#REF!+#REF!+#REF! ->  | BS5: =BS39+BS95+BS151+BS207+BS263+BS319+BS375+#REF!+#REF!+#REF!+#REF!+#REF!+#REF!+#REF!+#REF!+#REF!+#REF!+#REF!+#REF!+#REF!+#REF!+#REF!+#REF! ->  | BT5: =BT39+BT95+BT151+BT207+BT263+BT319+BT375+#REF!+#REF!+#REF!+#REF!+#REF!+#REF!+#REF!+#REF!+#REF!+#REF!+#REF!+#REF!+#REF!+#REF!+#REF!+#REF!+#REF! ->  | BU5: =BU39+BU95+BU151+BU207+BU263+BU319+BU375+#REF!+#REF!+#REF!+#REF!+#REF!+#REF!+#REF!+#REF!+#REF!+#REF!+#REF!+#REF!+#REF!+#REF!+#REF!+#REF!+#REF! ->  | BV5: =BV39+BV95+BV151+BV207+BV263+BV319+BV375+#REF!+#REF!+#REF!+#REF!+#REF!+#REF!+#REF!+#REF!+#REF!+#REF!+#REF!+#REF!+#REF!+#REF!+#REF!+#REF! ->  | BW5: =BW39+BW95+BW151+BW207+BW263+BW319+BW375+#REF!+#REF!+#REF!+#REF!+#REF!+#REF!+#REF!+#REF!+#REF!+#REF!+#REF!+#REF!+#REF!+#REF!+#REF!+#REF!+#REF! ->  | BX5: =BX39+BX95+BX151+BX207+BX263+BX319+BX375+#REF!+#REF!+#REF!+#REF!+#REF!+#REF!+#REF!+#REF!+#REF!+#REF!+#REF!+#REF!+#REF!+#REF!+#REF!+#REF!+#REF! ->  | BY5: =BY39+BY95+BY151+BY207+BY263+BY319+BY375+#REF!+#REF!+#REF!+#REF!+#REF!+#REF!+#REF!+#REF!+#REF!+#REF!+#REF!+#REF!+#REF!+#REF!+#REF!+#REF! ->  | BZ5: =BZ39+BZ95+BZ151+BZ207+BZ263+BZ319+BZ375+#REF!+#REF!+#REF!+#REF!+#REF!+#REF!+#REF!+#REF!+#REF!+#REF!+#REF!+#REF!+#REF!+#REF!+#REF!+#REF!+#REF! ->  | CA5: =CA39+CA95+CA151+CA207+CA263+CA319+CA375+#REF!+#REF!+#REF!+#REF!+#REF!+#REF!+#REF!+#REF!+#REF!+#REF!+#REF!+#REF!+#REF!+#REF!+#REF!+#REF!+#REF! -> 
A7: Hidden | B7: Accepted | E7: =Alternate1_Description -> Alternate #1: Build new deck (10 x 20ft) | AE7: =IF(AE39=0,"",AE39) -> $6,400 | AJ7: =IF(AJ39=0,"",AJ39) ->  | AO7: =IF(AO39=0,"",AO39) ->  | AU7: =IF(AU39=0,"",AU39) -> $6,400 | BD7: =$B$7 -> Accepted | BJ7: =SUM(BJ8:BJ22) -> $6,400 | BK7: $0 | BM7: $0 | CB7: =CONCATENATE(T7,"/", "MH") -> /MH | CC7: =CONCATENATE("MH","/",T7) -> MH/
B8: Build new deck | Q8: 200 | T8: sf | V8: $25.00 | AE8: =V8*Q8 -> $5,000 | AJ8: =Q8*Y8 -> $0 | AO8: =Q8*AB8 -> $0 | AU8: =AE8+AJ8+AO8 -> $5,000 | AZ8: =SUM(#REF!) ->  | BD8: Accepted | BJ8: =AE8 -> $5,000 | BK8: =AJ8 -> $0 | BL8: =#REF! ->  | BM8: =AO8 -> $0 | BN8: =SUM(BJ8:BM8) ->  | BO8: =AU8/#REF! ->  | BP8: =AE8/#REF! ->  | BQ8: =BP8*#REF! ->  | BR8: =BQ8+AE8 ->  | BS8: =AJ8/#REF! ->  | BT8: =BS8*#REF! ->  | BU8: =BT8+AJ8 ->  | BV8: =#REF!/#REF! ->  | BW8: =BV8*#REF! ->  | BX8: =BW8+#REF! ->  | BY8: =AO8/#REF! ->  | BZ8: =BY8*#REF! ->  | CA8: =BZ8+AO8 ->  | CB8: sf/MH | CC8: MH/sf | CE8: =T(#REF!) ->  | CF8: =#REF! ->  | CG8: =AE8 -> $5,000.00
B9: Stairs | Q9: 1 | T9: ea | V9: $750.00 | AE9: =V9*Q9 -> $750 | AJ9: =Q9*Y9 -> $0 | AO9: =Q9*AB9 -> $0 | AU9: =AE9+AJ9+AO9 -> $750 | AZ9: =SUM(#REF!) ->  | BD9: Accepted | BJ9: $750 | BK9: $0 | BL9: =#REF! ->  | BM9: $0 | BO9: =AU9/#REF! ->  | BP9: =AE9/#REF! ->  | BQ9: =BP9*#REF! ->  | BS9: =AJ9/#REF! ->  | BT9: =BS9*#REF! ->  | BV9: =#REF!/#REF! ->  | BW9: =BV9*#REF! ->  | BX9: =BW9+#REF! ->  | BY9: =AO9/#REF! ->  | BZ9: =BY9*#REF! ->  | CB9: ea/MH | CC9: MH/ea | CE9: =T(#REF!) ->  | CF9: =#REF! ->  | CG9: $750.00
B10: Concrete pad | Q10: 1 | T10: ea | V10: $350.00 | AE10: $350 | AJ10: $0 | AO10: $0 | AU10: $350 | AZ10: =SUM(#REF!) ->  | BD10: Accepted | BJ10: $350 | BK10: $0 | BL10: =#REF! ->  | BM10: $0 | BO10: =AU10/#REF! ->  | BP10: =AE10/#REF! ->  | BQ10: =BP10*#REF! ->  | BS10: =AJ10/#REF! ->  | BT10: =BS10*#REF! ->  | BV10: =#REF!/#REF! ->  | BW10: =BV10*#REF! ->  | BX10: =BW10+#REF! ->  | BY10: =AO10/#REF! ->  | BZ10: =BY10*#REF! ->  | CB10: ea/MH | CC10: MH/ea | CE10: =T(#REF!) ->  | CF10: =#REF! ->  | CG10: $350.00
B11: Stain deck | Q11: 200 | T11: sf | V11: $1.50 | AE11: $300 | AJ11: $0 | AO11: $0 | AU11: $300 | AZ11: =SUM(#REF!) ->  | BD11: Accepted | BJ11: $300 | BK11: $0 | BL11: =#REF! ->  | BM11: $0 | BO11: =AU11/#REF! ->  | BP11: =AE11/#REF! ->  | BQ11: =BP11*#REF! ->  | BS11: =AJ11/#REF! ->  | BT11: =BS11*#REF! ->  | BV11: =#REF!/#REF! ->  | BW11: =BV11*#REF! ->  | BX11: =BW11+#REF! ->  | BY11: =AO11/#REF! ->  | BZ11: =BY11*#REF! ->  | CB11: sf/MH | CC11: MH/sf | CE11: =T(#REF!) ->  | CF11: =#REF! ->  | CG11: $300.00
AE12: $0 | AJ12: $0 | AO12: $0 | AU12: $0 | AZ12: =SUM(#REF!) ->  | BD12: Accepted | BJ12: $0 | BK12: $0 | BL12: =#REF! ->  | BM12: $0 | BO12: =AU12/#REF! ->  | BP12: =AE12/#REF! ->  | BQ12: =BP12*#REF! ->  | BS12: =AJ12/#REF! ->  | BT12: =BS12*#REF! ->  | BV12: =#REF!/#REF! ->  | BW12: =BV12*#REF! ->  | BX12: =BW12+#REF! ->  | BY12: =AO12/#REF! ->  | BZ12: =BY12*#REF! ->  | CB12: /MH | CC12: MH/ | CE12: =T(#REF!) ->  | CF12: =#REF! ->  | CG12: $0.00
AE13: $0 | AJ13: $0 | AO13: $0 | AU13: $0 | AZ13: =SUM(#REF!) ->  | BD13: Accepted | BJ13: $0 | BK13: $0 | BL13: =#REF! ->  | BM13: $0 | BO13: =AU13/#REF! ->  | BP13: =AE13/#REF! ->  | BQ13: =BP13*#REF! ->  | BS13: =AJ13/#REF! ->  | BT13: =BS13*#REF! ->  | BV13: =#REF!/#REF! ->  | BW13: =BV13*#REF! ->  | BX13: =BW13+#REF! ->  | BY13: =AO13/#REF! ->  | BZ13: =BY13*#REF! ->  | CB13: /MH | CC13: MH/ | CE13: =T(#REF!) ->  | CF13: =#REF! ->  | CG13: $0.00
AE14: $0 | AJ14: $0 | AO14: $0 | AU14: $0 | AZ14: =SUM(#REF!) ->  | BD14: Accepted | BJ14: $0 | BK14: $0 | BL14: =#REF! ->  | BM14: $0 | BO14: =AU14/#REF! ->  | BP14: =AE14/#REF! ->  | BQ14: =BP14*#REF! ->  | BS14: =AJ14/#REF! ->  | BT14: =BS14*#REF! ->  | BV14: =#REF!/#REF! ->  | BW14: =BV14*#REF! ->  | BX14: =BW14+#REF! ->  | BY14: =AO14/#REF! ->  | BZ14: =BY14*#REF! ->  | CB14: /MH | CC14: MH/ | CE14: =T(#REF!) ->  | CF14: =#REF! ->  | CG14: $0.00
AE15: $0 | AJ15: $0 | AO15: $0 | AU15: $0 | AZ15: =SUM(#REF!) ->  | BD15: Accepted | BJ15: $0 | BK15: $0 | BL15: =#REF! ->  | BM15: $0 | BO15: =AU15/#REF! ->  | BP15: =AE15/#REF! ->  | BQ15: =BP15*#REF! ->  | BS15: =AJ15/#REF! ->  | BT15: =BS15*#REF! ->  | BV15: =#REF!/#REF! ->  | BW15: =BV15*#REF! ->  | BX15: =BW15+#REF! ->  | BY15: =AO15/#REF! ->  | BZ15: =BY15*#REF! ->  | CB15: /MH | CC15: MH/ | CE15: =T(#REF!) ->  | CF15: =#REF! ->  | CG15: $0.00
AE16: $0 | AJ16: $0 | AO16: $0 | AU16: $0 | AZ16: =SUM(#REF!) ->  | BD16: Accepted | BJ16: $0 | BK16: $0 | BL16: =#REF! ->  | BM16: $0 | BO16: =AU16/#REF! ->  | BP16: =AE16/#REF! ->  | BQ16: =BP16*#REF! ->  | BS16: =AJ16/#REF! ->  | BT16: =BS16*#REF! ->  | BV16: =#REF!/#REF! ->  | BW16: =BV16*#REF! ->  | BX16: =BW16+#REF! ->  | BY16: =AO16/#REF! ->  | BZ16: =BY16*#REF! ->  | CB16: /MH | CC16: MH/ | CE16: =T(#REF!) ->  | CF16: =#REF! ->  | CG16: $0.00
AE17: $0 | AJ17: $0 | AO17: $0 | AU17: $0 | AZ17: =SUM(#REF!) ->  | BD17: Accepted | BJ17: $0 | BK17: $0 | BL17: =#REF! ->  | BM17: $0 | BO17: =AU17/#REF! ->  | BP17: =AE17/#REF! ->  | BQ17: =BP17*#REF! ->  | BS17: =AJ17/#REF! ->  | BT17: =BS17*#REF! ->  | BV17: =#REF!/#REF! ->  | BW17: =BV17*#REF! ->  | BX17: =BW17+#REF! ->  | BY17: =AO17/#REF! ->  | BZ17: =BY17*#REF! ->  | CB17: /MH | CC17: MH/ | CE17: =T(#REF!) ->  | CF17: =#REF! ->  | CG17: $0.00
AE18: $0 | AJ18: $0 | AO18: $0 | AU18: $0 | AZ18: =SUM(#REF!) ->  | BD18: Accepted | BJ18: $0 | BK18: $0 | BL18: =#REF! ->  | BM18: $0 | BO18: =AU18/#REF! ->  | BP18: =AE18/#REF! ->  | BQ18: =BP18*#REF! ->  | BS18: =AJ18/#REF! ->  | BT18: =BS18*#REF! ->  | BV18: =#REF!/#REF! ->  | BW18: =BV18*#REF! ->  | BX18: =BW18+#REF! ->  | BY18: =AO18/#REF! ->  | BZ18: =BY18*#REF! ->  | CB18: /MH | CC18: MH/ | CE18: =T(#REF!) ->  | CF18: =#REF! ->  | CG18: $0.00
AE19: $0 | AJ19: $0 | AO19: $0 | AU19: $0 | AZ19: =SUM(#REF!) ->  | BD19: Accepted | BJ19: $0 | BK19: $0 | BL19: =#REF! ->  | BM19: $0 | BO19: =AU19/#REF! ->  | BP19: =AE19/#REF! ->  | BQ19: =BP19*#REF! ->  | BS19: =AJ19/#REF! ->  | BT19: =BS19*#REF! ->  | BV19: =#REF!/#REF! ->  | BW19: =BV19*#REF! ->  | BX19: =BW19+#REF! ->  | BY19: =AO19/#REF! ->  | BZ19: =BY19*#REF! ->  | CB19: /MH | CC19: MH/ | CE19: =T(#REF!) ->  | CF19: =#REF! ->  | CG19: $0.00
AE20: $0 | AJ20: $0 | AO20: $0 | AU20: $0 | AZ20: =SUM(#REF!) ->  | BD20: Accepted | BJ20: $0 | BK20: $0 | BL20: =#REF! ->  | BM20: $0 | BO20: =AU20/#REF! ->  | BP20: =AE20/#REF! ->  | BQ20: =BP20*#REF! ->  | BS20: =AJ20/#REF! ->  | BT20: =BS20*#REF! ->  | BV20: =#REF!/#REF! ->  | BW20: =BV20*#REF! ->  | BX20: =BW20+#REF! ->  | BY20: =AO20/#REF! ->  | BZ20: =BY20*#REF! ->  | CB20: /MH | CC20: MH/ | CE20: =T(#REF!) ->  | CF20: =#REF! ->  | CG20: $0.00
AE21: $0 | AJ21: $0 | AO21: $0 | AU21: $0 | AZ21: =SUM(#REF!) ->  | BD21: Accepted | BJ21: $0 | BK21: $0 | BL21: =#REF! ->  | BM21: $0 | BO21: =AU21/#REF! ->  | BP21: =AE21/#REF! ->  | BQ21: =BP21*#REF! ->  | BS21: =AJ21/#REF! ->  | BT21: =BS21*#REF! ->  | BV21: =#REF!/#REF! ->  | BW21: =BV21*#REF! ->  | BX21: =BW21+#REF! ->  | BY21: =AO21/#REF! ->  | BZ21: =BY21*#REF! ->  | CB21: /MH | CC21: MH/ | CE21: =T(#REF!) ->  | CF21: =#REF! ->  | CG21: $0.00
AE22: $0 | AJ22: $0 | AO22: $0 | AU22: $0 | AZ22: =SUM(#REF!) ->  | BD22: Accepted | BJ22: $0 | BK22: $0 | BL22: =#REF! ->  | BM22: $0 | BO22: =AU22/#REF! ->  | BP22: =AE22/#REF! ->  | BQ22: =BP22*#REF! ->  | BS22: =AJ22/#REF! ->  | BT22: =BS22*#REF! ->  | BV22: =#REF!/#REF! ->  | BW22: =BV22*#REF! ->  | BX22: =BW22+#REF! ->  | BY22: =AO22/#REF! ->  | BZ22: =BY22*#REF! ->  | CB22: /MH | CC22: MH/ | CE22: =T(#REF!) ->  | CF22: =#REF! ->  | CG22: $0.00
AE23: =V23*Q23 -> $0 | AJ23: =Q23*Y23 -> $0 | AO23: =Q23*AB23 -> $0 | AU23: =AE23+AJ23+AO23 -> $0 | AZ23: =SUM(#REF!) ->  | BD23: Accepted | BJ23: $0 | BK23: $0 | BL23: =#REF! ->  | BM23: $0 | BN23: =SUM(BJ23:BM23) ->  | BO23: =AU23/#REF! ->  | BP23: =AE23/#REF! ->  | BQ23: =BP23*#REF! ->  | BS23: =AJ23/#REF! ->  | BT23: =BS23*#REF! ->  | BV23: =#REF!/#REF! ->  | BW23: =BV23*#REF! ->  | BX23: =BW23+#REF! ->  | BY23: =AO23/#REF! ->  | BZ23: =BY23*#REF! ->  | CB23: /MH | CC23: MH/ | CE23: =T(#REF!) ->  | CF23: =#REF! ->  | CG23: $0.00
AE24: =V24*Q24 -> $0 | AJ24: =Q24*Y24 -> $0 | AO24: =Q24*AB24 -> $0 | AU24: =AE24+AJ24+AO24 -> $0 | AZ24: =SUM(#REF!) ->  | BD24: Accepted | BJ24: $0 | BK24: $0 | BL24: =#REF! ->  | BM24: $0 | BO24: =AU24/#REF! ->  | BP24: =AE24/#REF! ->  | BQ24: =BP24*#REF! ->  | BS24: =AJ24/#REF! ->  | BT24: =BS24*#REF! ->  | BV24: =#REF!/#REF! ->  | BW24: =BV24*#REF! ->  | BX24: =BW24+#REF! ->  | BY24: =AO24/#REF! ->  | BZ24: =BY24*#REF! ->  | CB24: /MH | CC24: MH/ | CE24: =T(#REF!) ->  | CF24: =#REF! ->  | CG24: $0.00
AE25: $0 | AJ25: $0 | AO25: $0 | AU25: $0 | AZ25: =SUM(#REF!) ->  | BD25: Accepted | BJ25: $0 | BK25: $0 | BL25: =#REF! ->  | BM25: $0 | BO25: =AU25/#REF! ->  | BP25: =AE25/#REF! ->  | BQ25: =BP25*#REF! ->  | BS25: =AJ25/#REF! ->  | BT25: =BS25*#REF! ->  | BV25: =#REF!/#REF! ->  | BW25: =BV25*#REF! ->  | BX25: =BW25+#REF! ->  | BY25: =AO25/#REF! ->  | BZ25: =BY25*#REF! ->  | CB25: /MH | CC25: MH/ | CE25: =T(#REF!) ->  | CF25: =#REF! ->  | CG25: $0.00
AE26: $0 | AJ26: $0 | AO26: $0 | AU26: $0 | AZ26: =SUM(#REF!) ->  | BD26: Accepted | BJ26: $0 | BK26: $0 | BL26: =#REF! ->  | BM26: $0 | BO26: =AU26/#REF! ->  | BP26: =AE26/#REF! ->  | BQ26: =BP26*#REF! ->  | BS26: =AJ26/#REF! ->  | BT26: =BS26*#REF! ->  | BV26: =#REF!/#REF! ->  | BW26: =BV26*#REF! ->  | BX26: =BW26+#REF! ->  | BY26: =AO26/#REF! ->  | BZ26: =BY26*#REF! ->  | CB26: /MH | CC26: MH/ | CE26: =T(#REF!) ->  | CF26: =#REF! ->  | CG26: $0.00
AE27: $0 | AJ27: $0 | AO27: $0 | AU27: $0 | AZ27: =SUM(#REF!) ->  | BD27: Accepted | BJ27: $0 | BK27: $0 | BL27: =#REF! ->  | BM27: $0 | BO27: =AU27/#REF! ->  | BP27: =AE27/#REF! ->  | BQ27: =BP27*#REF! ->  | BS27: =AJ27/#REF! ->  | BT27: =BS27*#REF! ->  | BV27: =#REF!/#REF! ->  | BW27: =BV27*#REF! ->  | BX27: =BW27+#REF! ->  | BY27: =AO27/#REF! ->  | BZ27: =BY27*#REF! ->  | CB27: /MH | CC27: MH/ | CE27: =T(#REF!) ->  | CF27: =#REF! ->  | CG27: $0.00
AE28: $0 | AJ28: $0 | AO28: $0 | AU28: $0 | AZ28: =SUM(#REF!) ->  | BD28: Accepted | BJ28: $0 | BK28: $0 | BL28: =#REF! ->  | BM28: $0 | BO28: =AU28/#REF! ->  | BP28: =AE28/#REF! ->  | BQ28: =BP28*#REF! ->  | BS28: =AJ28/#REF! ->  | BT28: =BS28*#REF! ->  | BV28: =#REF!/#REF! ->  | BW28: =BV28*#REF! ->  | BX28: =BW28+#REF! ->  | BY28: =AO28/#REF! ->  | BZ28: =BY28*#REF! ->  | CB28: /MH | CC28: MH/ | CE28: =T(#REF!) ->  | CF28: =#REF! ->  | CG28: $0.00
AE29: $0 | AJ29: $0 | AO29: $0 | AU29: $0 | AZ29: =SUM(#REF!) ->  | BD29: Accepted | BJ29: $0 | BK29: $0 | BL29: =#REF! ->  | BM29: $0 | BO29: =AU29/#REF! ->  | BP29: =AE29/#REF! ->  | BQ29: =BP29*#REF! ->  | BS29: =AJ29/#REF! ->  | BT29: =BS29*#REF! ->  | BV29: =#REF!/#REF! ->  | BW29: =BV29*#REF! ->  | BX29: =BW29+#REF! ->  | BY29: =AO29/#REF! ->  | BZ29: =BY29*#REF! ->  | CB29: /MH | CC29: MH/ | CE29: =T(#REF!) ->  | CF29: =#REF! ->  | CG29: $0.00
AE30: $0 | AJ30: $0 | AO30: $0 | AU30: $0 | AZ30: =SUM(#REF!) ->  | BD30: Accepted | BJ30: $0 | BK30: $0 | BL30: =#REF! ->  | BM30: $0 | BO30: =AU30/#REF! ->  | BP30: =AE30/#REF! ->  | BQ30: =BP30*#REF! ->  | BS30: =AJ30/#REF! ->  | BT30: =BS30*#REF! ->  | BV30: =#REF!/#REF! ->  | BW30: =BV30*#REF! ->  | BX30: =BW30+#REF! ->  | BY30: =AO30/#REF! ->  | BZ30: =BY30*#REF! ->  | CB30: /MH | CC30: MH/ | CE30: =T(#REF!) ->  | CF30: =#REF! ->  | CG30: $0.00
AE31: $0 | AJ31: $0 | AO31: $0 | AU31: $0 | AZ31: =SUM(#REF!) ->  | BD31: Accepted | BJ31: $0 | BK31: $0 | BL31: =#REF! ->  | BM31: $0 | BO31: =AU31/#REF! ->  | BP31: =AE31/#REF! ->  | BQ31: =BP31*#REF! ->  | BS31: =AJ31/#REF! ->  | BT31: =BS31*#REF! ->  | BV31: =#REF!/#REF! ->  | BW31: =BV31*#REF! ->  | BX31: =BW31+#REF! ->  | BY31: =AO31/#REF! ->  | BZ31: =BY31*#REF! ->  | CB31: /MH | CC31: MH/ | CE31: =T(#REF!) ->  | CF31: =#REF! ->  | CG31: $0.00
AE32: $0 | AJ32: $0 | AO32: $0 | AU32: $0 | AZ32: =SUM(#REF!) ->  | BD32: Accepted | BJ32: $0 | BK32: $0 | BL32: =#REF! ->  | BM32: $0 | BO32: =AU32/#REF! ->  | BP32: =AE32/#REF! ->  | BQ32: =BP32*#REF! ->  | BS32: =AJ32/#REF! ->  | BT32: =BS32*#REF! ->  | BV32: =#REF!/#REF! ->  | BW32: =BV32*#REF! ->  | BX32: =BW32+#REF! ->  | BY32: =AO32/#REF! ->  | BZ32: =BY32*#REF! ->  | CB32: /MH | CC32: MH/ | CE32: =T(#REF!) ->  | CF32: =#REF! ->  | CG32: $0.00
AE33: $0 | AJ33: $0 | AO33: $0 | AU33: $0 | AZ33: =SUM(#REF!) ->  | BD33: Accepted | BJ33: $0 | BK33: $0 | BL33: =#REF! ->  | BM33: $0 | BO33: =AU33/#REF! ->  | BP33: =AE33/#REF! ->  | BQ33: =BP33*#REF! ->  | BS33: =AJ33/#REF! ->  | BT33: =BS33*#REF! ->  | BV33: =#REF!/#REF! ->  | BW33: =BV33*#REF! ->  | BX33: =BW33+#REF! ->  | BY33: =AO33/#REF! ->  | BZ33: =BY33*#REF! ->  | CB33: /MH | CC33: MH/ | CE33: =T(#REF!) ->  | CF33: =#REF! ->  | CG33: $0.00
AE34: $0 | AJ34: $0 | AO34: $0 | AU34: $0 | AZ34: =SUM(#REF!) ->  | BD34: Accepted | BJ34: $0 | BK34: $0 | BL34: =#REF! ->  | BM34: $0 | BO34: =AU34/#REF! ->  | BP34: =AE34/#REF! ->  | BQ34: =BP34*#REF! ->  | BS34: =AJ34/#REF! ->  | BT34: =BS34*#REF! ->  | BV34: =#REF!/#REF! ->  | BW34: =BV34*#REF! ->  | BX34: =BW34+#REF! ->  | BY34: =AO34/#REF! ->  | BZ34: =BY34*#REF! ->  | CB34: /MH | CC34: MH/ | CE34: =T(#REF!) ->  | CF34: =#REF! ->  | CG34: $0.00
AE35: $0 | AJ35: $0 | AO35: $0 | AU35: $0 | AZ35: =SUM(#REF!) ->  | BD35: Accepted | BJ35: $0 | BK35: $0 | BL35: =#REF! ->  | BM35: $0 | BO35: =AU35/#REF! ->  | BP35: =AE35/#REF! ->  | BQ35: =BP35*#REF! ->  | BS35: =AJ35/#REF! ->  | BT35: =BS35*#REF! ->  | BV35: =#REF!/#REF! ->  | BW35: =BV35*#REF! ->  | BX35: =BW35+#REF! ->  | BY35: =AO35/#REF! ->  | BZ35: =BY35*#REF! ->  | CB35: /MH | CC35: MH/ | CE35: =T(#REF!) ->  | CF35: =#REF! ->  | CG35: $0.00
AE36: $0 | AJ36: $0 | AO36: $0 | AU36: $0 | AZ36: =SUM(#REF!) ->  | BD36: Accepted | BJ36: $0 | BK36: $0 | BL36: =#REF! ->  | BM36: $0 | BO36: =AU36/#REF! ->  | BP36: =AE36/#REF! ->  | BQ36: =BP36*#REF! ->  | BS36: =AJ36/#REF! ->  | BT36: =BS36*#REF! ->  | BV36: =#REF!/#REF! ->  | BW36: =BV36*#REF! ->  | BX36: =BW36+#REF! ->  | BY36: =AO36/#REF! ->  | BZ36: =BY36*#REF! ->  | CB36: /MH | CC36: MH/ | CE36: =T(#REF!) ->  | CF36: =#REF! ->  | CG36: $0.00
AE37: $0 | AJ37: $0 | AO37: $0 | AU37: $0 | AZ37: =SUM(#REF!) ->  | BD37: Accepted | BJ37: $0 | BK37: $0 | BL37: =#REF! ->  | BM37: $0 | BO37: =AU37/#REF! ->  | BP37: =AE37/#REF! ->  | BQ37: =BP37*#REF! ->  | BS37: =AJ37/#REF! ->  | BT37: =BS37*#REF! ->  | BV37: =#REF!/#REF! ->  | BW37: =BV37*#REF! ->  | BX37: =BW37+#REF! ->  | BY37: =AO37/#REF! ->  | BZ37: =BY37*#REF! ->  | CB37: /MH | CC37: MH/ | CE37: =T(#REF!) ->  | CF37: =#REF! ->  | CG37: $0.00
BD38: Accepted | BJ38: =BJ7 -> $6,400 | BK38: =BK7 -> 0 | BL38: =BL7 ->  | BM38: =BM7 -> 0 | BN38: =BN7 ->  | BO38: =AU38/TOTAL_REMODEL_ESTIMATE ->  | BP38: =#REF!/TOTAL_REMODEL_ESTIMATE ->  | BQ38: =#REF!/TOTAL_REMODEL_ESTIMATE ->  | BR38: =#REF!/TOTAL_REMODEL_ESTIMATE ->  | BS38: =#REF!/TOTAL_REMODEL_ESTIMATE ->  | BT38: =#REF!/TOTAL_REMODEL_ESTIMATE ->  | BU38: =#REF!/TOTAL_REMODEL_ESTIMATE ->  | BV38: =#REF!/TOTAL_REMODEL_ESTIMATE ->  | BW38: =#REF!/TOTAL_REMODEL_ESTIMATE ->  | BX38: =#REF!/TOTAL_REMODEL_ESTIMATE ->  | BY38: =#REF!/TOTAL_REMODEL_ESTIMATE ->  | BZ38: =#REF!/TOTAL_REMODEL_ESTIMATE ->  | CA38: =#REF!/TOTAL_REMODEL_ESTIMATE ->  | CB38: =#REF!/TOTAL_REMODEL_ESTIMATE ->  | CC38: =#REF!/TOTAL_REMODEL_ESTIMATE -> 
B39: =UPPER(CONCATENATE(E7," ","SUBTOTAL")) -> ALTERNATE #1: BUILD NEW DECK (10 X 20FT) SUBTOTAL | AE39: =SUBTOTAL(9,AE8:AI38) -> $6,400 | AJ39: =SUBTOTAL(9,AJ8:AN38) -> $0 | AO39: =SUBTOTAL(9,AO8:AS38) -> $0 | AU39: =SUBTOTAL(9,AU8:AU38) -> $6,400 | BD39: Accepted | BJ39: =BJ7 -> $6,400 | BK39: 0 | BM39: 0
BD40: Accepted | BJ40: =BJ7 -> $6,400 | BK40: =BK7 -> $0 | BL40: =BL7 ->  | BM40: =BM7 -> $0 | BN40: =BN7 ->  | BO40: =AU40/TOTAL_REMODEL_ESTIMATE ->  | BP40: =#REF!/TOTAL_REMODEL_ESTIMATE ->  | BQ40: =#REF!/TOTAL_REMODEL_ESTIMATE ->  | BR40: =#REF!/TOTAL_REMODEL_ESTIMATE ->  | BS40: =#REF!/TOTAL_REMODEL_ESTIMATE ->  | BT40: =#REF!/TOTAL_REMODEL_ESTIMATE ->  | BU40: =#REF!/TOTAL_REMODEL_ESTIMATE ->  | BV40: =#REF!/TOTAL_REMODEL_ESTIMATE ->  | BW40: =#REF!/TOTAL_REMODEL_ESTIMATE ->  | BX40: =#REF!/TOTAL_REMODEL_ESTIMATE ->  | BY40: =#REF!/TOTAL_REMODEL_ESTIMATE ->  | BZ40: =#REF!/TOTAL_REMODEL_ESTIMATE ->  | CA40: =#REF!/TOTAL_REMODEL_ESTIMATE ->  | CB40: =#REF!/TOTAL_REMODEL_ESTIMATE ->  | CC40: =#REF!/TOTAL_REMODEL_ESTIMATE -> 
U43: Alternate #1 Adders
U44: Adder | AJ44: Calculation Method | AO44: Rate / Amount | AU44: Total
U45: =Adder1_Description -> Building Permit (Lump Sum) | AJ45: Lump Sum | AO45: $500 | AU45: =IF(AJ45="%",AO45*Alternate1_Subtotal,AO45) -> $500
U46: =Adder2_Description -> Estimating Contingency (% of Subtotal Estimate) | AJ46: % | AU46: $0
U47: =Adder3_Description -> Construction Contingency (% of Subtotal Estimate) | AJ47: Lump Sum | AU47: $0
U48: =Adder4_Description -> Remodeling Tax (% of Subtotal Estimate) | AJ48: % | AU48: $0
U49: =Adder5_Description -> Warranty (% of Subtotal Estimate) | AJ49: % | AU49: $0
U50: =Adder6_Description -> General Liability Insurance (% of Subtotal Estimate) | AJ50: % | AU50: $0
U51: =Adder7_Description -> Builder's Risk Insurance (% of Subtotal Estimate) | AJ51: % | AU51: $0
U52: =Adder8_Description -> Contractor's Profit (% of Subtotal Estimate) | AJ52: % | AO52: $0 | AU52: $960
U53: =Adder9_Description -> Labor Markup (% of Labor Total) | AJ53: % | AU53: $0
U54: =Adder10_Description -> Material Markup (% of Material Total) | AJ54: % | AU54: $0
U55: =Adder12_Description -> P & P Bond (% of Subtotal Estimate) | AJ55: % | AU55: $0
U56: =Adder13_Description -> Other 1 | AJ56: % | AU56: $0
U57: =Adder14_Description -> Other 2 | AJ57: % | AU57: $0
U58: =Adder15_Description -> Other 3 | AJ58: % | AU58: $0
U59: ADDER TOTALS | AU59: =SUM(AU45:AZ58) -> $1,460
U60: =UPPER(CONCATENATE(E7," ","TOTAL")) -> ALTERNATE #1: BUILD NEW DECK (10 X 20FT) TOTAL | AU60: =AU39+AU59 -> $7,860
A63: Hidden | B63: Pending | E63: =Alternate2_Description -> Alternate #2: Build new pool (15 x 30ft) | AE63: =IF(AE95=0,"",AE95) -> $40,000 | AJ63: =IF(AJ95=0,"",AJ95) ->  | AO63: =IF(AO95=0,"",AO95) ->  | AU63: =IF(AU95=0,"",AU95) -> $40,000 | BD63: =$B$63 -> Pending | BJ63: =SUM(BJ64:BJ78) -> $40,000 | BK63: $0 | BM63: $0 | CB63: =CONCATENATE(T63,"/", "MH") -> /MH | CC63: =CONCATENATE("MH","/",T63) -> MH/
B64: Pool | Q64: 1 | T64: ea | V64: $40,000.00 | AE64: =V64*Q64 -> $40,000 | AJ64: =Q64*Y64 -> $0 | AO64: =Q64*AB64 -> $0 | AU64: =AE64+AJ64+AO64 -> $40,000 | AZ64: =SUM(#REF!) ->  | BD64: Pending | BJ64: =AE64 -> $40,000 | BK64: =AJ64 -> $0 | BL64: =#REF! ->  | BM64: =AO64 -> $0 | BN64: =SUM(BJ64:BM64) ->  | BO64: =AU64/#REF! ->  | BP64: =AE64/#REF! ->  | BQ64: =BP64*#REF! ->  | BR64: =BQ64+AE64 ->  | BS64: =AJ64/#REF! ->  | BT64: =BS64*#REF! ->  | BU64: =BT64+AJ64 ->  | BV64: =#REF!/#REF! ->  | BW64: =BV64*#REF! ->  | BX64: =BW64+#REF! ->  | BY64: =AO64/#REF! ->  | BZ64: =BY64*#REF! ->  | CA64: =BZ64+AO64 ->  | CB64: ea/MH | CC64: MH/ea | CE64: =T(#REF!) ->  | CF64: =#REF! ->  | CG64: =AE64 -> $40,000.00
AE65: $0 | AJ65: $0 | AO65: =Q65*AB65 -> $0 | AU65: $0 | AZ65: =SUM(#REF!) ->  | BD65: Pending | BJ65: $0 | BK65: $0 | BL65: =#REF! ->  | BM65: $0 | BO65: =AU65/#REF! ->  | BP65: =AE65/#REF! ->  | BQ65: =BP65*#REF! ->  | BS65: =AJ65/#REF! ->  | BT65: =BS65*#REF! ->  | BV65: =#REF!/#REF! ->  | BW65: =BV65*#REF! ->  | BX65: =BW65+#REF! ->  | BY65: =AO65/#REF! ->  | BZ65: =BY65*#REF! ->  | CB65: /MH | CC65: MH/ | CE65: =T(#REF!) ->  | CF65: =#REF! ->  | CG65: $0.00
AE66: $0 | AJ66: $0 | AO66: $0 | AU66: $0 | AZ66: =SUM(#REF!) ->  | BD66: Pending | BJ66: $0 | BK66: $0 | BL66: =#REF! ->  | BM66: $0 | BO66: =AU66/#REF! ->  | BP66: =AE66/#REF! ->  | BQ66: =BP66*#REF! ->  | BS66: =AJ66/#REF! ->  | BT66: =BS66*#REF! ->  | BV66: =#REF!/#REF! ->  | BW66: =BV66*#REF! ->  | BX66: =BW66+#REF! ->  | BY66: =AO66/#REF! ->  | BZ66: =BY66*#REF! ->  | CB66: /MH | CC66: MH/ | CE66: =T(#REF!) ->  | CF66: =#REF! ->  | CG66: $0.00
AE67: $0 | AJ67: $0 | AO67: $0 | AU67: $0 | AZ67: =SUM(#REF!) ->  | BD67: Pending | BJ67: $0 | BK67: $0 | BL67: =#REF! ->  | BM67: $0 | BO67: =AU67/#REF! ->  | BP67: =AE67/#REF! ->  | BQ67: =BP67*#REF! ->  | BS67: =AJ67/#REF! ->  | BT67: =BS67*#REF! ->  | BV67: =#REF!/#REF! ->  | BW67: =BV67*#REF! ->  | BX67: =BW67+#REF! ->  | BY67: =AO67/#REF! ->  | BZ67: =BY67*#REF! ->  | CB67: /MH | CC67: MH/ | CE67: =T(#REF!) ->  | CF67: =#REF! ->  | CG67: $0.00
AE68: $0 | AJ68: $0 | AO68: $0 | AU68: $0 | AZ68: =SUM(#REF!) ->  | BD68: Pending | BJ68: $0 | BK68: $0 | BL68: =#REF! ->  | BM68: $0 | BO68: =AU68/#REF! ->  | BP68: =AE68/#REF! ->  | BQ68: =BP68*#REF! ->  | BS68: =AJ68/#REF! ->  | BT68: =BS68*#REF! ->  | BV68: =#REF!/#REF! ->  | BW68: =BV68*#REF! ->  | BX68: =BW68+#REF! ->  | BY68: =AO68/#REF! ->  | BZ68: =BY68*#REF! ->  | CB68: /MH | CC68: MH/ | CE68: =T(#REF!) ->  | CF68: =#REF! ->  | CG68: $0.00
AE69: $0 | AJ69: $0 | AO69: $0 | AU69: $0 | AZ69: =SUM(#REF!) ->  | BD69: Pending | BJ69: $0 | BK69: $0 | BL69: =#REF! ->  | BM69: $0 | BO69: =AU69/#REF! ->  | BP69: =AE69/#REF! ->  | BQ69: =BP69*#REF! ->  | BS69: =AJ69/#REF! ->  | BT69: =BS69*#REF! ->  | BV69: =#REF!/#REF! ->  | BW69: =BV69*#REF! ->  | BX69: =BW69+#REF! ->  | BY69: =AO69/#REF! ->  | BZ69: =BY69*#REF! ->  | CB69: /MH | CC69: MH/ | CE69: =T(#REF!) ->  | CF69: =#REF! ->  | CG69: $0.00
AE70: $0 | AJ70: $0 | AO70: $0 | AU70: $0 | AZ70: =SUM(#REF!) ->  | BD70: Pending | BJ70: $0 | BK70: $0 | BL70: =#REF! ->  | BM70: $0 | BO70: =AU70/#REF! ->  | BP70: =AE70/#REF! ->  | BQ70: =BP70*#REF! ->  | BS70: =AJ70/#REF! ->  | BT70: =BS70*#REF! ->  | BV70: =#REF!/#REF! ->  | BW70: =BV70*#REF! ->  | BX70: =BW70+#REF! ->  | BY70: =AO70/#REF! ->  | BZ70: =BY70*#REF! ->  | CB70: /MH | CC70: MH/ | CE70: =T(#REF!) ->  | CF70: =#REF! ->  | CG70: $0.00
AE71: $0 | AJ71: $0 | AO71: $0 | AU71: $0 | AZ71: =SUM(#REF!) ->  | BD71: Pending | BJ71: $0 | BK71: $0 | BL71: =#REF! ->  | BM71: $0 | BO71: =AU71/#REF! ->  | BP71: =AE71/#REF! ->  | BQ71: =BP71*#REF! ->  | BS71: =AJ71/#REF! ->  | BT71: =BS71*#REF! ->  | BV71: =#REF!/#REF! ->  | BW71: =BV71*#REF! ->  | BX71: =BW71+#REF! ->  | BY71: =AO71/#REF! ->  | BZ71: =BY71*#REF! ->  | CB71: /MH | CC71: MH/ | CE71: =T(#REF!) ->  | CF71: =#REF! ->  | CG71: $0.00
AE72: $0 | AJ72: $0 | AO72: $0 | AU72: $0 | AZ72: =SUM(#REF!) ->  | BD72: Pending | BJ72: $0 | BK72: $0 | BL72: =#REF! ->  | BM72: $0 | BO72: =AU72/#REF! ->  | BP72: =AE72/#REF! ->  | BQ72: =BP72*#REF! ->  | BS72: =AJ72/#REF! ->  | BT72: =BS72*#REF! ->  | BV72: =#REF!/#REF! ->  | BW72: =BV72*#REF! ->  | BX72: =BW72+#REF! ->  | BY72: =AO72/#REF! ->  | BZ72: =BY72*#REF! ->  | CB72: /MH | CC72: MH/ | CE72: =T(#REF!) ->  | CF72: =#REF! ->  | CG72: $0.00
AE73: $0 | AJ73: $0 | AO73: $0 | AU73: $0 | AZ73: =SUM(#REF!) ->  | BD73: Pending | BJ73: $0 | BK73: $0 | BL73: =#REF! ->  | BM73: $0 | BO73: =AU73/#REF! ->  | BP73: =AE73/#REF! ->  | BQ73: =BP73*#REF! ->  | BS73: =AJ73/#REF! ->  | BT73: =BS73*#REF! ->  | BV73: =#REF!/#REF! ->  | BW73: =BV73*#REF! ->  | BX73: =BW73+#REF! ->  | BY73: =AO73/#REF! ->  | BZ73: =BY73*#REF! ->  | CB73: /MH | CC73: MH/ | CE73: =T(#REF!) ->  | CF73: =#REF! ->  | CG73: $0.00
AE74: $0 | AJ74: $0 | AO74: $0 | AU74: $0 | AZ74: =SUM(#REF!) ->  | BD74: Pending | BJ74: $0 | BK74: $0 | BL74: =#REF! ->  | BM74: $0 | BO74: =AU74/#REF! ->  | BP74: =AE74/#REF! ->  | BQ74: =BP74*#REF! ->  | BS74: =AJ74/#REF! ->  | BT74: =BS74*#REF! ->  | BV74: =#REF!/#REF! ->  | BW74: =BV74*#REF! ->  | BX74: =BW74+#REF! ->  | BY74: =AO74/#REF! ->  | BZ74: =BY74*#REF! ->  | CB74: /MH | CC74: MH/ | CE74: =T(#REF!) ->  | CF74: =#REF! ->  | CG74: $0.00
AE75: $0 | AJ75: $0 | AO75: $0 | AU75: $0 | AZ75: =SUM(#REF!) ->  | BD75: Pending | BJ75: $0 | BK75: $0 | BL75: =#REF! ->  | BM75: $0 | BO75: =AU75/#REF! ->  | BP75: =AE75/#REF! ->  | BQ75: =BP75*#REF! ->  | BS75: =AJ75/#REF! ->  | BT75: =BS75*#REF! ->  | BV75: =#REF!/#REF! ->  | BW75: =BV75*#REF! ->  | BX75: =BW75+#REF! ->  | BY75: =AO75/#REF! ->  | BZ75: =BY75*#REF! ->  | CB75: /MH | CC75: MH/ | CE75: =T(#REF!) ->  | CF75: =#REF! ->  | CG75: $0.00
AE76: $0 | AJ76: $0 | AO76: $0 | AU76: $0 | AZ76: =SUM(#REF!) ->  | BD76: Pending | BJ76: $0 | BK76: $0 | BL76: =#REF! ->  | BM76: $0 | BO76: =AU76/#REF! ->  | BP76: =AE76/#REF! ->  | BQ76: =BP76*#REF! ->  | BS76: =AJ76/#REF! ->  | BT76: =BS76*#REF! ->  | BV76: =#REF!/#REF! ->  | BW76: =BV76*#REF! ->  | BX76: =BW76+#REF! ->  | BY76: =AO76/#REF! ->  | BZ76: =BY76*#REF! ->  | CB76: /MH | CC76: MH/ | CE76: =T(#REF!) ->  | CF76: =#REF! ->  | CG76: $0.00
AE77: $0 | AJ77: $0 | AO77: $0 | AU77: $0 | AZ77: =SUM(#REF!) ->  | BD77: Pending | BJ77: $0 | BK77: $0 | BL77: =#REF! ->  | BM77: $0 | BO77: =AU77/#REF! ->  | BP77: =AE77/#REF! ->  | BQ77: =BP77*#REF! ->  | BS77: =AJ77/#REF! ->  | BT77: =BS77*#REF! ->  | BV77: =#REF!/#REF! ->  | BW77: =BV77*#REF! ->  | BX77: =BW77+#REF! ->  | BY77: =AO77/#REF! ->  | BZ77: =BY77*#REF! ->  | CB77: /MH | CC77: MH/ | CE77: =T(#REF!) ->  | CF77: =#REF! ->  | CG77: $0.00
AE78: $0 | AJ78: $0 | AO78: $0 | AU78: $0 | AZ78: =SUM(#REF!) ->  | BD78: Pending | BJ78: $0 | BK78: $0 | BL78: =#REF! ->  | BM78: $0 | BO78: =AU78/#REF! ->  | BP78: =AE78/#REF! ->  | BQ78: =BP78*#REF! ->  | BS78: =AJ78/#REF! ->  | BT78: =BS78*#REF! ->  | BV78: =#REF!/#REF! ->  | BW78: =BV78*#REF! ->  | BX78: =BW78+#REF! ->  | BY78: =AO78/#REF! ->  | BZ78: =BY78*#REF! ->  | CB78: /MH | CC78: MH/ | CE78: =T(#REF!) ->  | CF78: =#REF! ->  | CG78: $0.00
AE79: =V79*Q79 -> $0 | AJ79: =Q79*Y79 -> $0 | AO79: =Q79*AB79 -> $0 | AU79: =AE79+AJ79+AO79 -> $0 | AZ79: =SUM(#REF!) ->  | BD79: Pending | BJ79: $0 | BK79: $0 | BL79: =#REF! ->  | BM79: $0 | BN79: =SUM(BJ79:BM79) ->  | BO79: =AU79/#REF! ->  | BP79: =AE79/#REF! ->  | BQ79: =BP79*#REF! ->  | BS79: =AJ79/#REF! ->  | BT79: =BS79*#REF! ->  | BV79: =#REF!/#REF! ->  | BW79: =BV79*#REF! ->  | BX79: =BW79+#REF! ->  | BY79: =AO79/#REF! ->  | BZ79: =BY79*#REF! ->  | CB79: /MH | CC79: MH/ | CE79: =T(#REF!) ->  | CF79: =#REF! ->  | CG79: $0.00
AE80: $0 | AJ80: $0 | AO80: =Q80*AB80 -> $0 | AU80: $0 | AZ80: =SUM(#REF!) ->  | BD80: Pending | BJ80: $0 | BK80: $0 | BL80: =#REF! ->  | BM80: $0 | BO80: =AU80/#REF! ->  | BP80: =AE80/#REF! ->  | BQ80: =BP80*#REF! ->  | BS80: =AJ80/#REF! ->  | BT80: =BS80*#REF! ->  | BV80: =#REF!/#REF! ->  | BW80: =BV80*#REF! ->  | BX80: =BW80+#REF! ->  | BY80: =AO80/#REF! ->  | BZ80: =BY80*#REF! ->  | CB80: /MH | CC80: MH/ | CE80: =T(#REF!) ->  | CF80: =#REF! ->  | CG80: $0.00
AE81: $0 | AJ81: $0 | AO81: $0 | AU81: $0 | AZ81: =SUM(#REF!) ->  | BD81: Pending | BJ81: $0 | BK81: $0 | BL81: =#REF! ->  | BM81: $0 | BO81: =AU81/#REF! ->  | BP81: =AE81/#REF! ->  | BQ81: =BP81*#REF! ->  | BS81: =AJ81/#REF! ->  | BT81: =BS81*#REF! ->  | BV81: =#REF!/#REF! ->  | BW81: =BV81*#REF! ->  | BX81: =BW81+#REF! ->  | BY81: =AO81/#REF! ->  | BZ81: =BY81*#REF! ->  | CB81: /MH | CC81: MH/ | CE81: =T(#REF!) ->  | CF81: =#REF! ->  | CG81: $0.00
AE82: $0 | AJ82: $0 | AO82: $0 | AU82: $0 | AZ82: =SUM(#REF!) ->  | BD82: Pending | BJ82: $0 | BK82: $0 | BL82: =#REF! ->  | BM82: $0 | BO82: =AU82/#REF! ->  | BP82: =AE82/#REF! ->  | BQ82: =BP82*#REF! ->  | BS82: =AJ82/#REF! ->  | BT82: =BS82*#REF! ->  | BV82: =#REF!/#REF! ->  | BW82: =BV82*#REF! ->  | BX82: =BW82+#REF! ->  | BY82: =AO82/#REF! ->  | BZ82: =BY82*#REF! ->  | CB82: /MH | CC82: MH/ | CE82: =T(#REF!) ->  | CF82: =#REF! ->  | CG82: $0.00
AE83: $0 | AJ83: $0 | AO83: $0 | AU83: $0 | AZ83: =SUM(#REF!) ->  | BD83: Pending | BJ83: $0 | BK83: $0 | BL83: =#REF! ->  | BM83: $0 | BO83: =AU83/#REF! ->  | BP83: =AE83/#REF! ->  | BQ83: =BP83*#REF! ->  | BS83: =AJ83/#REF! ->  | BT83: =BS83*#REF! ->  | BV83: =#REF!/#REF! ->  | BW83: =BV83*#REF! ->  | BX83: =BW83+#REF! ->  | BY83: =AO83/#REF! ->  | BZ83: =BY83*#REF! ->  | CB83: /MH | CC83: MH/ | CE83: =T(#REF!) ->  | CF83: =#REF! ->  | CG83: $0.00
AE84: $0 | AJ84: $0 | AO84: $0 | AU84: $0 | AZ84: =SUM(#REF!) ->  | BD84: Pending | BJ84: $0 | BK84: $0 | BL84: =#REF! ->  | BM84: $0 | BO84: =AU84/#REF! ->  | BP84: =AE84/#REF! ->  | BQ84: =BP84*#REF! ->  | BS84: =AJ84/#REF! ->  | BT84: =BS84*#REF! ->  | BV84: =#REF!/#REF! ->  | BW84: =BV84*#REF! ->  | BX84: =BW84+#REF! ->  | BY84: =AO84/#REF! ->  | BZ84: =BY84*#REF! ->  | CB84: /MH | CC84: MH/ | CE84: =T(#REF!) ->  | CF84: =#REF! ->  | CG84: $0.00
AE85: $0 | AJ85: $0 | AO85: $0 | AU85: $0 | AZ85: =SUM(#REF!) ->  | BD85: Pending | BJ85: $0 | BK85: $0 | BL85: =#REF! ->  | BM85: $0 | BO85: =AU85/#REF! ->  | BP85: =AE85/#REF! ->  | BQ85: =BP85*#REF! ->  | BS85: =AJ85/#REF! ->  | BT85: =BS85*#REF! ->  | BV85: =#REF!/#REF! ->  | BW85: =BV85*#REF! ->  | BX85: =BW85+#REF! ->  | BY85: =AO85/#REF! ->  | BZ85: =BY85*#REF! ->  | CB85: /MH | CC85: MH/ | CE85: =T(#REF!) ->  | CF85: =#REF! ->  | CG85: $0.00
AE86: $0 | AJ86: $0 | AO86: $0 | AU86: $0 | AZ86: =SUM(#REF!) ->  | BD86: Pending | BJ86: $0 | BK86: $0 | BL86: =#REF! ->  | BM86: $0 | BO86: =AU86/#REF! ->  | BP86: =AE86/#REF! ->  | BQ86: =BP86*#REF! ->  | BS86: =AJ86/#REF! ->  | BT86: =BS86*#REF! ->  | BV86: =#REF!/#REF! ->  | BW86: =BV86*#REF! ->  | BX86: =BW86+#REF! ->  | BY86: =AO86/#REF! ->  | BZ86: =BY86*#REF! ->  | CB86: /MH | CC86: MH/ | CE86: =T(#REF!) ->  | CF86: =#REF! ->  | CG86: $0.00
AE87: $0 | AJ87: $0 | AO87: $0 | AU87: $0 | AZ87: =SUM(#REF!) ->  | BD87: Pending | BJ87: $0 | BK87: $0 | BL87: =#REF! ->  | BM87: $0 | BO87: =AU87/#REF! ->  | BP87: =AE87/#REF! ->  | BQ87: =BP87*#REF! ->  | BS87: =AJ87/#REF! ->  | BT87: =BS87*#REF! ->  | BV87: =#REF!/#REF! ->  | BW87: =BV87*#REF! ->  | BX87: =BW87+#REF! ->  | BY87: =AO87/#REF! ->  | BZ87: =BY87*#REF! ->  | CB87: /MH | CC87: MH/ | CE87: =T(#REF!) ->  | CF87: =#REF! ->  | CG87: $0.00
AE88: $0 | AJ88: $0 | AO88: $0 | AU88: $0 | AZ88: =SUM(#REF!) ->  | BD88: Pending | BJ88: $0 | BK88: $0 | BL88: =#REF! ->  | BM88: $0 | BO88: =AU88/#REF! ->  | BP88: =AE88/#REF! ->  | BQ88: =BP88*#REF! ->  | BS88: =AJ88/#REF! ->  | BT88: =BS88*#REF! ->  | BV88: =#REF!/#REF! ->  | BW88: =BV88*#REF! ->  | BX88: =BW88+#REF! ->  | BY88: =AO88/#REF! ->  | BZ88: =BY88*#REF! ->  | CB88: /MH | CC88: MH/ | CE88: =T(#REF!) ->  | CF88: =#REF! ->  | CG88: $0.00
AE89: $0 | AJ89: $0 | AO89: $0 | AU89: $0 | AZ89: =SUM(#REF!) ->  | BD89: Pending | BJ89: $0 | BK89: $0 | BL89: =#REF! ->  | BM89: $0 | BO89: =AU89/#REF! ->  | BP89: =AE89/#REF! ->  | BQ89: =BP89*#REF! ->  | BS89: =AJ89/#REF! ->  | BT89: =BS89*#REF! ->  | BV89: =#REF!/#REF! ->  | BW89: =BV89*#REF! ->  | BX89: =BW89+#REF! ->  | BY89: =AO89/#REF! ->  | BZ89: =BY89*#REF! ->  | CB89: /MH | CC89: MH/ | CE89: =T(#REF!) ->  | CF89: =#REF! ->  | CG89: $0.00
AE90: $0 | AJ90: $0 | AO90: $0 | AU90: $0 | AZ90: =SUM(#REF!) ->  | BD90: Pending | BJ90: $0 | BK90: $0 | BL90: =#REF! ->  | BM90: $0 | BO90: =AU90/#REF! ->  | BP90: =AE90/#REF! ->  | BQ90: =BP90*#REF! ->  | BS90: =AJ90/#REF! ->  | BT90: =BS90*#REF! ->  | BV90: =#REF!/#REF! ->  | BW90: =BV90*#REF! ->  | BX90: =BW90+#REF! ->  | BY90: =AO90/#REF! ->  | BZ90: =BY90*#REF! ->  | CB90: /MH | CC90: MH/ | CE90: =T(#REF!) ->  | CF90: =#REF! ->  | CG90: $0.00
AE91: $0 | AJ91: $0 | AO91: $0 | AU91: $0 | AZ91: =SUM(#REF!) ->  | BD91: Pending | BJ91: $0 | BK91: $0 | BL91: =#REF! ->  | BM91: $0 | BO91: =AU91/#REF! ->  | BP91: =AE91/#REF! ->  | BQ91: =BP91*#REF! ->  | BS91: =AJ91/#REF! ->  | BT91: =BS91*#REF! ->  | BV91: =#REF!/#REF! ->  | BW91: =BV91*#REF! ->  | BX91: =BW91+#REF! ->  | BY91: =AO91/#REF! ->  | BZ91: =BY91*#REF! ->  | CB91: /MH | CC91: MH/ | CE91: =T(#REF!) ->  | CF91: =#REF! ->  | CG91: $0.00
AE92: $0 | AJ92: $0 | AO92: $0 | AU92: $0 | AZ92: =SUM(#REF!) ->  | BD92: Pending | BJ92: $0 | BK92: $0 | BL92: =#REF! ->  | BM92: $0 | BO92: =AU92/#REF! ->  | BP92: =AE92/#REF! ->  | BQ92: =BP92*#REF! ->  | BS92: =AJ92/#REF! ->  | BT92: =BS92*#REF! ->  | BV92: =#REF!/#REF! ->  | BW92: =BV92*#REF! ->  | BX92: =BW92+#REF! ->  | BY92: =AO92/#REF! ->  | BZ92: =BY92*#REF! ->  | CB92: /MH | CC92: MH/ | CE92: =T(#REF!) ->  | CF92: =#REF! ->  | CG92: $0.00
AE93: $0 | AJ93: $0 | AO93: $0 | AU93: $0 | AZ93: =SUM(#REF!) ->  | BD93: Pending | BJ93: $0 | BK93: $0 | BL93: =#REF! ->  | BM93: $0 | BO93: =AU93/#REF! ->  | BP93: =AE93/#REF! ->  | BQ93: =BP93*#REF! ->  | BS93: =AJ93/#REF! ->  | BT93: =BS93*#REF! ->  | BV93: =#REF!/#REF! ->  | BW93: =BV93*#REF! ->  | BX93: =BW93+#REF! ->  | BY93: =AO93/#REF! ->  | BZ93: =BY93*#REF! ->  | CB93: /MH | CC93: MH/ | CE93: =T(#REF!) ->  | CF93: =#REF! ->  | CG93: $0.00
BD94: Pending | BJ94: =BJ63 -> $40,000 | BK94: =BK63 -> 0 | BL94: =BL63 ->  | BM94: =BM63 -> 0 | BN94: =BN63 ->  | BO94: =AU94/TOTAL_REMODEL_ESTIMATE ->  | BP94: =#REF!/TOTAL_REMODEL_ESTIMATE ->  | BQ94: =#REF!/TOTAL_REMODEL_ESTIMATE ->  | BR94: =#REF!/TOTAL_REMODEL_ESTIMATE ->  | BS94: =#REF!/TOTAL_REMODEL_ESTIMATE ->  | BT94: =#REF!/TOTAL_REMODEL_ESTIMATE ->  | BU94: =#REF!/TOTAL_REMODEL_ESTIMATE ->  | BV94: =#REF!/TOTAL_REMODEL_ESTIMATE ->  | BW94: =#REF!/TOTAL_REMODEL_ESTIMATE ->  | BX94: =#REF!/TOTAL_REMODEL_ESTIMATE ->  | BY94: =#REF!/TOTAL_REMODEL_ESTIMATE ->  | BZ94: =#REF!/TOTAL_REMODEL_ESTIMATE ->  | CA94: =#REF!/TOTAL_REMODEL_ESTIMATE ->  | CB94: =#REF!/TOTAL_REMODEL_ESTIMATE ->  | CC94: =#REF!/TOTAL_REMODEL_ESTIMATE -> 
B95: =UPPER(CONCATENATE(E63," ","SUBTOTAL")) -> ALTERNATE #2: BUILD NEW POOL (15 X 30FT) SUBTOTAL | AE95: =SUBTOTAL(9,AE64:AI94) -> $40,000 | AJ95: =SUBTOTAL(9,AJ64:AN94) -> $0 | AO95: =SUBTOTAL(9,AO64:AS94) -> $0 | AU95: =SUBTOTAL(9,AU64:AU94) -> $40,000 | BD95: Pending | BJ95: =BJ63 -> $40,000 | BK95: 0 | BM95: 0
BD96: Pending | BJ96: =BJ63 -> $40,000 | BK96: =BK63 -> $0 | BL96: =BL63 ->  | BM96: =BM63 -> $0 | BN96: =BN63 ->  | BO96: =AU96/TOTAL_REMODEL_ESTIMATE ->  | BP96: =#REF!/TOTAL_REMODEL_ESTIMATE ->  | BQ96: =#REF!/TOTAL_REMODEL_ESTIMATE ->  | BR96: =#REF!/TOTAL_REMODEL_ESTIMATE ->  | BS96: =#REF!/TOTAL_REMODEL_ESTIMATE ->  | BT96: =#REF!/TOTAL_REMODEL_ESTIMATE ->  | BU96: =#REF!/TOTAL_REMODEL_ESTIMATE ->  | BV96: =#REF!/TOTAL_REMODEL_ESTIMATE ->  | BW96: =#REF!/TOTAL_REMODEL_ESTIMATE ->  | BX96: =#REF!/TOTAL_REMODEL_ESTIMATE ->  | BY96: =#REF!/TOTAL_REMODEL_ESTIMATE ->  | BZ96: =#REF!/TOTAL_REMODEL_ESTIMATE ->  | CA96: =#REF!/TOTAL_REMODEL_ESTIMATE ->  | CB96: =#REF!/TOTAL_REMODEL_ESTIMATE ->  | CC96: =#REF!/TOTAL_REMODEL_ESTIMATE -> 
U99: Alternate #2 Adders
U100: Adder | AJ100: Calculation Method | AO100: Rate / Amount | AU100: Total
U101: =Adder1_Description -> Building Permit (Lump Sum) | AJ101: Lump Sum | AU101: =IF(AJ101="%",AO101*Alternate2_Subtotal,AO101) -> $0
U102: =Adder2_Description -> Estimating Contingency (% of Subtotal Estimate) | AJ102: % | AU102: $0
U103: =Adder3_Description -> Construction Contingency (% of Subtotal Estimate) | AJ103: Lump Sum | AU103: $0
U104: =Adder4_Description -> Remodeling Tax (% of Subtotal Estimate) | AJ104: % | AU104: $0
U105: =Adder5_Description -> Warranty (% of Subtotal Estimate) | AJ105: % | AU105: $0
U106: =Adder6_Description -> General Liability Insurance (% of Subtotal Estimate) | AJ106: % | AU106: $0
U107: =Adder7_Description -> Builder's Risk Insurance (% of Subtotal Estimate) | AJ107: % | AU107: $0
U108: =Adder8_Description -> Contractor's Profit (% of Subtotal Estimate) | AJ108: % | AU108: $0
U109: =Adder9_Description -> Labor Markup (% of Labor Total) | AJ109: % | AU109: $0
U110: =Adder10_Description -> Material Markup (% of Material Total) | AJ110: % | AU110: $0
U111: =Adder12_Description -> P & P Bond (% of Subtotal Estimate) | AJ111: % | AU111: $0
U112: =Adder13_Description -> Other 1 | AJ112: % | AU112: $0
U113: =Adder14_Description -> Other 2 | AJ113: % | AU113: $0
U114: =Adder15_Description -> Other 3 | AJ114: % | AU114: $0
U115: ADDER TOTALS | AU115: =SUM(AU101:AZ114) -> $0
U116: =UPPER(CONCATENATE(E63," ","TOTAL")) -> ALTERNATE #2: BUILD NEW POOL (15 X 30FT) TOTAL | AU116: =AU95+AU115 -> $40,000
A119: Hidden | B119: Pending | E119: =Alternate3_Description -> Alternate #3: Build new fence around pool (200 lf) | AE119: =IF(AE151=0,"",AE151) -> $5,000 | AJ119: =IF(AJ151=0,"",AJ151) ->  | AO119: =IF(AO151=0,"",AO151) ->  | AU119: =IF(AU151=0,"",AU151) -> $5,000 | BD119: =$B$119 -> Pending | BJ119: =SUM(BJ120:BJ134) -> $5,000 | BK119: $0 | BM119: $0 | CB119: =CONCATENATE(T119,"/", "MH") -> /MH | CC119: =CONCATENATE("MH","/",T119) -> MH/
Q120: 200 | T120: lf | V120: $25.00 | AE120: =V120*Q120 -> $5,000 | AJ120: =Q120*Y120 -> $0 | AO120: =Q120*AB120 -> $0 | AU120: =AE120+AJ120+AO120 -> $5,000 | AZ120: =SUM(#REF!) ->  | BD120: Pending | BJ120: =AE120 -> $5,000 | BK120: =AJ120 -> $0 | BL120: =#REF! ->  | BM120: =AO120 -> $0 | BN120: =SUM(BJ120:BM120) ->  | BO120: =AU120/#REF! ->  | BP120: =AE120/#REF! ->  | BQ120: =BP120*#REF! ->  | BR120: =BQ120+AE120 ->  | BS120: =AJ120/#REF! ->  | BT120: =BS120*#REF! ->  | BU120: =BT120+AJ120 ->  | BV120: =#REF!/#REF! ->  | BW120: =BV120*#REF! ->  | BX120: =BW120+#REF! ->  | BY120: =AO120/#REF! ->  | BZ120: =BY120*#REF! ->  | CA120: =BZ120+AO120 ->  | CB120: lf/MH | CC120: MH/lf | CE120: =T(#REF!) ->  | CF120: =#REF! ->  | CG120: =AE120 -> $5,000.00
AE121: $0 | AJ121: $0 | AO121: =Q121*AB121 -> $0 | AU121: $0 | AZ121: =SUM(#REF!) ->  | BD121: Pending | BJ121: $0 | BK121: $0 | BL121: =#REF! ->  | BM121: $0 | BO121: =AU121/#REF! ->  | BP121: =AE121/#REF! ->  | BQ121: =BP121*#REF! ->  | BS121: =AJ121/#REF! ->  | BT121: =BS121*#REF! ->  | BV121: =#REF!/#REF! ->  | BW121: =BV121*#REF! ->  | BX121: =BW121+#REF! ->  | BY121: =AO121/#REF! ->  | BZ121: =BY121*#REF! ->  | CB121: /MH | CC121: MH/ | CE121: =T(#REF!) ->  | CF121: =#REF! ->  | CG121: $0.00
AE122: $0 | AJ122: $0 | AO122: $0 | AU122: $0 | AZ122: =SUM(#REF!) ->  | BD122: Pending | BJ122: $0 | BK122: $0 | BL122: =#REF! ->  | BM122: $0 | BO122: =AU122/#REF! ->  | BP122: =AE122/#REF! ->  | BQ122: =BP122*#REF! ->  | BS122: =AJ122/#REF! ->  | BT122: =BS122*#REF! ->  | BV122: =#REF!/#REF! ->  | BW122: =BV122*#REF! ->  | BX122: =BW122+#REF! ->  | BY122: =AO122/#REF! ->  | BZ122: =BY122*#REF! ->  | CB122: /MH | CC122: MH/ | CE122: =T(#REF!) ->  | CF122: =#REF! ->  | CG122: $0.00
AE123: $0 | AJ123: $0 | AO123: $0 | AU123: $0 | AZ123: =SUM(#REF!) ->  | BD123: Pending | BJ123: $0 | BK123: $0 | BL123: =#REF! ->  | BM123: $0 | BO123: =AU123/#REF! ->  | BP123: =AE123/#REF! ->  | BQ123: =BP123*#REF! ->  | BS123: =AJ123/#REF! ->  | BT123: =BS123*#REF! ->  | BV123: =#REF!/#REF! ->  | BW123: =BV123*#REF! ->  | BX123: =BW123+#REF! ->  | BY123: =AO123/#REF! ->  | BZ123: =BY123*#REF! ->  | CB123: /MH | CC123: MH/ | CE123: =T(#REF!) ->  | CF123: =#REF! ->  | CG123: $0.00
AE124: $0 | AJ124: $0 | AO124: $0 | AU124: $0 | AZ124: =SUM(#REF!) ->  | BD124: Pending | BJ124: $0 | BK124: $0 | BL124: =#REF! ->  | BM124: $0 | BO124: =AU124/#REF! ->  | BP124: =AE124/#REF! ->  | BQ124: =BP124*#REF! ->  | BS124: =AJ124/#REF! ->  | BT124: =BS124*#REF! ->  | BV124: =#REF!/#REF! ->  | BW124: =BV124*#REF! ->  | BX124: =BW124+#REF! ->  | BY124: =AO124/#REF! ->  | BZ124: =BY124*#REF! ->  | CB124: /MH | CC124: MH/ | CE124: =T(#REF!) ->  | CF124: =#REF! ->  | CG124: $0.00
AE125: $0 | AJ125: $0 | AO125: $0 | AU125: $0 | AZ125: =SUM(#REF!) ->  | BD125: Pending | BJ125: $0 | BK125: $0 | BL125: =#REF! ->  | BM125: $0 | BO125: =AU125/#REF! ->  | BP125: =AE125/#REF! ->  | BQ125: =BP125*#REF! ->  | BS125: =AJ125/#REF! ->  | BT125: =BS125*#REF! ->  | BV125: =#REF!/#REF! ->  | BW125: =BV125*#REF! ->  | BX125: =BW125+#REF! ->  | BY125: =AO125/#REF! ->  | BZ125: =BY125*#REF! ->  | CB125: /MH | CC125: MH/ | CE125: =T(#REF!) ->  | CF125: =#REF! ->  | CG125: $0.00
AE126: $0 | AJ126: $0 | AO126: $0 | AU126: $0 | AZ126: =SUM(#REF!) ->  | BD126: Pending | BJ126: $0 | BK126: $0 | BL126: =#REF! ->  | BM126: $0 | BO126: =AU126/#REF! ->  | BP126: =AE126/#REF! ->  | BQ126: =BP126*#REF! ->  | BS126: =AJ126/#REF! ->  | BT126: =BS126*#REF! ->  | BV126: =#REF!/#REF! ->  | BW126: =BV126*#REF! ->  | BX126: =BW126+#REF! ->  | BY126: =AO126/#REF! ->  | BZ126: =BY126*#REF! ->  | CB126: /MH | CC126: MH/ | CE126: =T(#REF!) ->  | CF126: =#REF! ->  | CG126: $0.00
AE127: $0 | AJ127: $0 | AO127: $0 | AU127: $0 | AZ127: =SUM(#REF!) ->  | BD127: Pending | BJ127: $0 | BK127: $0 | BL127: =#REF! ->  | BM127: $0 | BO127: =AU127/#REF! ->  | BP127: =AE127/#REF! ->  | BQ127: =BP127*#REF! ->  | BS127: =AJ127/#REF! ->  | BT127: =BS127*#REF! ->  | BV127: =#REF!/#REF! ->  | BW127: =BV127*#REF! ->  | BX127: =BW127+#REF! ->  | BY127: =AO127/#REF! ->  | BZ127: =BY127*#REF! ->  | CB127: /MH | CC127: MH/ | CE127: =T(#REF!) ->  | CF127: =#REF! ->  | CG127: $0.00
AE128: $0 | AJ128: $0 | AO128: $0 | AU128: $0 | AZ128: =SUM(#REF!) ->  | BD128: Pending | BJ128: $0 | BK128: $0 | BL128: =#REF! ->  | BM128: $0 | BO128: =AU128/#REF! ->  | BP128: =AE128/#REF! ->  | BQ128: =BP128*#REF! ->  | BS128: =AJ128/#REF! ->  | BT128: =BS128*#REF! ->  | BV128: =#REF!/#REF! ->  | BW128: =BV128*#REF! ->  | BX128: =BW128+#REF! ->  | BY128: =AO128/#REF! ->  | BZ128: =BY128*#REF! ->  | CB128: /MH | CC128: MH/ | CE128: =T(#REF!) ->  | CF128: =#REF! ->  | CG128: $0.00
AE129: $0 | AJ129: $0 | AO129: $0 | AU129: $0 | AZ129: =SUM(#REF!) ->  | BD129: Pending | BJ129: $0 | BK129: $0 | BL129: =#REF! ->  | BM129: $0 | BO129: =AU129/#REF! ->  | BP129: =AE129/#REF! ->  | BQ129: =BP129*#REF! ->  | BS129: =AJ129/#REF! ->  | BT129: =BS129*#REF! ->  | BV129: =#REF!/#REF! ->  | BW129: =BV129*#REF! ->  | BX129: =BW129+#REF! ->  | BY129: =AO129/#REF! ->  | BZ129: =BY129*#REF! ->  | CB129: /MH | CC129: MH/ | CE129: =T(#REF!) ->  | CF129: =#REF! ->  | CG129: $0.00
AE130: $0 | AJ130: $0 | AO130: $0 | AU130: $0 | AZ130: =SUM(#REF!) ->  | BD130: Pending | BJ130: $0 | BK130: $0 | BL130: =#REF! ->  | BM130: $0 | BO130: =AU130/#REF! ->  | BP130: =AE130/#REF! ->  | BQ130: =BP130*#REF! ->  | BS130: =AJ130/#REF! ->  | BT130: =BS130*#REF! ->  | BV130: =#REF!/#REF! ->  | BW130: =BV130*#REF! ->  | BX130: =BW130+#REF! ->  | BY130: =AO130/#REF! ->  | BZ130: =BY130*#REF! ->  | CB130: /MH | CC130: MH/ | CE130: =T(#REF!) ->  | CF130: =#REF! ->  | CG130: $0.00
AE131: $0 | AJ131: $0 | AO131: $0 | AU131: $0 | AZ131: =SUM(#REF!) ->  | BD131: Pending | BJ131: $0 | BK131: $0 | BL131: =#REF! ->  | BM131: $0 | BO131: =AU131/#REF! ->  | BP131: =AE131/#REF! ->  | BQ131: =BP131*#REF! ->  | BS131: =AJ131/#REF! ->  | BT131: =BS131*#REF! ->  | BV131: =#REF!/#REF! ->  | BW131: =BV131*#REF! ->  | BX131: =BW131+#REF! ->  | BY131: =AO131/#REF! ->  | BZ131: =BY131*#REF! ->  | CB131: /MH | CC131: MH/ | CE131: =T(#REF!) ->  | CF131: =#REF! ->  | CG131: $0.00
AE132: $0 | AJ132: $0 | AO132: $0 | AU132: $0 | AZ132: =SUM(#REF!) ->  | BD132: Pending | BJ132: $0 | BK132: $0 | BL132: =#REF! ->  | BM132: $0 | BO132: =AU132/#REF! ->  | BP132: =AE132/#REF! ->  | BQ132: =BP132*#REF! ->  | BS132: =AJ132/#REF! ->  | BT132: =BS132*#REF! ->  | BV132: =#REF!/#REF! ->  | BW132: =BV132*#REF! ->  | BX132: =BW132+#REF! ->  | BY132: =AO132/#REF! ->  | BZ132: =BY132*#REF! ->  | CB132: /MH | CC132: MH/ | CE132: =T(#REF!) ->  | CF132: =#REF! ->  | CG132: $0.00
AE133: $0 | AJ133: $0 | AO133: $0 | AU133: $0 | AZ133: =SUM(#REF!) ->  | BD133: Pending | BJ133: $0 | BK133: $0 | BL133: =#REF! ->  | BM133: $0 | BO133: =AU133/#REF! ->  | BP133: =AE133/#REF! ->  | BQ133: =BP133*#REF! ->  | BS133: =AJ133/#REF! ->  | BT133: =BS133*#REF! ->  | BV133: =#REF!/#REF! ->  | BW133: =BV133*#REF! ->  | BX133: =BW133+#REF! ->  | BY133: =AO133/#REF! ->  | BZ133: =BY133*#REF! ->  | CB133: /MH | CC133: MH/ | CE133: =T(#REF!) ->  | CF133: =#REF! ->  | CG133: $0.00
AE134: $0 | AJ134: $0 | AO134: $0 | AU134: $0 | AZ134: =SUM(#REF!) ->  | BD134: Pending | BJ134: $0 | BK134: $0 | BL134: =#REF! ->  | BM134: $0 | BO134: =AU134/#REF! ->  | BP134: =AE134/#REF! ->  | BQ134: =BP134*#REF! ->  | BS134: =AJ134/#REF! ->  | BT134: =BS134*#REF! ->  | BV134: =#REF!/#REF! ->  | BW134: =BV134*#REF! ->  | BX134: =BW134+#REF! ->  | BY134: =AO134/#REF! ->  | BZ134: =BY134*#REF! ->  | CB134: /MH | CC134: MH/ | CE134: =T(#REF!) ->  | CF134: =#REF! ->  | CG134: $0.00
AE135: =V135*Q135 -> $0 | AJ135: =Q135*Y135 -> $0 | AO135: =Q135*AB135 -> $0 | AU135: =AE135+AJ135+AO135 -> $0 | AZ135: =SUM(#REF!) ->  | BD135: Pending | BJ135: $0 | BK135: $0 | BL135: =#REF! ->  | BM135: $0 | BN135: =SUM(BJ135:BM135) ->  | BO135: =AU135/#REF! ->  | BP135: =AE135/#REF! ->  | BQ135: =BP135*#REF! ->  | BS135: =AJ135/#REF! ->  | BT135: =BS135*#REF! ->  | BV135: =#REF!/#REF! ->  | BW135: =BV135*#REF! ->  | BX135: =BW135+#REF! ->  | BY135: =AO135/#REF! ->  | BZ135: =BY135*#REF! ->  | CB135: /MH | CC135: MH/ | CE135: =T(#REF!) ->  | CF135: =#REF! ->  | CG135: $0.00
AE136: $0 | AJ136: $0 | AO136: =Q136*AB136 -> $0 | AU136: $0 | AZ136: =SUM(#REF!) ->  | BD136: Pending | BJ136: $0 | BK136: $0 | BL136: =#REF! ->  | BM136: $0 | BO136: =AU136/#REF! ->  | BP136: =AE136/#REF! ->  | BQ136: =BP136*#REF! ->  | BS136: =AJ136/#REF! ->  | BT136: =BS136*#REF! ->  | BV136: =#REF!/#REF! ->  | BW136: =BV136*#REF! ->  | BX136: =BW136+#REF! ->  | BY136: =AO136/#REF! ->  | BZ136: =BY136*#REF! ->  | CB136: /MH | CC136: MH/ | CE136: =T(#REF!) ->  | CF136: =#REF! ->  | CG136: $0.00
AE137: $0 | AJ137: $0 | AO137: $0 | AU137: $0 | AZ137: =SUM(#REF!) ->  | BD137: Pending | BJ137: $0 | BK137: $0 | BL137: =#REF! ->  | BM137: $0 | BO137: =AU137/#REF! ->  | BP137: =AE137/#REF! ->  | BQ137: =BP137*#REF! ->  | BS137: =AJ137/#REF! ->  | BT137: =BS137*#REF! ->  | BV137: =#REF!/#REF! ->  | BW137: =BV137*#REF! ->  | BX137: =BW137+#REF! ->  | BY137: =AO137/#REF! ->  | BZ137: =BY137*#REF! ->  | CB137: /MH | CC137: MH/ | CE137: =T(#REF!) ->  | CF137: =#REF! ->  | CG137: $0.00
AE138: $0 | AJ138: $0 | AO138: $0 | AU138: $0 | AZ138: =SUM(#REF!) ->  | BD138: Pending | BJ138: $0 | BK138: $0 | BL138: =#REF! ->  | BM138: $0 | BO138: =AU138/#REF! ->  | BP138: =AE138/#REF! ->  | BQ138: =BP138*#REF! ->  | BS138: =AJ138/#REF! ->  | BT138: =BS138*#REF! ->  | BV138: =#REF!/#REF! ->  | BW138: =BV138*#REF! ->  | BX138: =BW138+#REF! ->  | BY138: =AO138/#REF! ->  | BZ138: =BY138*#REF! ->  | CB138: /MH | CC138: MH/ | CE138: =T(#REF!) ->  | CF138: =#REF! ->  | CG138: $0.00
AE139: $0 | AJ139: $0 | AO139: $0 | AU139: $0 | AZ139: =SUM(#REF!) ->  | BD139: Pending | BJ139: $0 | BK139: $0 | BL139: =#REF! ->  | BM139: $0 | BO139: =AU139/#REF! ->  | BP139: =AE139/#REF! ->  | BQ139: =BP139*#REF! ->  | BS139: =AJ139/#REF! ->  | BT139: =BS139*#REF! ->  | BV139: =#REF!/#REF! ->  | BW139: =BV139*#REF! ->  | BX139: =BW139+#REF! ->  | BY139: =AO139/#REF! ->  | BZ139: =BY139*#REF! ->  | CB139: /MH | CC139: MH/ | CE139: =T(#REF!) ->  | CF139: =#REF! ->  | CG139: $0.00
AE140: $0 | AJ140: $0 | AO140: $0 | AU140: $0 | AZ140: =SUM(#REF!) ->  | BD140: Pending | BJ140: $0 | BK140: $0 | BL140: =#REF! ->  | BM140: $0 | BO140: =AU140/#REF! ->  | BP140: =AE140/#REF! ->  | BQ140: =BP140*#REF! ->  | BS140: =AJ140/#REF! ->  | BT140: =BS140*#REF! ->  | BV140: =#REF!/#REF! ->  | BW140: =BV140*#REF! ->  | BX140: =BW140+#REF! ->  | BY140: =AO140/#REF! ->  | BZ140: =BY140*#REF! ->  | CB140: /MH | CC140: MH/ | CE140: =T(#REF!) ->  | CF140: =#REF! ->  | CG140: $0.00
AE141: $0 | AJ141: $0 | AO141: $0 | AU141: $0 | AZ141: =SUM(#REF!) ->  | BD141: Pending | BJ141: $0 | BK141: $0 | BL141: =#REF! ->  | BM141: $0 | BO141: =AU141/#REF! ->  | BP141: =AE141/#REF! ->  | BQ141: =BP141*#REF! ->  | BS141: =AJ141/#REF! ->  | BT141: =BS141*#REF! ->  | BV141: =#REF!/#REF! ->  | BW141: =BV141*#REF! ->  | BX141: =BW141+#REF! ->  | BY141: =AO141/#REF! ->  | BZ141: =BY141*#REF! ->  | CB141: /MH | CC141: MH/ | CE141: =T(#REF!) ->  | CF141: =#REF! ->  | CG141: $0.00
AE142: $0 | AJ142: $0 | AO142: $0 | AU142: $0 | AZ142: =SUM(#REF!) ->  | BD142: Pending | BJ142: $0 | BK142: $0 | BL142: =#REF! ->  | BM142: $0 | BO142: =AU142/#REF! ->  | BP142: =AE142/#REF! ->  | BQ142: =BP142*#REF! ->  | BS142: =AJ142/#REF! ->  | BT142: =BS142*#REF! ->  | BV142: =#REF!/#REF! ->  | BW142: =BV142*#REF! ->  | BX142: =BW142+#REF! ->  | BY142: =AO142/#REF! ->  | BZ142: =BY142*#REF! ->  | CB142: /MH | CC142: MH/ | CE142: =T(#REF!) ->  | CF142: =#REF! ->  | CG142: $0.00
AE143: $0 | AJ143: $0 | AO143: $0 | AU143: $0 | AZ143: =SUM(#REF!) ->  | BD143: Pending | BJ143: $0 | BK143: $0 | BL143: =#REF! ->  | BM143: $0 | BO143: =AU143/#REF! ->  | BP143: =AE143/#REF! ->  | BQ143: =BP143*#REF! ->  | BS143: =AJ143/#REF! ->  | BT143: =BS143*#REF! ->  | BV143: =#REF!/#REF! ->  | BW143: =BV143*#REF! ->  | BX143: =BW143+#REF! ->  | BY143: =AO143/#REF! ->  | BZ143: =BY143*#REF! ->  | CB143: /MH | CC143: MH/ | CE143: =T(#REF!) ->  | CF143: =#REF! ->  | CG143: $0.00
AE144: $0 | AJ144: $0 | AO144: $0 | AU144: $0 | AZ144: =SUM(#REF!) ->  | BD144: Pending | BJ144: $0 | BK144: $0 | BL144: =#REF! ->  | BM144: $0 | BO144: =AU144/#REF! ->  | BP144: =AE144/#REF! ->  | BQ144: =BP144*#REF! ->  | BS144: =AJ144/#REF! ->  | BT144: =BS144*#REF! ->  | BV144: =#REF!/#REF! ->  | BW144: =BV144*#REF! ->  | BX144: =BW144+#REF! ->  | BY144: =AO144/#REF! ->  | BZ144: =BY144*#REF! ->  | CB144: /MH | CC144: MH/ | CE144: =T(#REF!) ->  | CF144: =#REF! ->  | CG144: $0.00
AE145: $0 | AJ145: $0 | AO145: $0 | AU145: $0 | AZ145: =SUM(#REF!) ->  | BD145: Pending | BJ145: $0 | BK145: $0 | BL145: =#REF! ->  | BM145: $0 | BO145: =AU145/#REF! ->  | BP145: =AE145/#REF! ->  | BQ145: =BP145*#REF! ->  | BS145: =AJ145/#REF! ->  | BT145: =BS145*#REF! ->  | BV145: =#REF!/#REF! ->  | BW145: =BV145*#REF! ->  | BX145: =BW145+#REF! ->  | BY145: =AO145/#REF! ->  | BZ145: =BY145*#REF! ->  | CB145: /MH | CC145: MH/ | CE145: =T(#REF!) ->  | CF145: =#REF! ->  | CG145: $0.00
AE146: $0 | AJ146: $0 | AO146: $0 | AU146: $0 | AZ146: =SUM(#REF!) ->  | BD146: Pending | BJ146: $0 | BK146: $0 | BL146: =#REF! ->  | BM146: $0 | BO146: =AU146/#REF! ->  | BP146: =AE146/#REF! ->  | BQ146: =BP146*#REF! ->  | BS146: =AJ146/#REF! ->  | BT146: =BS146*#REF! ->  | BV146: =#REF!/#REF! ->  | BW146: =BV146*#REF! ->  | BX146: =BW146+#REF! ->  | BY146: =AO146/#REF! ->  | BZ146: =BY146*#REF! ->  | CB146: /MH | CC146: MH/ | CE146: =T(#REF!) ->  | CF146: =#REF! ->  | CG146: $0.00
AE147: $0 | AJ147: $0 | AO147: $0 | AU147: $0 | AZ147: =SUM(#REF!) ->  | BD147: Pending | BJ147: $0 | BK147: $0 | BL147: =#REF! ->  | BM147: $0 | BO147: =AU147/#REF! ->  | BP147: =AE147/#REF! ->  | BQ147: =BP147*#REF! ->  | BS147: =AJ147/#REF! ->  | BT147: =BS147*#REF! ->  | BV147: =#REF!/#REF! ->  | BW147: =BV147*#REF! ->  | BX147: =BW147+#REF! ->  | BY147: =AO147/#REF! ->  | BZ147: =BY147*#REF! ->  | CB147: /MH | CC147: MH/ | CE147: =T(#REF!) ->  | CF147: =#REF! ->  | CG147: $0.00
AE148: $0 | AJ148: $0 | AO148: $0 | AU148: $0 | AZ148: =SUM(#REF!) ->  | BD148: Pending | BJ148: $0 | BK148: $0 | BL148: =#REF! ->  | BM148: $0 | BO148: =AU148/#REF! ->  | BP148: =AE148/#REF! ->  | BQ148: =BP148*#REF! ->  | BS148: =AJ148/#REF! ->  | BT148: =BS148*#REF! ->  | BV148: =#REF!/#REF! ->  | BW148: =BV148*#REF! ->  | BX148: =BW148+#REF! ->  | BY148: =AO148/#REF! ->  | BZ148: =BY148*#REF! ->  | CB148: /MH | CC148: MH/ | CE148: =T(#REF!) ->  | CF148: =#REF! ->  | CG148: $0.00
AE149: $0 | AJ149: $0 | AO149: $0 | AU149: $0 | AZ149: =SUM(#REF!) ->  | BD149: Pending | BJ149: $0 | BK149: $0 | BL149: =#REF! ->  | BM149: $0 | BO149: =AU149/#REF! ->  | BP149: =AE149/#REF! ->  | BQ149: =BP149*#REF! ->  | BS149: =AJ149/#REF! ->  | BT149: =BS149*#REF! ->  | BV149: =#REF!/#REF! ->  | BW149: =BV149*#REF! ->  | BX149: =BW149+#REF! ->  | BY149: =AO149/#REF! ->  | BZ149: =BY149*#REF! ->  | CB149: /MH | CC149: MH/ | CE149: =T(#REF!) ->  | CF149: =#REF! ->  | CG149: $0.00
BD150: Pending | BJ150: =BJ119 -> $5,000 | BK150: =BK119 -> 0 | BL150: =BL119 ->  | BM150: =BM119 -> 0 | BN150: =BN119 ->  | BO150: =AU150/TOTAL_REMODEL_ESTIMATE ->  | BP150: =#REF!/TOTAL_REMODEL_ESTIMATE ->  | BQ150: =#REF!/TOTAL_REMODEL_ESTIMATE ->  | BR150: =#REF!/TOTAL_REMODEL_ESTIMATE ->  | BS150: =#REF!/TOTAL_REMODEL_ESTIMATE ->  | BT150: =#REF!/TOTAL_REMODEL_ESTIMATE ->  | BU150: =#REF!/TOTAL_REMODEL_ESTIMATE ->  | BV150: =#REF!/TOTAL_REMODEL_ESTIMATE ->  | BW150: =#REF!/TOTAL_REMODEL_ESTIMATE ->  | BX150: =#REF!/TOTAL_REMODEL_ESTIMATE ->  | BY150: =#REF!/TOTAL_REMODEL_ESTIMATE ->  | BZ150: =#REF!/TOTAL_REMODEL_ESTIMATE ->  | CA150: =#REF!/TOTAL_REMODEL_ESTIMATE ->  | CB150: =#REF!/TOTAL_REMODEL_ESTIMATE ->  | CC150: =#REF!/TOTAL_REMODEL_ESTIMATE -> 
B151: =UPPER(CONCATENATE(E119," ","SUBTOTAL")) -> ALTERNATE #3: BUILD NEW FENCE AROUND POOL (200 LF) SUBTOTAL | AE151: =SUBTOTAL(9,AE120:AI150) -> $5,000 | AJ151: =SUBTOTAL(9,AJ120:AN150) -> $0 | AO151: =SUBTOTAL(9,AO120:AS150) -> $0 | AU151: =SUBTOTAL(9,AU120:AU150) -> $5,000 | BD151: Pending | BJ151: =BJ119 -> $5,000 | BK151: 0 | BM151: 0
BD152: Pending | BJ152: =BJ119 -> $5,000 | BK152: =BK119 -> $0 | BL152: =BL119 ->  | BM152: =BM119 -> $0 | BN152: =BN119 ->  | BO152: =AU152/TOTAL_REMODEL_ESTIMATE ->  | BP152: =#REF!/TOTAL_REMODEL_ESTIMATE ->  | BQ152: =#REF!/TOTAL_REMODEL_ESTIMATE ->  | BR152: =#REF!/TOTAL_REMODEL_ESTIMATE ->  | BS152: =#REF!/TOTAL_REMODEL_ESTIMATE ->  | BT152: =#REF!/TOTAL_REMODEL_ESTIMATE ->  | BU152: =#REF!/TOTAL_REMODEL_ESTIMATE ->  | BV152: =#REF!/TOTAL_REMODEL_ESTIMATE ->  | BW152: =#REF!/TOTAL_REMODEL_ESTIMATE ->  | BX152: =#REF!/TOTAL_REMODEL_ESTIMATE ->  | BY152: =#REF!/TOTAL_REMODEL_ESTIMATE ->  | BZ152: =#REF!/TOTAL_REMODEL_ESTIMATE ->  | CA152: =#REF!/TOTAL_REMODEL_ESTIMATE ->  | CB152: =#REF!/TOTAL_REMODEL_ESTIMATE ->  | CC152: =#REF!/TOTAL_REMODEL_ESTIMATE -> 
U155: Alternate #3 Adders
U156: Adder | AJ156: Calculation Method | AO156: Rate / Amount | AU156: Total
U157: =Adder1_Description -> Building Permit (Lump Sum) | AJ157: Lump Sum | AU157: =IF(AJ157="%",AO157*Alternate3_Subtotal,AO157) -> $0
U158: =Adder2_Description -> Estimating Contingency (% of Subtotal Estimate) | AJ158: % | AU158: $0
U159: =Adder3_Description -> Construction Contingency (% of Subtotal Estimate) | AJ159: Lump Sum | AU159: $0
U160: =Adder4_Description -> Remodeling Tax (% of Subtotal Estimate) | AJ160: % | AU160: $0
U161: =Adder5_Description -> Warranty (% of Subtotal Estimate) | AJ161: % | AU161: $0
U162: =Adder6_Description -> General Liability Insurance (% of Subtotal Estimate) | AJ162: % | AU162: $0
U163: =Adder7_Description -> Builder's Risk Insurance (% of Subtotal Estimate) | AJ163: % | AU163: $0
U164: =Adder8_Description -> Contractor's Profit (% of Subtotal Estimate) | AJ164: % | AU164: $0
U165: =Adder9_Description -> Labor Markup (% of Labor Total) | AJ165: % | AU165: $0
U166: =Adder10_Description -> Material Markup (% of Material Total) | AJ166: % | AU166: $0
U167: =Adder12_Description -> P & P Bond (% of Subtotal Estimate) | AJ167: % | AU167: $0
U168: =Adder13_Description -> Other 1 | AJ168: % | AU168: $0
U169: =Adder14_Description -> Other 2 | AJ169: % | AU169: $0
U170: =Adder15_Description -> Other 3 | AJ170: % | AU170: $0
U171: ADDER TOTALS | AU171: =SUM(AU157:AZ170) -> $0
U172: =UPPER(CONCATENATE(E119," ","TOTAL")) -> ALTERNATE #3: BUILD NEW FENCE AROUND POOL (200 LF) TOTAL | AU172: =AU151+AU171 -> $5,000
A175: Hidden | B175: Pending | E175: =Alternate4_Description -> Alternate #4: Deduct new roof | AE175: =IF(AE207=0,"",AE207) -> -$7,500 | AJ175: =IF(AJ207=0,"",AJ207) ->  | AO175: =IF(AO207=0,"",AO207) ->  | AU175: =IF(AU207=0,"",AU207) -> -$7,500 | BD175: =$B$175 -> Pending | BJ175: =SUM(BJ176:BJ190) -> -$7,500 | BK175: $0 | BM175: $0 | CB175: =CONCATENATE(T175,"/", "MH") -> /MH | CC175: =CONCATENATE("MH","/",T175) -> MH/
Q176: 25 | T176: sq | V176: -$300.00 | AE176: =V176*Q176 -> -$7,500 | AJ176: =Q176*Y176 -> $0 | AO176: =Q176*AB176 -> $0 | AU176: =AE176+AJ176+AO176 -> -$7,500 | AZ176: =SUM(#REF!) ->  | BD176: Pending | BJ176: =AE176 -> -$7,500 | BK176: =AJ176 -> $0 | BL176: =#REF! ->  | BM176: =AO176 -> $0 | BN176: =SUM(BJ176:BM176) ->  | BO176: =AU176/#REF! ->  | BP176: =AE176/#REF! ->  | BQ176: =BP176*#REF! ->  | BR176: =BQ176+AE176 ->  | BS176: =AJ176/#REF! ->  | BT176: =BS176*#REF! ->  | BU176: =BT176+AJ176 ->  | BV176: =#REF!/#REF! ->  | BW176: =BV176*#REF! ->  | BX176: =BW176+#REF! ->  | BY176: =AO176/#REF! ->  | BZ176: =BY176*#REF! ->  | CA176: =BZ176+AO176 ->  | CB176: sq/MH | CC176: MH/sq | CE176: =T(#REF!) ->  | CF176: =#REF! ->  | CG176: =AE176 -> -$7,500.00
AE177: $0 | AJ177: $0 | AO177: =Q177*AB177 -> $0 | AU177: $0 | AZ177: =SUM(#REF!) ->  | BD177: Pending | BJ177: $0 | BK177: $0 | BL177: =#REF! ->  | BM177: $0 | BO177: =AU177/#REF! ->  | BP177: =AE177/#REF! ->  | BQ177: =BP177*#REF! ->  | BS177: =AJ177/#REF! ->  | BT177: =BS177*#REF! ->  | BV177: =#REF!/#REF! ->  | BW177: =BV177*#REF! ->  | BX177: =BW177+#REF! ->  | BY177: =AO177/#REF! ->  | BZ177: =BY177*#REF! ->  | CB177: /MH | CC177: MH/ | CE177: =T(#REF!) ->  | CF177: =#REF! ->  | CG177: $0.00
AE178: $0 | AJ178: $0 | AO178: $0 | AU178: $0 | AZ178: =SUM(#REF!) ->  | BD178: Pending | BJ178: $0 | BK178: $0 | BL178: =#REF! ->  | BM178: $0 | BO178: =AU178/#REF! ->  | BP178: =AE178/#REF! ->  | BQ178: =BP178*#REF! ->  | BS178: =AJ178/#REF! ->  | BT178: =BS178*#REF! ->  | BV178: =#REF!/#REF! ->  | BW178: =BV178*#REF! ->  | BX178: =BW178+#REF! ->  | BY178: =AO178/#REF! ->  | BZ178: =BY178*#REF! ->  | CB178: /MH | CC178: MH/ | CE178: =T(#REF!) ->  | CF178: =#REF! ->  | CG178: $0.00
AE179: $0 | AJ179: $0 | AO179: $0 | AU179: $0 | AZ179: =SUM(#REF!) ->  | BD179: Pending | BJ179: $0 | BK179: $0 | BL179: =#REF! ->  | BM179: $0 | BO179: =AU179/#REF! ->  | BP179: =AE179/#REF! ->  | BQ179: =BP179*#REF! ->  | BS179: =AJ179/#REF! ->  | BT179: =BS179*#REF! ->  | BV179: =#REF!/#REF! ->  | BW179: =BV179*#REF! ->  | BX179: =BW179+#REF! ->  | BY179: =AO179/#REF! ->  | BZ179: =BY179*#REF! ->  | CB179: /MH | CC179: MH/ | CE179: =T(#REF!) ->  | CF179: =#REF! ->  | CG179: $0.00
AE180: $0 | AJ180: $0 | AO180: $0 | AU180: $0 | AZ180: =SUM(#REF!) ->  | BD180: Pending | BJ180: $0 | BK180: $0 | BL180: =#REF! ->  | BM180: $0 | BO180: =AU180/#REF! ->  | BP180: =AE180/#REF! ->  | BQ180: =BP180*#REF! ->  | BS180: =AJ180/#REF! ->  | BT180: =BS180*#REF! ->  | BV180: =#REF!/#REF! ->  | BW180: =BV180*#REF! ->  | BX180: =BW180+#REF! ->  | BY180: =AO180/#REF! ->  | BZ180: =BY180*#REF! ->  | CB180: /MH | CC180: MH/ | CE180: =T(#REF!) ->  | CF180: =#REF! ->  | CG180: $0.00
AE181: $0 | AJ181: $0 | AO181: $0 | AU181: $0 | AZ181: =SUM(#REF!) ->  | BD181: Pending | BJ181: $0 | BK181: $0 | BL181: =#REF! ->  | BM181: $0 | BO181: =AU181/#REF! ->  | BP181: =AE181/#REF! ->  | BQ181: =BP181*#REF! ->  | BS181: =AJ181/#REF! ->  | BT181: =BS181*#REF! ->  | BV181: =#REF!/#REF! ->  | BW181: =BV181*#REF! ->  | BX181: =BW181+#REF! ->  | BY181: =AO181/#REF! ->  | BZ181: =BY181*#REF! ->  | CB181: /MH | CC181: MH/ | CE181: =T(#REF!) ->  | CF181: =#REF! ->  | CG181: $0.00
AE182: $0 | AJ182: $0 | AO182: $0 | AU182: $0 | AZ182: =SUM(#REF!) ->  | BD182: Pending | BJ182: $0 | BK182: $0 | BL182: =#REF! ->  | BM182: $0 | BO182: =AU182/#REF! ->  | BP182: =AE182/#REF! ->  | BQ182: =BP182*#REF! ->  | BS182: =AJ182/#REF! ->  | BT182: =BS182*#REF! ->  | BV182: =#REF!/#REF! ->  | BW182: =BV182*#REF! ->  | BX182: =BW182+#REF! ->  | BY182: =AO182/#REF! ->  | BZ182: =BY182*#REF! ->  | CB182: /MH | CC182: MH/ | CE182: =T(#REF!) ->  | CF182: =#REF! ->  | CG182: $0.00
AE183: $0 | AJ183: $0 | AO183: $0 | AU183: $0 | AZ183: =SUM(#REF!) ->  | BD183: Pending | BJ183: $0 | BK183: $0 | BL183: =#REF! ->  | BM183: $0 | BO183: =AU183/#REF! ->  | BP183: =AE183/#REF! ->  | BQ183: =BP183*#REF! ->  | BS183: =AJ183/#REF! ->  | BT183: =BS183*#REF! ->  | BV183: =#REF!/#REF! ->  | BW183: =BV183*#REF! ->  | BX183: =BW183+#REF! ->  | BY183: =AO183/#REF! ->  | BZ183: =BY183*#REF! ->  | CB183: /MH | CC183: MH/ | CE183: =T(#REF!) ->  | CF183: =#REF! ->  | CG183: $0.00
AE184: $0 | AJ184: $0 | AO184: $0 | AU184: $0 | AZ184: =SUM(#REF!) ->  | BD184: Pending | BJ184: $0 | BK184: $0 | BL184: =#REF! ->  | BM184: $0 | BO184: =AU184/#REF! ->  | BP184: =AE184/#REF! ->  | BQ184: =BP184*#REF! ->  | BS184: =AJ184/#REF! ->  | BT184: =BS184*#REF! ->  | BV184: =#REF!/#REF! ->  | BW184: =BV184*#REF! ->  | BX184: =BW184+#REF! ->  | BY184: =AO184/#REF! ->  | BZ184: =BY184*#REF! ->  | CB184: /MH | CC184: MH/ | CE184: =T(#REF!) ->  | CF184: =#REF! ->  | CG184: $0.00
AE185: $0 | AJ185: $0 | AO185: $0 | AU185: $0 | AZ185: =SUM(#REF!) ->  | BD185: Pending | BJ185: $0 | BK185: $0 | BL185: =#REF! ->  | BM185: $0 | BO185: =AU185/#REF! ->  | BP185: =AE185/#REF! ->  | BQ185: =BP185*#REF! ->  | BS185: =AJ185/#REF! ->  | BT185: =BS185*#REF! ->  | BV185: =#REF!/#REF! ->  | BW185: =BV185*#REF! ->  | BX185: =BW185+#REF! ->  | BY185: =AO185/#REF! ->  | BZ185: =BY185*#REF! ->  | CB185: /MH | CC185: MH/ | CE185: =T(#REF!) ->  | CF185: =#REF! ->  | CG185: $0.00
AE186: $0 | AJ186: $0 | AO186: $0 | AU186: $0 | AZ186: =SUM(#REF!) ->  | BD186: Pending | BJ186: $0 | BK186: $0 | BL186: =#REF! ->  | BM186: $0 | BO186: =AU186/#REF! ->  | BP186: =AE186/#REF! ->  | BQ186: =BP186*#REF! ->  | BS186: =AJ186/#REF! ->  | BT186: =BS186*#REF! ->  | BV186: =#REF!/#REF! ->  | BW186: =BV186*#REF! ->  | BX186: =BW186+#REF! ->  | BY186: =AO186/#REF! ->  | BZ186: =BY186*#REF! ->  | CB186: /MH | CC186: MH/ | CE186: =T(#REF!) ->  | CF186: =#REF! ->  | CG186: $0.00
AE187: $0 | AJ187: $0 | AO187: $0 | AU187: $0 | AZ187: =SUM(#REF!) ->  | BD187: Pending | BJ187: $0 | BK187: $0 | BL187: =#REF! ->  | BM187: $0 | BO187: =AU187/#REF! ->  | BP187: =AE187/#REF! ->  | BQ187: =BP187*#REF! ->  | BS187: =AJ187/#REF! ->  | BT187: =BS187*#REF! ->  | BV187: =#REF!/#REF! ->  | BW187: =BV187*#REF! ->  | BX187: =BW187+#REF! ->  | BY187: =AO187/#REF! ->  | BZ187: =BY187*#REF! ->  | CB187: /MH | CC187: MH/ | CE187: =T(#REF!) ->  | CF187: =#REF! ->  | CG187: $0.00
AE188: $0 | AJ188: $0 | AO188: $0 | AU188: $0 | AZ188: =SUM(#REF!) ->  | BD188: Pending | BJ188: $0 | BK188: $0 | BL188: =#REF! ->  | BM188: $0 | BO188: =AU188/#REF! ->  | BP188: =AE188/#REF! ->  | BQ188: =BP188*#REF! ->  | BS188: =AJ188/#REF! ->  | BT188: =BS188*#REF! ->  | BV188: =#REF!/#REF! ->  | BW188: =BV188*#REF! ->  | BX188: =BW188+#REF! ->  | BY188: =AO188/#REF! ->  | BZ188: =BY188*#REF! ->  | CB188: /MH | CC188: MH/ | CE188: =T(#REF!) ->  | CF188: =#REF! ->  | CG188: $0.00
AE189: $0 | AJ189: $0 | AO189: $0 | AU189: $0 | AZ189: =SUM(#REF!) ->  | BD189: Pending | BJ189: $0 | BK189: $0 | BL189: =#REF! ->  | BM189: $0 | BO189: =AU189/#REF! ->  | BP189: =AE189/#REF! ->  | BQ189: =BP189*#REF! ->  | BS189: =AJ189/#REF! ->  | BT189: =BS189*#REF! ->  | BV189: =#REF!/#REF! ->  | BW189: =BV189*#REF! ->  | BX189: =BW189+#REF! ->  | BY189: =AO189/#REF! ->  | BZ189: =BY189*#REF! ->  | CB189: /MH | CC189: MH/ | CE189: =T(#REF!) ->  | CF189: =#REF! ->  | CG189: $0.00
AE190: $0 | AJ190: $0 | AO190: $0 | AU190: $0 | AZ190: =SUM(#REF!) ->  | BD190: Pending | BJ190: $0 | BK190: $0 | BL190: =#REF! ->  | BM190: $0 | BO190: =AU190/#REF! ->  | BP190: =AE190/#REF! ->  | BQ190: =BP190*#REF! ->  | BS190: =AJ190/#REF! ->  | BT190: =BS190*#REF! ->  | BV190: =#REF!/#REF! ->  | BW190: =BV190*#REF! ->  | BX190: =BW190+#REF! ->  | BY190: =AO190/#REF! ->  | BZ190: =BY190*#REF! ->  | CB190: /MH | CC190: MH/ | CE190: =T(#REF!) ->  | CF190: =#REF! ->  | CG190: $0.00
AE191: =V191*Q191 -> $0 | AJ191: =Q191*Y191 -> $0 | AO191: =Q191*AB191 -> $0 | AU191: =AE191+AJ191+AO191 -> $0 | AZ191: =SUM(#REF!) ->  | BD191: Pending | BJ191: $0 | BK191: $0 | BL191: =#REF! ->  | BM191: $0 | BN191: =SUM(BJ191:BM191) ->  | BO191: =AU191/#REF! ->  | BP191: =AE191/#REF! ->  | BQ191: =BP191*#REF! ->  | BS191: =AJ191/#REF! ->  | BT191: =BS191*#REF! ->  | BV191: =#REF!/#REF! ->  | BW191: =BV191*#REF! ->  | BX191: =BW191+#REF! ->  | BY191: =AO191/#REF! ->  | BZ191: =BY191*#REF! ->  | CB191: /MH | CC191: MH/ | CE191: =T(#REF!) ->  | CF191: =#REF! ->  | CG191: $0.00
AE192: $0 | AJ192: $0 | AO192: =Q192*AB192 -> $0 | AU192: $0 | AZ192: =SUM(#REF!) ->  | BD192: Pending | BJ192: $0 | BK192: $0 | BL192: =#REF! ->  | BM192: $0 | BO192: =AU192/#REF! ->  | BP192: =AE192/#REF! ->  | BQ192: =BP192*#REF! ->  | BS192: =AJ192/#REF! ->  | BT192: =BS192*#REF! ->  | BV192: =#REF!/#REF! ->  | BW192: =BV192*#REF! ->  | BX192: =BW192+#REF! ->  | BY192: =AO192/#REF! ->  | BZ192: =BY192*#REF! ->  | CB192: /MH | CC192: MH/ | CE192: =T(#REF!) ->  | CF192: =#REF! ->  | CG192: $0.00
AE193: $0 | AJ193: $0 | AO193: $0 | AU193: $0 | AZ193: =SUM(#REF!) ->  | BD193: Pending | BJ193: $0 | BK193: $0 | BL193: =#REF! ->  | BM193: $0 | BO193: =AU193/#REF! ->  | BP193: =AE193/#REF! ->  | BQ193: =BP193*#REF! ->  | BS193: =AJ193/#REF! ->  | BT193: =BS193*#REF! ->  | BV193: =#REF!/#REF! ->  | BW193: =BV193*#REF! ->  | BX193: =BW193+#REF! ->  | BY193: =AO193/#REF! ->  | BZ193: =BY193*#REF! ->  | CB193: /MH | CC193: MH/ | CE193: =T(#REF!) ->  | CF193: =#REF! ->  | CG193: $0.00
AE194: $0 | AJ194: $0 | AO194: $0 | AU194: $0 | AZ194: =SUM(#REF!) ->  | BD194: Pending | BJ194: $0 | BK194: $0 | BL194: =#REF! ->  | BM194: $0 | BO194: =AU194/#REF! ->  | BP194: =AE194/#REF! ->  | BQ194: =BP194*#REF! ->  | BS194: =AJ194/#REF! ->  | BT194: =BS194*#REF! ->  | BV194: =#REF!/#REF! ->  | BW194: =BV194*#REF! ->  | BX194: =BW194+#REF! ->  | BY194: =AO194/#REF! ->  | BZ194: =BY194*#REF! ->  | CB194: /MH | CC194: MH/ | CE194: =T(#REF!) ->  | CF194: =#REF! ->  | CG194: $0.00
AE195: $0 | AJ195: $0 | AO195: $0 | AU195: $0 | AZ195: =SUM(#REF!) ->  | BD195: Pending | BJ195: $0 | BK195: $0 | BL195: =#REF! ->  | BM195: $0 | BO195: =AU195/#REF! ->  | BP195: =AE195/#REF! ->  | BQ195: =BP195*#REF! ->  | BS195: =AJ195/#REF! ->  | BT195: =BS195*#REF! ->  | BV195: =#REF!/#REF! ->  | BW195: =BV195*#REF! ->  | BX195: =BW195+#REF! ->  | BY195: =AO195/#REF! ->  | BZ195: =BY195*#REF! ->  | CB195: /MH | CC195: MH/ | CE195: =T(#REF!) ->  | CF195: =#REF! ->  | CG195: $0.00
AE196: $0 | AJ196: $0 | AO196: $0 | AU196: $0 | AZ196: =SUM(#REF!) ->  | BD196: Pending | BJ196: $0 | BK196: $0 | BL196: =#REF! ->  | BM196: $0 | BO196: =AU196/#REF! ->  | BP196: =AE196/#REF! ->  | BQ196: =BP196*#REF! ->  | BS196: =AJ196/#REF! ->  | BT196: =BS196*#REF! ->  | BV196: =#REF!/#REF! ->  | BW196: =BV196*#REF! ->  | BX196: =BW196+#REF! ->  | BY196: =AO196/#REF! ->  | BZ196: =BY196*#REF! ->  | CB196: /MH | CC196: MH/ | CE196: =T(#REF!) ->  | CF196: =#REF! ->  | CG196: $0.00
AE197: $0 | AJ197: $0 | AO197: $0 | AU197: $0 | AZ197: =SUM(#REF!) ->  | BD197: Pending | BJ197: $0 | BK197: $0 | BL197: =#REF! ->  | BM197: $0 | BO197: =AU197/#REF! ->  | BP197: =AE197/#REF! ->  | BQ197: =BP197*#REF! ->  | BS197: =AJ197/#REF! ->  | BT197: =BS197*#REF! ->  | BV197: =#REF!/#REF! ->  | BW197: =BV197*#REF! ->  | BX197: =BW197+#REF! ->  | BY197: =AO197/#REF! ->  | BZ197: =BY197*#REF! ->  | CB197: /MH | CC197: MH/ | CE197: =T(#REF!) ->  | CF197: =#REF! ->  | CG197: $0.00
AE198: $0 | AJ198: $0 | AO198: $0 | AU198: $0 | AZ198: =SUM(#REF!) ->  | BD198: Pending | BJ198: $0 | BK198: $0 | BL198: =#REF! ->  | BM198: $0 | BO198: =AU198/#REF! ->  | BP198: =AE198/#REF! ->  | BQ198: =BP198*#REF! ->  | BS198: =AJ198/#REF! ->  | BT198: =BS198*#REF! ->  | BV198: =#REF!/#REF! ->  | BW198: =BV198*#REF! ->  | BX198: =BW198+#REF! ->  | BY198: =AO198/#REF! ->  | BZ198: =BY198*#REF! ->  | CB198: /MH | CC198: MH/ | CE198: =T(#REF!) ->  | CF198: =#REF! ->  | CG198: $0.00
AE199: $0 | AJ199: $0 | AO199: $0 | AU199: $0 | AZ199: =SUM(#REF!) ->  | BD199: Pending | BJ199: $0 | BK199: $0 | BL199: =#REF! ->  | BM199: $0 | BO199: =AU199/#REF! ->  | BP199: =AE199/#REF! ->  | BQ199: =BP199*#REF! ->  | BS199: =AJ199/#REF! ->  | BT199: =BS199*#REF! ->  | BV199: =#REF!/#REF! ->  | BW199: =BV199*#REF! ->  | BX199: =BW199+#REF! ->  | BY199: =AO199/#REF! ->  | BZ199: =BY199*#REF! ->  | CB199: /MH | CC199: MH/ | CE199: =T(#REF!) ->  | CF199: =#REF! ->  | CG199: $0.00
AE200: $0 | AJ200: $0 | AO200: $0 | AU200: $0 | AZ200: =SUM(#REF!) ->  | BD200: Pending | BJ200: $0 | BK200: $0 | BL200: =#REF! ->  | BM200: $0 | BO200: =AU200/#REF! ->  | BP200: =AE200/#REF! ->  | BQ200: =BP200*#REF! ->  | BS200: =AJ200/#REF! ->  | BT200: =BS200*#REF! ->  | BV200: =#REF!/#REF! ->  | BW200: =BV200*#REF! ->  | BX200: =BW200+#REF! ->  | BY200: =AO200/#REF! ->  | BZ200: =BY200*#REF! ->  | CB200: /MH | CC200: MH/ | CE200: =T(#REF!) ->  | CF200: =#REF! ->  | CG200: $0.00
AE201: $0 | AJ201: $0 | AO201: $0 | AU201: $0 | AZ201: =SUM(#REF!) ->  | BD201: Pending | BJ201: $0 | BK201: $0 | BL201: =#REF! ->  | BM201: $0 | BO201: =AU201/#REF! ->  | BP201: =AE201/#REF! ->  | BQ201: =BP201*#REF! ->  | BS201: =AJ201/#REF! ->  | BT201: =BS201*#REF! ->  | BV201: =#REF!/#REF! ->  | BW201: =BV201*#REF! ->  | BX201: =BW201+#REF! ->  | BY201: =AO201/#REF! ->  | BZ201: =BY201*#REF! ->  | CB201: /MH | CC201: MH/ | CE201: =T(#REF!) ->  | CF201: =#REF! ->  | CG201: $0.00
AE202: $0 | AJ202: $0 | AO202: $0 | AU202: $0 | AZ202: =SUM(#REF!) ->  | BD202: Pending | BJ202: $0 | BK202: $0 | BL202: =#REF! ->  | BM202: $0 | BO202: =AU202/#REF! ->  | BP202: =AE202/#REF! ->  | BQ202: =BP202*#REF! ->  | BS202: =AJ202/#REF! ->  | BT202: =BS202*#REF! ->  | BV202: =#REF!/#REF! ->  | BW202: =BV202*#REF! ->  | BX202: =BW202+#REF! ->  | BY202: =AO202/#REF! ->  | BZ202: =BY202*#REF! ->  | CB202: /MH | CC202: MH/ | CE202: =T(#REF!) ->  | CF202: =#REF! ->  | CG202: $0.00
AE203: $0 | AJ203: $0 | AO203: $0 | AU203: $0 | AZ203: =SUM(#REF!) ->  | BD203: Pending | BJ203: $0 | BK203: $0 | BL203: =#REF! ->  | BM203: $0 | BO203: =AU203/#REF! ->  | BP203: =AE203/#REF! ->  | BQ203: =BP203*#REF! ->  | BS203: =AJ203/#REF! ->  | BT203: =BS203*#REF! ->  | BV203: =#REF!/#REF! ->  | BW203: =BV203*#REF! ->  | BX203: =BW203+#REF! ->  | BY203: =AO203/#REF! ->  | BZ203: =BY203*#REF! ->  | CB203: /MH | CC203: MH/ | CE203: =T(#REF!) ->  | CF203: =#REF! ->  | CG203: $0.00
AE204: $0 | AJ204: $0 | AO204: $0 | AU204: $0 | AZ204: =SUM(#REF!) ->  | BD204: Pending | BJ204: $0 | BK204: $0 | BL204: =#REF! ->  | BM204: $0 | BO204: =AU204/#REF! ->  | BP204: =AE204/#REF! ->  | BQ204: =BP204*#REF! ->  | BS204: =AJ204/#REF! ->  | BT204: =BS204*#REF! ->  | BV204: =#REF!/#REF! ->  | BW204: =BV204*#REF! ->  | BX204: =BW204+#REF! ->  | BY204: =AO204/#REF! ->  | BZ204: =BY204*#REF! ->  | CB204: /MH | CC204: MH/ | CE204: =T(#REF!) ->  | CF204: =#REF! ->  | CG204: $0.00
AE205: $0 | AJ205: $0 | AO205: $0 | AU205: $0 | AZ205: =SUM(#REF!) ->  | BD205: Pending | BJ205: $0 | BK205: $0 | BL205: =#REF! ->  | BM205: $0 | BO205: =AU205/#REF! ->  | BP205: =AE205/#REF! ->  | BQ205: =BP205*#REF! ->  | BS205: =AJ205/#REF! ->  | BT205: =BS205*#REF! ->  | BV205: =#REF!/#REF! ->  | BW205: =BV205*#REF! ->  | BX205: =BW205+#REF! ->  | BY205: =AO205/#REF! ->  | BZ205: =BY205*#REF! ->  | CB205: /MH | CC205: MH/ | CE205: =T(#REF!) ->  | CF205: =#REF! ->  | CG205: $0.00
BD206: Pending | BJ206: =BJ175 -> $(7,500) | BK206: =BK175 -> 0 | BL206: =BL175 ->  | BM206: =BM175 -> 0 | BN206: =BN175 ->  | BO206: =AU206/TOTAL_REMODEL_ESTIMATE ->  | BP206: =#REF!/TOTAL_REMODEL_ESTIMATE ->  | BQ206: =#REF!/TOTAL_REMODEL_ESTIMATE ->  | BR206: =#REF!/TOTAL_REMODEL_ESTIMATE ->  | BS206: =#REF!/TOTAL_REMODEL_ESTIMATE ->  | BT206: =#REF!/TOTAL_REMODEL_ESTIMATE ->  | BU206: =#REF!/TOTAL_REMODEL_ESTIMATE ->  | BV206: =#REF!/TOTAL_REMODEL_ESTIMATE ->  | BW206: =#REF!/TOTAL_REMODEL_ESTIMATE ->  | BX206: =#REF!/TOTAL_REMODEL_ESTIMATE ->  | BY206: =#REF!/TOTAL_REMODEL_ESTIMATE ->  | BZ206: =#REF!/TOTAL_REMODEL_ESTIMATE ->  | CA206: =#REF!/TOTAL_REMODEL_ESTIMATE ->  | CB206: =#REF!/TOTAL_REMODEL_ESTIMATE ->  | CC206: =#REF!/TOTAL_REMODEL_ESTIMATE -> 
B207: =UPPER(CONCATENATE(E175," ","SUBTOTAL")) -> ALTERNATE #4: DEDUCT NEW ROOF SUBTOTAL | AE207: =SUBTOTAL(9,AE176:AI206) -> -$7,500 | AJ207: =SUBTOTAL(9,AJ176:AN206) -> $0 | AO207: =SUBTOTAL(9,AO176:AS206) -> $0 | AU207: =SUBTOTAL(9,AU176:AU206) -> -$7,500 | BD207: Pending | BJ207: =BJ175 -> $(7,500) | BK207: 0 | BM207: 0
BD208: Pending | BJ208: =BJ175 -> -$7,500 | BK208: =BK175 -> $0 | BL208: =BL175 ->  | BM208: =BM175 -> $0 | BN208: =BN175 ->  | BO208: =AU208/TOTAL_REMODEL_ESTIMATE ->  | BP208: =#REF!/TOTAL_REMODEL_ESTIMATE ->  | BQ208: =#REF!/TOTAL_REMODEL_ESTIMATE ->  | BR208: =#REF!/TOTAL_REMODEL_ESTIMATE ->  | BS208: =#REF!/TOTAL_REMODEL_ESTIMATE ->  | BT208: =#REF!/TOTAL_REMODEL_ESTIMATE ->  | BU208: =#REF!/TOTAL_REMODEL_ESTIMATE ->  | BV208: =#REF!/TOTAL_REMODEL_ESTIMATE ->  | BW208: =#REF!/TOTAL_REMODEL_ESTIMATE ->  | BX208: =#REF!/TOTAL_REMODEL_ESTIMATE ->  | BY208: =#REF!/TOTAL_REMODEL_ESTIMATE ->  | BZ208: =#REF!/TOTAL_REMODEL_ESTIMATE ->  | CA208: =#REF!/TOTAL_REMODEL_ESTIMATE ->  | CB208: =#REF!/TOTAL_REMODEL_ESTIMATE ->  | CC208: =#REF!/TOTAL_REMODEL_ESTIMATE -> 
U211: Alternate #4 Adders
U212: Adder | AJ212: Calculation Method | AO212: Rate / Amount | AU212: Total
U213: =Adder1_Description -> Building Permit (Lump Sum) | AJ213: Lump Sum | AU213: =IF(AJ213="%",AO213*Alternate4_Subtotal,AO213) -> $0
U214: =Adder2_Description -> Estimating Contingency (% of Subtotal Estimate) | AJ214: % | AU214: $0
U215: =Adder3_Description -> Construction Contingency (% of Subtotal Estimate) | AJ215: Lump Sum | AU215: $0
U216: =Adder4_Description -> Remodeling Tax (% of Subtotal Estimate) | AJ216: % | AU216: $0
U217: =Adder5_Description -> Warranty (% of Subtotal Estimate) | AJ217: % | AU217: $0
... 324 more rows

Sheet ALTERNATES SUMMARY (hidden)
A2: Setup | B2: Estimate | F2: GCs | J2: Adders | N2: Alternates | AG2: Back to Detail | AL2: Print Report
B4: Description | R4: Cost Savings | V4: Cost Additions | Z4: Accepted | AD4: Pending | AH4: Rejected | AL4: Unassigned
B5: ALTERNATES
B6: Alternate #1: Build new deck (10 x 20ft) | R6: =IF(Alternate1_Total<0,Alternate1_Total,0) -> $0 | V6: =IF(Alternate1_Total>0,Alternate1_Total,0) -> $7,860 | Z6: =IF(Alternate1_Status="Accepted",SUM(R6:Y6,0),0) -> $7,860 | AD6: =IF(Alternate1_Status="Pending",SUM(R6:Y6),0) -> $0 | AH6: =IF(Alternate1_Status="Rejected",SUM(R6:Y6),0) -> $0 | AL6: =IF(Alternate1_Status="",SUM(R6:Y6),0) -> $0
B7: Alternate #2: Build new pool (15 x 30ft) | R7: =IF(Alternate2_Total<0,Alternate2_Total,0) -> $0 | V7: =IF(Alternate2_Total>0,Alternate2_Total,0) -> $40,000 | Z7: =IF(Alternate2_Status="Accepted",SUM(R7:Y7,0),0) -> $0 | AD7: =IF(Alternate2_Status="Pending",SUM(R7:Y7),0) -> $40,000 | AH7: =IF(Alternate2_Status="Rejected",SUM(R7:Y7),0) -> $0 | AL7: =IF(Alternate2_Status="",SUM(R7:Y7),0) -> $0
B8: Alternate #3: Build new fence around pool (200 lf) | R8: =IF(Alternate3_Total<0,Alternate3_Total,0) -> $0 | V8: =IF(Alternate3_Total>0,Alternate3_Total,0) -> $5,000 | Z8: =IF(Alternate3_Status="Accepted",SUM(R8:Y8,0),0) -> $0 | AD8: =IF(Alternate3_Status="Pending",SUM(R8:Y8),0) -> $5,000 | AH8: =IF(Alternate3_Status="Rejected",SUM(R8:Y8),0) -> $0 | AL8: =IF(Alternate3_Status="",SUM(R8:Y8),0) -> $0
B9: Alternate #4: Deduct new roof | R9: =IF(Alternate4_Total<0,Alternate4_Total,0) -> ($7,500) | V9: =IF(Alternate4_Total>0,Alternate4_Total,0) -> $0 | Z9: =IF(Alternate4_Status="Accepted",SUM(R9:Y9,0),0) -> $0 | AD9: =IF(Alternate4_Status="Pending",SUM(R9:Y9),0) -> ($7,500) | AH9: =IF(Alternate4_Status="Rejected",SUM(R9:Y9),0) -> $0 | AL9: =IF(Alternate4_Status="",SUM(R9:Y9),0) -> $0
B10: Alternate #5 | R10: =IF(Alternate5_Total<0,Alternate5_Total,0) -> $0 | V10: =IF(Alternate5_Total>0,Alternate5_Total,0) -> $0 | Z10: =IF(Alternate5_Status="Accepted",SUM(R10:Y10,0),0) -> $0 | AD10: =IF(Alternate5_Status="Pending",SUM(R10:Y10),0) -> $0 | AH10: =IF(Alternate5_Status="Rejected",SUM(R10:Y10),0) -> $0 | AL10: =IF(Alternate5_Status="",SUM(R10:Y10),0) -> $0
B11: Alternate #6 | R11: =IF(Alternate6_Total<0,Alternate6_Total,0) -> $0 | V11: =IF(Alternate6_Total>0,Alternate6_Total,0) -> $0 | Z11: =IF(Alternate6_Status="Accepted",SUM(R11:Y11,0),0) -> $0 | AD11: =IF(Alternate6_Status="Pending",SUM(R11:Y11),0) -> $0 | AH11: =IF(Alternate6_Status="Rejected",SUM(R11:Y11),0) -> $0 | AL11: =IF(Alternate6_Status="",SUM(R11:Y11),0) -> $0
B12: Alternate #7 | R12: =IF(Alternate7_Total<0,Alternate7_Total,0) -> $0 | V12: =IF(Alternate7_Total>0,Alternate7_Total,0) -> $0 | Z12: =IF(Alternate7_Status="Accepted",SUM(R12:Y12,0),0) -> $0 | AD12: =IF(Alternate7_Status="Pending",SUM(R12:Y12),0) -> $0 | AH12: =IF(Alternate7_Status="Rejected",SUM(R12:Y12),0) -> $0 | AL12: =IF(Alternate7_Status="",SUM(R12:Y12),0) -> $0
B13: Alternate #8 | R13: =IF(Alternate8_Total<0,Alternate8_Total,0) -> $0 | V13: =IF(Alternate8_Total>0,Alternate8_Total,0) -> $0 | Z13: =IF(Alternate8_Status="Accepted",SUM(R13:Y13,0),0) -> $0 | AD13: =IF(Alternate8_Status="Pending",SUM(R13:Y13),0) -> $0 | AH13: =IF(Alternate8_Status="Rejected",SUM(R13:Y13),0) -> $0 | AL13: =IF(Alternate8_Status="",SUM(R13:Y13),0) -> $0
B14: Alternate #9 | R14: =IF(Alternate9_Total<0,Alternate9_Total,0) -> $0 | V14: =IF(Alternate9_Total>0,Alternate9_Total,0) -> $0 | Z14: =IF(Alternate9_Status="Accepted",SUM(R14:Y14,0),0) -> $0 | AD14: =IF(Alternate9_Status="Pending",SUM(R14:Y14),0) -> $0 | AH14: =IF(Alternate9_Status="Rejected",SUM(R14:Y14),0) -> $0 | AL14: =IF(Alternate9_Status="",SUM(R14:Y14),0) -> $0
B15: Alternate #10 | R15: =IF(Alternate10_Total<0,Alternate10_Total,0) -> $0 | V15: =IF(Alternate10_Total>0,Alternate10_Total,0) -> $0 | Z15: =IF(Alternate10_Status="Accepted",SUM(R15:Y15,0),0) -> $0 | AD15: =IF(Alternate10_Status="Pending",SUM(R15:Y15),0) -> $0 | AH15: =IF(Alternate10_Status="Rejected",SUM(R15:Y15),0) -> $0 | AL15: =IF(Alternate10_Status="",SUM(R15:Y15),0) -> $0
B16: ALTERNATES TOTALS | R16: =SUM(R6:U15) -> -$7,500 | V16: =SUM(V6:Y15) -> $52,860 | Z16: =SUM(Z6:AC15) -> $7,860 | AD16: =SUM(AD6:AG15) -> $37,500 | AH16: =SUM(AH6:AK15) -> $0 | AL16: =SUM(AL6:AO15) -> $0
B18: BASE ESTIMATE | Z18: =Project_Total -> $111,084
B20: ACCEPTED ALTERNATES | Z20: =Z16 -> $7,860
B22: REVISED BUDGET WITH ALTERNATES | Z22: =Z18+Z20 -> $118,944

Sheet ADDERS (hidden)
A2: Setup | B2: Estimate | F2: GCs | J2: Adders | N2: Alternates | AH2: Back to Estimate
C4: ADDERS: FEES, INSURANCE, OVERHEAD & PROFIT
AG6: <- Raw Estimated Costs without Adders Allocated
R7: Subtotal Estimate | Z7: =Project_Subtotal -> $83,563 | AD7: =IFERROR(Z7/$Z$61,0) -> $1
C9: Description | P9: Lump Sum or % | T9: Rate / Amount | Z9: Amount | AD9: % | AG9: Allocate? | AL9: Allocated Costs | AP9: Shown Costs
C10: General Conditions | U10: $5.00
P11: from GCs sheet | U11: =General_Conditions_Total -> $4,960 | Z11: =U11 -> $4,960 | AD11: =IFERROR(Z11/Z61,0) -> $0 | AL11: =IF(AH11="Yes",Z11,0) -> 0 | AP11: =IF(AH11="Yes",0,Z11) -> $4,960 | AU11: =IF(AH11="Yes",CONCATENATE(C10," costs are being allocated to Construction Costs"),"") -> 
C13: =IF(P14="%","Building Permit (% of Subtotal Estimate)","Building Permit (Lump Sum)") -> Building Permit (Lump Sum)
P14: Lump Sum | Z14: =IF(P14="%",U14*$Z$7,U14) -> 0 | AD14: =IFERROR(Z14/$Z$61,0) -> $0 | AL14: =IF(AH14="Yes",Z14,0) -> 0 | AP14: =IF(AH14="Yes",0,Z14) -> 0 | AU14: =IF(AH14="Yes",CONCATENATE(C13," costs are being allocated to Construction Costs"),"") -> 
C16: =IF(P17="%","Estimating Contingency (% of Subtotal Estimate)","Estimating Contingency (Lump Sum)") -> Estimating Contingency (% of Subtotal Estimate)
P17: % | U17: $0.05 | Z17: =IF(P17="%",U17*$Z$7,U17) -> $4,178 | AD17: =IFERROR(Z17/$Z$61,0) -> $0 | AH17: Yes | AL17: =IF(AH17="Yes",Z17,0) -> $4,178 | AP17: =IF(AH17="Yes",0,Z17) -> 0 | AU17: =IF(AH17="Yes",CONCATENATE(C16," costs are being allocated to Construction Costs"),"") -> Estimating Contingency (% of Subtotal Estimate) costs are being allocated to Construction Costs
C19: =IF(P20="%","Construction Contingency (% of Subtotal Estimate)","Construction Contingency (Lump Sum)") -> Construction Contingency (% of Subtotal Estimate)
P20: % | U20: $0.10 | Z20: =IF(P20="%",U20*$Z$7,U20) -> $8,356 | AD20: =IFERROR(Z20/$Z$61,0) -> $0 | AH20: Yes | AL20: =IF(AH20="Yes",Z20,0) -> $8,356 | AP20: =IF(AH20="Yes",0,Z20) -> 0 | AU20: =IF(AH20="Yes",CONCATENATE(C19," costs are being allocated to Construction Costs"),"") -> Construction Contingency (% of Subtotal Estimate) costs are being allocated to Construction Costs
C22: =IF(P23="%","Remodeling Tax (% of Subtotal Estimate)","Remodeling Tax (Lump Sum)") -> Remodeling Tax (% of Subtotal Estimate)
P23: % | Z23: =IF(P23="%",U23*$Z$7,U23) -> 0 | AD23: =IFERROR(Z23/$Z$61,0) -> $0 | AL23: =IF(AH23="Yes",Z23,0) -> 0 | AP23: =IF(AH23="Yes",0,Z23) -> 0 | AU23: =IF(AH23="Yes",CONCATENATE(C22," costs are being allocated to Construction Costs"),"") -> 
C25: =IF(P26="%","Warranty (% of Subtotal Estimate)","Warranty (Lump Sum)") -> Warranty (% of Subtotal Estimate)
P26: % | U26: $0.01 | Z26: =IF(P26="%",U26*$Z$7,U26) -> $418 | AD26: =IFERROR(Z26/$Z$61,0) -> $0 | AH26: Yes | AL26: =IF(AH26="Yes",Z26,0) -> $418 | AP26: =IF(AH26="Yes",0,Z26) -> 0 | AU26: =IF(AH26="Yes",CONCATENATE(C25," costs are being allocated to Construction Costs"),"") -> Warranty (% of Subtotal Estimate) costs are being allocated to Construction Costs
C28: =IF(P29="%","General Liability Insurance (% of Subtotal Estimate)","General Liability Insurance (Lump Sum)") -> General Liability Insurance (% of Subtotal Estimate)
P29: % | U29: $0.01 | Z29: =IF(P29="%",U29*$Z$7,U29) -> $418 | AD29: =IFERROR(Z29/$Z$61,0) -> $0 | AH29: Yes | AL29: =IF(AH29="Yes",Z29,0) -> $418 | AP29: =IF(AH29="Yes",0,Z29) -> 0 | AU29: =IF(AH29="Yes",CONCATENATE(C28," costs are being allocated to Construction Costs"),"") -> General Liability Insurance (% of Subtotal Estimate) costs are being allocated to Construction Costs
C31: =IF(P32="%","Builder's Risk Insurance (% of Subtotal Estimate)","Builder's Risk Insurance (Lump Sum)") -> Builder's Risk Insurance (% of Subtotal Estimate)
P32: % | U32: $0.01 | Z32: =IF(P32="%",U32*$Z$7,U32) -> $836 | AD32: =IFERROR(Z32/$Z$61,0) -> $0 | AH32: Yes | AL32: =IF(AH32="Yes",Z32,0) -> $836 | AP32: =IF(AH32="Yes",0,Z32) -> 0 | AU32: =IF(AH32="Yes",CONCATENATE(C31," costs are being allocated to Construction Costs"),"") -> Builder's Risk Insurance (% of Subtotal Estimate) costs are being allocated to Construction Costs
C34: =IF(P35="%","Contractor's Profit (% of Subtotal Estimate)","Contractor's Profit (Lump Sum)") -> Contractor's Profit (% of Subtotal Estimate)
P35: % | U35: $0.10 | Z35: =IF(P35="%",U35*$Z$7,U35) -> $8,356 | AD35: =IFERROR(Z35/$Z$61,0) -> $0 | AH35: Yes | AL35: =IF(AH35="Yes",Z35,0) -> $8,356 | AP35: =IF(AH35="Yes",0,Z35) -> 0 | AU35: =IF(AH35="Yes",CONCATENATE(C34," costs are being allocated to Construction Costs"),"") -> Contractor's Profit (% of Subtotal Estimate) costs are being allocated to Construction Costs
C37: =IF(P38="%","Labor Markup (% of Labor Total)","Labor Markup (Lump Sum)") -> Labor Markup (% of Labor Total)
P38: % | Z38: =IF(P38="%",U38*Total_Detailed_Labor,U38) -> 0 | AD38: =IFERROR(Z38/$Z$61,0) -> $0 | AL38: =IF(AH38="Yes",Z38,0) -> 0 | AP38: =IF(AH38="Yes",0,Z38) -> 0 | AU38: =IF(AH38="Yes",CONCATENATE(C37," costs are being allocated to Construction Costs"),"") -> 
C40: =IF(P41="%","Material Markup (% of Material Total)","Material Markup (Lump Sum)") -> Material Markup (% of Material Total)
P41: % | Z41: =IF(P41="%",U41*Total_Detailed_Material,U41) -> 0 | AD41: =IFERROR(Z41/$Z$61,0) -> $0 | AL41: =IF(AH41="Yes",Z41,0) -> 0 | AP41: =IF(AH41="Yes",0,Z41) -> 0 | AU41: =IF(AH41="Yes",CONCATENATE(C40," costs are being allocated to Construction Costs"),"") -> 
C43: =IF(P44="%","Subcontractor Markup (% of Sub Total)","Subcontractor Markup (Lump Sum)") -> Subcontractor Markup (% of Sub Total)
P44: % | Z44: =IF(P44="%",U44*Total_Detailed_Sub,U44) -> 0 | AD44: =IFERROR(Z44/$Z$61,0) -> $0 | AL44: =IF(AH44="Yes",Z44,0) -> 0 | AP44: =IF(AH44="Yes",0,Z44) -> 0 | AU44: =IF(AH44="Yes",CONCATENATE(C43," costs are being allocated to Construction Costs"),"") -> 
C46: =IF(P47="%","P & P Bond (% of Subtotal Estimate)","P & P Bond (Lump Sum)") -> P & P Bond (% of Subtotal Estimate)
P47: % | Z47: =IF(P47="%",U47*$Z$7,U47) -> 0 | AD47: =IFERROR(Z47/$Z$61,0) -> $0 | AL47: =IF(AH47="Yes",Z47,0) -> 0 | AP47: =IF(AH47="Yes",0,Z47) -> 0 | AU47: =IF(AH47="Yes",CONCATENATE(C46," costs are being allocated to Construction Costs"),"") -> 
C49: Other 1
Z50: =IF(P50="%",U50*$Z$7,U50) -> 0 | AD50: =IFERROR(Z50/$Z$61,0) -> $0 | AL50: =IF(AH50="Yes",Z50,0) -> 0 | AP50: =IF(AH50="Yes",0,Z50) -> 0 | AU50: =IF(AH50="Yes",CONCATENATE(C49," costs are being allocated to Construction Costs"),"") -> 
C52: Other 2
Z53: =IF(P53="%",U53*$Z$7,U53) -> 0 | AD53: =IFERROR(Z53/$Z$61,0) -> $0 | AL53: =IF(AH53="Yes",Z53,0) -> 0 | AP53: =IF(AH53="Yes",0,Z53) -> 0 | AU53: =IF(AH53="Yes",CONCATENATE(C52," costs are being allocated to Construction Costs"),"") -> 
C55: Other 3
Z56: =IF(P56="%",U56*$Z$7,U56) -> 0 | AD56: =IFERROR(Z56/$Z$61,0) -> $0 | AL56: =IF(AH56="Yes",Z56,0) -> 0 | AP56: =IF(AH56="Yes",0,Z56) -> 0 | AU56: =IF(AH56="Yes",CONCATENATE(C55," costs are being allocated to Construction Costs"),"") -> 
R59: TOTAL ADDERS | Z59: =SUM(Z11:AB58) -> $27,522 | AD59: =IFERROR(Z59/$Z$61,0) -> $0 | AL59: =SUM(AL11:AO58) -> $22,562 | AP59: =SUM(AP11:AS58) -> $4,960
D61: TOTAL ESTIMATE W/ SOFT COSTS | Z61: =Z7+Z59 -> $111,084 | AD61: =AD7+AD59 -> $1 | AL61: =Z7+AL59 -> $106,124 | AP61: =AP7+AP59 -> $4,960

Sheet REPORTING
P3: Reporting
C6: Add Blank Sheet
P45: © 2018 by RemodelEstimator.com. All rights reserved

Sheet INSPECTION CHECKLIST (hidden)
F3: PROPERTY FEATURES | AD3: STRUCTURAL REPAIRS
F4: Street Address: | L4: =Street_Address -> 1234 N. Main St | AD4: Cracks?: YES / NO | AO4: Moisture?: YES / NO
F5: City/State/Zip: | L5: =T(City_State_Zip) -> Kansas City, MO 64116 | AD5: Settling?: YES / NO | AO5: Bowing Walls: YES / NO
F6: Square Feet: | K6: =PROJECT_SIZE -> 1500 | O6: # of Beds: | S6: =BEDS -> 3 | U6: Baths: | Y6: =BATHS -> 2 | AD6: Piers: SOG 8ft oc | 1-Story 7ft oc | 2-Story 6ft oc | Masonry 5ft oc + 2 piers @ corners
F7: EXTERIOR PROPERTY FEATURES/REPAIRS | AD7: KITCHEN FEATURES/REPAIRS
F8: Repair/Replace | O8: QTY | R8: Unit | T8: Exterior Notes: | AD8: Repair/Replace | AM8: QTY | AP8: Unit | AR8: Kitchen Notes:
F10: Painting | R10: Sq ft | AD10: Base Cabinets | AP10: lf
F11: Wood siding | R11: Sq ft | AD11: Upper Cabinets | AP11: lf
F12: Wood trim | R12: lf | AD12: Countertop | AP12: Sq ft
F13: Vinyl siding | R13: Sq ft | AD13: Backsplash | AP13: Sq ft
F14: Brick/stone | R14: Sq ft | AD14: Tile flooring | AP14: Sq ft
F15: Roofing | R15: SQ | AD15: Hardwood flooring | AP15: Sq ft
F16: Gutters/downspouts | R16: lf | AD16: Paint | AP16: Sq ft
F17: Garage Doors | R17: ea | AD17: Wood trim | AP17: lf
F18: Entry door | R18: ea | AD18: Sink | AP18: ea
F19: Patio door | R19: ea | AD19: Faucet Fixture | AP19: ea
F20: Windows | R20: ea | AD20: Garbage Disposal | AP20: ea
F21: Shutters | R21: ea | AD21: Range | AP21: ea
F22: Deck | R22: Sq ft | AD22: Refrigerator | AP22: ea
F23: Fence | R23: lf | AD23: Dishwasher | AP23: ea
F24: Concrete driveway | R24: Sq ft | AD24: Microwave/Range Hood | AP24: ea
F25: Concrete sidewalk | R25: Sq ft | AD25: Duct vent | AP25: ea
F26: Shed | R26: ea | AD26: GFI Plugs/Outlets | AP26: ea
F27: Mulch | R27: Sq ft | AD27: Light fixtures | AP27: ea
F28: Tree removal/trim | R28: ea | AD28: Can lighting | AP28: ea
F29: COMMON ROOM FEATURES/REPAIRS
F30: Repair/Replace | O30: Unit | Q30: Fill in Quantity Below: | AR30: Notes:
Q31: Master | T31: Bed 1 | X31: Bed 2 | Z31: Bed 3 | AC31: Living | AF31: Dining | AI31: Other 1 | AL31: Other 2 | AO31: Total
F32: Carpet | O32: Sq ft | AO32: =SUM(Q32:AN32) -> 0
F33: Tile flooring | O33: Sq ft | AO33: =SUM(Q33:AN33) -> 0
F34: Hardwood | O34: Sq ft | AO34: 0
F35: Vinyl flooring | O35: Sq ft | AO35: 0
F36: Wallpaper | O36: Sq ft | AO36: 0
F37: Paint | O37: Sq ft | AO37: 0
F38: Doors | O38: ea | AO38: 0
F39: Door hardware | O39: ea | AO39: 0
F40: Closet Doors | O40: ea | AO40: 0
F41: Closet Shelving | O41: lf | AO41: 0
F42: Crown Molding | O42: lf | AO42: 0
F43: Wood Trim | O43: lf | AO43: 0
F44: Duct Vents | O44: ea | AO44: 0
F45: Can light | O45: ea | AO45: 0
F46: Dome light | O46: ea | AO46: 0
F47: Fan Lights | O47: ea | AO47: 0
F48: BATHROOM FEATURES/REPAIRS | AP48: MEP SYSTEMS
F49: Repair/Replace | O49: Unit | Q49: Fill in Quantity Below: | AF49: Bathroom Notes | AP49: System | AZ49: Replace:
Q50: Master | T50: Bath 1 | W50: Bath 2 | Z50: Bath 3 | AC50: Total
F51: Subfloor | O51: Sq ft | AC51: =SUM(Q51:AB51) -> 0 | AP51: HVAC SYSTEM
F52: Wall tile | O52: Sq ft | AC52: =SUM(Q52:AB52) -> 0 | AP52: Air conditioner unit | AZ52: YES / NO
F53: Floor tile | O53: Sq ft | AC53: 0 | AP53: Furnace: GAS / ELECTRIC | AZ53: YES / NO
F54: Paint | O54: Sq ft | AC54: 0 | AP54: Duct work modification req'd: | AZ54: YES / NO
F55: Vanity cabinet | O55: lf | AC55: 0 | AP55: Asbestos wrapping on duct? | AZ55: YES / NO
F56: Vanity countertop | O56: Sq ft | AC56: 0 | AP56: PLUMBING SYSTEM
F57: Mirror | O57: ea | AC57: 0 | AP57: Water Heater: GAS / ELEC | AZ57: YES / NO
F58: Faucet | O58: ea | AC58: 0 | AP58: Piping: COPP / GALV / LEAD | AZ58: YES / NO
F59: Doors | O59: ea | AC59: 0 | AP59: Water supply line work: | AZ59: YES / NO
F60: Door hardware | O60: ea | AC60: 0 | AP60: Sanitary line work: | AZ60: YES / NO
F61: Wood trim | O61: ea | AC61: 0 | AP61: Asbestos insulation on piping | AZ61: YES / NO
F62: Duct Vents | O62: Lf | AC62: 0 | AP62: ELECTRICAL SYSTEM
F63: Shower pan | O63: ea | AC63: 0 | AP63: Electrical Service: | AZ63: YES / NO
F64: Bathtub | O64: ea | AC64: 0 | AP64: Electrical Panel: | AZ64: YES / NO
F65: Shower/tub faucet | O65: ea | AC65: 0 | AP65: Wiring: COPP / ALUM / KNOB | AZ65: YES / NO
F66: Toilet | O66: ea | AC66: 0 | AP66: Cable Service Work: | AZ66: YES / NO
F67: GFI | O67: ea | AC67: 0 | AP67: Notes:
F68: Vanity light | O68: ea | AC68: 0
F69: Exhaust fan | O69: ea | AC69: 0
F70: NOTES:
F124: 60
F129: 55
F134: 50
F139: 45
F144: 40
F149: 35
F154: 30
F159: 25
F164: 20
F169: 15
F174: 10
F179: 5
F184: 0 | K184: 5 | O184: 10 | U184: 15 | Y184: 20 | AE184: 25 | AI184: 30 | AO184: 35 | AS184: 40 | AY184: 45
F185: © 2018 by RemodelCostSpreadsheet.com. All rights reserved

Sheet SUMMARY COST PROPOSAL (hidden)
A3: Summary Cost Proposal | E3: Client Proposal | R3: Raw Costs
C6: =CONCATENATE("Date Created: ",TEXT(TODAY(),"mm/dd/yyyy")) -> Date Created: 08/28/2018
C7: =IF(E3="Client Proposal","ESTIMATE PROPOSAL","SUMMARY ESTIMATE") -> ESTIMATE PROPOSAL
C9: Client Information: | I9: =T(Company_Name) -> ABC Builders
C11: Contact: | D11: =T(CLIENT_NAME) ->  | I11: Contact: | J11: =T(Company_Contact) -> Dave
C12: Phone #: | I12: Phone #: | J12: =Company_Phone -> 8161234567
C13: Email: | I13: Email: | J13: =T(Company_Email) -> dave@abcbuilders.com
C15: Input a brief executive summary of the project.
C22: SCOPE OF WORK | G22: TOTAL COSTS | I22: $/SF | J22: NOTES
C23: EXTERIORS | O23: =O40 -> 1
C24: =T('ESTIMATE SUMMARY'!B6) -> ROOFING | G24: =IF(Summary_Proposal_Adders_Setting="Allocate Adders",Exterior1_GrandTotal,Exterior1_Total) -> $7,000 | I24: =IFERROR(G24/PROJECT_SIZE,0) -> $4.67 | O24: =IF(G24>0,1,0) -> 1
C25: =T('ESTIMATE SUMMARY'!B7) -> SIDING | G25: =IF(Summary_Proposal_Adders_Setting="Allocate Adders",Exterior2_GrandTotal,Exterior2_Total) -> $0 | I25: $0.00 | O25: =IF(G25>0,1,0) -> 0
C26: =T('ESTIMATE SUMMARY'!B8) -> MASONRY | G26: =IF(Summary_Proposal_Adders_Setting="Allocate Adders",Exterior3_GrandTotal,Exterior3_Total) -> $1,438 | I26: $0.96 | O26: 1
C27: =T('ESTIMATE SUMMARY'!B9) -> EXTERIOR PAINTING | G27: =IF(Summary_Proposal_Adders_Setting="Allocate Adders",Exterior4_GrandTotal,Exterior4_Total) -> $3,375 | I27: $2.25 | O27: 1
C28: =T('ESTIMATE SUMMARY'!B10) -> DECKS/PORCHES | G28: =IF(Summary_Proposal_Adders_Setting="Allocate Adders",Exterior5_GrandTotal,Exterior5_Total) -> $1,900 | I28: $1.27 | O28: 1
C29: =T('ESTIMATE SUMMARY'!B11) -> EXTERIOR DOORS | G29: =IF(Summary_Proposal_Adders_Setting="Allocate Adders",Exterior6_GrandTotal,Exterior6_Total) -> $1,750 | I29: $1.17 | O29: 1
C30: =T('ESTIMATE SUMMARY'!B12) -> WINDOWS | G30: =IF(Summary_Proposal_Adders_Setting="Allocate Adders",Exterior7_GrandTotal,Exterior7_Total) -> $2,500 | I30: $1.67 | O30: 1
C31: =T('ESTIMATE SUMMARY'!B13) -> GARAGE | G31: =IF(Summary_Proposal_Adders_Setting="Allocate Adders",Exterior8_GrandTotal,Exterior8_Total) -> $1,300 | I31: $0.87 | O31: 1
C32: =T('ESTIMATE SUMMARY'!B14) -> CONCRETE/FLATWORK | G32: =IF(Summary_Proposal_Adders_Setting="Allocate Adders",Exterior9_GrandTotal,Exterior9_Total) -> $7,500 | I32: $5.00 | O32: 1
C33: =T('ESTIMATE SUMMARY'!B15) -> ASPHALT | G33: =IF(Summary_Proposal_Adders_Setting="Allocate Adders",Exterior10_GrandTotal,Exterior10_Total) -> $0 | I33: $0.00 | O33: 0
C34: =T('ESTIMATE SUMMARY'!B16) -> LANDSCAPING | G34: =IF(Summary_Proposal_Adders_Setting="Allocate Adders",Exterior11_GrandTotal,Exterior11_Total) -> $750 | I34: $0.50 | O34: 1
C35: =T('ESTIMATE SUMMARY'!B17) -> FENCING | G35: =IF(Summary_Proposal_Adders_Setting="Allocate Adders",Exterior12_GrandTotal,Exterior12_Total) -> $0 | I35: $0.00 | O35: 0
C36: =T('ESTIMATE SUMMARY'!B18) -> POOLS | G36: =IF(Summary_Proposal_Adders_Setting="Allocate Adders",Exterior13_GrandTotal,Exterior13_Total) -> $0 | I36: $0.00 | O36: 0
C37: =T('ESTIMATE SUMMARY'!B19) -> MISCELLANEOUS EXTERIOR ITEMS | G37: =IF(Summary_Proposal_Adders_Setting="Allocate Adders",Exterior14_GrandTotal,Exterior14_Total) -> $950 | I37: $0.63 | O37: 1
C38: =T('ESTIMATE SUMMARY'!B20) -> EXTERIORS 1 | G38: =IF(Summary_Proposal_Adders_Setting="Allocate Adders",Exterior15_GrandTotal,Exterior15_Total) -> $0 | I38: $0.00 | O38: 0
C39: =T('ESTIMATE SUMMARY'!B21) -> EXTERIORS 2 | G39: =IF(Summary_Proposal_Adders_Setting="Allocate Adders",Exterior16_GrandTotal,Exterior16_Total) -> $0 | I39: $0.00 | O39: 0
C40: EXTERIORS TOTAL | G40: =SUM(G24:H39) -> $28,463 | I40: $18.98 | O40: 1
C41: INTERIORS | O41: =O62 -> 1
C42: =T('ESTIMATE SUMMARY'!B24) -> DEMOLITION | G42: =IF(Summary_Proposal_Adders_Setting="Allocate Adders",Interior1_GrandTotal,Interior1_Total) -> $1,600 | I42: =IFERROR(G42/PROJECT_SIZE,0) -> $1.07 | O42: 1
C43: =T('ESTIMATE SUMMARY'!B25) -> REMEDIATION/ABATEMENT | G43: =IF(Summary_Proposal_Adders_Setting="Allocate Adders",Interior2_GrandTotal,Interior2_Total) -> $0 | I43: $0.00 | O43: 0
C44: =T('ESTIMATE SUMMARY'!B26) -> FRAMING | G44: =IF(Summary_Proposal_Adders_Setting="Allocate Adders",Interior3_GrandTotal,Interior3_Total) -> $0 | I44: $0.00 | O44: 0
C45: =T('ESTIMATE SUMMARY'!B27) -> INSULATION | G45: =IF(Summary_Proposal_Adders_Setting="Allocate Adders",Interior4_GrandTotal,Interior4_Total) -> $0 | I45: $0.00 | O45: 0
C46: =T('ESTIMATE SUMMARY'!B28) -> DRYWALL | G46: =IF(Summary_Proposal_Adders_Setting="Allocate Adders",Interior5_GrandTotal,Interior5_Total) -> $0 | I46: $0.00 | O46: 0
C47: =T('ESTIMATE SUMMARY'!B29) -> KITCHENS | G47: =IF(Summary_Proposal_Adders_Setting="Allocate Adders",Interior6_GrandTotal,Interior6_Total) -> $8,500 | I47: $5.67 | O47: 1
C48: =T('ESTIMATE SUMMARY'!B30) -> BATHROOMS | G48: =IF(Summary_Proposal_Adders_Setting="Allocate Adders",Interior7_GrandTotal,Interior7_Total) -> $12,250 | I48: $8.17 | O48: 1
C49: =T('ESTIMATE SUMMARY'!B31) -> CABINETRY | G49: =IF(Summary_Proposal_Adders_Setting="Allocate Adders",Interior8_GrandTotal,Interior8_Total) -> $0 | I49: $0.00 | O49: 0
C50: =T('ESTIMATE SUMMARY'!B32) -> COUNTERTOPS | G50: =IF(Summary_Proposal_Adders_Setting="Allocate Adders",Interior9_GrandTotal,Interior9_Total) -> $0 | I50: $0.00 | O50: 0
C51: =T('ESTIMATE SUMMARY'!B33) -> INTERIOR DOORS | G51: =IF(Summary_Proposal_Adders_Setting="Allocate Adders",Interior10_GrandTotal,Interior10_Total) -> $3,950 | I51: $2.63 | O51: 1
C52: =T('ESTIMATE SUMMARY'!B34) -> INTERIOR WOODWORK | G52: =IF(Summary_Proposal_Adders_Setting="Allocate Adders",Interior11_GrandTotal,Interior11_Total) -> $550 | I52: $0.37 | O52: 1
C53: =T('ESTIMATE SUMMARY'!B35) -> INTERIOR PAINTING | G53: =IF(Summary_Proposal_Adders_Setting="Allocate Adders",Interior12_GrandTotal,Interior12_Total) -> $5,000 | I53: $3.33 | O53: 1
C54: =T('ESTIMATE SUMMARY'!B36) -> CARPET/VINYL | G54: =IF(Summary_Proposal_Adders_Setting="Allocate Adders",Interior13_GrandTotal,Interior13_Total) -> $2,750 | I54: $1.83 | O54: 1
C55: =T('ESTIMATE SUMMARY'!B37) -> TILING | G55: =IF(Summary_Proposal_Adders_Setting="Allocate Adders",Interior14_GrandTotal,Interior14_Total) -> $4,500 | I55: $3.00 | O55: 1
C56: =T('ESTIMATE SUMMARY'!B38) -> HARDWOOD FLOORING | G56: =IF(Summary_Proposal_Adders_Setting="Allocate Adders",Interior15_GrandTotal,Interior15_Total) -> $7,000 | I56: $4.67 | O56: 1
C57: =T('ESTIMATE SUMMARY'!B39) -> APPLIANCES | G57: =IF(Summary_Proposal_Adders_Setting="Allocate Adders",Interior16_GrandTotal,Interior16_Total) -> $3,000 | I57: =IFERROR(G57/PROJECT_SIZE,0) -> $2.00 | O57: 1
C58: =T('ESTIMATE SUMMARY'!B40) -> BASEMENT | G58: =IF(Summary_Proposal_Adders_Setting="Allocate Adders",Interior17_GrandTotal,Interior17_Total) -> $0 | I58: $0.00 | O58: 0
C59: =T('ESTIMATE SUMMARY'!B41) -> FOUNDATIONS | G59: =IF(Summary_Proposal_Adders_Setting="Allocate Adders",Interior18_GrandTotal,Interior18_Total) -> $0 | I59: $0.00 | O59: 0
C60: =T('ESTIMATE SUMMARY'!B42) -> MISCELLANEOUS INTERIOR ITEMS | G60: =IF(Summary_Proposal_Adders_Setting="Allocate Adders",Interior19_GrandTotal,Interior19_Total) -> $0 | I60: $0.00 | O60: 0
C61: =T('ESTIMATE SUMMARY'!B43) -> INTERIORS 1 | G61: =IF(Summary_Proposal_Adders_Setting="Allocate Adders",Interior20_GrandTotal,Interior20_Total) -> $0 | I61: $0.00 | O61: 0
C62: =T('ESTIMATE SUMMARY'!B44) -> INTERIOR TOTALS | G62: =SUM(G42:H61) -> $49,100 | I62: $32.73 | O62: 1
C63: MEP SYSTEMS | O63: =O69 -> 1
C64: =T('ESTIMATE SUMMARY'!B46) -> FIRE PROTECTION | G64: =IF(Summary_Proposal_Adders_Setting="Allocate Adders",MEP1_GrandTotal,MEP1_Total) -> $0 | I64: $0.00 | O64: 0
C65: =T('ESTIMATE SUMMARY'!B47) -> PLUMBING | G65: =IF(Summary_Proposal_Adders_Setting="Allocate Adders",MEP2_GrandTotal,MEP2_Total) -> $0 | I65: $0.00 | O65: 0
C66: =T('ESTIMATE SUMMARY'!B48) -> SEPTIC SYSTEM | G66: =IF(Summary_Proposal_Adders_Setting="Allocate Adders",MEP3_GrandTotal,MEP3_Total) -> $0 | I66: $0.00 | O66: 0
C67: =T('ESTIMATE SUMMARY'!B49) -> HVAC | G67: =IF(Summary_Proposal_Adders_Setting="Allocate Adders",MEP4_GrandTotal,MEP4_Total) -> $0 | I67: $0.00 | O67: 0
C68: =T('ESTIMATE SUMMARY'!B50) -> ELECTRICAL | G68: =IF(Summary_Proposal_Adders_Setting="Allocate Adders",MEP5_GrandTotal,MEP5_Total) -> $6,000 | I68: $4.00 | O68: 1
C69: =T('ESTIMATE SUMMARY'!B51) -> MEP SYSTEMS TOTALS | G69: =SUM(G64:H68) -> $6,000 | I69: $4.00 | O69: 1
C70: =T('ESTIMATE SUMMARY'!B52) -> OTHER | O70: =O76 -> 0
C71: =T('ESTIMATE SUMMARY'!B53) -> GENERAL REQUIREMENTS | G71: =IF(Summary_Proposal_Adders_Setting="Allocate Adders",Other1_GrandTotal,Other1_Total) -> $0 | I71: =IFERROR(G71/PROJECT_SIZE,0) -> $0.00 | O71: 0
C72: =T('ESTIMATE SUMMARY'!B54) -> ARCHITECTURAL/ENGINEERING | G72: =IF(Summary_Proposal_Adders_Setting="Allocate Adders",Other2_GrandTotal,Other2_Total) -> $0 | I72: $0.00 | O72: 0
C73: =T('ESTIMATE SUMMARY'!B55) -> BUILDING PERMITS | G73: =IF(Summary_Proposal_Adders_Setting="Allocate Adders",Other3_GrandTotal,Other3_Total) -> $0 | I73: $0.00 | O73: 0
C74: =T('ESTIMATE SUMMARY'!B56) -> OTHER 1 | G74: =IF(Summary_Proposal_Adders_Setting="Allocate Adders",Other4_GrandTotal,Other4_Total) -> $0 | I74: $0.00 | O74: 0
C75: =T('ESTIMATE SUMMARY'!B57) -> OTHER 2 | G75: =IF(Summary_Proposal_Adders_Setting="Allocate Adders",Other5_GrandTotal,Other5_Total) -> $0 | I75: $0.00 | O75: 0
C76: =T('ESTIMATE SUMMARY'!B58) -> OTHER TOTALS | G76: =SUM(G71:H75) -> $0 | I76: $0.00 | O76: 0
C77: =IF(O79=0,"TOTAL PROPOSAL","SUBTOTAL") -> SUBTOTAL | G77: =G40+G62+G69+G76 -> $83,563 | I77: =SUM(I24:I39) -> $18.98 /sf | O77: 1
C78: SOFT COSTS | G78: =IF(Summary_Proposal_Adders_Setting="Allocate Adders",Shown_Adders,TOTAL_ADDERS) -> $27,522 | I78: =IFERROR(G78/PROJECT_SIZE,0) -> $18.35 /sf | O78: 1
C79: =IF(R17="Internal Report","TOTAL ESTIMATE","TOTAL PROPOSAL") -> TOTAL PROPOSAL | G79: =G77+G78 -> $111,084 | I79: =I77+I78 -> $37.32 /sf | O79: =IF(AND(Summary_Proposal_Adders_Setting="Allocate Adders",Shown_Adders=0),0,1) -> 1
C80: All work to be completed in a workmanlike manner according to standard practices & local building codes. Any alteration or deviation from the above specifications involving extra costs, will be executed only upon written and will be an extra charge over and above the estimate. This proposal is subject to acceptance within ______ days and is void thereafter at the option of the undersigned. | O80: =IF(Summary_Proposal_Report_Setting="Client Proposal",1,0) -> 1
O81: 1
O82: 1
O83: 1
O84: 1
C85: Acceptance of Proposal | O85: 1
O86: 1
O87: 1
C88: The above prices, specifications and conditions are satisfactory and are hereby accepted. You are authorized to do the work specified. | O88: 1
O89: 1
O90: 1
C91: SIGNATURE | J91: DATE | O91: 1
O92: 1
C95: =T(Company_Name) -> ABC Builders | F95: =(Company_Phone) -> 8161234567 | I95: =T(Company_Email) -> dave@abcbuilders.com | L95: =T(Company_Website) -> 
C99: © 2018 by RemodelEstimator.com. All rights reserved

Sheet DETAIL COST PROPOSAL (hidden)
A3: Detailed Cost Proposal | E3: Client Proposal | R3: Raw Costs
C6: =CONCATENATE("Date Created: ",TEXT(TODAY(),"mm/dd/yyyy")) -> Date Created: 08/28/2018
C7: =IF(E3="Client Proposal","ESTIMATE PROPOSAL","DETAILED ESTIMATE") -> ESTIMATE PROPOSAL
C9: Client Information: | I9: =T(Company_Name) -> ABC Builders
C11: Contact: | D11: =T(CLIENT_NAME) ->  | I11: Contact: | J11: =T(Company_Contact) -> Dave
C12: Phone #: | I12: Phone #: | J12: =Company_Phone -> 8161234567
C13: Email: | I13: Email: | J13: =T(Company_Email) -> dave@abcbuilders.com
I14: Website | J14: =T(Company_Website) -> 
C16: We hereby propose to furnish labor, material & equipment - complete in accordance with the below specifications.
J18: Totals | M18: =M2091 -> $83,563
C19: Description of Work | H19: QTY | I19: Unit | J19: Lab | K19: Mat'l | L19: Sub | M19: Total Cost | O19: SORTER
C21: =T(ESTIMATE!B9) -> ROOFING | H21: =SUM(H22:H61) -> 20 | O21: =H21 -> 20
